{"text_format":"1","workbook":"xlsx","n_sheets":7,"sheets":["Instructions","National & Regional","Provider","Guidance & Definitions","Notes","Data Extract","Region Mapping"],"not_rendered":{"charts":0,"images":0,"macros":1,"external_links":4,"defined_names":51,"comments":0,"pivot_tables":0},"unopened":[],"bounds":{"document_bytes":16777216,"sheet_cells":100000,"rows_first":2000,"rows_last":500,"rows_between":2000,"halvings":0,"cell_chars":16384,"cell_head_chars":4096},"cells_cut":0,"cells_raw":0,"read":"whole","date_system":"1900"}

{"sheet":"Instructions","index":0,"n_rows":28,"n_cols":4,"rows_kept":28,"cut":false,"hidden":true,"merged":[[11,1,12,14]]}
[]
[]
[]
[]
[]
[]
[]
[null,"Instructions"]
[]
[null,"1. Click 'Remove Old Data'."]
[null,"2. Click 'Webfile Setup'."]
[null,"3. Paste the current quarter's final extract into the 'Data Extract' sheet. N.B Data must be pasted in the exact same location for the macro to work, e.g. org code list should start in cell E4."]
[]
[null,"4. Update the Notes page - add a list of any trusts that did not submit. Make sure to update the date for which the data was submitted until (the date that the collection was closed)."]
[null,"5. Click 'Create Provisional Webfile'."]
[null,"6. Go to the Provider tab and check the vlookup formulas and formatting of the table, check national totals as expected/correspond to raw extract"]
[null,"7. Go to the National and Regional tab and check the vlookup formulas and formatting of the table, check national totals as expected/correspond to raw extract"]
[null,"8. Once you have checked both of these tabs, save the working version (save as to update file name with most recent quarterand remove old version/with old name)."]
[null,"9. Click 'Create Final Webfile'. This will save a new version of the web file ('Cancelled Ops') ready for publication with values pasted etc  in the same location as the working file (Working folder within Webfiles folder)."]
[null,"10. Move the new file: 'Cancelled Ops' to the Webfile folder and then add the Current Quarter and Year to the file name such that it looks like: 'QX YYYY-YY Cancelled Ops'"]
[]
[]
[null,"Year:",null,"2023-24"]
[null,"Quarter:",null,"Q3"]
[null,"Publication Period:",null,"October to December 2023"]
[null,"Publilcation Date:",null,"8th February 2024"]
[]
[null,"If revising data miss out 'Webfile Setup' and manually alter the Revision Date and Publication Status on the National & Regional sheet."]

{"sheet":"National & Regional","index":1,"n_rows":27,"n_cols":5,"rows_kept":27,"cut":false,"hidden":false,"merged":[[2,2,3,2],[5,2,5,3],[11,1,11,4]]}
[]
[null,"Title:","Cancelled Operations (elective only)"]
[null,"Summary:","The number of last minute cancelled elective operations in the quarter for non-clinical reasons"]
[]
[null,"Period:",{"$f":" \"Quarter \" &RIGHT(Quarter,1) & \", \" & YearPeriod & \" (\" &PublicationPeriod &\")\"","v":"Quarter 3, 2023-24 (October to December 2023)"}]
[null,"Source:","NHS England - QMCO data collection"]
[null,"Basis:","Provider, excluding IS organisations"]
[null,"Published:",{"$f":"PublicationDate","v":"8th February 2024"}]
[null,"Revised:","-"]
[null,"Status:","Public"]
[null,"Contact:","england.nhsdata@nhs.net"]
[null,"Guidance documents and latest statistical commentary relating to this collection can be found here: "]
[null,"http://www.england.nhs.uk/statistics/cancelled-elective-operations/cancelled-ops-data/"]
[]
[null,"National & Regional Level Data"]
[null,"Region Code","Region Name","Number of last minute elective operations cancelled for non clinical reasons","Number of patients not treated within 28 days of last minute elective cancellation"]
[null,"-","England (Excluding Independent Sector)",{"$f":"SUM(D19:D25)","v":20372},{"$f":"SUM(E19:E25)","v":4913}]
[]
[null,"Y56","LONDON COMMISSIONING REGION",{"$f":"SUMIFS(Provider!$F:$F,Provider!$B:$B,B19,Provider!$D:$D,\"=R*\")","v":2601},{"$f":"SUMIFS(Provider!$G:$G,Provider!$B:$B,B19,Provider!$D:$D,\"=R*\")","v":542}]
[null,"Y58","SOUTH WEST COMMISSIONING REGION",{"$f":"SUMIFS(Provider!$F:$F,Provider!$B:$B,B20,Provider!$D:$D,\"=R*\")","v":2503},{"$f":"SUMIFS(Provider!$G:$G,Provider!$B:$B,B20,Provider!$D:$D,\"=R*\")","v":698}]
[null,"Y59","SOUTH EAST COMMISSIONING REGION",{"$f":"SUMIFS(Provider!$F:$F,Provider!$B:$B,B21,Provider!$D:$D,\"=R*\")","v":2583},{"$f":"SUMIFS(Provider!$G:$G,Provider!$B:$B,B21,Provider!$D:$D,\"=R*\")","v":747}]
[null,"Y60","MIDLANDS COMMISSIONING REGION",{"$f":"SUMIFS(Provider!$F:$F,Provider!$B:$B,B22,Provider!$D:$D,\"=R*\")","v":4422},{"$f":"SUMIFS(Provider!$G:$G,Provider!$B:$B,B22,Provider!$D:$D,\"=R*\")","v":1253}]
[null,"Y61","EAST OF ENGLAND COMMISSIONING REGION",{"$f":"SUMIFS(Provider!$F:$F,Provider!$B:$B,B23,Provider!$D:$D,\"=R*\")","v":2364},{"$f":"SUMIFS(Provider!$G:$G,Provider!$B:$B,B23,Provider!$D:$D,\"=R*\")","v":513}]
[null,"Y62","NORTH WEST COMMISSIONING REGION",{"$f":"SUMIFS(Provider!$F:$F,Provider!$B:$B,B24,Provider!$D:$D,\"=R*\")","v":3250},{"$f":"SUMIFS(Provider!$G:$G,Provider!$B:$B,B24,Provider!$D:$D,\"=R*\")","v":695}]
[null,"Y63","NORTH EAST AND YORKSHIRE COMMISSIONING REGION",{"$f":"SUMIFS(Provider!$F:$F,Provider!$B:$B,B25,Provider!$D:$D,\"=R*\")","v":2649},{"$f":"SUMIFS(Provider!$G:$G,Provider!$B:$B,B25,Provider!$D:$D,\"=R*\")","v":465}]
[]
[null,"Note: Please refer to the 'Guidance & Definitions' for information regarding the data."]

{"sheet":"Provider","index":2,"n_rows":160,"n_cols":7,"rows_kept":160,"cut":false,"hidden":false,"merged":[[2,2,3,2],[11,1,11,5]]}
[]
[null,"Title:","Cancelled Operations (elective only)"]
[null,"Summary:","The number of last minute cancelled elective operations in the quarter for non-clinical reasons, NHS provider organisations in England"]
[]
[null,"Period:",{"$f":"'National & Regional'!C5","v":"Quarter 3, 2023-24 (October to December 2023)"}]
[null,"Source:","NHS England - QMCO data collection"]
[null,"Basis:","Provider"]
[null,"Published:",{"$f":"'National & Regional'!C8","v":"8th February 2024"}]
[null,"Revised:",{"$f":"'National & Regional'!C9","v":"-"}]
[null,"Status:",{"$f":"'National & Regional'!C10","v":"Public"}]
[null,"Contact:","england.nhsdata@nhs.net"]
[null,"Guidance documents and latest statistical commentary relating to this collection can be found here: "]
[null,"http://www.england.nhs.uk/statistics/cancelled-elective-operations/cancelled-ops-data/"]
[]
[null,"Provider Level Data"]
[null,"Region Code","Region Name","Organisation Code","Organisation Name","Number of last minute elective operations cancelled for non clinical reasons","Number of patients not treated within 28 days of last minute elective cancellation"]
[null,"-",null,"-","England (Excluding Independent Sector)",{"$f":"SUMIF($D$20:$D$295,\"=R*\",$F$20:$F$295)","v":20372},{"$f":"SUMIF($D$20:$D$295,\"=R*\",$G$20:$G$295)","v":4913}]
[null,"-",null,"-","England (Including Independent Sector)",{"$f":"SUM(F20:F295)","v":20389},{"$f":"SUM(G20:G295)","v":4921}]
[]
[null,"Y56","LONDON COMMISSIONING REGION","R1H","BARTS HEALTH NHS TRUST",{"$f":"VLOOKUP($D20,'Data Extract'!$E:$J,5,0)","v":328},{"$f":"VLOOKUP($D20,'Data Extract'!$E:$J,6,0)","v":79}]
[null,"Y56","LONDON COMMISSIONING REGION","R1K","LONDON NORTH WEST UNIVERSITY HEALTHCARE NHS TRUST",{"$f":"VLOOKUP($D21,'Data Extract'!$E:$J,5,0)","v":110},{"$f":"VLOOKUP($D21,'Data Extract'!$E:$J,6,0)","v":0}]
[null,"Y56","LONDON COMMISSIONING REGION","RAL","ROYAL FREE LONDON NHS FOUNDATION TRUST",{"$f":"VLOOKUP($D22,'Data Extract'!$E:$J,5,0)","v":165},{"$f":"VLOOKUP($D22,'Data Extract'!$E:$J,6,0)","v":42}]
[null,"Y56","LONDON COMMISSIONING REGION","RAN","ROYAL NATIONAL ORTHOPAEDIC HOSPITAL NHS TRUST",{"$f":"VLOOKUP($D23,'Data Extract'!$E:$J,5,0)","v":50},{"$f":"VLOOKUP($D23,'Data Extract'!$E:$J,6,0)","v":12}]
[null,"Y56","LONDON COMMISSIONING REGION","RAP","NORTH MIDDLESEX UNIVERSITY HOSPITAL NHS TRUST",{"$f":"VLOOKUP($D24,'Data Extract'!$E:$J,5,0)","v":58},{"$f":"VLOOKUP($D24,'Data Extract'!$E:$J,6,0)","v":13}]
[null,"Y56","LONDON COMMISSIONING REGION","RAS","THE HILLINGDON HOSPITALS NHS FOUNDATION TRUST",{"$f":"VLOOKUP($D25,'Data Extract'!$E:$J,5,0)","v":15},{"$f":"VLOOKUP($D25,'Data Extract'!$E:$J,6,0)","v":0}]
[null,"Y56","LONDON COMMISSIONING REGION","RAX","KINGSTON HOSPITAL NHS FOUNDATION TRUST",{"$f":"VLOOKUP($D26,'Data Extract'!$E:$J,5,0)","v":36},{"$f":"VLOOKUP($D26,'Data Extract'!$E:$J,6,0)","v":2}]
[null,"Y56","LONDON COMMISSIONING REGION","RF4","BARKING, HAVERING AND REDBRIDGE UNIVERSITY HOSPITALS NHS TRUST",{"$f":"VLOOKUP($D27,'Data Extract'!$E:$J,5,0)","v":221},{"$f":"VLOOKUP($D27,'Data Extract'!$E:$J,6,0)","v":25}]
[null,"Y56","LONDON COMMISSIONING REGION","RJ2","LEWISHAM AND GREENWICH NHS TRUST",{"$f":"VLOOKUP($D28,'Data Extract'!$E:$J,5,0)","v":65},{"$f":"VLOOKUP($D28,'Data Extract'!$E:$J,6,0)","v":24}]
[null,"Y56","LONDON COMMISSIONING REGION","RJ6","CROYDON HEALTH SERVICES NHS TRUST",{"$f":"VLOOKUP($D29,'Data Extract'!$E:$J,5,0)","v":174},{"$f":"VLOOKUP($D29,'Data Extract'!$E:$J,6,0)","v":41}]
[null,"Y56","LONDON COMMISSIONING REGION","RJ7","ST GEORGE'S UNIVERSITY HOSPITALS NHS FOUNDATION TRUST",{"$f":"VLOOKUP($D30,'Data Extract'!$E:$J,5,0)","v":51},{"$f":"VLOOKUP($D30,'Data Extract'!$E:$J,6,0)","v":7}]
[null,"Y56","LONDON COMMISSIONING REGION","RKE","WHITTINGTON HEALTH NHS TRUST",{"$f":"VLOOKUP($D31,'Data Extract'!$E:$J,5,0)","v":19},{"$f":"VLOOKUP($D31,'Data Extract'!$E:$J,6,0)","v":5}]
[null,"Y56","LONDON COMMISSIONING REGION","RP4","GREAT ORMOND STREET HOSPITAL FOR CHILDREN NHS FOUNDATION TRUST",{"$f":"VLOOKUP($D32,'Data Extract'!$E:$J,5,0)","v":141},{"$f":"VLOOKUP($D32,'Data Extract'!$E:$J,6,0)","v":30}]
[null,"Y56","LONDON COMMISSIONING REGION","RP6","MOORFIELDS EYE HOSPITAL NHS FOUNDATION TRUST",{"$f":"VLOOKUP($D33,'Data Extract'!$E:$J,5,0)","v":82},{"$f":"VLOOKUP($D33,'Data Extract'!$E:$J,6,0)","v":6}]
[null,"Y56","LONDON COMMISSIONING REGION","RPY","THE ROYAL MARSDEN NHS FOUNDATION TRUST",{"$f":"VLOOKUP($D34,'Data Extract'!$E:$J,5,0)","v":11},{"$f":"VLOOKUP($D34,'Data Extract'!$E:$J,6,0)","v":0}]
[null,"Y56","LONDON COMMISSIONING REGION","RQM","CHELSEA AND WESTMINSTER HOSPITAL NHS FOUNDATION TRUST",{"$f":"VLOOKUP($D35,'Data Extract'!$E:$J,5,0)","v":114},{"$f":"VLOOKUP($D35,'Data Extract'!$E:$J,6,0)","v":23}]
[null,"Y56","LONDON COMMISSIONING REGION","RQX","HOMERTON HEALTHCARE NHS FOUNDATION TRUST",{"$f":"VLOOKUP($D36,'Data Extract'!$E:$J,5,0)","v":74},{"$f":"VLOOKUP($D36,'Data Extract'!$E:$J,6,0)","v":0}]
[null,"Y56","LONDON COMMISSIONING REGION","RRV","UNIVERSITY COLLEGE LONDON HOSPITALS NHS FOUNDATION TRUST",{"$f":"VLOOKUP($D37,'Data Extract'!$E:$J,5,0)","v":343},{"$f":"VLOOKUP($D37,'Data Extract'!$E:$J,6,0)","v":164}]
[null,"Y56","LONDON COMMISSIONING REGION","RVR","EPSOM AND ST HELIER UNIVERSITY HOSPITALS NHS TRUST",{"$f":"VLOOKUP($D38,'Data Extract'!$E:$J,5,0)","v":296},{"$f":"VLOOKUP($D38,'Data Extract'!$E:$J,6,0)","v":7}]
[null,"Y56","LONDON COMMISSIONING REGION","RYJ","IMPERIAL COLLEGE HEALTHCARE NHS TRUST",{"$f":"VLOOKUP($D39,'Data Extract'!$E:$J,5,0)","v":248},{"$f":"VLOOKUP($D39,'Data Extract'!$E:$J,6,0)","v":62}]
[null,"Y58","SOUTH WEST COMMISSIONING REGION","R0D","UNIVERSITY HOSPITALS DORSET NHS FOUNDATION TRUST",{"$f":"VLOOKUP($D40,'Data Extract'!$E:$J,5,0)","v":180},{"$f":"VLOOKUP($D40,'Data Extract'!$E:$J,6,0)","v":61}]
[null,"Y58","SOUTH WEST COMMISSIONING REGION","RA7","UNIVERSITY HOSPITALS BRISTOL AND WESTON NHS FOUNDATION TRUST",{"$f":"VLOOKUP($D41,'Data Extract'!$E:$J,5,0)","v":286},{"$f":"VLOOKUP($D41,'Data Extract'!$E:$J,6,0)","v":201}]
[null,"Y58","SOUTH WEST COMMISSIONING REGION","RA9","TORBAY AND SOUTH DEVON NHS FOUNDATION TRUST",{"$f":"VLOOKUP($D42,'Data Extract'!$E:$J,5,0)","v":136},{"$f":"VLOOKUP($D42,'Data Extract'!$E:$J,6,0)","v":39}]
[null,"Y58","SOUTH WEST COMMISSIONING REGION","RBD","DORSET COUNTY HOSPITAL NHS FOUNDATION TRUST",{"$f":"VLOOKUP($D43,'Data Extract'!$E:$J,5,0)","v":148},{"$f":"VLOOKUP($D43,'Data Extract'!$E:$J,6,0)","v":36}]
[null,"Y58","SOUTH WEST COMMISSIONING REGION","RD1","ROYAL UNITED HOSPITALS BATH NHS FOUNDATION TRUST",{"$f":"VLOOKUP($D44,'Data Extract'!$E:$J,5,0)","v":87},{"$f":"VLOOKUP($D44,'Data Extract'!$E:$J,6,0)","v":1}]
[null,"Y58","SOUTH WEST COMMISSIONING REGION","RDY","DORSET HEALTHCARE UNIVERSITY NHS FOUNDATION TRUST",{"$f":"VLOOKUP($D45,'Data Extract'!$E:$J,5,0)","v":0},{"$f":"VLOOKUP($D45,'Data Extract'!$E:$J,6,0)","v":0}]
[null,"Y58","SOUTH WEST COMMISSIONING REGION","REF","ROYAL CORNWALL HOSPITALS NHS TRUST",{"$f":"VLOOKUP($D46,'Data Extract'!$E:$J,5,0)","v":205},{"$f":"VLOOKUP($D46,'Data Extract'!$E:$J,6,0)","v":67}]
[null,"Y58","SOUTH WEST COMMISSIONING REGION","RH5","SOMERSET NHS FOUNDATION TRUST",{"$f":"VLOOKUP($D47,'Data Extract'!$E:$J,5,0)","v":209},{"$f":"VLOOKUP($D47,'Data Extract'!$E:$J,6,0)","v":58}]
[null,"Y58","SOUTH WEST COMMISSIONING REGION","RH8","ROYAL DEVON UNIVERSITY HEALTHCARE NHS FOUNDATION TRUST",{"$f":"VLOOKUP($D48,'Data Extract'!$E:$J,5,0)","v":352},{"$f":"VLOOKUP($D48,'Data Extract'!$E:$J,6,0)","v":41}]
[null,"Y58","SOUTH WEST COMMISSIONING REGION","RK9","UNIVERSITY HOSPITALS PLYMOUTH NHS TRUST",{"$f":"VLOOKUP($D49,'Data Extract'!$E:$J,5,0)","v":422},{"$f":"VLOOKUP($D49,'Data Extract'!$E:$J,6,0)","v":97}]
[null,"Y58","SOUTH WEST COMMISSIONING REGION","RN3","GREAT WESTERN HOSPITALS NHS FOUNDATION TRUST",{"$f":"VLOOKUP($D50,'Data Extract'!$E:$J,5,0)","v":80},{"$f":"VLOOKUP($D50,'Data Extract'!$E:$J,6,0)","v":5}]
[null,"Y58","SOUTH WEST COMMISSIONING REGION","RNZ","SALISBURY NHS FOUNDATION TRUST",{"$f":"VLOOKUP($D51,'Data Extract'!$E:$J,5,0)","v":65},{"$f":"VLOOKUP($D51,'Data Extract'!$E:$J,6,0)","v":7}]
[null,"Y58","SOUTH WEST COMMISSIONING REGION","RTE","GLOUCESTERSHIRE HOSPITALS NHS FOUNDATION TRUST",{"$f":"VLOOKUP($D52,'Data Extract'!$E:$J,5,0)","v":208},{"$f":"VLOOKUP($D52,'Data Extract'!$E:$J,6,0)","v":67}]
[null,"Y58","SOUTH WEST COMMISSIONING REGION","RTQ","GLOUCESTERSHIRE HEALTH AND CARE NHS FOUNDATION TRUST",{"$f":"VLOOKUP($D53,'Data Extract'!$E:$J,5,0)","v":0},{"$f":"VLOOKUP($D53,'Data Extract'!$E:$J,6,0)","v":0}]
[null,"Y58","SOUTH WEST COMMISSIONING REGION","RVJ","NORTH BRISTOL NHS TRUST",{"$f":"VLOOKUP($D54,'Data Extract'!$E:$J,5,0)","v":125},{"$f":"VLOOKUP($D54,'Data Extract'!$E:$J,6,0)","v":18}]
[null,"Y59","SOUTH EAST COMMISSIONING REGION","ADP02","KIMS HOSPITAL (NEWNHAM COURT)",{"$f":"VLOOKUP($D55,'Data Extract'!$E:$J,5,0)","v":6},{"$f":"VLOOKUP($D55,'Data Extract'!$E:$J,6,0)","v":2}]
[null,"Y59","SOUTH EAST COMMISSIONING REGION","NTP16","PRACTICE PLUS GROUP SURGICAL CENTRE - GILLINGHAM",{"$f":"VLOOKUP($D56,'Data Extract'!$E:$J,5,0)","v":0},{"$f":"VLOOKUP($D56,'Data Extract'!$E:$J,6,0)","v":0}]
[null,"Y59","SOUTH EAST COMMISSIONING REGION","R1F","ISLE OF WIGHT NHS TRUST",{"$f":"VLOOKUP($D57,'Data Extract'!$E:$J,5,0)","v":50},{"$f":"VLOOKUP($D57,'Data Extract'!$E:$J,6,0)","v":7}]
[null,"Y59","SOUTH EAST COMMISSIONING REGION","RA2","ROYAL SURREY COUNTY HOSPITAL NHS FOUNDATION TRUST",{"$f":"VLOOKUP($D58,'Data Extract'!$E:$J,5,0)","v":78},{"$f":"VLOOKUP($D58,'Data Extract'!$E:$J,6,0)","v":11}]
[null,"Y59","SOUTH EAST COMMISSIONING REGION","RHM","UNIVERSITY HOSPITAL SOUTHAMPTON NHS FOUNDATION TRUST",{"$f":"VLOOKUP($D59,'Data Extract'!$E:$J,5,0)","v":355},{"$f":"VLOOKUP($D59,'Data Extract'!$E:$J,6,0)","v":79}]
[null,"Y59","SOUTH EAST COMMISSIONING REGION","RHU","PORTSMOUTH HOSPITALS UNIVERSITY NATIONAL HEALTH SERVICE TRUST",{"$f":"VLOOKUP($D60,'Data Extract'!$E:$J,5,0)","v":115},{"$f":"VLOOKUP($D60,'Data Extract'!$E:$J,6,0)","v":26}]
[null,"Y59","SOUTH EAST COMMISSIONING REGION","RHW","ROYAL BERKSHIRE NHS FOUNDATION TRUST",{"$f":"VLOOKUP($D61,'Data Extract'!$E:$J,5,0)","v":127},{"$f":"VLOOKUP($D61,'Data Extract'!$E:$J,6,0)","v":0}]
[null,"Y59","SOUTH EAST COMMISSIONING REGION","RN5","HAMPSHIRE HOSPITALS NHS FOUNDATION TRUST",{"$f":"VLOOKUP($D62,'Data Extract'!$E:$J,5,0)","v":123},{"$f":"VLOOKUP($D62,'Data Extract'!$E:$J,6,0)","v":32}]
[null,"Y59","SOUTH EAST COMMISSIONING REGION","RN7","DARTFORD AND GRAVESHAM NHS TRUST",{"$f":"VLOOKUP($D63,'Data Extract'!$E:$J,5,0)","v":149},{"$f":"VLOOKUP($D63,'Data Extract'!$E:$J,6,0)","v":21}]
[null,"Y59","SOUTH EAST COMMISSIONING REGION","RPA","MEDWAY NHS FOUNDATION TRUST",{"$f":"VLOOKUP($D64,'Data Extract'!$E:$J,5,0)","v":39},{"$f":"VLOOKUP($D64,'Data Extract'!$E:$J,6,0)","v":23}]
[null,"Y59","SOUTH EAST COMMISSIONING REGION","RPC","QUEEN VICTORIA HOSPITAL NHS FOUNDATION TRUST",{"$f":"VLOOKUP($D65,'Data Extract'!$E:$J,5,0)","v":18},{"$f":"VLOOKUP($D65,'Data Extract'!$E:$J,6,0)","v":2}]
[null,"Y59","SOUTH EAST COMMISSIONING REGION","RTH","OXFORD UNIVERSITY HOSPITALS NHS FOUNDATION TRUST",{"$f":"VLOOKUP($D66,'Data Extract'!$E:$J,5,0)","v":73},{"$f":"VLOOKUP($D66,'Data Extract'!$E:$J,6,0)","v":9}]
[null,"Y59","SOUTH EAST COMMISSIONING REGION","RTK","ASHFORD AND ST PETER'S HOSPITALS NHS FOUNDATION TRUST",{"$f":"VLOOKUP($D67,'Data Extract'!$E:$J,5,0)","v":14},{"$f":"VLOOKUP($D67,'Data Extract'!$E:$J,6,0)","v":4}]
[null,"Y59","SOUTH EAST COMMISSIONING REGION","RTP","SURREY AND SUSSEX HEALTHCARE NHS TRUST",{"$f":"VLOOKUP($D68,'Data Extract'!$E:$J,5,0)","v":498},{"$f":"VLOOKUP($D68,'Data Extract'!$E:$J,6,0)","v":263}]
[null,"Y59","SOUTH EAST COMMISSIONING REGION","RVV","EAST KENT HOSPITALS UNIVERSITY NHS FOUNDATION TRUST",{"$f":"VLOOKUP($D69,'Data Extract'!$E:$J,5,0)","v":147},{"$f":"VLOOKUP($D69,'Data Extract'!$E:$J,6,0)","v":43}]
[null,"Y59","SOUTH EAST COMMISSIONING REGION","RW1","SOUTHERN HEALTH NHS FOUNDATION TRUST",{"$f":"VLOOKUP($D70,'Data Extract'!$E:$J,5,0)","v":0},{"$f":"VLOOKUP($D70,'Data Extract'!$E:$J,6,0)","v":0}]
[null,"Y59","SOUTH EAST COMMISSIONING REGION","RWF","MAIDSTONE AND TUNBRIDGE WELLS NHS TRUST",{"$f":"VLOOKUP($D71,'Data Extract'!$E:$J,5,0)","v":51},{"$f":"VLOOKUP($D71,'Data Extract'!$E:$J,6,0)","v":7}]
[null,"Y59","SOUTH EAST COMMISSIONING REGION","RXC","EAST SUSSEX HEALTHCARE NHS TRUST",{"$f":"VLOOKUP($D72,'Data Extract'!$E:$J,5,0)","v":76},{"$f":"VLOOKUP($D72,'Data Extract'!$E:$J,6,0)","v":9}]
[null,"Y59","SOUTH EAST COMMISSIONING REGION","RXQ","BUCKINGHAMSHIRE HEALTHCARE NHS TRUST",{"$f":"VLOOKUP($D73,'Data Extract'!$E:$J,5,0)","v":120},{"$f":"VLOOKUP($D73,'Data Extract'!$E:$J,6,0)","v":8}]
[null,"Y59","SOUTH EAST COMMISSIONING REGION","RYR","UNIVERSITY HOSPITALS SUSSEX NHS FOUNDATION TRUST",{"$f":"VLOOKUP($D74,'Data Extract'!$E:$J,5,0)","v":550},{"$f":"VLOOKUP($D74,'Data Extract'!$E:$J,6,0)","v":203}]
[null,"Y60","MIDLANDS COMMISSIONING REGION","R1D","SHROPSHIRE COMMUNITY HEALTH NHS TRUST",{"$f":"VLOOKUP($D75,'Data Extract'!$E:$J,5,0)","v":0},{"$f":"VLOOKUP($D75,'Data Extract'!$E:$J,6,0)","v":0}]
[null,"Y60","MIDLANDS COMMISSIONING REGION","RBK","WALSALL HEALTHCARE NHS TRUST",{"$f":"VLOOKUP($D76,'Data Extract'!$E:$J,5,0)","v":85},{"$f":"VLOOKUP($D76,'Data Extract'!$E:$J,6,0)","v":6}]
[null,"Y60","MIDLANDS COMMISSIONING REGION","RFS","CHESTERFIELD ROYAL HOSPITAL NHS FOUNDATION TRUST",{"$f":"VLOOKUP($D77,'Data Extract'!$E:$J,5,0)","v":118},{"$f":"VLOOKUP($D77,'Data Extract'!$E:$J,6,0)","v":47}]
[null,"Y60","MIDLANDS COMMISSIONING REGION","RJC","SOUTH WARWICKSHIRE UNIVERSITY NHS FOUNDATION TRUST",{"$f":"VLOOKUP($D78,'Data Extract'!$E:$J,5,0)","v":67},{"$f":"VLOOKUP($D78,'Data Extract'!$E:$J,6,0)","v":14}]
[null,"Y60","MIDLANDS COMMISSIONING REGION","RJE","UNIVERSITY HOSPITALS OF NORTH MIDLANDS NHS TRUST",{"$f":"VLOOKUP($D79,'Data Extract'!$E:$J,5,0)","v":398},{"$f":"VLOOKUP($D79,'Data Extract'!$E:$J,6,0)","v":85}]
[null,"Y60","MIDLANDS COMMISSIONING REGION","RK5","SHERWOOD FOREST HOSPITALS NHS FOUNDATION TRUST",{"$f":"VLOOKUP($D80,'Data Extract'!$E:$J,5,0)","v":62},{"$f":"VLOOKUP($D80,'Data Extract'!$E:$J,6,0)","v":16}]
[null,"Y60","MIDLANDS COMMISSIONING REGION","RKB","UNIVERSITY HOSPITALS COVENTRY AND WARWICKSHIRE NHS TRUST",{"$f":"VLOOKUP($D81,'Data Extract'!$E:$J,5,0)","v":234},{"$f":"VLOOKUP($D81,'Data Extract'!$E:$J,6,0)","v":71}]
[null,"Y60","MIDLANDS COMMISSIONING REGION","RL1","THE ROBERT JONES AND AGNES HUNT ORTHOPAEDIC HOSPITAL NHS FOUNDATION TRUST",{"$f":"VLOOKUP($D82,'Data Extract'!$E:$J,5,0)","v":44},{"$f":"VLOOKUP($D82,'Data Extract'!$E:$J,6,0)","v":0}]
[null,"Y60","MIDLANDS COMMISSIONING REGION","RL4","THE ROYAL WOLVERHAMPTON NHS TRUST",{"$f":"VLOOKUP($D83,'Data Extract'!$E:$J,5,0)","v":32},{"$f":"VLOOKUP($D83,'Data Extract'!$E:$J,6,0)","v":0}]
[null,"Y60","MIDLANDS COMMISSIONING REGION","RLQ","WYE VALLEY NHS TRUST",{"$f":"VLOOKUP($D84,'Data Extract'!$E:$J,5,0)","v":75},{"$f":"VLOOKUP($D84,'Data Extract'!$E:$J,6,0)","v":31}]
[null,"Y60","MIDLANDS COMMISSIONING REGION","RLT","GEORGE ELIOT HOSPITAL NHS TRUST",{"$f":"VLOOKUP($D85,'Data Extract'!$E:$J,5,0)","v":68},{"$f":"VLOOKUP($D85,'Data Extract'!$E:$J,6,0)","v":50}]
[null,"Y60","MIDLANDS COMMISSIONING REGION","RNA","THE DUDLEY GROUP NHS FOUNDATION TRUST",{"$f":"VLOOKUP($D86,'Data Extract'!$E:$J,5,0)","v":175},{"$f":"VLOOKUP($D86,'Data Extract'!$E:$J,6,0)","v":8}]
[null,"Y60","MIDLANDS COMMISSIONING REGION","RNQ","KETTERING GENERAL HOSPITAL NHS FOUNDATION TRUST",{"$f":"VLOOKUP($D87,'Data Extract'!$E:$J,5,0)","v":109},{"$f":"VLOOKUP($D87,'Data Extract'!$E:$J,6,0)","v":41}]
[null,"Y60","MIDLANDS COMMISSIONING REGION","RNS","NORTHAMPTON GENERAL HOSPITAL NHS TRUST",{"$f":"VLOOKUP($D88,'Data Extract'!$E:$J,5,0)","v":85},{"$f":"VLOOKUP($D88,'Data Extract'!$E:$J,6,0)","v":0}]
[null,"Y60","MIDLANDS COMMISSIONING REGION","RQ3","BIRMINGHAM WOMEN'S AND CHILDREN'S NHS FOUNDATION TRUST",{"$f":"VLOOKUP($D89,'Data Extract'!$E:$J,5,0)","v":76},{"$f":"VLOOKUP($D89,'Data Extract'!$E:$J,6,0)","v":12}]
[null,"Y60","MIDLANDS COMMISSIONING REGION","RRJ","THE ROYAL ORTHOPAEDIC HOSPITAL NHS FOUNDATION TRUST",{"$f":"VLOOKUP($D90,'Data Extract'!$E:$J,5,0)","v":62},{"$f":"VLOOKUP($D90,'Data Extract'!$E:$J,6,0)","v":0}]
[null,"Y60","MIDLANDS COMMISSIONING REGION","RRK","UNIVERSITY HOSPITALS BIRMINGHAM NHS FOUNDATION TRUST",{"$f":"VLOOKUP($D91,'Data Extract'!$E:$J,5,0)","v":957},{"$f":"VLOOKUP($D91,'Data Extract'!$E:$J,6,0)","v":282}]
[null,"Y60","MIDLANDS COMMISSIONING REGION","RTG","UNIVERSITY HOSPITALS OF DERBY AND BURTON NHS FOUNDATION TRUST",{"$f":"VLOOKUP($D92,'Data Extract'!$E:$J,5,0)","v":242},{"$f":"VLOOKUP($D92,'Data Extract'!$E:$J,6,0)","v":118}]
[null,"Y60","MIDLANDS COMMISSIONING REGION","RWD","UNITED LINCOLNSHIRE HOSPITALS NHS TRUST",{"$f":"VLOOKUP($D93,'Data Extract'!$E:$J,5,0)","v":313},{"$f":"VLOOKUP($D93,'Data Extract'!$E:$J,6,0)","v":103}]
[null,"Y60","MIDLANDS COMMISSIONING REGION","RWE","UNIVERSITY HOSPITALS OF LEICESTER NHS TRUST",{"$f":"VLOOKUP($D94,'Data Extract'!$E:$J,5,0)","v":574},{"$f":"VLOOKUP($D94,'Data Extract'!$E:$J,6,0)","v":199}]
[null,"Y60","MIDLANDS COMMISSIONING REGION","RWP","WORCESTERSHIRE ACUTE HOSPITALS NHS TRUST",{"$f":"VLOOKUP($D95,'Data Extract'!$E:$J,5,0)","v":124},{"$f":"VLOOKUP($D95,'Data Extract'!$E:$J,6,0)","v":31}]
[null,"Y60","MIDLANDS COMMISSIONING REGION","RX1","NOTTINGHAM UNIVERSITY HOSPITALS NHS TRUST",{"$f":"VLOOKUP($D96,'Data Extract'!$E:$J,5,0)","v":302},{"$f":"VLOOKUP($D96,'Data Extract'!$E:$J,6,0)","v":43}]
[null,"Y60","MIDLANDS COMMISSIONING REGION","RXK","SANDWELL AND WEST BIRMINGHAM HOSPITALS NHS TRUST",{"$f":"VLOOKUP($D97,'Data Extract'!$E:$J,5,0)","v":125},{"$f":"VLOOKUP($D97,'Data Extract'!$E:$J,6,0)","v":23}]
[null,"Y60","MIDLANDS COMMISSIONING REGION","RXW","THE SHREWSBURY AND TELFORD HOSPITAL NHS TRUST",{"$f":"VLOOKUP($D98,'Data Extract'!$E:$J,5,0)","v":95},{"$f":"VLOOKUP($D98,'Data Extract'!$E:$J,6,0)","v":73}]
[null,"Y60","MIDLANDS COMMISSIONING REGION","RYW","BIRMINGHAM COMMUNITY HEALTHCARE NHS FOUNDATION TRUST",{"$f":"VLOOKUP($D99,'Data Extract'!$E:$J,5,0)","v":0},{"$f":"VLOOKUP($D99,'Data Extract'!$E:$J,6,0)","v":0}]
[null,"Y61","EAST OF ENGLAND COMMISSIONING REGION","NT209","NUFFIELD HEALTH, CAMBRIDGE HOSPITAL",{"$f":"VLOOKUP($D100,'Data Extract'!$E:$J,5,0)","v":2},{"$f":"VLOOKUP($D100,'Data Extract'!$E:$J,6,0)","v":0}]
[null,"Y61","EAST OF ENGLAND COMMISSIONING REGION","RAJ","MID AND SOUTH ESSEX NHS FOUNDATION TRUST",{"$f":"VLOOKUP($D101,'Data Extract'!$E:$J,5,0)","v":409},{"$f":"VLOOKUP($D101,'Data Extract'!$E:$J,6,0)","v":59}]
[null,"Y61","EAST OF ENGLAND COMMISSIONING REGION","RC9","BEDFORDSHIRE HOSPITALS NHS FOUNDATION TRUST",{"$f":"VLOOKUP($D102,'Data Extract'!$E:$J,5,0)","v":242},{"$f":"VLOOKUP($D102,'Data Extract'!$E:$J,6,0)","v":10}]
[null,"Y61","EAST OF ENGLAND COMMISSIONING REGION","RCX","THE QUEEN ELIZABETH HOSPITAL, KING'S LYNN, NHS FOUNDATION TRUST",{"$f":"VLOOKUP($D103,'Data Extract'!$E:$J,5,0)","v":127},{"$f":"VLOOKUP($D103,'Data Extract'!$E:$J,6,0)","v":12}]
[null,"Y61","EAST OF ENGLAND COMMISSIONING REGION","RD8","MILTON KEYNES UNIVERSITY HOSPITAL NHS FOUNDATION TRUST",{"$f":"VLOOKUP($D104,'Data Extract'!$E:$J,5,0)","v":69},{"$f":"VLOOKUP($D104,'Data Extract'!$E:$J,6,0)","v":19}]
[null,"Y61","EAST OF ENGLAND COMMISSIONING REGION","RDE","EAST SUFFOLK AND NORTH ESSEX NHS FOUNDATION TRUST",{"$f":"VLOOKUP($D105,'Data Extract'!$E:$J,5,0)","v":235},{"$f":"VLOOKUP($D105,'Data Extract'!$E:$J,6,0)","v":21}]
[null,"Y61","EAST OF ENGLAND COMMISSIONING REGION","RGM","ROYAL PAPWORTH HOSPITAL NHS FOUNDATION TRUST",{"$f":"VLOOKUP($D106,'Data Extract'!$E:$J,5,0)","v":54},{"$f":"VLOOKUP($D106,'Data Extract'!$E:$J,6,0)","v":21}]
[null,"Y61","EAST OF ENGLAND COMMISSIONING REGION","RGN","NORTH WEST ANGLIA NHS FOUNDATION TRUST",{"$f":"VLOOKUP($D107,'Data Extract'!$E:$J,5,0)","v":183},{"$f":"VLOOKUP($D107,'Data Extract'!$E:$J,6,0)","v":101}]
[null,"Y61","EAST OF ENGLAND COMMISSIONING REGION","RGP","JAMES PAGET UNIVERSITY HOSPITALS NHS FOUNDATION TRUST",{"$f":"VLOOKUP($D108,'Data Extract'!$E:$J,5,0)","v":64},{"$f":"VLOOKUP($D108,'Data Extract'!$E:$J,6,0)","v":14}]
[null,"Y61","EAST OF ENGLAND COMMISSIONING REGION","RGR","WEST SUFFOLK NHS FOUNDATION TRUST",{"$f":"VLOOKUP($D109,'Data Extract'!$E:$J,5,0)","v":103},{"$f":"VLOOKUP($D109,'Data Extract'!$E:$J,6,0)","v":27}]
[null,"Y61","EAST OF ENGLAND COMMISSIONING REGION","RGT","CAMBRIDGE UNIVERSITY HOSPITALS NHS FOUNDATION TRUST",{"$f":"VLOOKUP($D110,'Data Extract'!$E:$J,5,0)","v":386},{"$f":"VLOOKUP($D110,'Data Extract'!$E:$J,6,0)","v":106}]
[null,"Y61","EAST OF ENGLAND COMMISSIONING REGION","RM1","NORFOLK AND NORWICH UNIVERSITY HOSPITALS NHS FOUNDATION TRUST",{"$f":"VLOOKUP($D111,'Data Extract'!$E:$J,5,0)","v":295},{"$f":"VLOOKUP($D111,'Data Extract'!$E:$J,6,0)","v":65}]
[null,"Y61","EAST OF ENGLAND COMMISSIONING REGION","RQW","THE PRINCESS ALEXANDRA HOSPITAL NHS TRUST",{"$f":"VLOOKUP($D112,'Data Extract'!$E:$J,5,0)","v":34},{"$f":"VLOOKUP($D112,'Data Extract'!$E:$J,6,0)","v":7}]
[null,"Y61","EAST OF ENGLAND COMMISSIONING REGION","RWG","WEST HERTFORDSHIRE TEACHING HOSPITALS NHS TRUST",{"$f":"VLOOKUP($D113,'Data Extract'!$E:$J,5,0)","v":143},{"$f":"VLOOKUP($D113,'Data Extract'!$E:$J,6,0)","v":45}]
[null,"Y61","EAST OF ENGLAND COMMISSIONING REGION","RWH","EAST AND NORTH HERTFORDSHIRE NHS TRUST",{"$f":"VLOOKUP($D114,'Data Extract'!$E:$J,5,0)","v":20},{"$f":"VLOOKUP($D114,'Data Extract'!$E:$J,6,0)","v":6}]
[null,"Y62","NORTH WEST COMMISSIONING REGION","NCR","ISIGHT",{"$f":"VLOOKUP($D115,'Data Extract'!$E:$J,5,0)","v":9},{"$f":"VLOOKUP($D115,'Data Extract'!$E:$J,6,0)","v":6}]
[null,"Y62","NORTH WEST COMMISSIONING REGION","NTPAE","PRACTICE PLUS GROUP OPHTHALMOLOGY - NORTH WEST",{"$f":"VLOOKUP($D116,'Data Extract'!$E:$J,5,0)","v":0},{"$f":"VLOOKUP($D116,'Data Extract'!$E:$J,6,0)","v":0}]
[null,"Y62","NORTH WEST COMMISSIONING REGION","R0A","MANCHESTER UNIVERSITY NHS FOUNDATION TRUST",{"$f":"VLOOKUP($D117,'Data Extract'!$E:$J,5,0)","v":674},{"$f":"VLOOKUP($D117,'Data Extract'!$E:$J,6,0)","v":149}]
[null,"Y62","NORTH WEST COMMISSIONING REGION","RBL","WIRRAL UNIVERSITY TEACHING HOSPITAL NHS FOUNDATION TRUST",{"$f":"VLOOKUP($D118,'Data Extract'!$E:$J,5,0)","v":151},{"$f":"VLOOKUP($D118,'Data Extract'!$E:$J,6,0)","v":57}]
[null,"Y62","NORTH WEST COMMISSIONING REGION","RBN","MERSEY AND WEST LANCASHIRE TEACHING HOSPITALS NHS TRUST",{"$f":"VLOOKUP($D119,'Data Extract'!$E:$J,5,0)","v":206},{"$f":"VLOOKUP($D119,'Data Extract'!$E:$J,6,0)","v":27}]
[null,"Y62","NORTH WEST COMMISSIONING REGION","RBQ","LIVERPOOL HEART AND CHEST HOSPITAL NHS FOUNDATION TRUST",{"$f":"VLOOKUP($D120,'Data Extract'!$E:$J,5,0)","v":55},{"$f":"VLOOKUP($D120,'Data Extract'!$E:$J,6,0)","v":11}]
[null,"Y62","NORTH WEST COMMISSIONING REGION","RBS","ALDER HEY CHILDREN'S NHS FOUNDATION TRUST",{"$f":"VLOOKUP($D121,'Data Extract'!$E:$J,5,0)","v":61},{"$f":"VLOOKUP($D121,'Data Extract'!$E:$J,6,0)","v":15}]
[null,"Y62","NORTH WEST COMMISSIONING REGION","RBT","MID CHESHIRE HOSPITALS NHS FOUNDATION TRUST",{"$f":"VLOOKUP($D122,'Data Extract'!$E:$J,5,0)","v":76},{"$f":"VLOOKUP($D122,'Data Extract'!$E:$J,6,0)","v":6}]
[null,"Y62","NORTH WEST COMMISSIONING REGION","RBV","THE CHRISTIE NHS FOUNDATION TRUST",{"$f":"VLOOKUP($D123,'Data Extract'!$E:$J,5,0)","v":21},{"$f":"VLOOKUP($D123,'Data Extract'!$E:$J,6,0)","v":0}]
[null,"Y62","NORTH WEST COMMISSIONING REGION","REM","LIVERPOOL UNIVERSITY HOSPITALS NHS FOUNDATION TRUST",{"$f":"VLOOKUP($D124,'Data Extract'!$E:$J,5,0)","v":224},{"$f":"VLOOKUP($D124,'Data Extract'!$E:$J,6,0)","v":30}]
[null,"Y62","NORTH WEST COMMISSIONING REGION","REP","LIVERPOOL WOMEN'S NHS FOUNDATION TRUST",{"$f":"VLOOKUP($D125,'Data Extract'!$E:$J,5,0)","v":10},{"$f":"VLOOKUP($D125,'Data Extract'!$E:$J,6,0)","v":2}]
[null,"Y62","NORTH WEST COMMISSIONING REGION","RET","THE WALTON CENTRE NHS FOUNDATION TRUST",{"$f":"VLOOKUP($D126,'Data Extract'!$E:$J,5,0)","v":14},{"$f":"VLOOKUP($D126,'Data Extract'!$E:$J,6,0)","v":0}]
[null,"Y62","NORTH WEST COMMISSIONING REGION","RJN","EAST CHESHIRE NHS TRUST",{"$f":"VLOOKUP($D127,'Data Extract'!$E:$J,5,0)","v":17},{"$f":"VLOOKUP($D127,'Data Extract'!$E:$J,6,0)","v":9}]
[null,"Y62","NORTH WEST COMMISSIONING REGION","RJR","COUNTESS OF CHESTER HOSPITAL NHS FOUNDATION TRUST",{"$f":"VLOOKUP($D128,'Data Extract'!$E:$J,5,0)","v":88},{"$f":"VLOOKUP($D128,'Data Extract'!$E:$J,6,0)","v":27}]
[null,"Y62","NORTH WEST COMMISSIONING REGION","RM3","NORTHERN CARE ALLIANCE NHS FOUNDATION TRUST",{"$f":"VLOOKUP($D129,'Data Extract'!$E:$J,5,0)","v":512},{"$f":"VLOOKUP($D129,'Data Extract'!$E:$J,6,0)","v":127}]
[null,"Y62","NORTH WEST COMMISSIONING REGION","RMC","BOLTON NHS FOUNDATION TRUST",{"$f":"VLOOKUP($D130,'Data Extract'!$E:$J,5,0)","v":109},{"$f":"VLOOKUP($D130,'Data Extract'!$E:$J,6,0)","v":29}]
[null,"Y62","NORTH WEST COMMISSIONING REGION","RMP","TAMESIDE AND GLOSSOP INTEGRATED CARE NHS FOUNDATION TRUST",{"$f":"VLOOKUP($D131,'Data Extract'!$E:$J,5,0)","v":19},{"$f":"VLOOKUP($D131,'Data Extract'!$E:$J,6,0)","v":1}]
[null,"Y62","NORTH WEST COMMISSIONING REGION","RRF","WRIGHTINGTON, WIGAN AND LEIGH NHS FOUNDATION TRUST",{"$f":"VLOOKUP($D132,'Data Extract'!$E:$J,5,0)","v":134},{"$f":"VLOOKUP($D132,'Data Extract'!$E:$J,6,0)","v":54}]
[null,"Y62","NORTH WEST COMMISSIONING REGION","RTX","UNIVERSITY HOSPITALS OF MORECAMBE BAY NHS FOUNDATION TRUST",{"$f":"VLOOKUP($D133,'Data Extract'!$E:$J,5,0)","v":70},{"$f":"VLOOKUP($D133,'Data Extract'!$E:$J,6,0)","v":6}]
[null,"Y62","NORTH WEST COMMISSIONING REGION","RWJ","STOCKPORT NHS FOUNDATION TRUST",{"$f":"VLOOKUP($D134,'Data Extract'!$E:$J,5,0)","v":97},{"$f":"VLOOKUP($D134,'Data Extract'!$E:$J,6,0)","v":4}]
[null,"Y62","NORTH WEST COMMISSIONING REGION","RWW","WARRINGTON AND HALTON TEACHING HOSPITALS NHS FOUNDATION TRUST",{"$f":"VLOOKUP($D135,'Data Extract'!$E:$J,5,0)","v":6},{"$f":"VLOOKUP($D135,'Data Extract'!$E:$J,6,0)","v":2}]
[null,"Y62","NORTH WEST COMMISSIONING REGION","RXL","BLACKPOOL TEACHING HOSPITALS NHS FOUNDATION TRUST",{"$f":"VLOOKUP($D136,'Data Extract'!$E:$J,5,0)","v":299},{"$f":"VLOOKUP($D136,'Data Extract'!$E:$J,6,0)","v":57}]
[null,"Y62","NORTH WEST COMMISSIONING REGION","RXN","LANCASHIRE TEACHING HOSPITALS NHS FOUNDATION TRUST",{"$f":"VLOOKUP($D137,'Data Extract'!$E:$J,5,0)","v":191},{"$f":"VLOOKUP($D137,'Data Extract'!$E:$J,6,0)","v":56}]
[null,"Y62","NORTH WEST COMMISSIONING REGION","RXR","EAST LANCASHIRE HOSPITALS NHS TRUST",{"$f":"VLOOKUP($D138,'Data Extract'!$E:$J,5,0)","v":216},{"$f":"VLOOKUP($D138,'Data Extract'!$E:$J,6,0)","v":26}]
[null,"Y63","NORTH EAST AND YORKSHIRE COMMISSIONING REGION","R0B","SOUTH TYNESIDE AND SUNDERLAND NHS FOUNDATION TRUST",{"$f":"VLOOKUP($D139,'Data Extract'!$E:$J,5,0)","v":139},{"$f":"VLOOKUP($D139,'Data Extract'!$E:$J,6,0)","v":30}]
[null,"Y63","NORTH EAST AND YORKSHIRE COMMISSIONING REGION","RAE","BRADFORD TEACHING HOSPITALS NHS FOUNDATION TRUST",{"$f":"VLOOKUP($D140,'Data Extract'!$E:$J,5,0)","v":112},{"$f":"VLOOKUP($D140,'Data Extract'!$E:$J,6,0)","v":4}]
[null,"Y63","NORTH EAST AND YORKSHIRE COMMISSIONING REGION","RCB","YORK AND SCARBOROUGH TEACHING HOSPITALS NHS FOUNDATION TRUST",{"$f":"VLOOKUP($D141,'Data Extract'!$E:$J,5,0)","v":179},{"$f":"VLOOKUP($D141,'Data Extract'!$E:$J,6,0)","v":25}]
[null,"Y63","NORTH EAST AND YORKSHIRE COMMISSIONING REGION","RCD","HARROGATE AND DISTRICT NHS FOUNDATION TRUST",{"$f":"VLOOKUP($D142,'Data Extract'!$E:$J,5,0)","v":57},{"$f":"VLOOKUP($D142,'Data Extract'!$E:$J,6,0)","v":1}]
[null,"Y63","NORTH EAST AND YORKSHIRE COMMISSIONING REGION","RCF","AIREDALE NHS FOUNDATION TRUST",{"$f":"VLOOKUP($D143,'Data Extract'!$E:$J,5,0)","v":64},{"$f":"VLOOKUP($D143,'Data Extract'!$E:$J,6,0)","v":1}]
[null,"Y63","NORTH EAST AND YORKSHIRE COMMISSIONING REGION","RCU","SHEFFIELD CHILDREN'S NHS FOUNDATION TRUST",{"$f":"VLOOKUP($D144,'Data Extract'!$E:$J,5,0)","v":39},{"$f":"VLOOKUP($D144,'Data Extract'!$E:$J,6,0)","v":4}]
[null,"Y63","NORTH EAST AND YORKSHIRE COMMISSIONING REGION","RFF","BARNSLEY HOSPITAL NHS FOUNDATION TRUST",{"$f":"VLOOKUP($D145,'Data Extract'!$E:$J,5,0)","v":83},{"$f":"VLOOKUP($D145,'Data Extract'!$E:$J,6,0)","v":14}]
[null,"Y63","NORTH EAST AND YORKSHIRE COMMISSIONING REGION","RFR","THE ROTHERHAM NHS FOUNDATION TRUST",{"$f":"VLOOKUP($D146,'Data Extract'!$E:$J,5,0)","v":119},{"$f":"VLOOKUP($D146,'Data Extract'!$E:$J,6,0)","v":11}]
[null,"Y63","NORTH EAST AND YORKSHIRE COMMISSIONING REGION","RHQ","SHEFFIELD TEACHING HOSPITALS NHS FOUNDATION TRUST",{"$f":"VLOOKUP($D147,'Data Extract'!$E:$J,5,0)","v":180},{"$f":"VLOOKUP($D147,'Data Extract'!$E:$J,6,0)","v":7}]
[null,"Y63","NORTH EAST AND YORKSHIRE COMMISSIONING REGION","RJL","NORTHERN LINCOLNSHIRE AND GOOLE NHS FOUNDATION TRUST",{"$f":"VLOOKUP($D148,'Data Extract'!$E:$J,5,0)","v":140},{"$f":"VLOOKUP($D148,'Data Extract'!$E:$J,6,0)","v":40}]
[null,"Y63","NORTH EAST AND YORKSHIRE COMMISSIONING REGION","RNN","NORTH CUMBRIA INTEGRATED CARE NHS FOUNDATION TRUST",{"$f":"VLOOKUP($D149,'Data Extract'!$E:$J,5,0)","v":156},{"$f":"VLOOKUP($D149,'Data Extract'!$E:$J,6,0)","v":52}]
[null,"Y63","NORTH EAST AND YORKSHIRE COMMISSIONING REGION","RP5","DONCASTER AND BASSETLAW TEACHING HOSPITALS NHS FOUNDATION TRUST",{"$f":"VLOOKUP($D150,'Data Extract'!$E:$J,5,0)","v":147},{"$f":"VLOOKUP($D150,'Data Extract'!$E:$J,6,0)","v":15}]
[null,"Y63","NORTH EAST AND YORKSHIRE COMMISSIONING REGION","RR7","GATESHEAD HEALTH NHS FOUNDATION TRUST",{"$f":"VLOOKUP($D151,'Data Extract'!$E:$J,5,0)","v":20},{"$f":"VLOOKUP($D151,'Data Extract'!$E:$J,6,0)","v":1}]
[null,"Y63","NORTH EAST AND YORKSHIRE COMMISSIONING REGION","RR8","LEEDS TEACHING HOSPITALS NHS TRUST",{"$f":"VLOOKUP($D152,'Data Extract'!$E:$J,5,0)","v":160},{"$f":"VLOOKUP($D152,'Data Extract'!$E:$J,6,0)","v":46}]
[null,"Y63","NORTH EAST AND YORKSHIRE COMMISSIONING REGION","RTD","THE NEWCASTLE UPON TYNE HOSPITALS NHS FOUNDATION TRUST",{"$f":"VLOOKUP($D153,'Data Extract'!$E:$J,5,0)","v":152},{"$f":"VLOOKUP($D153,'Data Extract'!$E:$J,6,0)","v":33}]
[null,"Y63","NORTH EAST AND YORKSHIRE COMMISSIONING REGION","RTF","NORTHUMBRIA HEALTHCARE NHS FOUNDATION TRUST",{"$f":"VLOOKUP($D154,'Data Extract'!$E:$J,5,0)","v":30},{"$f":"VLOOKUP($D154,'Data Extract'!$E:$J,6,0)","v":10}]
[null,"Y63","NORTH EAST AND YORKSHIRE COMMISSIONING REGION","RTR","SOUTH TEES HOSPITALS NHS FOUNDATION TRUST",{"$f":"VLOOKUP($D155,'Data Extract'!$E:$J,5,0)","v":205},{"$f":"VLOOKUP($D155,'Data Extract'!$E:$J,6,0)","v":56}]
[null,"Y63","NORTH EAST AND YORKSHIRE COMMISSIONING REGION","RVW","NORTH TEES AND HARTLEPOOL NHS FOUNDATION TRUST",{"$f":"VLOOKUP($D156,'Data Extract'!$E:$J,5,0)","v":52},{"$f":"VLOOKUP($D156,'Data Extract'!$E:$J,6,0)","v":16}]
[null,"Y63","NORTH EAST AND YORKSHIRE COMMISSIONING REGION","RWA","HULL UNIVERSITY TEACHING HOSPITALS NHS TRUST",{"$f":"VLOOKUP($D157,'Data Extract'!$E:$J,5,0)","v":389},{"$f":"VLOOKUP($D157,'Data Extract'!$E:$J,6,0)","v":93}]
[null,"Y63","NORTH EAST AND YORKSHIRE COMMISSIONING REGION","RWY","CALDERDALE AND HUDDERSFIELD NHS FOUNDATION TRUST",{"$f":"VLOOKUP($D158,'Data Extract'!$E:$J,5,0)","v":64},{"$f":"VLOOKUP($D158,'Data Extract'!$E:$J,6,0)","v":1}]
[null,"Y63","NORTH EAST AND YORKSHIRE COMMISSIONING REGION","RXF","MID YORKSHIRE TEACHING NHS TRUST",{"$f":"VLOOKUP($D159,'Data Extract'!$E:$J,5,0)","v":115},{"$f":"VLOOKUP($D159,'Data Extract'!$E:$J,6,0)","v":1}]
[null,"Y63","NORTH EAST AND YORKSHIRE COMMISSIONING REGION","RXP","COUNTY DURHAM AND DARLINGTON NHS FOUNDATION TRUST",{"$f":"VLOOKUP($D160,'Data Extract'!$E:$J,5,0)","v":47},{"$f":"VLOOKUP($D160,'Data Extract'!$E:$J,6,0)","v":4}]

{"sheet":"Guidance & Definitions","index":3,"n_rows":0,"n_cols":0,"rows_kept":0,"cut":false,"hidden":false,"merged":[]}

{"sheet":"Notes","index":4,"n_rows":18,"n_cols":3,"rows_kept":18,"cut":false,"hidden":false,"merged":[[2,2,3,2],[11,1,11,5]]}
[]
[null,"Title:","Cancelled Operations (elective only)"]
[null,"Summary:","The number of last minute cancelled elective operations in the quarter for non-clinical reasons, NHS provider organisations in England"]
[]
[null,"Period:",{"$f":"'National & Regional'!C5","v":"Quarter 3, 2023-24 (October to December 2023)"}]
[null,"Source:","NHS England - QMCO data collection"]
[null,"Basis:","Provider"]
[null,"Published:",{"$f":"'National & Regional'!C8","v":"8th February 2024"}]
[null,"Revised:",{"$f":"'National & Regional'!C9","v":"-"}]
[null,"Status:",{"$f":"'National & Regional'!C10","v":"Public"}]
[null,"Contact:","england.nhsdata@nhs.net"]
[null,"Guidance documents and latest statistical commentary relating to this collection can be found here: "]
[null,"http://www.england.nhs.uk/statistics/cancelled-elective-operations/cancelled-ops-data/"]
[]
[]
[null,"Notes"]
[]
[null,"RDU Frimley Health NHS Foundation Trust, RJZ King's College Hospital NHS Foundation Trust and RJ1 Guy's and St Thomas' NHS Foundation Trust did not submit data for Q3 2023-24."]

{"sheet":"Data Extract","index":5,"n_rows":144,"n_cols":10,"rows_kept":144,"cut":false,"hidden":true,"merged":[]}
["QMCO - Cancelled Operations - Data Region and Self Trusts"]
[]
["Year","Period Name","Parent Org Code","Parent Name","Org Code","Org Name","Total theatres","Day Case Theatres","Cancelled Operations","Breaches Of Standard"]
["2023-24","DECEMBER","Y56","LONDON COMMISSIONING REGION","RF4","BARKING, HAVERING AND REDBRIDGE UNIVERSITY HOSPITALS NHS TRUST",25,5,221,25]
["2023-24","DECEMBER","Y56","LONDON COMMISSIONING REGION","R1H","BARTS HEALTH NHS TRUST",56,11,328,79]
["2023-24","DECEMBER","Y56","LONDON COMMISSIONING REGION","RQM","CHELSEA AND WESTMINSTER HOSPITAL NHS FOUNDATION TRUST",24,7,114,23]
["2023-24","DECEMBER","Y56","LONDON COMMISSIONING REGION","RJ6","CROYDON HEALTH SERVICES NHS TRUST",14,0,174,41]
["2023-24","DECEMBER","Y56","LONDON COMMISSIONING REGION","RVR","EPSOM AND ST HELIER UNIVERSITY HOSPITALS NHS TRUST",23,5,296,7]
["2023-24","DECEMBER","Y56","LONDON COMMISSIONING REGION","RP4","GREAT ORMOND STREET HOSPITAL FOR CHILDREN NHS FOUNDATION TRUST",19,0,141,30]
["2023-24","DECEMBER","Y56","LONDON COMMISSIONING REGION","RQX","HOMERTON HEALTHCARE NHS FOUNDATION TRUST",8,3,74,0]
["2023-24","DECEMBER","Y56","LONDON COMMISSIONING REGION","RYJ","IMPERIAL COLLEGE HEALTHCARE NHS TRUST",42,11,248,62]
["2023-24","DECEMBER","Y56","LONDON COMMISSIONING REGION","RAX","KINGSTON HOSPITAL NHS FOUNDATION TRUST",14,5,36,2]
["2023-24","DECEMBER","Y56","LONDON COMMISSIONING REGION","RJ2","LEWISHAM AND GREENWICH NHS TRUST",19,1,65,24]
["2023-24","DECEMBER","Y56","LONDON COMMISSIONING REGION","R1K","LONDON NORTH WEST UNIVERSITY HEALTHCARE NHS TRUST",25,0,110,0]
["2023-24","DECEMBER","Y56","LONDON COMMISSIONING REGION","RP6","MOORFIELDS EYE HOSPITAL NHS FOUNDATION TRUST",19,18,82,6]
["2023-24","DECEMBER","Y56","LONDON COMMISSIONING REGION","RAP","NORTH MIDDLESEX UNIVERSITY HOSPITAL NHS TRUST",7,0,58,13]
["2023-24","DECEMBER","Y56","LONDON COMMISSIONING REGION","RAL","ROYAL FREE LONDON NHS FOUNDATION TRUST",37,3,165,42]
["2023-24","DECEMBER","Y56","LONDON COMMISSIONING REGION","RAN","ROYAL NATIONAL ORTHOPAEDIC HOSPITAL NHS TRUST",14,0,50,12]
["2023-24","DECEMBER","Y56","LONDON COMMISSIONING REGION","RJ7","ST GEORGE'S UNIVERSITY HOSPITALS NHS FOUNDATION TRUST",33,9,51,7]
["2023-24","DECEMBER","Y56","LONDON COMMISSIONING REGION","RAS","THE HILLINGDON HOSPITALS NHS FOUNDATION TRUST",11,0,15,0]
["2023-24","DECEMBER","Y56","LONDON COMMISSIONING REGION","RPY","THE ROYAL MARSDEN NHS FOUNDATION TRUST",9,0,11,0]
["2023-24","DECEMBER","Y56","LONDON COMMISSIONING REGION","RRV","UNIVERSITY COLLEGE LONDON HOSPITALS NHS FOUNDATION TRUST",37,0,343,164]
["2023-24","DECEMBER","Y56","LONDON COMMISSIONING REGION","RKE","WHITTINGTON HEALTH NHS TRUST",10,4,19,5]
["2023-24","DECEMBER","Y58","SOUTH WEST COMMISSIONING REGION","RBD","DORSET COUNTY HOSPITAL NHS FOUNDATION TRUST",10,3,148,36]
["2023-24","DECEMBER","Y58","SOUTH WEST COMMISSIONING REGION","RDY","DORSET HEALTHCARE UNIVERSITY NHS FOUNDATION TRUST",3,1,0,0]
["2023-24","DECEMBER","Y58","SOUTH WEST COMMISSIONING REGION","RTQ","GLOUCESTERSHIRE HEALTH AND CARE NHS FOUNDATION TRUST",1,1,0,0]
["2023-24","DECEMBER","Y58","SOUTH WEST COMMISSIONING REGION","RTE","GLOUCESTERSHIRE HOSPITALS NHS FOUNDATION TRUST",29,3,208,67]
["2023-24","DECEMBER","Y58","SOUTH WEST COMMISSIONING REGION","RN3","GREAT WESTERN HOSPITALS NHS FOUNDATION TRUST",15,0,80,5]
["2023-24","DECEMBER","Y58","SOUTH WEST COMMISSIONING REGION","RVJ","NORTH BRISTOL NHS TRUST",32,0,125,18]
["2023-24","DECEMBER","Y58","SOUTH WEST COMMISSIONING REGION","REF","ROYAL CORNWALL HOSPITALS NHS TRUST",22,3,205,67]
["2023-24","DECEMBER","Y58","SOUTH WEST COMMISSIONING REGION","RH8","ROYAL DEVON UNIVERSITY HEALTHCARE NHS FOUNDATION TRUST",37,11,352,41]
["2023-24","DECEMBER","Y58","SOUTH WEST COMMISSIONING REGION","RD1","ROYAL UNITED HOSPITALS BATH NHS FOUNDATION TRUST",17,5,87,1]
["2023-24","DECEMBER","Y58","SOUTH WEST COMMISSIONING REGION","RNZ","SALISBURY NHS FOUNDATION TRUST",15,6,65,7]
["2023-24","DECEMBER","Y58","SOUTH WEST COMMISSIONING REGION","RH5","SOMERSET NHS FOUNDATION TRUST",26,9,209,58]
["2023-24","DECEMBER","Y58","SOUTH WEST COMMISSIONING REGION","RA9","TORBAY AND SOUTH DEVON NHS FOUNDATION TRUST",14,4,136,39]
["2023-24","DECEMBER","Y58","SOUTH WEST COMMISSIONING REGION","RA7","UNIVERSITY HOSPITALS BRISTOL AND WESTON NHS FOUNDATION TRUST",40,3,286,201]
["2023-24","DECEMBER","Y58","SOUTH WEST COMMISSIONING REGION","R0D","UNIVERSITY HOSPITALS DORSET NHS FOUNDATION TRUST",31,12,180,61]
["2023-24","DECEMBER","Y58","SOUTH WEST COMMISSIONING REGION","RK9","UNIVERSITY HOSPITALS PLYMOUTH NHS TRUST",31,1,422,97]
["2023-24","DECEMBER","Y59","SOUTH EAST COMMISSIONING REGION","RTK","ASHFORD AND ST PETER'S HOSPITALS NHS FOUNDATION TRUST",16,3,14,4]
["2023-24","DECEMBER","Y59","SOUTH EAST COMMISSIONING REGION","RXQ","BUCKINGHAMSHIRE HEALTHCARE NHS TRUST",13,3,120,8]
["2023-24","DECEMBER","Y59","SOUTH EAST COMMISSIONING REGION","RN7","DARTFORD AND GRAVESHAM NHS TRUST",15,0,149,21]
["2023-24","DECEMBER","Y59","SOUTH EAST COMMISSIONING REGION","RVV","EAST KENT HOSPITALS UNIVERSITY NHS FOUNDATION TRUST",39,11,147,43]
["2023-24","DECEMBER","Y59","SOUTH EAST COMMISSIONING REGION","RXC","EAST SUSSEX HEALTHCARE NHS TRUST",22,5,76,9]
["2023-24","DECEMBER","Y59","SOUTH EAST COMMISSIONING REGION","RN5","HAMPSHIRE HOSPITALS NHS FOUNDATION TRUST",38,20,123,32]
["2023-24","DECEMBER","Y59","SOUTH EAST COMMISSIONING REGION","R1F","ISLE OF WIGHT NHS TRUST",7,3,50,7]
["2023-24","DECEMBER","Y59","SOUTH EAST COMMISSIONING REGION","ADP02","KIMS HOSPITAL (NEWNHAM COURT)",5,0,6,2]
["2023-24","DECEMBER","Y59","SOUTH EAST COMMISSIONING REGION","RWF","MAIDSTONE AND TUNBRIDGE WELLS NHS TRUST",19,6,51,7]
["2023-24","DECEMBER","Y59","SOUTH EAST COMMISSIONING REGION","RPA","MEDWAY NHS FOUNDATION TRUST",13,4,39,23]
["2023-24","DECEMBER","Y59","SOUTH EAST COMMISSIONING REGION","RTH","OXFORD UNIVERSITY HOSPITALS NHS FOUNDATION TRUST",46,1,73,9]
["2023-24","DECEMBER","Y59","SOUTH EAST COMMISSIONING REGION","RHU","PORTSMOUTH HOSPITALS UNIVERSITY NATIONAL HEALTH SERVICE TRUST",32,3,115,26]
["2023-24","DECEMBER","Y59","SOUTH EAST COMMISSIONING REGION","NTP16","PRACTICE PLUS GROUP SURGICAL CENTRE - GILLINGHAM",3,3,0,0]
["2023-24","DECEMBER","Y59","SOUTH EAST COMMISSIONING REGION","RPC","QUEEN VICTORIA HOSPITAL NHS FOUNDATION TRUST",12,2,18,2]
["2023-24","DECEMBER","Y59","SOUTH EAST COMMISSIONING REGION","RHW","ROYAL BERKSHIRE NHS FOUNDATION TRUST",24,4,127,0]
["2023-24","DECEMBER","Y59","SOUTH EAST COMMISSIONING REGION","RA2","ROYAL SURREY COUNTY HOSPITAL NHS FOUNDATION TRUST",14,0,78,11]
["2023-24","DECEMBER","Y59","SOUTH EAST COMMISSIONING REGION","RW1","SOUTHERN HEALTH NHS FOUNDATION TRUST",2,2,0,0]
["2023-24","DECEMBER","Y59","SOUTH EAST COMMISSIONING REGION","RTP","SURREY AND SUSSEX HEALTHCARE NHS TRUST",15,5,498,263]
["2023-24","DECEMBER","Y59","SOUTH EAST COMMISSIONING REGION","RHM","UNIVERSITY HOSPITAL SOUTHAMPTON NHS FOUNDATION TRUST",41,0,355,79]
["2023-24","DECEMBER","Y59","SOUTH EAST COMMISSIONING REGION","RYR","UNIVERSITY HOSPITALS SUSSEX NHS FOUNDATION TRUST",59,8,550,203]
["2023-24","DECEMBER","Y60","MIDLANDS COMMISSIONING REGION","RYW","BIRMINGHAM COMMUNITY HEALTHCARE NHS FOUNDATION TRUST",1,1,0,0]
["2023-24","DECEMBER","Y60","MIDLANDS COMMISSIONING REGION","RQ3","BIRMINGHAM WOMEN'S AND CHILDREN'S NHS FOUNDATION TRUST",20,0,76,12]
["2023-24","DECEMBER","Y60","MIDLANDS COMMISSIONING REGION","RFS","CHESTERFIELD ROYAL HOSPITAL NHS FOUNDATION TRUST",13,1,118,47]
["2023-24","DECEMBER","Y60","MIDLANDS COMMISSIONING REGION","RLT","GEORGE ELIOT HOSPITAL NHS TRUST",10,4,68,50]
["2023-24","DECEMBER","Y60","MIDLANDS COMMISSIONING REGION","RNQ","KETTERING GENERAL HOSPITAL NHS FOUNDATION TRUST",15,0,109,41]
["2023-24","DECEMBER","Y60","MIDLANDS COMMISSIONING REGION","RNS","NORTHAMPTON GENERAL HOSPITAL NHS TRUST",18,3,85,0]
["2023-24","DECEMBER","Y60","MIDLANDS COMMISSIONING REGION","RX1","NOTTINGHAM UNIVERSITY HOSPITALS NHS TRUST",55,4,302,43]
["2023-24","DECEMBER","Y60","MIDLANDS COMMISSIONING REGION","RXK","SANDWELL AND WEST BIRMINGHAM HOSPITALS NHS TRUST",28,10,125,23]
["2023-24","DECEMBER","Y60","MIDLANDS COMMISSIONING REGION","RK5","SHERWOOD FOREST HOSPITALS NHS FOUNDATION TRUST",17,4,62,16]
["2023-24","DECEMBER","Y60","MIDLANDS COMMISSIONING REGION","R1D","SHROPSHIRE COMMUNITY HEALTH NHS TRUST",1,1,0,0]
["2023-24","DECEMBER","Y60","MIDLANDS COMMISSIONING REGION","RJC","SOUTH WARWICKSHIRE UNIVERSITY NHS FOUNDATION TRUST",12,2,67,14]
["2023-24","DECEMBER","Y60","MIDLANDS COMMISSIONING REGION","RNA","THE DUDLEY GROUP NHS FOUNDATION TRUST",22,10,175,8]
["2023-24","DECEMBER","Y60","MIDLANDS COMMISSIONING REGION","RL1","THE ROBERT JONES AND AGNES HUNT ORTHOPAEDIC HOSPITAL NHS FOUNDATION TRUST",11,0,44,0]
["2023-24","DECEMBER","Y60","MIDLANDS COMMISSIONING REGION","RRJ","THE ROYAL ORTHOPAEDIC HOSPITAL NHS FOUNDATION TRUST",14,0,62,0]
["2023-24","DECEMBER","Y60","MIDLANDS COMMISSIONING REGION","RL4","THE ROYAL WOLVERHAMPTON NHS TRUST",30,2,32,0]
["2023-24","DECEMBER","Y60","MIDLANDS COMMISSIONING REGION","RXW","THE SHREWSBURY AND TELFORD HOSPITAL NHS TRUST",19,6,95,73]
["2023-24","DECEMBER","Y60","MIDLANDS COMMISSIONING REGION","RWD","UNITED LINCOLNSHIRE HOSPITALS NHS TRUST",30,2,313,103]
["2023-24","DECEMBER","Y60","MIDLANDS COMMISSIONING REGION","RRK","UNIVERSITY HOSPITALS BIRMINGHAM NHS FOUNDATION TRUST",69,6,957,282]
["2023-24","DECEMBER","Y60","MIDLANDS COMMISSIONING REGION","RKB","UNIVERSITY HOSPITALS COVENTRY AND WARWICKSHIRE NHS TRUST",31,1,234,71]
["2023-24","DECEMBER","Y60","MIDLANDS COMMISSIONING REGION","RTG","UNIVERSITY HOSPITALS OF DERBY AND BURTON NHS FOUNDATION TRUST",54,20,242,118]
["2023-24","DECEMBER","Y60","MIDLANDS COMMISSIONING REGION","RWE","UNIVERSITY HOSPITALS OF LEICESTER NHS TRUST",53,8,574,199]
["2023-24","DECEMBER","Y60","MIDLANDS COMMISSIONING REGION","RJE","UNIVERSITY HOSPITALS OF NORTH MIDLANDS NHS TRUST",50,9,398,85]
["2023-24","DECEMBER","Y60","MIDLANDS COMMISSIONING REGION","RBK","WALSALL HEALTHCARE NHS TRUST",14,2,85,6]
["2023-24","DECEMBER","Y60","MIDLANDS COMMISSIONING REGION","RWP","WORCESTERSHIRE ACUTE HOSPITALS NHS TRUST",23,1,124,31]
["2023-24","DECEMBER","Y60","MIDLANDS COMMISSIONING REGION","RLQ","WYE VALLEY NHS TRUST",13,3,75,31]
["2023-24","DECEMBER","Y61","EAST OF ENGLAND COMMISSIONING REGION","RC9","BEDFORDSHIRE HOSPITALS NHS FOUNDATION TRUST",24,4,242,10]
["2023-24","DECEMBER","Y61","EAST OF ENGLAND COMMISSIONING REGION","RGT","CAMBRIDGE UNIVERSITY HOSPITALS NHS FOUNDATION TRUST",38,5,386,106]
["2023-24","DECEMBER","Y61","EAST OF ENGLAND COMMISSIONING REGION","RWH","EAST AND NORTH HERTFORDSHIRE NHS TRUST",19,4,20,6]
["2023-24","DECEMBER","Y61","EAST OF ENGLAND COMMISSIONING REGION","RDE","EAST SUFFOLK AND NORTH ESSEX NHS FOUNDATION TRUST",42,13,235,21]
["2023-24","DECEMBER","Y61","EAST OF ENGLAND COMMISSIONING REGION","RGP","JAMES PAGET UNIVERSITY HOSPITALS NHS FOUNDATION TRUST",13,5,64,14]
["2023-24","DECEMBER","Y61","EAST OF ENGLAND COMMISSIONING REGION","RAJ","MID AND SOUTH ESSEX NHS FOUNDATION TRUST",61,14,409,59]
["2023-24","DECEMBER","Y61","EAST OF ENGLAND COMMISSIONING REGION","RD8","MILTON KEYNES UNIVERSITY HOSPITAL NHS FOUNDATION TRUST",12,0,69,19]
["2023-24","DECEMBER","Y61","EAST OF ENGLAND COMMISSIONING REGION","RM1","NORFOLK AND NORWICH UNIVERSITY HOSPITALS NHS FOUNDATION TRUST",34,6,295,65]
["2023-24","DECEMBER","Y61","EAST OF ENGLAND COMMISSIONING REGION","RGN","NORTH WEST ANGLIA NHS FOUNDATION TRUST",35,3,183,101]
["2023-24","DECEMBER","Y61","EAST OF ENGLAND COMMISSIONING REGION","NT209","NUFFIELD HEALTH, CAMBRIDGE HOSPITAL",5,1,2,0]
["2023-24","DECEMBER","Y61","EAST OF ENGLAND COMMISSIONING REGION","RGM","ROYAL PAPWORTH HOSPITAL NHS FOUNDATION TRUST",6,0,54,21]
["2023-24","DECEMBER","Y61","EAST OF ENGLAND COMMISSIONING REGION","RQW","THE PRINCESS ALEXANDRA HOSPITAL NHS TRUST",13,4,34,7]
["2023-24","DECEMBER","Y61","EAST OF ENGLAND COMMISSIONING REGION","RCX","THE QUEEN ELIZABETH HOSPITAL, KING'S LYNN, NHS FOUNDATION TRUST",14,5,127,12]
["2023-24","DECEMBER","Y61","EAST OF ENGLAND COMMISSIONING REGION","RWG","WEST HERTFORDSHIRE TEACHING HOSPITALS NHS TRUST",14,0,143,45]
["2023-24","DECEMBER","Y61","EAST OF ENGLAND COMMISSIONING REGION","RGR","WEST SUFFOLK NHS FOUNDATION TRUST",14,5,103,27]
["2023-24","DECEMBER","Y62","NORTH WEST COMMISSIONING REGION","RBS","ALDER HEY CHILDREN'S NHS FOUNDATION TRUST",16,4,61,15]
["2023-24","DECEMBER","Y62","NORTH WEST COMMISSIONING REGION","RXL","BLACKPOOL TEACHING HOSPITALS NHS FOUNDATION TRUST",20,5,299,57]
["2023-24","DECEMBER","Y62","NORTH WEST COMMISSIONING REGION","RMC","BOLTON NHS FOUNDATION TRUST",14,5,109,29]
["2023-24","DECEMBER","Y62","NORTH WEST COMMISSIONING REGION","RJR","COUNTESS OF CHESTER HOSPITAL NHS FOUNDATION TRUST",17,6,88,27]
["2023-24","DECEMBER","Y62","NORTH WEST COMMISSIONING REGION","RJN","EAST CHESHIRE NHS TRUST",6,1,17,9]
["2023-24","DECEMBER","Y62","NORTH WEST COMMISSIONING REGION","RXR","EAST LANCASHIRE HOSPITALS NHS TRUST",28,0,216,26]
["2023-24","DECEMBER","Y62","NORTH WEST COMMISSIONING REGION","NCR","ISIGHT",1,1,9,6]
["2023-24","DECEMBER","Y62","NORTH WEST COMMISSIONING REGION","RXN","LANCASHIRE TEACHING HOSPITALS NHS FOUNDATION TRUST",31,4,191,56]
["2023-24","DECEMBER","Y62","NORTH WEST COMMISSIONING REGION","RBQ","LIVERPOOL HEART AND CHEST HOSPITAL NHS FOUNDATION TRUST",9,0,55,11]
["2023-24","DECEMBER","Y62","NORTH WEST COMMISSIONING REGION","REM","LIVERPOOL UNIVERSITY HOSPITALS NHS FOUNDATION TRUST",37,9,224,30]
["2023-24","DECEMBER","Y62","NORTH WEST COMMISSIONING REGION","REP","LIVERPOOL WOMEN'S NHS FOUNDATION TRUST",5,0,10,2]
["2023-24","DECEMBER","Y62","NORTH WEST COMMISSIONING REGION","R0A","MANCHESTER UNIVERSITY NHS FOUNDATION TRUST",87,8,674,149]
["2023-24","DECEMBER","Y62","NORTH WEST COMMISSIONING REGION","RBN","MERSEY AND WEST LANCASHIRE TEACHING HOSPITALS NHS TRUST",37,11,206,27]
["2023-24","DECEMBER","Y62","NORTH WEST COMMISSIONING REGION","RBT","MID CHESHIRE HOSPITALS NHS FOUNDATION TRUST",12,4,76,6]
["2023-24","DECEMBER","Y62","NORTH WEST COMMISSIONING REGION","RM3","NORTHERN CARE ALLIANCE NHS FOUNDATION TRUST",46,6,512,127]
["2023-24","DECEMBER","Y62","NORTH WEST COMMISSIONING REGION","NTPAE","PRACTICE PLUS GROUP OPHTHALMOLOGY - NORTH WEST",1,1,0,0]
["2023-24","DECEMBER","Y62","NORTH WEST COMMISSIONING REGION","RWJ","STOCKPORT NHS FOUNDATION TRUST",20,3,97,4]
["2023-24","DECEMBER","Y62","NORTH WEST COMMISSIONING REGION","RMP","TAMESIDE AND GLOSSOP INTEGRATED CARE NHS FOUNDATION TRUST",9,0,19,1]
["2023-24","DECEMBER","Y62","NORTH WEST COMMISSIONING REGION","RBV","THE CHRISTIE NHS FOUNDATION TRUST",7,1,21,0]
["2023-24","DECEMBER","Y62","NORTH WEST COMMISSIONING REGION","RET","THE WALTON CENTRE NHS FOUNDATION TRUST",7,0,14,0]
["2023-24","DECEMBER","Y62","NORTH WEST COMMISSIONING REGION","RTX","UNIVERSITY HOSPITALS OF MORECAMBE BAY NHS FOUNDATION TRUST",20,0,70,6]
["2023-24","DECEMBER","Y62","NORTH WEST COMMISSIONING REGION","RWW","WARRINGTON AND HALTON TEACHING HOSPITALS NHS FOUNDATION TRUST",12,4,6,2]
["2023-24","DECEMBER","Y62","NORTH WEST COMMISSIONING REGION","RBL","WIRRAL UNIVERSITY TEACHING HOSPITAL NHS FOUNDATION TRUST",21,0,151,57]
["2023-24","DECEMBER","Y62","NORTH WEST COMMISSIONING REGION","RRF","WRIGHTINGTON, WIGAN AND LEIGH NHS FOUNDATION TRUST",22,4,134,54]
["2023-24","DECEMBER","Y63","NORTH EAST AND YORKSHIRE COMMISSIONING REGION","RCF","AIREDALE NHS FOUNDATION TRUST",11,0,64,1]
["2023-24","DECEMBER","Y63","NORTH EAST AND YORKSHIRE COMMISSIONING REGION","RFF","BARNSLEY HOSPITAL NHS FOUNDATION TRUST",13,4,83,14]
["2023-24","DECEMBER","Y63","NORTH EAST AND YORKSHIRE COMMISSIONING REGION","RAE","BRADFORD TEACHING HOSPITALS NHS FOUNDATION TRUST",20,1,112,4]
["2023-24","DECEMBER","Y63","NORTH EAST AND YORKSHIRE COMMISSIONING REGION","RWY","CALDERDALE AND HUDDERSFIELD NHS FOUNDATION TRUST",17,0,64,1]
["2023-24","DECEMBER","Y63","NORTH EAST AND YORKSHIRE COMMISSIONING REGION","RXP","COUNTY DURHAM AND DARLINGTON NHS FOUNDATION TRUST",27,2,47,4]
["2023-24","DECEMBER","Y63","NORTH EAST AND YORKSHIRE COMMISSIONING REGION","RP5","DONCASTER AND BASSETLAW TEACHING HOSPITALS NHS FOUNDATION TRUST",26,5,147,15]
["2023-24","DECEMBER","Y63","NORTH EAST AND YORKSHIRE COMMISSIONING REGION","RR7","GATESHEAD HEALTH NHS FOUNDATION TRUST",12,0,20,1]
["2023-24","DECEMBER","Y63","NORTH EAST AND YORKSHIRE COMMISSIONING REGION","RCD","HARROGATE AND DISTRICT NHS FOUNDATION TRUST",8,3,57,1]
["2023-24","DECEMBER","Y63","NORTH EAST AND YORKSHIRE COMMISSIONING REGION","RWA","HULL UNIVERSITY TEACHING HOSPITALS NHS TRUST",39,11,389,93]
["2023-24","DECEMBER","Y63","NORTH EAST AND YORKSHIRE COMMISSIONING REGION","RR8","LEEDS TEACHING HOSPITALS NHS TRUST",73,10,160,46]
["2023-24","DECEMBER","Y63","NORTH EAST AND YORKSHIRE COMMISSIONING REGION","RXF","MID YORKSHIRE TEACHING NHS TRUST",30,4,115,1]
["2023-24","DECEMBER","Y63","NORTH EAST AND YORKSHIRE COMMISSIONING REGION","RNN","NORTH CUMBRIA INTEGRATED CARE NHS FOUNDATION TRUST",19,2,156,52]
["2023-24","DECEMBER","Y63","NORTH EAST AND YORKSHIRE COMMISSIONING REGION","RVW","NORTH TEES AND HARTLEPOOL NHS FOUNDATION TRUST",17,0,52,16]
["2023-24","DECEMBER","Y63","NORTH EAST AND YORKSHIRE COMMISSIONING REGION","RJL","NORTHERN LINCOLNSHIRE AND GOOLE NHS FOUNDATION TRUST",15,0,140,40]
["2023-24","DECEMBER","Y63","NORTH EAST AND YORKSHIRE COMMISSIONING REGION","RTF","NORTHUMBRIA HEALTHCARE NHS FOUNDATION TRUST",27,1,30,10]
["2023-24","DECEMBER","Y63","NORTH EAST AND YORKSHIRE COMMISSIONING REGION","RCU","SHEFFIELD CHILDREN'S NHS FOUNDATION TRUST",9,0,39,4]
["2023-24","DECEMBER","Y63","NORTH EAST AND YORKSHIRE COMMISSIONING REGION","RHQ","SHEFFIELD TEACHING HOSPITALS NHS FOUNDATION TRUST",30,8,180,7]
["2023-24","DECEMBER","Y63","NORTH EAST AND YORKSHIRE COMMISSIONING REGION","RTR","SOUTH TEES HOSPITALS NHS FOUNDATION TRUST",36,6,205,56]
["2023-24","DECEMBER","Y63","NORTH EAST AND YORKSHIRE COMMISSIONING REGION","R0B","SOUTH TYNESIDE AND SUNDERLAND NHS FOUNDATION TRUST",31,3,139,30]
["2023-24","DECEMBER","Y63","NORTH EAST AND YORKSHIRE COMMISSIONING REGION","RTD","THE NEWCASTLE UPON TYNE HOSPITALS NHS FOUNDATION TRUST",67,8,152,33]
["2023-24","DECEMBER","Y63","NORTH EAST AND YORKSHIRE COMMISSIONING REGION","RFR","THE ROTHERHAM NHS FOUNDATION TRUST",11,2,119,11]
["2023-24","DECEMBER","Y63","NORTH EAST AND YORKSHIRE COMMISSIONING REGION","RCB","YORK AND SCARBOROUGH TEACHING HOSPITALS NHS FOUNDATION TRUST",36,12,179,25]

{"sheet":"Region Mapping","index":6,"n_rows":30717,"n_cols":10,"rows_kept":4500,"cut":true,"hidden":true,"merged":[[12,5,13,5],[4,5,5,5],[6,5,7,5],[8,5,9,5],[10,5,11,5]],"bounds":{"rows_first":2000,"rows_last":500,"rows_between":2000,"halvings":0}}
["Org Code","Org Name","Region Code","Region Name"]
["TAJ","BLACK COUNTRY PARTNERSHIP NHS FOUNDATION TRUST","Y60","MIDLANDS COMMISSIONING REGION",null,"*manually removed unmerged organisations present in original file (As below) and updated. List taken From (INCOMPLETE)"]
["TAD","BRADFORD DISTRICT CARE NHS FOUNDATION TRUST","Y63","NORTH EAST AND YORKSHIRE COMMISSIONING REGION",null,"**Added details for Sunderland trust merger which took place in 04/19"]
["TAF","CAMDEN AND ISLINGTON NHS FOUNDATION TRUST","Y56","LONDON COMMISSIONING REGION",null,"201819 mergers",null,null,"Merged code from Q1 onwards"]
["TAH","SHEFFIELD HEALTH & SOCIAL CARE NHS FOUNDATION TRUST","Y63","NORTH EAST AND YORKSHIRE COMMISSIONING REGION",null,1,"RRE","SOUTH STAFFORDSHIRE AND SHROPSHIRE HEALTHCARE NHS FOUNDATION TRUST","RRE","MIDLANDS PARTNERSHIP NHS FOUNDATION TRUST "]
["RTQ","2GETHER NHS FOUNDATION TRUST","Y58","SOUTH WEST COMMISSIONING REGION",null,null,"R1E","STAFFORDSHIRE AND STOKE ON TRENT PARTNERSHIP NHS TRUST","RRE","MIDLANDS PARTNERSHIP NHS FOUNDATION TRUST "]
["REM","AINTREE UNIVERSITY HOSPITAL NHS FOUNDATION TRUST","Y62","NORTH WEST COMMISSIONING REGION",null,2,"RRK","UNIVERSITY HOSPITALS BIRMINGHAM NHS FOUNDATION TRUST","RRK","UNIVERSITY HOSPITALS BIRMINGHAM NHS FOUNDATION TRUST"]
["RCF","AIREDALE NHS FOUNDATION TRUST","Y63","NORTH EAST AND YORKSHIRE COMMISSIONING REGION",null,null,"RR1","HEART OF ENGLAND NHS FOUNDATION TRUST","RRK","UNIVERSITY HOSPITALS BIRMINGHAM NHS FOUNDATION TRUST"]
["RBS","ALDER HEY CHILDREN'S NHS FOUNDATION TRUST","Y62","NORTH WEST COMMISSIONING REGION",null,3,"RDE","COLCHESTER HOSPITAL UNIVERSITY NHS FOUNDATION TRUST","RDE","EAST SUFFOLK AND NORTH ESSEX NHS FOUNDATION TRUST"]
["RTK","ASHFORD AND ST PETER'S HOSPITALS NHS FOUNDATION TRUST","Y59","SOUTH EAST COMMISSIONING REGION",null,null,"RGQ","IPSWICH HOSPITAL NHS TRUST","RDE","EAST SUFFOLK AND NORTH ESSEX NHS FOUNDATION TRUST"]
["RVN","AVON AND WILTSHIRE MENTAL HEALTH PARTNERSHIP NHS TRUST","Y58","SOUTH WEST COMMISSIONING REGION",null,4,"RJF","BURTON HOSPITALS NHS FOUNDATION TRUST","RTG","UNIVERSITY HOSPITALS OF DERBY AND BURTON NHS FOUNDATION TRUST"]
["RF4","BARKING, HAVERING AND REDBRIDGE UNIVERSITY HOSPITALS NHS TRUST","Y56","LONDON COMMISSIONING REGION",null,null,"RTG","DERBY TEACHING HOSPITALS NHS FOUNDATION TRUST","RTG","UNIVERSITY HOSPITALS OF DERBY AND BURTON NHS FOUNDATION TRUST"]
["RRP","BARNET, ENFIELD AND HARINGEY MENTAL HEALTH NHS TRUST","Y56","LONDON COMMISSIONING REGION",null,5,"RLN","CITY HOSPITALS SUNDERLAND NHS FOUNDATION TRUST","R0B","South Tyneside and Sunderland NHS Foundation Trust. "]
["RFF","BARNSLEY HOSPITAL NHS FOUNDATION TRUST","Y63","NORTH EAST AND YORKSHIRE COMMISSIONING REGION",null,null,"RE9 ","SOUTH TYNESIDE NHS FOUNDATION TRUST","R0B","South Tyneside and Sunderland NHS Foundation Trust. "]
["R1H","BARTS HEALTH NHS TRUST","Y56","LONDON COMMISSIONING REGION"]
["RDD","BASILDON AND THURROCK UNIVERSITY HOSPITALS NHS FOUNDATION TRUST","Y61","EAST OF ENGLAND COMMISSIONING REGION"]
["RC1","BEDFORD HOSPITAL NHS TRUST","Y61","EAST OF ENGLAND COMMISSIONING REGION"]
["RWX","BERKSHIRE HEALTHCARE NHS FOUNDATION TRUST","Y59","SOUTH EAST COMMISSIONING REGION"]
["RXT","BIRMINGHAM AND SOLIHULL MENTAL HEALTH NHS FOUNDATION TRUST","Y60","MIDLANDS COMMISSIONING REGION"]
["RYW","BIRMINGHAM COMMUNITY HEALTHCARE NHS FOUNDATION TRUST","Y60","MIDLANDS COMMISSIONING REGION"]
["RQ3","BIRMINGHAM WOMEN'S AND CHILDREN'S NHS FOUNDATION TRUST","Y60","MIDLANDS COMMISSIONING REGION"]
["RXL","BLACKPOOL TEACHING HOSPITALS NHS FOUNDATION TRUST","Y62","NORTH WEST COMMISSIONING REGION"]
["RMC","BOLTON NHS FOUNDATION TRUST","Y62","NORTH WEST COMMISSIONING REGION"]
["RAE","BRADFORD TEACHING HOSPITALS NHS FOUNDATION TRUST","Y63","NORTH EAST AND YORKSHIRE COMMISSIONING REGION"]
["RY2","BRIDGEWATER COMMUNITY HEALTHCARE NHS FOUNDATION TRUST","Y62","NORTH WEST COMMISSIONING REGION"]
["RXH","BRIGHTON AND SUSSEX UNIVERSITY HOSPITALS NHS TRUST","Y59","SOUTH EAST COMMISSIONING REGION"]
["RXQ","BUCKINGHAMSHIRE HEALTHCARE NHS TRUST","Y59","SOUTH EAST COMMISSIONING REGION"]
["RWY","CALDERDALE AND HUDDERSFIELD NHS FOUNDATION TRUST","Y63","NORTH EAST AND YORKSHIRE COMMISSIONING REGION"]
["RGT","CAMBRIDGE UNIVERSITY HOSPITALS NHS FOUNDATION TRUST","Y61","EAST OF ENGLAND COMMISSIONING REGION"]
["RT1","CAMBRIDGESHIRE AND PETERBOROUGH NHS FOUNDATION TRUST","Y61","EAST OF ENGLAND COMMISSIONING REGION"]
["RYV","CAMBRIDGESHIRE COMMUNITY SERVICES NHS TRUST","Y61","EAST OF ENGLAND COMMISSIONING REGION"]
["RV3","CENTRAL AND NORTH WEST LONDON NHS FOUNDATION TRUST","Y56","LONDON COMMISSIONING REGION"]
["RYX","CENTRAL LONDON COMMUNITY HEALTHCARE NHS TRUST","Y56","LONDON COMMISSIONING REGION"]
["RQM","CHELSEA AND WESTMINSTER HOSPITAL NHS FOUNDATION TRUST","Y56","LONDON COMMISSIONING REGION"]
["RXA","CHESHIRE AND WIRRAL PARTNERSHIP NHS FOUNDATION TRUST","Y62","NORTH WEST COMMISSIONING REGION"]
["RFS","CHESTERFIELD ROYAL HOSPITAL NHS FOUNDATION TRUST","Y60","MIDLANDS COMMISSIONING REGION"]
["RJ8","CORNWALL PARTNERSHIP NHS FOUNDATION TRUST","Y58","SOUTH WEST COMMISSIONING REGION"]
["RJR","COUNTESS OF CHESTER HOSPITAL NHS FOUNDATION TRUST","Y62","NORTH WEST COMMISSIONING REGION"]
["RXP","COUNTY DURHAM AND DARLINGTON NHS FOUNDATION TRUST","Y63","NORTH EAST AND YORKSHIRE COMMISSIONING REGION"]
["RYG","COVENTRY AND WARWICKSHIRE PARTNERSHIP NHS TRUST","Y60","MIDLANDS COMMISSIONING REGION"]
["RJ6","CROYDON HEALTH SERVICES NHS TRUST","Y56","LONDON COMMISSIONING REGION"]
["RNN","CUMBRIA PARTNERSHIP NHS FOUNDATION TRUST","Y63","NORTH EAST AND YORKSHIRE COMMISSIONING REGION"]
["RN7","DARTFORD AND GRAVESHAM NHS TRUST","Y59","SOUTH EAST COMMISSIONING REGION"]
["RY8","DERBYSHIRE COMMUNITY HEALTH SERVICES NHS FOUNDATION TRUST","Y60","MIDLANDS COMMISSIONING REGION"]
["RXM","DERBYSHIRE HEALTHCARE NHS FOUNDATION TRUST","Y60","MIDLANDS COMMISSIONING REGION"]
["RWV","DEVON PARTNERSHIP NHS TRUST","Y58","SOUTH WEST COMMISSIONING REGION"]
["RP5","DONCASTER AND BASSETLAW TEACHING HOSPITALS NHS FOUNDATION TRUST","Y63","NORTH EAST AND YORKSHIRE COMMISSIONING REGION"]
["RBD","DORSET COUNTY HOSPITAL NHS FOUNDATION TRUST","Y58","SOUTH WEST COMMISSIONING REGION"]
["RDY","DORSET HEALTHCARE UNIVERSITY NHS FOUNDATION TRUST","Y58","SOUTH WEST COMMISSIONING REGION"]
["RYK","DUDLEY AND WALSALL MENTAL HEALTH PARTNERSHIP NHS TRUST","Y60","MIDLANDS COMMISSIONING REGION"]
["RWH","EAST AND NORTH HERTFORDSHIRE NHS TRUST","Y61","EAST OF ENGLAND COMMISSIONING REGION"]
["RJN","EAST CHESHIRE NHS TRUST","Y62","NORTH WEST COMMISSIONING REGION"]
["RVV","EAST KENT HOSPITALS UNIVERSITY NHS FOUNDATION TRUST","Y59","SOUTH EAST COMMISSIONING REGION"]
["RXR","EAST LANCASHIRE HOSPITALS NHS TRUST","Y62","NORTH WEST COMMISSIONING REGION"]
["RWK","EAST LONDON NHS FOUNDATION TRUST","Y56","LONDON COMMISSIONING REGION"]
["RX9","EAST MIDLANDS AMBULANCE SERVICE NHS TRUST","Y60","MIDLANDS COMMISSIONING REGION"]
["RYC","EAST OF ENGLAND AMBULANCE SERVICE NHS TRUST","Y61","EAST OF ENGLAND COMMISSIONING REGION"]
["RDE","EAST SUFFOLK AND NORTH ESSEX NHS FOUNDATION TRUST","Y61","EAST OF ENGLAND COMMISSIONING REGION"]
["RXC","EAST SUSSEX HEALTHCARE NHS TRUST","Y59","SOUTH EAST COMMISSIONING REGION"]
["RVR","EPSOM AND ST HELIER UNIVERSITY HOSPITALS NHS TRUST","Y56","LONDON COMMISSIONING REGION"]
["R1L","ESSEX PARTNERSHIP UNIVERSITY NHS FOUNDATION TRUST","Y61","EAST OF ENGLAND COMMISSIONING REGION"]
["RDU","FRIMLEY HEALTH NHS FOUNDATION TRUST","Y59","SOUTH EAST COMMISSIONING REGION"]
["RR7","GATESHEAD HEALTH NHS FOUNDATION TRUST","Y63","NORTH EAST AND YORKSHIRE COMMISSIONING REGION"]
["RLT","GEORGE ELIOT HOSPITAL NHS TRUST","Y60","MIDLANDS COMMISSIONING REGION"]
["R1J","GLOUCESTERSHIRE CARE SERVICES NHS TRUST","Y58","SOUTH WEST COMMISSIONING REGION"]
["RTE","GLOUCESTERSHIRE HOSPITALS NHS FOUNDATION TRUST","Y58","SOUTH WEST COMMISSIONING REGION"]
["RP4","GREAT ORMOND STREET HOSPITAL FOR CHILDREN NHS FOUNDATION TRUST","Y56","LONDON COMMISSIONING REGION"]
["RN3","GREAT WESTERN HOSPITALS NHS FOUNDATION TRUST","Y58","SOUTH WEST COMMISSIONING REGION"]
["RXV","GREATER MANCHESTER MENTAL HEALTH NHS FOUNDATION TRUST","Y62","NORTH WEST COMMISSIONING REGION"]
["RJ1","GUY'S AND ST THOMAS' NHS FOUNDATION TRUST","Y56","LONDON COMMISSIONING REGION"]
["RN5","HAMPSHIRE HOSPITALS NHS FOUNDATION TRUST","Y59","SOUTH EAST COMMISSIONING REGION"]
["RCD","HARROGATE AND DISTRICT NHS FOUNDATION TRUST","Y63","NORTH EAST AND YORKSHIRE COMMISSIONING REGION"]
["RY4","HERTFORDSHIRE COMMUNITY NHS TRUST","Y61","EAST OF ENGLAND COMMISSIONING REGION"]
["RWR","HERTFORDSHIRE PARTNERSHIP UNIVERSITY NHS FOUNDATION TRUST","Y61","EAST OF ENGLAND COMMISSIONING REGION"]
["RQX","HOMERTON UNIVERSITY HOSPITAL NHS FOUNDATION TRUST","Y56","LONDON COMMISSIONING REGION"]
["RY9","HOUNSLOW AND RICHMOND COMMUNITY HEALTHCARE NHS TRUST","Y56","LONDON COMMISSIONING REGION"]
["RWA","HULL AND EAST YORKSHIRE HOSPITALS NHS TRUST","Y63","NORTH EAST AND YORKSHIRE COMMISSIONING REGION"]
["RV9","HUMBER TEACHING NHS FOUNDATION TRUST","Y63","NORTH EAST AND YORKSHIRE COMMISSIONING REGION"]
["RYJ","IMPERIAL COLLEGE HEALTHCARE NHS TRUST","Y56","LONDON COMMISSIONING REGION"]
["R1F","ISLE OF WIGHT NHS TRUST","Y59","SOUTH EAST COMMISSIONING REGION"]
["RGP","JAMES PAGET UNIVERSITY HOSPITALS NHS FOUNDATION TRUST","Y61","EAST OF ENGLAND COMMISSIONING REGION"]
["RXY","KENT AND MEDWAY NHS AND SOCIAL CARE PARTNERSHIP TRUST","Y59","SOUTH EAST COMMISSIONING REGION"]
["RYY","KENT COMMUNITY HEALTH NHS FOUNDATION TRUST","Y59","SOUTH EAST COMMISSIONING REGION"]
["RNQ","KETTERING GENERAL HOSPITAL NHS FOUNDATION TRUST","Y60","MIDLANDS COMMISSIONING REGION"]
["RJZ","KING'S COLLEGE HOSPITAL NHS FOUNDATION TRUST","Y56","LONDON COMMISSIONING REGION"]
["RAX","KINGSTON HOSPITAL NHS FOUNDATION TRUST","Y56","LONDON COMMISSIONING REGION"]
["RW5","LANCASHIRE CARE NHS FOUNDATION TRUST","Y62","NORTH WEST COMMISSIONING REGION"]
["RXN","LANCASHIRE TEACHING HOSPITALS NHS FOUNDATION TRUST","Y62","NORTH WEST COMMISSIONING REGION"]
["RGD","LEEDS AND YORK PARTNERSHIP NHS FOUNDATION TRUST","Y63","NORTH EAST AND YORKSHIRE COMMISSIONING REGION"]
["RY6","LEEDS COMMUNITY HEALTHCARE NHS TRUST","Y63","NORTH EAST AND YORKSHIRE COMMISSIONING REGION"]
["RR8","LEEDS TEACHING HOSPITALS NHS TRUST","Y63","NORTH EAST AND YORKSHIRE COMMISSIONING REGION"]
["RT5","LEICESTERSHIRE PARTNERSHIP NHS TRUST","Y60","MIDLANDS COMMISSIONING REGION"]
["RJ2","LEWISHAM AND GREENWICH NHS TRUST","Y56","LONDON COMMISSIONING REGION"]
["RY5","LINCOLNSHIRE COMMUNITY HEALTH SERVICES NHS TRUST","Y60","MIDLANDS COMMISSIONING REGION"]
["RP7","LINCOLNSHIRE PARTNERSHIP NHS FOUNDATION TRUST","Y60","MIDLANDS COMMISSIONING REGION"]
["RBQ","LIVERPOOL HEART AND CHEST HOSPITAL NHS FOUNDATION TRUST","Y62","NORTH WEST COMMISSIONING REGION"]
["REP","LIVERPOOL WOMEN'S NHS FOUNDATION TRUST","Y62","NORTH WEST COMMISSIONING REGION"]
["RRU","LONDON AMBULANCE SERVICE NHS TRUST","Y56","LONDON COMMISSIONING REGION"]
["R1K","LONDON NORTH WEST UNIVERSITY HEALTHCARE NHS TRUST","Y56","LONDON COMMISSIONING REGION"]
["RC9","LUTON AND DUNSTABLE UNIVERSITY HOSPITAL NHS FOUNDATION TRUST","Y61","EAST OF ENGLAND COMMISSIONING REGION"]
["RWF","MAIDSTONE AND TUNBRIDGE WELLS NHS TRUST","Y59","SOUTH EAST COMMISSIONING REGION"]
["R0A","MANCHESTER UNIVERSITY NHS FOUNDATION TRUST","Y62","NORTH WEST COMMISSIONING REGION"]
["RPA","MEDWAY NHS FOUNDATION TRUST","Y59","SOUTH EAST COMMISSIONING REGION"]
["RW4","MERSEY CARE NHS FOUNDATION TRUST","Y62","NORTH WEST COMMISSIONING REGION"]
["RBT","MID CHESHIRE HOSPITALS NHS FOUNDATION TRUST","Y62","NORTH WEST COMMISSIONING REGION"]
["RQ8","MID ESSEX HOSPITAL SERVICES NHS TRUST","Y61","EAST OF ENGLAND COMMISSIONING REGION"]
["RXF","MID YORKSHIRE HOSPITALS NHS TRUST","Y63","NORTH EAST AND YORKSHIRE COMMISSIONING REGION"]
["RRE","MIDLANDS PARTNERSHIP NHS FOUNDATION TRUST","Y60","MIDLANDS COMMISSIONING REGION"]
["RD8","MILTON KEYNES UNIVERSITY HOSPITAL NHS FOUNDATION TRUST","Y61","EAST OF ENGLAND COMMISSIONING REGION"]
["RP6","MOORFIELDS EYE HOSPITAL NHS FOUNDATION TRUST","Y56","LONDON COMMISSIONING REGION"]
["RM1","NORFOLK AND NORWICH UNIVERSITY HOSPITALS NHS FOUNDATION TRUST","Y61","EAST OF ENGLAND COMMISSIONING REGION"]
["RMY","NORFOLK AND SUFFOLK NHS FOUNDATION TRUST","Y61","EAST OF ENGLAND COMMISSIONING REGION"]
["RY3","NORFOLK COMMUNITY HEALTH AND CARE NHS TRUST","Y61","EAST OF ENGLAND COMMISSIONING REGION"]
["RVJ","NORTH BRISTOL NHS TRUST","Y58","SOUTH WEST COMMISSIONING REGION"]
["RNL","NORTH CUMBRIA UNIVERSITY HOSPITALS NHS TRUST","Y63","NORTH EAST AND YORKSHIRE COMMISSIONING REGION"]
["RX6","NORTH EAST AMBULANCE SERVICE NHS FOUNDATION TRUST","Y63","NORTH EAST AND YORKSHIRE COMMISSIONING REGION"]
["RAT","NORTH EAST LONDON NHS FOUNDATION TRUST","Y56","LONDON COMMISSIONING REGION"]
["RAP","NORTH MIDDLESEX UNIVERSITY HOSPITAL NHS TRUST","Y56","LONDON COMMISSIONING REGION"]
["RLY","NORTH STAFFORDSHIRE COMBINED HEALTHCARE NHS TRUST","Y60","MIDLANDS COMMISSIONING REGION"]
["RVW","NORTH TEES AND HARTLEPOOL NHS FOUNDATION TRUST","Y63","NORTH EAST AND YORKSHIRE COMMISSIONING REGION"]
["RX7","NORTH WEST AMBULANCE SERVICE NHS TRUST","Y62","NORTH WEST COMMISSIONING REGION"]
["RGN","NORTH WEST ANGLIA NHS FOUNDATION TRUST","Y61","EAST OF ENGLAND COMMISSIONING REGION"]
["RTV","NORTH WEST BOROUGHS HEALTHCARE NHS FOUNDATION TRUST","Y62","NORTH WEST COMMISSIONING REGION"]
["RNS","NORTHAMPTON GENERAL HOSPITAL NHS TRUST","Y60","MIDLANDS COMMISSIONING REGION"]
["RP1","NORTHAMPTONSHIRE HEALTHCARE NHS FOUNDATION TRUST","Y60","MIDLANDS COMMISSIONING REGION"]
["RBZ","NORTHERN DEVON HEALTHCARE NHS TRUST","Y58","SOUTH WEST COMMISSIONING REGION"]
["RJL","NORTHERN LINCOLNSHIRE AND GOOLE NHS FOUNDATION TRUST","Y63","NORTH EAST AND YORKSHIRE COMMISSIONING REGION"]
["RX4","NORTHUMBERLAND, TYNE AND WEAR NHS FOUNDATION TRUST","Y63","NORTH EAST AND YORKSHIRE COMMISSIONING REGION"]
["RTF","NORTHUMBRIA HEALTHCARE NHS FOUNDATION TRUST","Y63","NORTH EAST AND YORKSHIRE COMMISSIONING REGION"]
["RX1","NOTTINGHAM UNIVERSITY HOSPITALS NHS TRUST","Y60","MIDLANDS COMMISSIONING REGION"]
["RHA","NOTTINGHAMSHIRE HEALTHCARE NHS FOUNDATION TRUST","Y60","MIDLANDS COMMISSIONING REGION"]
["RNU","OXFORD HEALTH NHS FOUNDATION TRUST","Y59","SOUTH EAST COMMISSIONING REGION"]
["RTH","OXFORD UNIVERSITY HOSPITALS NHS FOUNDATION TRUST","Y59","SOUTH EAST COMMISSIONING REGION"]
["RPG","OXLEAS NHS FOUNDATION TRUST","Y56","LONDON COMMISSIONING REGION"]
["RW6","PENNINE ACUTE HOSPITALS NHS TRUST","Y62","NORTH WEST COMMISSIONING REGION"]
["RT2","PENNINE CARE NHS FOUNDATION TRUST","Y62","NORTH WEST COMMISSIONING REGION"]
["RD3","POOLE HOSPITAL NHS FOUNDATION TRUST","Y58","SOUTH WEST COMMISSIONING REGION"]
["RHU","PORTSMOUTH HOSPITALS NHS TRUST","Y59","SOUTH EAST COMMISSIONING REGION"]
["RPC","QUEEN VICTORIA HOSPITAL NHS FOUNDATION TRUST","Y59","SOUTH EAST COMMISSIONING REGION"]
["RXE","ROTHERHAM DONCASTER AND SOUTH HUMBER NHS FOUNDATION TRUST","Y63","NORTH EAST AND YORKSHIRE COMMISSIONING REGION"]
["RHW","ROYAL BERKSHIRE NHS FOUNDATION TRUST","Y59","SOUTH EAST COMMISSIONING REGION"]
["RT3","ROYAL BROMPTON & HAREFIELD NHS FOUNDATION TRUST","Y56","LONDON COMMISSIONING REGION"]
["REF","ROYAL CORNWALL HOSPITALS NHS TRUST","Y58","SOUTH WEST COMMISSIONING REGION"]
["RH8","ROYAL DEVON AND EXETER NHS FOUNDATION TRUST","Y58","SOUTH WEST COMMISSIONING REGION"]
["RAL","ROYAL FREE LONDON NHS FOUNDATION TRUST","Y56","LONDON COMMISSIONING REGION"]
["RQ6","ROYAL LIVERPOOL AND BROADGREEN UNIVERSITY HOSPITALS NHS TRUST","Y62","NORTH WEST COMMISSIONING REGION"]
["RAN","ROYAL NATIONAL ORTHOPAEDIC HOSPITAL NHS TRUST","Y56","LONDON COMMISSIONING REGION"]
["RGM","ROYAL PAPWORTH HOSPITAL NHS FOUNDATION TRUST","Y61","EAST OF ENGLAND COMMISSIONING REGION"]
["RA2","ROYAL SURREY COUNTY HOSPITAL NHS FOUNDATION TRUST","Y59","SOUTH EAST COMMISSIONING REGION"]
["RD1","ROYAL UNITED HOSPITALS BATH NHS FOUNDATION TRUST","Y58","SOUTH WEST COMMISSIONING REGION"]
["RM3","SALFORD ROYAL NHS FOUNDATION TRUST","Y62","NORTH WEST COMMISSIONING REGION"]
["RNZ","SALISBURY NHS FOUNDATION TRUST","Y58","SOUTH WEST COMMISSIONING REGION"]
["RXK","SANDWELL AND WEST BIRMINGHAM HOSPITALS NHS TRUST","Y60","MIDLANDS COMMISSIONING REGION"]
["RCU","SHEFFIELD CHILDREN'S NHS FOUNDATION TRUST","Y63","NORTH EAST AND YORKSHIRE COMMISSIONING REGION"]
["RHQ","SHEFFIELD TEACHING HOSPITALS NHS FOUNDATION TRUST","Y63","NORTH EAST AND YORKSHIRE COMMISSIONING REGION"]
["RK5","SHERWOOD FOREST HOSPITALS NHS FOUNDATION TRUST","Y60","MIDLANDS COMMISSIONING REGION"]
["RXW","SHREWSBURY AND TELFORD HOSPITAL NHS TRUST","Y60","MIDLANDS COMMISSIONING REGION"]
["R1D","SHROPSHIRE COMMUNITY HEALTH NHS TRUST","Y60","MIDLANDS COMMISSIONING REGION"]
["R1C","SOLENT NHS TRUST","Y59","SOUTH EAST COMMISSIONING REGION"]
["RH5","SOMERSET PARTNERSHIP NHS FOUNDATION TRUST","Y58","SOUTH WEST COMMISSIONING REGION"]
["RYE","SOUTH CENTRAL AMBULANCE SERVICE NHS FOUNDATION TRUST","Y59","SOUTH EAST COMMISSIONING REGION"]
["RYD","SOUTH EAST COAST AMBULANCE SERVICE NHS FOUNDATION TRUST","Y59","SOUTH EAST COMMISSIONING REGION"]
["RV5","SOUTH LONDON AND MAUDSLEY NHS FOUNDATION TRUST","Y56","LONDON COMMISSIONING REGION"]
["RTR","SOUTH TEES HOSPITALS NHS FOUNDATION TRUST","Y63","NORTH EAST AND YORKSHIRE COMMISSIONING REGION"]
["R0B","South Tyneside and Sunderland NHS Foundation Trust. ","Y63","NORTH EAST AND YORKSHIRE COMMISSIONING REGION"]
["RJC","SOUTH WARWICKSHIRE NHS FOUNDATION TRUST","Y60","MIDLANDS COMMISSIONING REGION"]
["RQY","SOUTH WEST LONDON AND ST GEORGE'S MENTAL HEALTH NHS TRUST","Y56","LONDON COMMISSIONING REGION"]
["RXG","SOUTH WEST YORKSHIRE PARTNERSHIP NHS FOUNDATION TRUST","Y63","NORTH EAST AND YORKSHIRE COMMISSIONING REGION"]
["RYF","SOUTH WESTERN AMBULANCE SERVICE NHS FOUNDATION TRUST","Y58","SOUTH WEST COMMISSIONING REGION"]
["RAJ","SOUTHEND UNIVERSITY HOSPITAL NHS FOUNDATION TRUST","Y61","EAST OF ENGLAND COMMISSIONING REGION"]
["RW1","SOUTHERN HEALTH NHS FOUNDATION TRUST","Y59","SOUTH EAST COMMISSIONING REGION"]
["RVY","SOUTHPORT AND ORMSKIRK HOSPITAL NHS TRUST","Y62","NORTH WEST COMMISSIONING REGION"]
["RJ7","ST GEORGE'S UNIVERSITY HOSPITALS NHS FOUNDATION TRUST","Y56","LONDON COMMISSIONING REGION"]
["RBN","ST HELENS AND KNOWSLEY TEACHING HOSPITALS NHS TRUST","Y62","NORTH WEST COMMISSIONING REGION"]
["RWJ","STOCKPORT NHS FOUNDATION TRUST","Y62","NORTH WEST COMMISSIONING REGION"]
["RXX","SURREY AND BORDERS PARTNERSHIP NHS FOUNDATION TRUST","Y59","SOUTH EAST COMMISSIONING REGION"]
["RTP","SURREY AND SUSSEX HEALTHCARE NHS TRUST","Y59","SOUTH EAST COMMISSIONING REGION"]
["RDR","SUSSEX COMMUNITY NHS FOUNDATION TRUST","Y59","SOUTH EAST COMMISSIONING REGION"]
["RX2","SUSSEX PARTNERSHIP NHS FOUNDATION TRUST","Y59","SOUTH EAST COMMISSIONING REGION"]
["RMP","TAMESIDE AND GLOSSOP INTEGRATED CARE NHS FOUNDATION TRUST","Y62","NORTH WEST COMMISSIONING REGION"]
["RBA","TAUNTON AND SOMERSET NHS FOUNDATION TRUST","Y58","SOUTH WEST COMMISSIONING REGION"]
["RNK","TAVISTOCK AND PORTMAN NHS FOUNDATION TRUST","Y56","LONDON COMMISSIONING REGION"]
["RX3","TEES, ESK AND WEAR VALLEYS NHS FOUNDATION TRUST","Y63","NORTH EAST AND YORKSHIRE COMMISSIONING REGION"]
["RBV","THE CHRISTIE NHS FOUNDATION TRUST","Y62","NORTH WEST COMMISSIONING REGION"]
["REN","THE CLATTERBRIDGE CANCER CENTRE NHS FOUNDATION TRUST","Y62","NORTH WEST COMMISSIONING REGION"]
["RNA","THE DUDLEY GROUP NHS FOUNDATION TRUST","Y60","MIDLANDS COMMISSIONING REGION"]
["RAS","THE HILLINGDON HOSPITALS NHS FOUNDATION TRUST","Y56","LONDON COMMISSIONING REGION"]
["RTD","THE NEWCASTLE UPON TYNE HOSPITALS NHS FOUNDATION TRUST","Y63","NORTH EAST AND YORKSHIRE COMMISSIONING REGION"]
["RQW","THE PRINCESS ALEXANDRA HOSPITAL NHS TRUST","Y61","EAST OF ENGLAND COMMISSIONING REGION"]
["RCX","THE QUEEN ELIZABETH HOSPITAL, KING'S LYNN, NHS FOUNDATION TRUST","Y61","EAST OF ENGLAND COMMISSIONING REGION"]
["RL1","THE ROBERT JONES AND AGNES HUNT ORTHOPAEDIC HOSPITAL NHS FOUNDATION TRUST","Y60","MIDLANDS COMMISSIONING REGION"]
["RFR","THE ROTHERHAM NHS FOUNDATION TRUST","Y63","NORTH EAST AND YORKSHIRE COMMISSIONING REGION"]
["RDZ","THE ROYAL BOURNEMOUTH AND CHRISTCHURCH HOSPITALS NHS FOUNDATION TRUST","Y58","SOUTH WEST COMMISSIONING REGION"]
["RPY","THE ROYAL MARSDEN NHS FOUNDATION TRUST","Y56","LONDON COMMISSIONING REGION"]
["RRJ","THE ROYAL ORTHOPAEDIC HOSPITAL NHS FOUNDATION TRUST","Y60","MIDLANDS COMMISSIONING REGION"]
["RL4","THE ROYAL WOLVERHAMPTON NHS TRUST","Y60","MIDLANDS COMMISSIONING REGION"]
["RET","THE WALTON CENTRE NHS FOUNDATION TRUST","Y62","NORTH WEST COMMISSIONING REGION"]
["RA9","TORBAY AND SOUTH DEVON NHS FOUNDATION TRUST","Y58","SOUTH WEST COMMISSIONING REGION"]
["RWD","UNITED LINCOLNSHIRE HOSPITALS NHS TRUST","Y60","MIDLANDS COMMISSIONING REGION"]
["RRV","UNIVERSITY COLLEGE LONDON HOSPITALS NHS FOUNDATION TRUST","Y56","LONDON COMMISSIONING REGION"]
["RHM","UNIVERSITY HOSPITAL SOUTHAMPTON NHS FOUNDATION TRUST","Y59","SOUTH EAST COMMISSIONING REGION"]
["RRK","UNIVERSITY HOSPITALS BIRMINGHAM NHS FOUNDATION TRUST","Y60","MIDLANDS COMMISSIONING REGION"]
["RA7","UNIVERSITY HOSPITALS BRISTOL NHS FOUNDATION TRUST","Y58","SOUTH WEST COMMISSIONING REGION"]
["RKB","UNIVERSITY HOSPITALS COVENTRY AND WARWICKSHIRE NHS TRUST","Y60","MIDLANDS COMMISSIONING REGION"]
["RTG","UNIVERSITY HOSPITALS OF DERBY AND BURTON NHS FOUNDATION TRUST","Y60","MIDLANDS COMMISSIONING REGION"]
["RWE","UNIVERSITY HOSPITALS OF LEICESTER NHS TRUST","Y60","MIDLANDS COMMISSIONING REGION"]
["RTX","UNIVERSITY HOSPITALS OF MORECAMBE BAY NHS FOUNDATION TRUST","Y62","NORTH WEST COMMISSIONING REGION"]
["RJE","UNIVERSITY HOSPITALS OF NORTH MIDLANDS NHS TRUST","Y60","MIDLANDS COMMISSIONING REGION"]
["RK9","UNIVERSITY HOSPITALS PLYMOUTH NHS TRUST","Y58","SOUTH WEST COMMISSIONING REGION"]
["RBK","WALSALL HEALTHCARE NHS TRUST","Y60","MIDLANDS COMMISSIONING REGION"]
["RWW","WARRINGTON AND HALTON HOSPITALS NHS FOUNDATION TRUST","Y62","NORTH WEST COMMISSIONING REGION"]
["RWG","WEST HERTFORDSHIRE HOSPITALS NHS TRUST","Y61","EAST OF ENGLAND COMMISSIONING REGION"]
["RKL","WEST LONDON NHS TRUST","Y56","LONDON COMMISSIONING REGION"]
["RYA","WEST MIDLANDS AMBULANCE SERVICE UNIVERSITY NHS FOUNDATION TRUST","Y60","MIDLANDS COMMISSIONING REGION"]
["RGR","WEST SUFFOLK NHS FOUNDATION TRUST","Y61","EAST OF ENGLAND COMMISSIONING REGION"]
["RYR","WESTERN SUSSEX HOSPITALS NHS FOUNDATION TRUST","Y59","SOUTH EAST COMMISSIONING REGION"]
["RA3","WESTON AREA HEALTH NHS TRUST","Y58","SOUTH WEST COMMISSIONING REGION"]
["RKE","WHITTINGTON HEALTH NHS TRUST","Y56","LONDON COMMISSIONING REGION"]
["RY7","WIRRAL COMMUNITY NHS FOUNDATION TRUST","Y62","NORTH WEST COMMISSIONING REGION"]
["RBL","WIRRAL UNIVERSITY TEACHING HOSPITAL NHS FOUNDATION TRUST","Y62","NORTH WEST COMMISSIONING REGION"]
["RWP","WORCESTERSHIRE ACUTE HOSPITALS NHS TRUST","Y60","MIDLANDS COMMISSIONING REGION"]
["R1A","WORCESTERSHIRE HEALTH AND CARE NHS TRUST","Y60","MIDLANDS COMMISSIONING REGION"]
["RRF","WRIGHTINGTON, WIGAN AND LEIGH NHS FOUNDATION TRUST","Y62","NORTH WEST COMMISSIONING REGION"]
["RLQ","WYE VALLEY NHS TRUST","Y60","MIDLANDS COMMISSIONING REGION"]
["RA4","YEOVIL DISTRICT HOSPITAL NHS FOUNDATION TRUST","Y58","SOUTH WEST COMMISSIONING REGION"]
["RCB","YORK TEACHING HOSPITAL NHS FOUNDATION TRUST","Y63","NORTH EAST AND YORKSHIRE COMMISSIONING REGION"]
["RX8","YORKSHIRE AMBULANCE SERVICE NHS TRUST","Y63","NORTH EAST AND YORKSHIRE COMMISSIONING REGION"]
["AFX","118 LIMITED","Y61","EAST OF ENGLAND COMMISSIONING REGION"]
["AK9","12 POINT CARE LIMITED","Y61","EAST OF ENGLAND COMMISSIONING REGION"]
["DCK","152 HARLEY STREET LTD","Y56","LONDON COMMISSIONING REGION"]
["DAL","18 WEEK SUPPORT GASTROENTEROLOGY LLP","Y56","LONDON COMMISSIONING REGION"]
["AVP","18 WEEK SUPPORT LLP","Y56","LONDON COMMISSIONING REGION"]
["NGG","188 HQ","Y60","MIDLANDS COMMISSIONING REGION"]
["NX8","1-GREATLIFE LTD","Y61","EAST OF ENGLAND COMMISSIONING REGION"]
["AML","1POINT (NORTH WEST) LIMITED","Y62","NORTH WEST COMMISSIONING REGION"]
["ANL","1ST CARE CUMBRIA LTD","Y63","NORTH EAST AND YORKSHIRE COMMISSIONING REGION"]
["NFX","3 SPIRES MSK SERVICE","Y58","SOUTH WEST COMMISSIONING REGION"]
["AAF","360 CARE LTD","Y63","NORTH EAST AND YORKSHIRE COMMISSIONING REGION"]
["DTK","3SIXTY CARE LTD","Y60","MIDLANDS COMMISSIONING REGION"]
["DEF","3V HEALTHCARE LIMITED","Y60","MIDLANDS COMMISSIONING REGION"]
["DEF00","3V HEALTHCARE LIMITED","Y60","MIDLANDS COMMISSIONING REGION"]
["DRL","42ND STREET","Y62","NORTH WEST COMMISSIONING REGION"]
["NRM","A H PANJVANI (MODERN EYE CENTRE)","Y56","LONDON COMMISSIONING REGION"]
["DM6","A&E LIFE SUPPORT LTD","Y62","NORTH WEST COMMISSIONING REGION"]
["NAO","A&Z WOUNDS LIMITED","Y56","LONDON COMMISSIONING REGION"]
["NCU","ABACUS PHYSIOTHERAPY LTD","Y63","NORTH EAST AND YORKSHIRE COMMISSIONING REGION"]
["NTF","ABBEY HOSPITALS","Y56","LONDON COMMISSIONING REGION"]
["NMW","ABBEY SEFTON HOSPITAL (UNIVERSITY HOSPITAL AINTREE)","Y62","NORTH WEST COMMISSIONING REGION"]
["AVH","ABLE 2 OCCUPATIONAL THERAPY SERVICES LTD","Y60","MIDLANDS COMMISSIONING REGION"]
["AE6","ABLECARE","Y62","NORTH WEST COMMISSIONING REGION"]
["NPR","ABOUT HEALTH","Y58","SOUTH WEST COMMISSIONING REGION"]
["NPR00","ABOUT HEALTH","Y58","SOUTH WEST COMMISSIONING REGION"]
["DW4","ACADEMY OF COMMUNITY HEALTH EXPERTS","Y60","MIDLANDS COMMISSIONING REGION"]
["NAY","ACCELERATE CIC","Y56","LONDON COMMISSIONING REGION"]
["AAP","ACCIPITER LIMITED","Y59","SOUTH EAST COMMISSIONING REGION"]
["AWX","ACCREDO SUPPORT & DEVELOPMENT LTD","Y60","MIDLANDS COMMISSIONING REGION"]
["DEP","ACCURX","Y56","LONDON COMMISSIONING REGION"]
["NEO","ACHILLES CENTRE LIMITED","Y63","NORTH EAST AND YORKSHIRE COMMISSIONING REGION"]
["AE9","ACHOR HEALTHCARE LIMITED","Y59","SOUTH EAST COMMISSIONING REGION"]
["DE0","ACROSS LEICESTER HEALTH LTD","Y60","MIDLANDS COMMISSIONING REGION"]
["AYW","ACTION FOR CHILDREN","Y61","EAST OF ENGLAND COMMISSIONING REGION"]
["NWT","ACTION FOR DEAFNESS","Y59","SOUTH EAST COMMISSIONING REGION"]
["DEY","ACUITUS MEDICAL LTD","Y61","EAST OF ENGLAND COMMISSIONING REGION"]
["NI3","ADDACTION","Y56","LONDON COMMISSIONING REGION"]
["AGL","ADDITIONAL COMMUNITY MEDICAL SERVICES LTD","Y60","MIDLANDS COMMISSIONING REGION"]
["NJE","ADHD NORTH WEST","Y62","NORTH WEST COMMISSIONING REGION"]
["ACW","ADVANCE PHYSIOTHERAPY","Y60","MIDLANDS COMMISSIONING REGION"]
["DDN","ADVANCED DIAGNOSTICS SERVICES LIMITED","Y62","NORTH WEST COMMISSIONING REGION"]
["AYX","ADVOCACY","Y62","NORTH WEST COMMISSIONING REGION"]
["NKH","AECC SPECIAL IMAGING","Y58","SOUTH WEST COMMISSIONING REGION"]
["DGV","AESTHETIC BEAUTY CENTRE UK LTD","Y63","NORTH EAST AND YORKSHIRE COMMISSIONING REGION"]
["NML","AFFINITY HEALTHCARE","Y62","NORTH WEST COMMISSIONING REGION"]
["DLM","AGE CONCERN SANDWICH CENTRE FOR THE RETIRED","Y59","SOUTH EAST COMMISSIONING REGION"]
["NKN","AGILAFLEX HEALTHCARE LTD","Y59","SOUTH EAST COMMISSIONING REGION"]
["DL4","AIM PHYSIOTHERAPY LTD","Y62","NORTH WEST COMMISSIONING REGION"]
["NY1","AIR LIQUIDE LIMITED","Y60","MIDLANDS COMMISSIONING REGION"]
["NYV","AIR PRODUCTS HEALTHCARE","Y62","NORTH WEST COMMISSIONING REGION"]
["NXN","AK MEDICAL MANAGEMENT LIMITED","Y61","EAST OF ENGLAND COMMISSIONING REGION"]
["NJY","ALBA CHIROPRACTIC CLINIC HQ","Y62","NORTH WEST COMMISSIONING REGION"]
["NAQ","ALEC MING","Y63","NORTH EAST AND YORKSHIRE COMMISSIONING REGION"]
["NJB","ALECRIM, ERNAMI COSTA (HYPNOTHERAPY, PSYCHOTHERAPY & SPORTS MASSAGE)","Y60","MIDLANDS COMMISSIONING REGION"]
["NTW","ALEXANDER HOUSE","Y56","LONDON COMMISSIONING REGION"]
["AAN","ALEXIN HEALTHCARE LTD","Y60","MIDLANDS COMMISSIONING REGION"]
["NIK","ALIGIE LTD","Y60","MIDLANDS COMMISSIONING REGION"]
["NGM","ALISTAIR KINSEY LTD HQ","Y58","SOUTH WEST COMMISSIONING REGION"]
["NN6","ALL HALLOWS HOSPITAL","Y61","EAST OF ENGLAND COMMISSIONING REGION"]
["AMW","ALLIANCE FOR BETTER CARE LTD","Y59","SOUTH EAST COMMISSIONING REGION"]
["NT9","ALLIANCE MEDICAL","Y60","MIDLANDS COMMISSIONING REGION"]
["NJG","ALLIANCE PSYCHOLOGY SERVICES LTD","Y63","NORTH EAST AND YORKSHIRE COMMISSIONING REGION"]
["DFK","ALLIANCE SURGICAL PLC","Y60","MIDLANDS COMMISSIONING REGION"]
["NEC","ALLIED HEALTH PROFESSIONALS SUFFOLK CIC","Y61","EAST OF ENGLAND COMMISSIONING REGION"]
["DD1","ALLIED HEALTH SOUTH LINCOLNSHIRE LIMITED","Y60","MIDLANDS COMMISSIONING REGION"]
["AAW","ALLIED HEALTHCARE GROUP","Y61","EAST OF ENGLAND COMMISSIONING REGION"]
["DPN","ALPENBEST LIMITED","Y56","LONDON COMMISSIONING REGION"]
["NVR","ALPHA HOSPITALS","Y56","LONDON COMMISSIONING REGION"]
["NDF","ALPHA MEDICAL (GROUP) LIMITED","Y61","EAST OF ENGLAND COMMISSIONING REGION"]
["APC","ALS COSMETIC LASER CLINIC","Y59","SOUTH EAST COMMISSIONING REGION"]
["DT5","AMBER VALLEY HEALTH LTD","Y60","MIDLANDS COMMISSIONING REGION"]
["APW","AMBICORP LTD","Y60","MIDLANDS COMMISSIONING REGION"]
["NFN","AMBITIONS PERSONNEL","Y60","MIDLANDS COMMISSIONING REGION"]
["DMD","AMBULANCE TRANSFERS LTD","Y61","EAST OF ENGLAND COMMISSIONING REGION"]
["ADY","AMBULANT PHYSIOTHERAPY LTD","Y62","NORTH WEST COMMISSIONING REGION"]
["DEJ","AMBULATORY SURGERY INTERNATIONAL","Y60","MIDLANDS COMMISSIONING REGION"]
["AMT","AMP HEALTHCARE LTD","Y63","NORTH EAST AND YORKSHIRE COMMISSIONING REGION"]
["NGH","AMPLIFON HQ","Y62","NORTH WEST COMMISSIONING REGION"]
["NHH","AN APPLE A DAY LIMITED HQ","Y58","SOUTH WEST COMMISSIONING REGION"]
["DLH","ANANA CLINIC (TRADING NAME OF A & Z DERMATOLOGY CLINIC LTD.)","Y61","EAST OF ENGLAND COMMISSIONING REGION"]
["AJ7","ANATOMIE HEALTHCARE LIMITED","Y56","LONDON COMMISSIONING REGION"]
["DAE","ANCHOR PSYCHIATRY GROUP","Y61","EAST OF ENGLAND COMMISSIONING REGION"]
["AQ1","ANESI HEALTHCARE LTD","Y61","EAST OF ENGLAND COMMISSIONING REGION"]
["NKK","ANGEL AND BOWDEN","Y62","NORTH WEST COMMISSIONING REGION"]
["AHJ","ANGEL CHIROPODY & PODIATRY (HQ)","Y56","LONDON COMMISSIONING REGION"]
["NX5","ANGLIA COMMUNITY EYE SERVICE LTD","Y61","EAST OF ENGLAND COMMISSIONING REGION"]
["NQ1","ANGLIAN COMMUNITY ENTERPRISE COMMUNITY INTEREST COMPANY (ACE CIC)","Y61","EAST OF ENGLAND COMMISSIONING REGION"]
["NDP","ANGLIAN MEDICAL MUSCULOSKELETAL","Y61","EAST OF ENGLAND COMMISSIONING REGION"]
["ALT","ANN PHYSIOCARE LTD","WALES","WALES"]
["AKC","ANNE STAGG HYPNOTHERAPY","Y63","NORTH EAST AND YORKSHIRE COMMISSIONING REGION"]
["DKP","APOS MEDICAL UK LTD","Y56","LONDON COMMISSIONING REGION"]
["DAV","APP-MED LTD","Y61","EAST OF ENGLAND COMMISSIONING REGION"]
["DET","ARCH HEALTH COMMUNITY INTEREST COMPANY","Y59","SOUTH EAST COMMISSIONING REGION"]
["AF5","ARDEN, HEREFORDSHIRE & WORCESTERSHIRE PRIMARY EYECARE LIMITED","Y56","LONDON COMMISSIONING REGION"]
["ACC","ARDENS LTD","Y59","SOUTH EAST COMMISSIONING REGION"]
["DHV","ARGYLE HEALTH GROUP LIMITED","Y56","LONDON COMMISSIONING REGION"]
["NNQ","ARKANUM","Y58","SOUTH WEST COMMISSIONING REGION"]
["NCX","ARNOLD MEDICAL CENTRE","Y62","NORTH WEST COMMISSIONING REGION"]
["NL5","ASCENTI","Y59","SOUTH EAST COMMISSIONING REGION"]
["AP0","ASH PHYSIOTHERAPY & SPORTS INJURY CLINIC LTD","Y59","SOUTH EAST COMMISSIONING REGION"]
["ATT","ASHBOURNE PHYSIOTHERAPY & SPORTS INJURIES CLINIC LIMITED","Y60","MIDLANDS COMMISSIONING REGION"]
["DG2","ASHFORD THERAPY & REHABILITATION ALLIANCE LTD","Y59","SOUTH EAST COMMISSIONING REGION"]
["DN9","ASKINOLOGY","Y56","LONDON COMMISSIONING REGION"]
["NYW","ASPEN HEALTHCARE LIMITED","Y56","LONDON COMMISSIONING REGION"]
["AA6","ASSISTED CONCEPTION UNIT LTD","Y56","LONDON COMMISSIONING REGION"]
["AR0","ASSOCIATED PHYSIOTHERAPY PARTNERSHIP LTD","Y59","SOUTH EAST COMMISSIONING REGION"]
["NVF","ASSURA BLACKPOOL LLP","Y62","NORTH WEST COMMISSIONING REGION"]
["NVF00","ASSURA BLACKPOOL LLP","Y62","NORTH WEST COMMISSIONING REGION"]
["NWK","ASSURA CHELMSFORD LLP","Y61","EAST OF ENGLAND COMMISSIONING REGION"]
["NY5","ASSURA COVENTRY LLP","Y60","MIDLANDS COMMISSIONING REGION"]
["NV9","ASSURA DERWENTSIDE LLP","Y63","NORTH EAST AND YORKSHIRE COMMISSIONING REGION"]
["NYT","ASSURA EAST RIDING LLP","Y63","NORTH EAST AND YORKSHIRE COMMISSIONING REGION"]
["NYT00","ASSURA EAST RIDING LLP","Y63","NORTH EAST AND YORKSHIRE COMMISSIONING REGION"]
["NYH","ASSURA HAMPSHIRE","Y59","SOUTH EAST COMMISSIONING REGION"]
["NYH00","ASSURA HAMPSHIRE","Y59","SOUTH EAST COMMISSIONING REGION"]
["NY8","ASSURA HARTLEPOOL LLP","Y63","NORTH EAST AND YORKSHIRE COMMISSIONING REGION"]
["NNT","ASSURA KINGSTANDING","Y60","MIDLANDS COMMISSIONING REGION"]
["NWH","ASSURA LEEDS LLP","Y63","NORTH EAST AND YORKSHIRE COMMISSIONING REGION"]
["NWH00","ASSURA LEEDS LLP","Y63","NORTH EAST AND YORKSHIRE COMMISSIONING REGION"]
["NPN","ASSURA LIVERPOOL LLP","Y62","NORTH WEST COMMISSIONING REGION"]
["NND","ASSURA MINERVA LLP","Y58","SOUTH WEST COMMISSIONING REGION"]
["NY4","ASSURA NORTH LANCS LLP","Y62","NORTH WEST COMMISSIONING REGION"]
["NXE","ASSURA READING LLP","Y59","SOUTH EAST COMMISSIONING REGION"]
["NY9","ASSURA STOCKTON LLP","Y63","NORTH EAST AND YORKSHIRE COMMISSIONING REGION"]
["NL7","ASSURA VERTIS URGENT CARE CENTRES (BIRMINGHAM)","Y60","MIDLANDS COMMISSIONING REGION"]
["NXC","ASSURA WANDLE LLP","Y56","LONDON COMMISSIONING REGION"]
["NXC00","ASSURA WANDLE LLP","Y56","LONDON COMMISSIONING REGION"]
["NXD","ASSURA WEST LEICESTERSHIRE LLP","Y60","MIDLANDS COMMISSIONING REGION"]
["NWD","ASSURA WILTSHIRE LLP","Y58","SOUTH WEST COMMISSIONING REGION"]
["NVY","ASSURA WYRE FOREST LLP","Y60","MIDLANDS COMMISSIONING REGION"]
["NVY00","ASSURA WYRE FOREST LLP","Y60","MIDLANDS COMMISSIONING REGION"]
["NKW","ASTON HEALTHCARE LTD","Y62","NORTH WEST COMMISSIONING REGION"]
["AF0","AT MEDICS LTD","Y56","LONDON COMMISSIONING REGION"]
["ACT","ATLAS PHYSIOTHERAPY LTD","Y63","NORTH EAST AND YORKSHIRE COMMISSIONING REGION"]
["NTJ","ATOS HEALTHCARE","Y56","LONDON COMMISSIONING REGION"]
["DCD","ATRIUM HEALTH LTD","Y60","MIDLANDS COMMISSIONING REGION"]
["DTW","ATRUMED LIMITED","Y56","LONDON COMMISSIONING REGION"]
["AP6","AVENUE OSTEOPATHS","Y56","LONDON COMMISSIONING REGION"]
["DQ1","AVICENNA CLINIC","Y61","EAST OF ENGLAND COMMISSIONING REGION"]
["DWL","AWC MODALITY CONTRACEPTION AND SEXUAL HEALTH","Y63","NORTH EAST AND YORKSHIRE COMMISSIONING REGION"]
["NRG","BABY WAYS COMMUNITY INTEREST COMPANY","Y60","MIDLANDS COMMISSIONING REGION"]
["NKE","BACK2HEALTH PARTNERSHIP","Y59","SOUTH EAST COMMISSIONING REGION"]
["AND","BADDOW HOSPITAL LTD","Y61","EAST OF ENGLAND COMMISSIONING REGION"]
["NEI","BANES ENHANCED MEDICAL SERVICES + LTD","Y58","SOUTH WEST COMMISSIONING REGION"]
["DAM","BARCHESTER HEALTHCARE LTD","Y56","LONDON COMMISSIONING REGION"]
["DVG","BARDOC","Y62","NORTH WEST COMMISSIONING REGION"]
["NRE","BARNET COMMUNITY SERVICES","Y56","LONDON COMMISSIONING REGION"]
["ATY","BARNSLEY HEALTHCARE FEDERATION CIC","Y63","NORTH EAST AND YORKSHIRE COMMISSIONING REGION"]
["NX3","BASFORD CONSULTING LIMITED","Y60","MIDLANDS COMMISSIONING REGION"]
["DRY","BASSETLAW EXTENDED HOURS HUB","Y63","NORTH EAST AND YORKSHIRE COMMISSIONING REGION"]
["NLB","BATEMAN KILDARE LIMITED","Y61","EAST OF ENGLAND COMMISSIONING REGION"]
["ADL","BATH FERTILITY CENTRE LTD","Y58","SOUTH WEST COMMISSIONING REGION"]
["NTQ","BAXTER HEALTHCARE","Y59","SOUTH EAST COMMISSIONING REGION"]
["ADA","BAYWATER HEALTHCARE LTD","Y62","NORTH WEST COMMISSIONING REGION"]
["AVJ","BB HEALTHCARE SOLUTIONS LTD","Y61","EAST OF ENGLAND COMMISSIONING REGION"]
["DA6","BEACON COUNSELLING","Y62","NORTH WEST COMMISSIONING REGION"]
["DK3","BEACON GP CARE LTD","Y62","NORTH WEST COMMISSIONING REGION"]
["NRP","BEACON MEDICAL SERVICES GROUP LIMITED","Y62","NORTH WEST COMMISSIONING REGION"]
["NJA","BEACON PRIMARY CARE","Y62","NORTH WEST COMMISSIONING REGION"]
["DGE","BEACON PRIMARY CARE GPSI SERVICES","Y62","NORTH WEST COMMISSIONING REGION"]
["DJJ","BEAUMOND HOUSE COMMUNITY HOSPICE","Y60","MIDLANDS COMMISSIONING REGION"]
["DR5","BEDFORD EXTENDED ACCESS","Y61","EAST OF ENGLAND COMMISSIONING REGION"]
["DNM","BEDFORDSHIRE RURAL COMMUNITIES CHARITY (BRCC)","Y61","EAST OF ENGLAND COMMISSIONING REGION"]
["DWF","BEECHFIELD MEDICAL CENTRE","Y60","MIDLANDS COMMISSIONING REGION"]
["ADW","BEEHIVE SOLUTIONS LTD","Y56","LONDON COMMISSIONING REGION"]
["ATJ","BEEZEE BODIES C.I.C","Y61","EAST OF ENGLAND COMMISSIONING REGION"]
["ATL","BEGG PRACTICE","Y56","LONDON COMMISSIONING REGION"]
["DDA","BELLA VOU","Y59","SOUTH EAST COMMISSIONING REGION"]
["NWF","BENENDEN HOSPITAL","Y59","SOUTH EAST COMMISSIONING REGION"]
["DVH","BERKLEY VALE SHARED HUB","Y58","SOUTH WEST COMMISSIONING REGION"]
["ARR","BERKSHIRE PRIMARY CARE LTD","Y59","SOUTH EAST COMMISSIONING REGION"]
["DN4","BERKSHIRE WEST COMMUNITY ENDOSCOPY SERVICE","Y59","SOUTH EAST COMMISSIONING REGION"]
["NP9","BESPOKE HEALTHCARE LTD","Y62","NORTH WEST COMMISSIONING REGION"]
["DCA","BEST HEALTH CLINICS LIMITED","Y56","LONDON COMMISSIONING REGION"]
["AT6","BEST PRACTICE (SOUTH OF ENGLAND) LIMITED","Y59","SOUTH EAST COMMISSIONING REGION"]
["DDV","BESTCARE DIAGNOSTICS","Y62","NORTH WEST COMMISSIONING REGION"]
["DQD","BESTWAY NATIONAL CHEMISTS LTD","Y62","NORTH WEST COMMISSIONING REGION"]
["DQC","BESTWAY PANACEA HEALTHCARE LTD","Y62","NORTH WEST COMMISSIONING REGION"]
["NWM","BETHESDA MEDICAL CENTRE","Y59","SOUTH EAST COMMISSIONING REGION"]
["DF6","BEXHILL LOCUM","Y59","SOUTH EAST COMMISSIONING REGION"]
["NP0","BEXLEY HEALTH LIMITED","Y56","LONDON COMMISSIONING REGION"]
["DFJ","BEXLEY HEALTH NEIGHBOURHOOD CARE CIC","Y56","LONDON COMMISSIONING REGION"]
["NHP","BEXLEYHEATH CHIROPRACTIC CLINIC LTD","Y56","LONDON COMMISSIONING REGION"]
["DD5","BHR GP SOLUTIONS","Y56","LONDON COMMISSIONING REGION"]
["ATN","BIG PRACTICE LIMITED","Y60","MIDLANDS COMMISSIONING REGION"]
["NKQ","BIG WHITE WALL","Y56","LONDON COMMISSIONING REGION"]
["DHA","BIKUR CHOLIM LTD","Y56","LONDON COMMISSIONING REGION"]
["AX7","BIRCHWOOD PRIVATE PHYSIOTHERAPY POOLE LTD","Y58","SOUTH WEST COMMISSIONING REGION"]
["DVE","BIRMINGHAM CHILDREN'S TRUST LIMITED","Y60","MIDLANDS COMMISSIONING REGION"]
["DRF","BIRMINGHAM GPS LTD","Y60","MIDLANDS COMMISSIONING REGION"]
["ALR","BIRMINGHAM MENTAL HEALTH CONSORTIUM","Y60","MIDLANDS COMMISSIONING REGION"]
["DJM","BISHOPS STORTFORD CHIROPRACTIC CLINIC","Y61","EAST OF ENGLAND COMMISSIONING REGION"]
["DK0","BLACK COUNTRY GP GROUP","Y60","MIDLANDS COMMISSIONING REGION"]
["AD0","BLACKBERRY CLINIC","Y61","EAST OF ENGLAND COMMISSIONING REGION"]
["NWP","BLEMISH CLINIC","Y62","NORTH WEST COMMISSIONING REGION"]
["DPC","BLOODWORKS UK HEALTH WATCH STATION","Y56","LONDON COMMISSIONING REGION"]
["AEL","BLUE STAR MEDICAL SERVICES LTD","Y59","SOUTH EAST COMMISSIONING REGION"]
["DH4","BLUEBIRD CARE MENDIP","Y58","SOUTH WEST COMMISSIONING REGION"]
["AV0","BLUESKY ORTHOPAEDIC LTD","Y60","MIDLANDS COMMISSIONING REGION"]
["DKX","BLYTH HUB","Y63","NORTH EAST AND YORKSHIRE COMMISSIONING REGION"]
["NT4","BMI HEALTHCARE","Y56","LONDON COMMISSIONING REGION"]
["NAD","BOC LTD","Y59","SOUTH EAST COMMISSIONING REGION"]
["NDV","BODY BALANCE","Y56","LONDON COMMISSIONING REGION"]
["NFD","BODY LOGIC PHYSIOTHERAPY","Y56","LONDON COMMISSIONING REGION"]
["NGS","BODYWORKS CHIROPRACTIC CLINIC LTD","Y61","EAST OF ENGLAND COMMISSIONING REGION"]
["NRT","BOLTON COMMUNITY PRACTICE","Y62","NORTH WEST COMMISSIONING REGION"]
["AWC","BOLTON GP FEDERATION LTD","Y62","NORTH WEST COMMISSIONING REGION"]
["NEL","BOOTS HEARINGCARE LTD","Y62","NORTH WEST COMMISSIONING REGION"]
["NEL00","BOOTS HEARINGCARE LTD","Y62","NORTH WEST COMMISSIONING REGION"]
["AAA","BOOTS UK LIMITED","Y60","MIDLANDS COMMISSIONING REGION"]
["NNX","BOSTON AREA MEDICAL SERVICES","Y60","MIDLANDS COMMISSIONING REGION"]
["DAQ","BOSTON PHYSIOTHERAPY LTD","Y60","MIDLANDS COMMISSIONING REGION"]
["AY7","BOURN HALL LTD","Y61","EAST OF ENGLAND COMMISSIONING REGION"]
["AVW","BOURNEMOUTH 1 DOMICILIARY SPECSAVERS (HQ)","Y59","SOUTH EAST COMMISSIONING REGION"]
["NMF","BRACKLEY HOSPITAL","Y60","MIDLANDS COMMISSIONING REGION"]
["DHG","BRADFORD CARE ALLIANCE CIC","Y63","NORTH EAST AND YORKSHIRE COMMISSIONING REGION"]
["AQC","BRADFORD PHYSIOTHERAPY CLINIC LTD","Y63","NORTH EAST AND YORKSHIRE COMMISSIONING REGION"]
["ADG","BRAINTREE CLINICAL SERVICES LIMITED","Y61","EAST OF ENGLAND COMMISSIONING REGION"]
["NNN","BREASTFEEDING NETWORK","SCOTLAND","SCOTLAND"]
["DTR","BRENT CARE LTD","Y59","SOUTH EAST COMMISSIONING REGION"]
["AKJ","BRENTWORTH LOCALITY LIMITED.","Y56","LONDON COMMISSIONING REGION"]
["NIB","BREWOOD MEDICAL SERVICES LTD","Y60","MIDLANDS COMMISSIONING REGION"]
["NO1","BRIDGEGATE SURGICAL SERVICES","Y63","NORTH EAST AND YORKSHIRE COMMISSIONING REGION"]
["AA0","BRIDGEGATE SURGICAL SERVICES","Y63","NORTH EAST AND YORKSHIRE COMMISSIONING REGION"]
["NNY","BRIDGEND CLINIC","WALES","WALES"]
["NMP","BRIDGEWATER HOSPITAL (MANCHESTER) LTD","Y62","NORTH WEST COMMISSIONING REGION"]
["NFP","BRIGHTON & HOVE WELLBEING SERVICE","Y59","SOUTH EAST COMMISSIONING REGION"]
["NBP","BRISDOC HEALTHCARE SERVICES LTD","Y58","SOUTH WEST COMMISSIONING REGION"]
["DG8","BRISTOL AMBULANCE EMS","Y58","SOUTH WEST COMMISSIONING REGION"]
["NLW","BRISTOL COMMUNITY HEALTH","Y58","SOUTH WEST COMMISSIONING REGION"]
["ACK","BRISTOL LASER VISION","Y58","SOUTH WEST COMMISSIONING REGION"]
["AYL","BRISTOL MENTAL HEALTH","Y58","SOUTH WEST COMMISSIONING REGION"]
["NJX","BRISTOL PLASTIC SURGERY LTD","Y58","SOUTH WEST COMMISSIONING REGION"]
["AQL","BRISTOL UROLOGY ASSOCIATES","Y58","SOUTH WEST COMMISSIONING REGION"]
["NKU","BRITISH COLLEGE OF OSTEOPATHIC MEDICINE","Y56","LONDON COMMISSIONING REGION"]
["NT1","BRITISH PREGNANCY ADVISORY SERVICE (BPAS) HEAD OFFICE","Y60","MIDLANDS COMMISSIONING REGION"]
["AN2","BROCKLEBANK GROUP PRACTICE (HQ)","Y56","LONDON COMMISSIONING REGION"]
["ATP","BROMLEY GP ALLIANCE LTD","Y56","LONDON COMMISSIONING REGION"]
["NQV","BROMLEY HEALTHCARE","Y56","LONDON COMMISSIONING REGION"]
["NQ0","BROMSGROVE HEALTHCARE INNOVATIONS LTD","Y60","MIDLANDS COMMISSIONING REGION"]
["ADV","BROMSGROVE PHYSIOTHERAPY LTD","Y60","MIDLANDS COMMISSIONING REGION"]
["NQ5","BROOK YOUNG PEOPLE","Y62","NORTH WEST COMMISSIONING REGION"]
["NQ9","BROOKDALE HEALTHCARE LTD (T/A BROOKDALE CARE)","Y60","MIDLANDS COMMISSIONING REGION"]
["DGF","BUCKS GP ACCESS CENTRE","Y59","SOUTH EAST COMMISSIONING REGION"]
["AJM","BUPA CSH LTD","Y56","LONDON COMMISSIONING REGION"]
["NV7","BUPA GROUP","Y56","LONDON COMMISSIONING REGION"]
["NQG","BURRSWOOD HOSPITAL","Y59","SOUTH EAST COMMISSIONING REGION"]
["DA4","BURTON AND DISTRICT MIND","Y60","MIDLANDS COMMISSIONING REGION"]
["ARW","BURY GP PRACTICES LIMITED","Y62","NORTH WEST COMMISSIONING REGION"]
["DAN","BUTTERWICK HOSPICE","Y63","NORTH EAST AND YORKSHIRE COMMISSIONING REGION"]
["AK0","B-WELL THERAPY LIMITED","Y56","LONDON COMMISSIONING REGION"]
["NQQ","C M K THERAPY","Y61","EAST OF ENGLAND COMMISSIONING REGION"]
["AEE","CADMAS LTD.","Y63","NORTH EAST AND YORKSHIRE COMMISSIONING REGION"]
["DM0","CAIS LTD","WALES","WALES"]
["DQF","CALDERDALE AND HUDDERSFIELD SOLUTIONS LIMITED","Y63","NORTH EAST AND YORKSHIRE COMMISSIONING REGION"]
["NPA","CAMBIAN ANSEL CLINIC","Y60","MIDLANDS COMMISSIONING REGION"]
["DFL","CAMBIAN CHILDCARE LIMITED","Y56","LONDON COMMISSIONING REGION"]
["NI4","CAMBRIDGE PERFUSION SERVICES","Y61","EAST OF ENGLAND COMMISSIONING REGION"]
["NBY","CAMBS & PETERBOROUGH SERVICES","Y61","EAST OF ENGLAND COMMISSIONING REGION"]
["DMR","CAMBS GP NETWORK","Y61","EAST OF ENGLAND COMMISSIONING REGION"]
["AAL","CANCER CARE","Y62","NORTH WEST COMMISSIONING REGION"]
["AHC","CANCER PARTNERS UK LIMITED","Y59","SOUTH EAST COMMISSIONING REGION"]
["NT8","CAPIO UK","Y61","EAST OF ENGLAND COMMISSIONING REGION"]
["DD7","CAPITAL PHYSIO LIMITED","Y56","LONDON COMMISSIONING REGION"]
["NBX","CARDIOCOM (UK) LIMITED","Y63","NORTH EAST AND YORKSHIRE COMMISSIONING REGION"]
["APY","CARDIUM LTD","Y62","NORTH WEST COMMISSIONING REGION"]
["AGX","CARE & CUSTODY (HEALTH) LTD","Y58","SOUTH WEST COMMISSIONING REGION"]
["UXJ","CARE + LTD","Y56","LONDON COMMISSIONING REGION"]
["NFE","CARE ASSURE NORTHAMPTON LTD","Y60","MIDLANDS COMMISSIONING REGION"]
["NL3","CARE PLUS GROUP","Y63","NORTH EAST AND YORKSHIRE COMMISSIONING REGION"]
["NTP","CARE UK","Y59","SOUTH EAST COMMISSIONING REGION"]
["NT6","CARE UK CLINICAL SERVICES SE","Y59","SOUTH EAST COMMISSIONING REGION"]
["DN6","CAREMARK","Y60","MIDLANDS COMMISSIONING REGION"]
["ACF","CARERS CENTRE NEWCASTLE","Y63","NORTH EAST AND YORKSHIRE COMMISSIONING REGION"]
["DFN","CARERS TRUST 4ALL","Y62","NORTH WEST COMMISSIONING REGION"]
["DLR","CARESTREAM HEALTH (UK) LIMITED","Y61","EAST OF ENGLAND COMMISSIONING REGION"]
["NI2","CAREY THERAPY","Y61","EAST OF ENGLAND COMMISSIONING REGION"]
["DKQ","CAS BEHAVIOURAL HEALTH","Y56","LONDON COMMISSIONING REGION"]
["NTT","CAS BEHAVIOURAL HEALTH LIMITED","Y59","SOUTH EAST COMMISSIONING REGION"]
["DVA","CAS-APP LTD","Y60","MIDLANDS COMMISSIONING REGION"]
["NLI","CASP PSYCHOLOGY SERVICES","Y60","MIDLANDS COMMISSIONING REGION"]
["NDQ","CASTLEBECK CARE TEESDALE LTD","Y63","NORTH EAST AND YORKSHIRE COMMISSIONING REGION"]
["DA9","CASTLEMAN HEALTHCARE FEDERATION LTD","Y58","SOUTH WEST COMMISSIONING REGION"]
["NIY","CATHEDRAL CHIROPRACTIC","Y58","SOUTH WEST COMMISSIONING REGION"]
["DQA","CAUDWELL CHILDREN","Y60","MIDLANDS COMMISSIONING REGION"]
["AGF","CAVENDISH IMAGING LTD","Y56","LONDON COMMISSIONING REGION"]
["NHY","CBC HEALTH LIMITED","Y63","NORTH EAST AND YORKSHIRE COMMISSIONING REGION"]
["NBQ","CEDAR PARK HEALTHCARE","Y60","MIDLANDS COMMISSIONING REGION"]
["APL","CENTENE UK","Y56","LONDON COMMISSIONING REGION"]
["AXR","CENTRAL DURHAM GP PROVIDERS LTD","Y63","NORTH EAST AND YORKSHIRE COMMISSIONING REGION"]
["DL7","CENTRAL HEALTH EVOLUTION LIMITED","Y56","LONDON COMMISSIONING REGION"]
["NM2","CENTRAL LONDON HEALTHCARE LTD","Y56","LONDON COMMISSIONING REGION"]
["NQC","CENTRAL LONDON OSTEOPATHY","Y56","LONDON COMMISSIONING REGION"]
["ANJ","CENTRAL LONDON PRIMARY CARE COUNSELLORS","Y56","LONDON COMMISSIONING REGION"]
["DQ4","CENTRAL MEDICAL ALLIANCE (CMA)","Y60","MIDLANDS COMMISSIONING REGION"]
["NJS","CENTRAL NOTTINGHAMSHIRE CLINICAL SERVICES LTD","Y60","MIDLANDS COMMISSIONING REGION"]
["AQ4","CENTRAL4HARINGEY","Y56","LONDON COMMISSIONING REGION"]
["ANV","CENTRE FOR PSYCHOLOGY LIMITED","Y56","LONDON COMMISSIONING REGION"]
["NGT","CENTRE FOR SIGHT LIMITED","Y59","SOUTH EAST COMMISSIONING REGION"]
["NMS","CHANGE, GROW, LIVE","Y59","SOUTH EAST COMMISSIONING REGION"]
["NMB","CHANGING FACES","Y56","LONDON COMMISSIONING REGION"]
["NRW","CHANGING MINDS PARTNERSHIPS","Y60","MIDLANDS COMMISSIONING REGION"]
["DLP","CHANNEL HEALTH ALLIANCE LIMITED","Y59","SOUTH EAST COMMISSIONING REGION"]
["ACE","CHARING MEDICAL PARTNERSHIP","Y59","SOUTH EAST COMMISSIONING REGION"]
["ACD","CHARING PRACTICE LTD","Y59","SOUTH EAST COMMISSIONING REGION"]
["DA8","CHARNWOOD GP NETWORK LTD","Y60","MIDLANDS COMMISSIONING REGION"]
["NRQ","CHARTER MEDICAL SERVICES","Y62","NORTH WEST COMMISSIONING REGION"]
["NYY","CHARTWELL PRIVATE HOSPITALS LTD","Y61","EAST OF ENGLAND COMMISSIONING REGION"]
["DJK","CHATTERBUG LTD","Y63","NORTH EAST AND YORKSHIRE COMMISSIONING REGION"]
["NCV","CHEC","Y60","MIDLANDS COMMISSIONING REGION"]
["AJW","CHELMER HEALTHCARE LTD","Y61","EAST OF ENGLAND COMMISSIONING REGION"]
["NQJ","CHELMSFORD MEDICAL CENTRE","Y61","EAST OF ENGLAND COMMISSIONING REGION"]
["ARQ","CHELSEA MEDICAL - DR ROSE'S FAMILY PRACTICE","Y56","LONDON COMMISSIONING REGION"]
["NJU","CHENIES HEALTHCARE LTD","Y61","EAST OF ENGLAND COMMISSIONING REGION"]
["NAS","CHESHIRE PRIMARY CARE PROVIDER CIC","Y62","NORTH WEST COMMISSIONING REGION"]
["DHJ","CHESTER LE STREET HEALTH LIMITED","Y63","NORTH EAST AND YORKSHIRE COMMISSIONING REGION"]
["AMV","CHESTERFIELD HEALTH PROVIDER LTD","Y60","MIDLANDS COMMISSIONING REGION"]
["NRN","CHESWOLD PARK HOSPITAL","Y63","NORTH EAST AND YORKSHIRE COMMISSIONING REGION"]
["DWM","CHEVIN MEDICAL CONSULTANCY","Y63","NORTH EAST AND YORKSHIRE COMMISSIONING REGION"]
["DA0","CHILD ACTION NORTHWEST (CANW)","Y62","NORTH WEST COMMISSIONING REGION"]
["AV2","CHILD DYNAMIX","Y63","NORTH EAST AND YORKSHIRE COMMISSIONING REGION"]
["DE7","CHILD IN MIND LTD","Y62","NORTH WEST COMMISSIONING REGION"]
["DAD","CHILD PSYCHIATRY UK LTD","Y63","NORTH EAST AND YORKSHIRE COMMISSIONING REGION"]
["DEW","CHILDREN AND YOUNG PEOPLE'S HEALTH PARTNERSHIP","Y56","LONDON COMMISSIONING REGION"]
["NHN","CHILDREN'S RESPITE CARE LTD HQ","Y61","EAST OF ENGLAND COMMISSIONING REGION"]
["DR8","CHILTERN VALE EXTENDED ACCESS","Y61","EAST OF ENGLAND COMMISSIONING REGION"]
["NNK","CHILTERN VALE HEALTH (2012) LLP","Y59","SOUTH EAST COMMISSIONING REGION"]
["NX0","CHIME SOCIAL ENTERPRISE","Y58","SOUTH WEST COMMISSIONING REGION"]
["NRH","CHIME SOCIAL ENTERPRISE CIC","Y58","SOUTH WEST COMMISSIONING REGION"]
["NFU","CHIRO HEALTH LIMITED","Y61","EAST OF ENGLAND COMMISSIONING REGION"]
["NIQ","CHIROPRATIC HEALTH CENTRES LIMITED","Y61","EAST OF ENGLAND COMMISSIONING REGION"]
["AKG","CHISWICK HEALTHCARE LIMITED","Y56","LONDON COMMISSIONING REGION"]
["NEG","CHITTS HILL PHYSIOTHERAPY","Y61","EAST OF ENGLAND COMMISSIONING REGION"]
["NQN","CHLOE CARE LIMITED","Y62","NORTH WEST COMMISSIONING REGION"]
["NAW","CHOICE LIFESTYLES LTD","Y56","LONDON COMMISSIONING REGION"]
["AFD","CHORLEY MEDICS LTD","Y62","NORTH WEST COMMISSIONING REGION"]
["NRY","CHRISTCHURCH GROUP","Y60","MIDLANDS COMMISSIONING REGION"]
["DPV","CHUMS CIC","Y61","EAST OF ENGLAND COMMISSIONING REGION"]
["NV3","CIRCLE","Y56","LONDON COMMISSIONING REGION"]
["DM5","CITY AND HACKNEY CONFEDERATION COMMUNITY","Y56","LONDON COMMISSIONING REGION"]
["DH0","CITY AND HACKNEY MIND","Y56","LONDON COMMISSIONING REGION"]
["NNF","CITY HEALTH CARE PARTNERSHIP CIC","Y63","NORTH EAST AND YORKSHIRE COMMISSIONING REGION"]
["NNF00","CITY HEALTH CARE PARTNERSHIP CIC","Y63","NORTH EAST AND YORKSHIRE COMMISSIONING REGION"]
["NI5","CITY WAY OSTEOPATHIC CLINIC","Y59","SOUTH EAST COMMISSIONING REGION"]
["NHI","CLACTON CHIROPRACTIC CLINIC (PHYSMED LTD)","Y61","EAST OF ENGLAND COMMISSIONING REGION"]
["NTE","CLAREMONT & ST HUGH'S HOSPITALS (HMT)","Y56","LONDON COMMISSIONING REGION"]
["DD4","CLAREMONT MEDICAL PRACTICE","Y58","SOUTH WEST COMMISSIONING REGION"]
["DDL","CLARITY (YORKSHIRE) LIMITED","Y63","NORTH EAST AND YORKSHIRE COMMISSIONING REGION"]
["NTH","CLASSIC HOSPITALS LTD","Y56","LONDON COMMISSIONING REGION"]
["AQE","CLATTERBRIDGE PHARMACY LTD","Y62","NORTH WEST COMMISSIONING REGION"]
["NER","CLEMITSONS LTD","Y63","NORTH EAST AND YORKSHIRE COMMISSIONING REGION"]
["DQM","CLEVELAND CLINIC LONDON, LTD","Y56","LONDON COMMISSIONING REGION"]
["DR1","CLEVELAND SURGERY (EXTENDED HUB)","Y60","MIDLANDS COMMISSIONING REGION"]
["AWN","CLINIC NINE","Y59","SOUTH EAST COMMISSIONING REGION"]
["DNG","CLINIC4SPORT LTD","Y56","LONDON COMMISSIONING REGION"]
["DCF","CLINICAL COLLECTIVE LIMITED","Y63","NORTH EAST AND YORKSHIRE COMMISSIONING REGION"]
["AH9","CLINICAL DIAGNOSTIX LTD","Y60","MIDLANDS COMMISSIONING REGION"]
["DL5","CLINICAL PARTNERS LTD","Y58","SOUTH WEST COMMISSIONING REGION"]
["DJC","CLINICARE PROVIDER SERVICES LIMITED","Y63","NORTH EAST AND YORKSHIRE COMMISSIONING REGION"]
["DJG","CLINICARE PROVIDER SERVICES LIMITED","Y63","NORTH EAST AND YORKSHIRE COMMISSIONING REGION"]
["NW9","CLINICENTA LIMITED","Y60","MIDLANDS COMMISSIONING REGION"]
["NGV","CLOSER HEALTHCARE LTD","Y63","NORTH EAST AND YORKSHIRE COMMISSIONING REGION"]
["DGG","CLOVER HEALTH LIMITED","Y56","LONDON COMMISSIONING REGION"]
["ACL","COASTAL CLINICS","Y59","SOUTH EAST COMMISSIONING REGION"]
["NYP","COASTAL HEALTH CARE LTD","Y62","NORTH WEST COMMISSIONING REGION"]
["DR3","COASTAL HEALTH GP PROVIDER ORGANISATION","Y61","EAST OF ENGLAND COMMISSIONING REGION"]
["DVJ","COASTAL HEALTH NORTH","Y61","EAST OF ENGLAND COMMISSIONING REGION"]
["AC7","COBALT HEALTH","Y58","SOUTH WEST COMMISSIONING REGION"]
["NGF","COGGESHALL AND COLCHESTER CHIROPRATIC HQ","Y61","EAST OF ENGLAND COMMISSIONING REGION"]
["NGB","COLCHESTER OSTEOPATHIC CENTRE","Y61","EAST OF ENGLAND COMMISSIONING REGION"]
["NFV","COLCHESTER PHYSIOTHERAPY HQ","Y61","EAST OF ENGLAND COMMISSIONING REGION"]
["ATG","COLEMANS HEARING AND VISION CENTRE","Y61","EAST OF ENGLAND COMMISSIONING REGION"]
["DJY","COLLEGE HEALTH LIMITED","Y59","SOUTH EAST COMMISSIONING REGION"]
["AX4","COMBINE OPCO LIMITED","Y60","MIDLANDS COMMISSIONING REGION"]
["DL8","COMFORT CARE SERVICES UK LTD","Y59","SOUTH EAST COMMISSIONING REGION"]
["DMV","COMMISCEO PRIMARY CARE SOLUTIONS","Y61","EAST OF ENGLAND COMMISSIONING REGION"]
["NLG","COMMUNITAS CLINICS","Y56","LONDON COMMISSIONING REGION"]
["ADR","COMMUNITAS CLINICS LTD","Y56","LONDON COMMISSIONING REGION"]
["DVR","COMMUNITY CADIOLOGY LTD","Y56","LONDON COMMISSIONING REGION"]
["AGJ","COMMUNITY COLPOSCOPY SERVICES LTD","Y62","NORTH WEST COMMISSIONING REGION"]
["AK7","COMMUNITY COLPOSCOPY SERVICES LTD","Y62","NORTH WEST COMMISSIONING REGION"]
["DCJ","COMMUNITY COUNSELLING COOPERATIVE CIC","Y63","NORTH EAST AND YORKSHIRE COMMISSIONING REGION"]
["NRR","COMMUNITY DENTAL SERVICES CIC","Y61","EAST OF ENGLAND COMMISSIONING REGION"]
["NIF","COMMUNITY GLAUCOMA PARTNERSHIP","Y56","LONDON COMMISSIONING REGION"]
["AAV","COMMUNITY HEALTH AND EYECARE LIMITED","Y62","NORTH WEST COMMISSIONING REGION"]
["DQJ","COMMUNITY HEALTHCARE LTD","Y60","MIDLANDS COMMISSIONING REGION"]
["DFH","COMMUNITY HUB OPERATING CENTRE (CHOC)","Y59","SOUTH EAST COMMISSIONING REGION"]
["NHV","COMMUNITY LINKS (NORTHERN) LTD","Y63","NORTH EAST AND YORKSHIRE COMMISSIONING REGION"]
["NIG","COMMUNITY SPECIALIST CLINICS (CSC)","Y56","LONDON COMMISSIONING REGION"]
["DNE","COMPASS","Y63","NORTH EAST AND YORKSHIRE COMMISSIONING REGION"]
["AA5","COMPASS WELLBEING COMMUNITY INTEREST COMPANY","Y56","LONDON COMMISSIONING REGION"]
["DLQ","COMPLETE FERTILITY LTD","Y59","SOUTH EAST COMMISSIONING REGION"]
["DPL","COMPLETE PHYSIOTHERAPY LTD","Y59","SOUTH EAST COMMISSIONING REGION"]
["AJ0","COMPLETE SURVEYING SOLUTIONS LTD","Y60","MIDLANDS COMMISSIONING REGION"]
["AGM","COMPLEX CARE HEAD OFFICE","Y59","SOUTH EAST COMMISSIONING REGION"]
["NHT","CONCORDIA COMMUNITY OUTPATIENTS LTD","Y56","LONDON COMMISSIONING REGION"]
["NHT00","CONCORDIA COMMUNITY OUTPATIENTS LTD","Y56","LONDON COMMISSIONING REGION"]
["ADT","CONCORDIA HEALTH GROUP LIMITED","Y56","LONDON COMMISSIONING REGION"]
["NMG","CONNECT HEALTH LIMITED","Y63","NORTH EAST AND YORKSHIRE COMMISSIONING REGION"]
["DKD","CONNECT HEALTHCARE ROTHERHAM CIC","Y63","NORTH EAST AND YORKSHIRE COMMISSIONING REGION"]
["AER","CONSULTANT EYE SURGEONS PARTNERSHIP (CANTERBURY) LLP","Y59","SOUTH EAST COMMISSIONING REGION"]
["APT","CORE CARE LINKS LTD","Y63","NORTH EAST AND YORKSHIRE COMMISSIONING REGION"]
["AEN","CORE MEDICAL SOLUTIONS LTD","Y61","EAST OF ENGLAND COMMISSIONING REGION"]
["AHD","CORNERSTONE MEDICAL HOLDINGS LIMITED","Y62","NORTH WEST COMMISSIONING REGION"]
["NGY","CORNWALL COMMUNITY ECHO SERVICE","Y58","SOUTH WEST COMMISSIONING REGION"]
["AQT","CORNWALL HOSPICE CARE LIMITED","Y58","SOUTH WEST COMMISSIONING REGION"]
["DK8","CORNWALL RHEUMATOLOGY PRACTICE","Y58","SOUTH WEST COMMISSIONING REGION"]
["DH5","COSMEDICS SKIN CLINICS","Y56","LONDON COMMISSIONING REGION"]
["DM7","COSMESURGE LTD","Y59","SOUTH EAST COMMISSIONING REGION"]
["DFY","COTSWOLDS SURGICAL PARTNERS LLP","Y59","SOUTH EAST COMMISSIONING REGION"]
["AA9","COTTER LAUBIS PARTNERS","Y56","LONDON COMMISSIONING REGION"]
["NGC","COUNSELLING IN PARTNERSHIP LTD","Y61","EAST OF ENGLAND COMMISSIONING REGION"]
["NAF","COUNSELLING TEAM LTD","Y59","SOUTH EAST COMMISSIONING REGION"]
["DWT","COURTFIELD PRIVATE PRACTICE","Y56","LONDON COMMISSIONING REGION"]
["AKF","COURTYARD CONTINUING CARE LTD","Y62","NORTH WEST COMMISSIONING REGION"]
["APR","COVENTRY & RUGBY GP ALLIANCE LIMITED","Y60","MIDLANDS COMMISSIONING REGION"]
["NIS","COVENTRY AND WARWICKSHIRE DIAGNOSTIC SERVICES LIMITED","Y60","MIDLANDS COMMISSIONING REGION"]
["DLA","CRANSTOUN","Y59","SOUTH EAST COMMISSIONING REGION"]
["AP9","CREATE HEALTH LIMITED","Y56","LONDON COMMISSIONING REGION"]
["AVM","CRG MEDICAL SERVICES LTD","Y62","NORTH WEST COMMISSIONING REGION"]
["AQP","CROFTLANDS TRUST LIMITED","Y63","NORTH EAST AND YORKSHIRE COMMISSIONING REGION"]
["NL9","CROWN COSMA CLINIC LIMITED","Y62","NORTH WEST COMMISSIONING REGION"]
["DEH","CROYDON GP COLLABORATIVE LTD","Y56","LONDON COMMISSIONING REGION"]
["NWC","CRYSTAL PALACE PHYSIO GROUP","Y56","LONDON COMMISSIONING REGION"]
["NTV","CSH SURREY","Y59","SOUTH EAST COMMISSIONING REGION"]
["ACA","CUMBRIA MEDICAL SERVICES","Y63","NORTH EAST AND YORKSHIRE COMMISSIONING REGION"]
["AC9","CUPRIS LTD","Y56","LONDON COMMISSIONING REGION"]
["DK5","CURA HEALTH LTD","Y61","EAST OF ENGLAND COMMISSIONING REGION"]
["DQ3","CURO HEALTH LTD","Y63","NORTH EAST AND YORKSHIRE COMMISSIONING REGION"]
["AHQ","CUROCARE LTD HEAD OFFICE","Y56","LONDON COMMISSIONING REGION"]
["DKE","CURX HEALTH LIMITED","Y62","NORTH WEST COMMISSIONING REGION"]
["NMJ","CYGNET HEALTH CARE LIMITED","Y59","SOUTH EAST COMMISSIONING REGION"]
["DLC","CYNOSURE HEALTH CARE LTD","Y60","MIDLANDS COMMISSIONING REGION"]
["AWG","DACORUM HEALTHCARE PROVIDERS LTD","Y61","EAST OF ENGLAND COMMISSIONING REGION"]
["AG0","DANSHELL GROUP HEAD OFFICE","Y56","LONDON COMMISSIONING REGION"]
["AT8","DANUM MEDICAL SERVICES LTD","Y63","NORTH EAST AND YORKSHIRE COMMISSIONING REGION"]
["DT1","DATA INTENSITY LIMITED","Y62","NORTH WEST COMMISSIONING REGION"]
["NM5","DAUGHTERS OF THE CROSS OF LIEGE","Y56","LONDON COMMISSIONING REGION"]
["NBV","DAVID COOK PHYSIOTHERAPY LTD","Y59","SOUTH EAST COMMISSIONING REGION"]
["NM3","DAVID ORMEROD HEARING CENTRES LIMITED","WALES","WALES"]
["DEK","DAYCASE UK","Y60","MIDLANDS COMMISSIONING REGION"]
["APV","DEANBROOK LLP","Y59","SOUTH EAST COMMISSIONING REGION"]
["NI1","DEBBIE WATT OSTEOPATHY & ACUPUNCTURE","Y60","MIDLANDS COMMISSIONING REGION"]
["NJI","DEEPING OSTEOPATHS","Y60","MIDLANDS COMMISSIONING REGION"]
["NFI","DEERNESS PARK MEDICAL GROUP","Y63","NORTH EAST AND YORKSHIRE COMMISSIONING REGION"]
["DDG","DEFENCE MEDICAL SERVICES","Y60","MIDLANDS COMMISSIONING REGION"]
["AKQ","DELPHI MEDICAL LTD","Y62","NORTH WEST COMMISSIONING REGION"]
["DM1","DELT SHARED SERVICES","Y58","SOUTH WEST COMMISSIONING REGION"]
["DWD","DENTAL PARTNERS","Y60","MIDLANDS COMMISSIONING REGION"]
["ACJ","DEPENDABILITY LTD","Y56","LONDON COMMISSIONING REGION"]
["DH8","DERMAN","Y56","LONDON COMMISSIONING REGION"]
["DRK","DERWENT GP EXTENDED ACCESS PROVIDER","Y63","NORTH EAST AND YORKSHIRE COMMISSIONING REGION"]
["ATC","DERWENTSIDE HEALTHCARE LIMITED","Y63","NORTH EAST AND YORKSHIRE COMMISSIONING REGION"]
["DV6","DEVON AIR AMBULANCE TRADING COMPANY LIMITED","Y58","SOUTH WEST COMMISSIONING REGION"]
["NQW","DEVON DOCTORS LTD","Y58","SOUTH WEST COMMISSIONING REGION"]
["DQW","DHG ON THE DAY TEAM","Y61","EAST OF ENGLAND COMMISSIONING REGION"]
["NNJ","DHU HEALTH CARE C.I.C","Y60","MIDLANDS COMMISSIONING REGION"]
["NEM","DIAGNOSTIC HEALTHCARE LTD","Y62","NORTH WEST COMMISSIONING REGION"]
["NEP","DIAGNOSTIC WORLD LTD","Y60","MIDLANDS COMMISSIONING REGION"]
["NXG","DIRECT LOCAL HEALTH LTD","Y61","EAST OF ENGLAND COMMISSIONING REGION"]
["NBM","DIRECT MEDICAL IMAGING LTD","Y62","NORTH WEST COMMISSIONING REGION"]
["DGJ","DIRECT MEDICARE UK LTD","Y62","NORTH WEST COMMISSIONING REGION"]
["NEV","DIXON AND HALL LTD","Y63","NORTH EAST AND YORKSHIRE COMMISSIONING REGION"]
["NCN","DMC COMMUNITY OUTPATIENT SERVICES","Y56","LONDON COMMISSIONING REGION"]
["DP3","DOCTOR CARE ANYWHERE LIMITED","Y56","LONDON COMMISSIONING REGION"]
["NCQ","DOLBY MEDICAL HOME RESPIRATORY CARE LTD","Y59","SOUTH EAST COMMISSIONING REGION"]
["NNE","DORKING HEALTHCARE LIMITED (DHC)","Y59","SOUTH EAST COMMISSIONING REGION"]
["NNE00","DORKING HEALTHCARE LIMITED (DHC)","Y59","SOUTH EAST COMMISSIONING REGION"]
["AXM","DOROTHY HOUSE HOSPICE CARE","Y58","SOUTH WEST COMMISSIONING REGION"]
["NDY","DORSET DIAGNOSTICS LTD","Y61","EAST OF ENGLAND COMMISSIONING REGION"]
["DNF","DOUGHTY'S - NORWICH CONSOLIDATED CHARITIES","Y61","EAST OF ENGLAND COMMISSIONING REGION"]
["AJA","DOVER COUNSELLING CENTRE HQ","Y59","SOUTH EAST COMMISSIONING REGION"]
["AEM","DOVER STREET DOCTORS","Y59","SOUTH EAST COMMISSIONING REGION"]
["DMJ","DOVER STREET DOCTORS","Y59","SOUTH EAST COMMISSIONING REGION"]
["NRJ","DR A CHAMBERS' MEDICAL PRACTICE","Y56","LONDON COMMISSIONING REGION"]
["AY8","DR A W BAKER - ASHWOOD ASSOCIATES","Y59","SOUTH EAST COMMISSIONING REGION"]
["DCL","DR BIALAS PRIVATE ROOMS LONDON","Y56","LONDON COMMISSIONING REGION"]
["DVF","DR JULIAN MEDICAL GROUP LTD","Y56","LONDON COMMISSIONING REGION"]
["NDX","DR MONK LTD","Y61","EAST OF ENGLAND COMMISSIONING REGION"]
["AY2","DR ROB BASKIND (PSYCHIATRIST)","Y63","NORTH EAST AND YORKSHIRE COMMISSIONING REGION"]
["DGD","DRS BOREHAM AND ROWLEY","Y56","LONDON COMMISSIONING REGION"]
["DVN","DUDLEY PHYSIOTHERAPY CLINIC","Y60","MIDLANDS COMMISSIONING REGION"]
["ANQ","DURHAM DALES HEALTH FEDERATION","Y63","NORTH EAST AND YORKSHIRE COMMISSIONING REGION"]
["DVV","DURHAM GYNAE","Y63","NORTH EAST AND YORKSHIRE COMMISSIONING REGION"]
["NVL","DURNFORD DERMATOLOGY","Y62","NORTH WEST COMMISSIONING REGION"]
["AWY","EAGLE CARE ALTERNATIVES LTD","Y60","MIDLANDS COMMISSIONING REGION"]
["DQ8","EALING GP FEDERATION","Y56","LONDON COMMISSIONING REGION"]
["ALG","EALING GP LTD","Y56","LONDON COMMISSIONING REGION"]
["NIJ","EAST 17 HEALTHCARE LIMITED","Y56","LONDON COMMISSIONING REGION"]
["DPH","EAST BERKSHIRE PRIMARY CARE OOH","Y59","SOUTH EAST COMMISSIONING REGION"]
["NAX","EAST COAST COMMUNITY HEALTHCARE C.I.C","Y61","EAST OF ENGLAND COMMISSIONING REGION"]
["NAX00","EAST COAST COMMUNITY HEALTHCARE C.I.C","Y61","EAST OF ENGLAND COMMISSIONING REGION"]
["DVT","EAST DEVON HEALTH FEDERATION","Y58","SOUTH WEST COMMISSIONING REGION"]
["NN8","EAST KENT MEDICAL SERVICES LTD","Y59","SOUTH EAST COMMISSIONING REGION"]
["AR9","EAST KENT REHABILITATION ALLIANCE LIMITED","Y59","SOUTH EAST COMMISSIONING REGION"]
["NHL","EAST LANCASHIRE DEAF SOCIETY","Y62","NORTH WEST COMMISSIONING REGION"]
["AC0","EAST LANCASHIRE MEDICAL SERVICES LTD","Y62","NORTH WEST COMMISSIONING REGION"]
["DAK","EAST LANCASHIRE UNION OF GPS LIMITED","Y62","NORTH WEST COMMISSIONING REGION"]
["DQ9","EAST LINDSEY HUB","Y60","MIDLANDS COMMISSIONING REGION"]
["AKN","EAST QUAY HEALTH LTD","Y58","SOUTH WEST COMMISSIONING REGION"]
["NAJ","EAST RIDING FERTILITY SERVICES LTD","Y63","NORTH EAST AND YORKSHIRE COMMISSIONING REGION"]
["AP2","EAST SUSSEX OUTPATIENT SERVICES LIMITED (ESOPS)","Y59","SOUTH EAST COMMISSIONING REGION"]
["NRK","EASTBOURNE HEALTHCARE PARTNERSHIP","Y59","SOUTH EAST COMMISSIONING REGION"]
["AWA","EASTWOOD ENDOSCOPY CENTRE","Y61","EAST OF ENGLAND COMMISSIONING REGION"]
["APP","EASY IMAGING AND MRI","Y58","SOUTH WEST COMMISSIONING REGION"]
["NXH","EBOR CLINICAL SERVICES LIMITED","Y63","NORTH EAST AND YORKSHIRE COMMISSIONING REGION"]
["NAB","ECARESERVE LTD","Y56","LONDON COMMISSIONING REGION"]
["NGL","ECHOGENICITY LIMITED","Y58","SOUTH WEST COMMISSIONING REGION"]
["DQ2","EDEN UK CLINICAL SERVICES LIMITED","Y61","EAST OF ENGLAND COMMISSIONING REGION"]
["DAT","EDENSGATE HYPNOTHERAPY","Y56","LONDON COMMISSIONING REGION"]
["NED","EDICS","Y59","SOUTH EAST COMMISSIONING REGION"]
["DWA","EDP DRUG AND ALCOHOL SERVICES","Y58","SOUTH WEST COMMISSIONING REGION"]
["DPM","ELECTRODIAGNOSTIC SERVICES","Y63","NORTH EAST AND YORKSHIRE COMMISSIONING REGION"]
["DW9","ELITE HEALTH SERVICES LIMITED TA BROMSGROVE PRIVATE CLINIC","Y60","MIDLANDS COMMISSIONING REGION"]
["DQX","ELIZABETH COURTAULD PARTNERSHIP","Y61","EAST OF ENGLAND COMMISSIONING REGION"]
["NXF","ELLENOR","Y59","SOUTH EAST COMMISSIONING REGION"]
["DN7","ELLERN MEDE BARNET","Y56","LONDON COMMISSIONING REGION"]
["DEN","ELM ALLIANCE LIMITED","Y63","NORTH EAST AND YORKSHIRE COMMISSIONING REGION"]
["NCK","E-LOGICA LTD","Y60","MIDLANDS COMMISSIONING REGION"]
["DE8","ELYSIUM HEALTHCARE","Y61","EAST OF ENGLAND COMMISSIONING REGION"]
["NP2","EMIS CARE","Y60","MIDLANDS COMMISSIONING REGION"]
["DC4","E-NCOMPASS HEALTH LIMITED","Y60","MIDLANDS COMMISSIONING REGION"]
["DFD","ENDOSCOPE-I LTD","Y60","MIDLANDS COMMISSIONING REGION"]
["NAN","ENFIELD HEALTH PARTNERSHIP LIMITED","Y56","LONDON COMMISSIONING REGION"]
["AVG","ENFIELD HEALTHCARE ALLIANCE LIMITED","Y56","LONDON COMMISSIONING REGION"]
["DF0","ENFIELD ONE LIMITED","Y56","LONDON COMMISSIONING REGION"]
["AGW","ENFIELDGP HEALTHCARE NETWORK LTD","Y56","LONDON COMMISSIONING REGION"]
["ALV","ENGLISH INSTITUTE OF SPORT LTD","Y62","NORTH WEST COMMISSIONING REGION"]
["AD8","ENHANCED OPTOMETRY SERVICES LTD.","Y61","EAST OF ENGLAND COMMISSIONING REGION"]
["DDC","EPAU SERVICE - DEMONTFORT SURGERY","Y60","MIDLANDS COMMISSIONING REGION"]
["DRE","EPHEDRA HEALTHCARE LTD","Y61","EAST OF ENGLAND COMMISSIONING REGION"]
["NVM","EPSOMEDICAL GROUP","Y59","SOUTH EAST COMMISSIONING REGION"]
["AHN","EQUILIBRIUM HEALTHCARE","Y62","NORTH WEST COMMISSIONING REGION"]
["AXP","EREWASH HEALTH LIMITED","Y60","MIDLANDS COMMISSIONING REGION"]
["DLW","ERNEST GARDINER TREATMENT CENTRE - LETCHWORTH GARDEN CITY HERITAGE FOUNDATION","Y61","EAST OF ENGLAND COMMISSIONING REGION"]
["NCD","ESS PRIMARY CARE SOLUTIONS","Y56","LONDON COMMISSIONING REGION"]
["AXX","ESSENZE","Y59","SOUTH EAST COMMISSIONING REGION"]
["NUC","ESSEXULTRASOUND & MEDICAL SERVICES LTD","Y61","EAST OF ENGLAND COMMISSIONING REGION"]
["NPL","ESTEVE TEIJIN","Y56","LONDON COMMISSIONING REGION"]
["DML","EUROPEAN SCANNING CENTRE","Y56","LONDON COMMISSIONING REGION"]
["ATR","EVERYONE HEALTH","Y60","MIDLANDS COMMISSIONING REGION"]
["NGU","EVOLUTIO CARE INNOVATIONS LTD HQ","Y59","SOUTH EAST COMMISSIONING REGION"]
["DGA","EXCEL PRIMARY CARE GPSI SERVICE","Y62","NORTH WEST COMMISSIONING REGION"]
["NGP","EXCELL ULTRASOUND LTD","Y61","EAST OF ENGLAND COMMISSIONING REGION"]
["DAF","EXE ESTUARY HEALTH LTD","Y58","SOUTH WEST COMMISSIONING REGION"]
["AK8","EXERCISE REFERRAL/COMMUNITY WEIGHT MANAGEMENT/MATERNITY LIFESTYLE PROGRAMME - SOUTH TYNESIDE COUNCIL","Y63","NORTH EAST AND YORKSHIRE COMMISSIONING REGION"]
["NQ6","EXETER MEDICAL LTD","Y58","SOUTH WEST COMMISSIONING REGION"]
["AY9","EXPRESS DIAGNOSTIC IMAGING LTD","Y59","SOUTH EAST COMMISSIONING REGION"]
["NCL","EXPRESS DIAGNOSTICS","Y58","SOUTH WEST COMMISSIONING REGION"]
["DT4","EXROID TECHNOLOGY LTD","Y59","SOUTH EAST COMMISSIONING REGION"]
["DG9","EXTENDED MINOR SURGERY SERVICE","Y56","LONDON COMMISSIONING REGION"]
["ACM","EYE CARE MEDICAL LTD","Y62","NORTH WEST COMMISSIONING REGION"]
["NVG","FAIRFIELD HOSPITAL","Y62","NORTH WEST COMMISSIONING REGION"]
["NYQ","FAIRLEY ENT KENT","Y59","SOUTH EAST COMMISSIONING REGION"]
["DHD","FAIRVIEW HEALTH LTD","Y56","LONDON COMMISSIONING REGION"]
["DV5","FAMILY-ACTION","Y56","LONDON COMMISSIONING REGION"]
["AQW","FAREHAM AND GOSPORT PRIMARY CARE ALLIANCE LTD","Y59","SOUTH EAST COMMISSIONING REGION"]
["NIW","FAVERSHAM COUNSELLING SERVICE LTD","Y59","SOUTH EAST COMMISSIONING REGION"]
["AQM","FAVERSHAM MEDICAL PRACTICE MIU","Y59","SOUTH EAST COMMISSIONING REGION"]
["NXL","FCMS (NW) LTD","Y62","NORTH WEST COMMISSIONING REGION"]
["DMT","FEDBUCKS LIMITED","Y59","SOUTH EAST COMMISSIONING REGION"]
["ALA","FELTHAM AND BEDFONT LOCALITY LIMITED","Y56","LONDON COMMISSIONING REGION"]
["NBN","FERNEHAM HEALTH LIMITED","Y59","SOUTH EAST COMMISSIONING REGION"]
["AGC","FESTIVAL MEDICAL SERVICES","Y62","NORTH WEST COMMISSIONING REGION"]
["AY5","FIRST CALL GP LIMITED","Y59","SOUTH EAST COMMISSIONING REGION"]
["NVN","FIRST CHOICE HEALTH LTD","Y59","SOUTH EAST COMMISSIONING REGION"]
["NDJ","FIRST COMMUNITY HEALTH AND CARE CIC","Y59","SOUTH EAST COMMISSIONING REGION"]
["DTN","FIRST POINT PHYSIO LTD","Y61","EAST OF ENGLAND COMMISSIONING REGION"]
["NN3","FIRST TRUST HOSPITAL","Y62","NORTH WEST COMMISSIONING REGION"]
["AYM","FITTLEWORTH MEDICAL LTD","Y59","SOUTH EAST COMMISSIONING REGION"]
["DR0","FOCUS CARE AGENCY LIMITED","Y61","EAST OF ENGLAND COMMISSIONING REGION"]
["ATX","FOCUS INDEPENDENT ADULT SOCIAL WORK C.I.C","Y63","NORTH EAST AND YORKSHIRE COMMISSIONING REGION"]
["ANT","FOOTCAB LTD","Y56","LONDON COMMISSIONING REGION"]
["NVQ","FORTIS HEALTHCARE LTD","Y61","EAST OF ENGLAND COMMISSIONING REGION"]
["ACP","FORTIUS CLINIC","Y56","LONDON COMMISSIONING REGION"]
["AHH","FOSCOTE COURT (BANBURY) TRUST LTD","Y59","SOUTH EAST COMMISSIONING REGION"]
["DMH","FRAMEWORK","Y60","MIDLANDS COMMISSIONING REGION"]
["NHQ","FREEDOM MEDICAL CARE","Y63","NORTH EAST AND YORKSHIRE COMMISSIONING REGION"]
["DA1","FREEFLOW COUNSELLING SERVICE","Y62","NORTH WEST COMMISSIONING REGION"]
["NMO","FREEMAN CLINICS LIMITED","Y63","NORTH EAST AND YORKSHIRE COMMISSIONING REGION"]
["NTM","FRESENIUS MEDICAL CARE (UK) LTD","Y60","MIDLANDS COMMISSIONING REGION"]
["DHP","FRONTIERE MEDICALE EUROPE","Y61","EAST OF ENGLAND COMMISSIONING REGION"]
["DF3","FUSION RADIOLOGY LIMITED","Y61","EAST OF ENGLAND COMMISSIONING REGION"]
["NJH","FUTURE DIRECTIONS C.I.C","Y62","NORTH WEST COMMISSIONING REGION"]
["AP5","FUTURE PROOF HEALTH LIMITED","Y60","MIDLANDS COMMISSIONING REGION"]
["NJK","G HILL LTD","Y62","NORTH WEST COMMISSIONING REGION"]
["NDD","G4S CARE AND JUSTICE SERVICES HQ","Y56","LONDON COMMISSIONING REGION"]
["AHW","G4S FORENSIC AND MEDICAL SERVICES","Y56","LONDON COMMISSIONING REGION"]
["NYD","GASTRO CARE LTD","Y56","LONDON COMMISSIONING REGION"]
["DN0","GASTRONET LTD","Y56","LONDON COMMISSIONING REGION"]
["NRV","GATEWAY PRIMARY CARE CIC LIMITED","Y63","NORTH EAST AND YORKSHIRE COMMISSIONING REGION"]
["ARM","GDOC LTD","Y58","SOUTH WEST COMMISSIONING REGION"]
["NBC","GEECOL WELLNESS LTD","Y61","EAST OF ENGLAND COMMISSIONING REGION"]
["AJF","GENEIX LTD","Y59","SOUTH EAST COMMISSIONING REGION"]
["NW7","GENERAL MEDICAL CLINICS LTD (GENMED)","Y56","LONDON COMMISSIONING REGION"]
["APA","GENERAL PRACTICE ALLIANCE LIMITED","Y60","MIDLANDS COMMISSIONING REGION"]
["AK5","GENERATING HEALTHCARE LTD","Y61","EAST OF ENGLAND COMMISSIONING REGION"]
["NIH","GENIX HEALTHCARE LIMITED","Y63","NORTH EAST AND YORKSHIRE COMMISSIONING REGION"]
["NLK","GENNET HQ","Y56","LONDON COMMISSIONING REGION"]
["UJ4","GEOFFREY LLOYD FOULKES CLINIC","Y56","LONDON COMMISSIONING REGION"]
["DHC","GLADSTONES CLINIC LTD","Y58","SOUTH WEST COMMISSIONING REGION"]
["DP5","GLAUKOS UK LTD","Y59","SOUTH EAST COMMISSIONING REGION"]
["AHY","GLEN CARE","Y56","LONDON COMMISSIONING REGION"]
["NYR","GLOBAL DIAGNOSTICS","Y61","EAST OF ENGLAND COMMISSIONING REGION"]
["NYR00","GLOBAL DIAGNOSTICS","Y61","EAST OF ENGLAND COMMISSIONING REGION"]
["AWE","GLOBAL TRANSLATION SERVICES LIMITED","Y60","MIDLANDS COMMISSIONING REGION"]
["APM","GLOUCESTER GP CONSORTIUM LTD","Y58","SOUTH WEST COMMISSIONING REGION"]
["NNO","GLOUCESTERSHIRE GP PROVIDER COMPANY LTD","Y58","SOUTH WEST COMMISSIONING REGION"]
["AFW","GM PRIMARY EYECARE LIMITED","Y56","LONDON COMMISSIONING REGION"]
["AHF","GOOD SKIN DAYS LTD","Y63","NORTH EAST AND YORKSHIRE COMMISSIONING REGION"]
["AV5","GP CARE SERVICES LTD","Y62","NORTH WEST COMMISSIONING REGION"]
["NWV","GP CARE UK LIMITED","Y58","SOUTH WEST COMMISSIONING REGION"]
["DDY","GP HEALTH CONNECT LTD","Y62","NORTH WEST COMMISSIONING REGION"]
["ATK","GP HEALTH PARTNERS LTD","Y59","SOUTH EAST COMMISSIONING REGION"]
["AJV","GP HEALTHCARE ALLIANCE LTD","Y56","LONDON COMMISSIONING REGION"]
["AAQ","GP PRIMARY CHOICE LTD","Y61","EAST OF ENGLAND COMMISSIONING REGION"]
["AN4","GRAFTON MEDICAL PARTNERS (HQ)","Y56","LONDON COMMISSIONING REGION"]
["NI9","GRAPECROFT CARE HOME","Y61","EAST OF ENGLAND COMMISSIONING REGION"]
["NFM","GREAT GLENS FACILITY LTD","Y60","MIDLANDS COMMISSIONING REGION"]
["AKH","GREAT WEST ROAD HEALTHCARE LIMITED","Y56","LONDON COMMISSIONING REGION"]
["AV3","GREATER PETERBOROUGH NETWORK LTD","Y61","EAST OF ENGLAND COMMISSIONING REGION"]
["NM9","GREENBANKS HOMECARE LTD","Y59","SOUTH EAST COMMISSIONING REGION"]
["DD2","GREENBROOK HEALTHCARE","Y56","LONDON COMMISSIONING REGION"]
["AD9","GREENBROOK HEALTHCARE","Y60","MIDLANDS COMMISSIONING REGION"]
["DCX","GREENWICH HEALTH LIMITED","Y56","LONDON COMMISSIONING REGION"]
["ALL","GREYSTONE PHYSIOTHERAPY CLINIC LTD","Y60","MIDLANDS COMMISSIONING REGION"]
["NI8","GROSVENOR PHYSIOTHERAPY LTD","Y59","SOUTH EAST COMMISSIONING REGION"]
["DMM","GROWING HEALTHY COMMUNITIES OLDHAM LIMITED","Y62","NORTH WEST COMMISSIONING REGION"]
["NPW","GRYPHON HEALTH LLP","Y59","SOUTH EAST COMMISSIONING REGION"]
["NW0","GTD HEALTHCARE","Y62","NORTH WEST COMMISSIONING REGION"]
["DD3","GUIDEPOST LTD","Y56","LONDON COMMISSIONING REGION"]
["DJ3","GUTCARE.ORG LTD","Y56","LONDON COMMISSIONING REGION"]
["AE4","H M PARTNERSHIP LLP","Y61","EAST OF ENGLAND COMMISSIONING REGION"]
["NKX","H S PHYSIOTHERAPY LTD","Y60","MIDLANDS COMMISSIONING REGION"]
["AKK","H&FGPF LIMITED","Y56","LONDON COMMISSIONING REGION"]
["NCO","HACS COUNSELLING SERVICE","Y61","EAST OF ENGLAND COMMISSIONING REGION"]
["DJL","HADRIAN PRIMARY CARE ALLIANCE","Y63","NORTH EAST AND YORKSHIRE COMMISSIONING REGION"]
["DGN","HAILADOC","Y56","LONDON COMMISSIONING REGION"]
["NIP","HAKIM OSTEOPATHS LIMITED","Y60","MIDLANDS COMMISSIONING REGION"]
["NBJ","HALTWHISTLE MEDICAL GROUP","Y63","NORTH EAST AND YORKSHIRE COMMISSIONING REGION"]
["ALQ","HAMBLETON RICHMONDSHIRE AND WHITBY GP ALLIANCE LTD","Y63","NORTH EAST AND YORKSHIRE COMMISSIONING REGION"]
["NEJ","HAND TO ELBOW CLINIC","Y58","SOUTH WEST COMMISSIONING REGION"]
["AJ9","HARINGEY ADVISORY GROUP ON ALCOHOL (HAGA)","Y56","LONDON COMMISSIONING REGION"]
["NPT","HARMONI","Y61","EAST OF ENGLAND COMMISSIONING REGION"]
["NR2","HARMONI FOR HEALTH","Y58","SOUTH WEST COMMISSIONING REGION"]
["DG7","HARMONIC MEDICAL SONOGRAPHY LIMITED","Y62","NORTH WEST COMMISSIONING REGION"]
["AHV","HARNESS CARE CO-OPERATIVE LIMITED","Y56","LONDON COMMISSIONING REGION"]
["AX9","HARRODS LTD","Y56","LONDON COMMISSIONING REGION"]
["NYM","HARROW HEALTH CIC","Y56","LONDON COMMISSIONING REGION"]
["NFL","HARTLEPOOL AND EAST DURHAM MIND","Y63","NORTH EAST AND YORKSHIRE COMMISSIONING REGION"]
["DAC","HARTLEPOOL AND STOCKTON HEALTH LTD","Y63","NORTH EAST AND YORKSHIRE COMMISSIONING REGION"]
["NR8","HARVEY HOUSE SOCIAL ENTERPRISE LTD","Y62","NORTH WEST COMMISSIONING REGION"]
["AV8","HARVEY ROAD CLINIC - GPWSI","Y60","MIDLANDS COMMISSIONING REGION"]
["AE7","HAVERING COMMUNITY GYNAECOLOGY SERVICE","Y56","LONDON COMMISSIONING REGION"]
["AKL","HAVERING HEALTH LTD","Y56","LONDON COMMISSIONING REGION"]
["ADQ","HAVERING PRIMARY CARE ENT SERVICE","Y56","LONDON COMMISSIONING REGION"]
["NEH","HAVERSTOCK HEALTHCARE","Y56","LONDON COMMISSIONING REGION"]
["ART","HAWK EYE VENTURES LIMITED","Y60","MIDLANDS COMMISSIONING REGION"]
["NVV","HAXBY GROUP","Y63","NORTH EAST AND YORKSHIRE COMMISSIONING REGION"]
["NW6","HCA INTERNATIONAL","Y56","LONDON COMMISSIONING REGION"]
["ADJ","HEADWAY DORSET","Y58","SOUTH WEST COMMISSIONING REGION"]
["DHN","HEADWAY LUTON LTD","Y61","EAST OF ENGLAND COMMISSIONING REGION"]
["AAD","HEALOGICS LTD","Y59","SOUTH EAST COMMISSIONING REGION"]
["NXA","HEALTH 4 CRAWLEY LTD","Y59","SOUTH EAST COMMISSIONING REGION"]
["AQ5","HEALTH AND LIFESTYLE RESEARCH UNIT HQ","Y56","LONDON COMMISSIONING REGION"]
["DPQ","HEALTH AND SOCIAL CARE SERVICES LIMITED","Y61","EAST OF ENGLAND COMMISSIONING REGION"]
["AEK","HEALTH BRIDGE LIMITED","Y56","LONDON COMMISSIONING REGION"]
["DP0","HEALTH BRIDGE LIMITED","Y56","LONDON COMMISSIONING REGION"]
["APN","HEALTH FIRST ALW COMMUNITY INTEREST COMPANY","Y62","NORTH WEST COMMISSIONING REGION"]
["DF9","HEALTH INTELLIGENCE LTD","Y62","NORTH WEST COMMISSIONING REGION"]
["DWE","HEALTH TECHNOLOGIES LIMITED","Y56","LONDON COMMISSIONING REGION"]
["NXJ","HEALTHCARE AT HOME","Y60","MIDLANDS COMMISSIONING REGION"]
["NP4","HEALTHCARE LOCATION","Y61","EAST OF ENGLAND COMMISSIONING REGION"]
["NJN","HEALTHCARE LOCATION LTD","Y61","EAST OF ENGLAND COMMISSIONING REGION"]
["NO0","HEALTHHARMONIE LIMITED","Y60","MIDLANDS COMMISSIONING REGION"]
["NMK","HEALTHSHARE LTD","Y59","SOUTH EAST COMMISSIONING REGION"]
["ADC","HEALTHSPACE SOUTH","Y59","SOUTH EAST COMMISSIONING REGION"]
["AMY","HEALTHSTONE MEDICAL LTD","Y58","SOUTH WEST COMMISSIONING REGION"]
["DD9","HEALTHY LONDON PARTNERSHIP","Y56","LONDON COMMISSIONING REGION"]
["DMP","HEALTHY OLDHAM LTD","Y62","NORTH WEST COMMISSIONING REGION"]
["NVX","HEARBASE LTD","Y59","SOUTH EAST COMMISSIONING REGION"]
["DKG","HEARBASE LTD","Y59","SOUTH EAST COMMISSIONING REGION"]
["DAG","HEART MEDICAL","Y63","NORTH EAST AND YORKSHIRE COMMISSIONING REGION"]
["NRL","HEART NETWORKS","Y62","NORTH WEST COMMISSIONING REGION"]
["DGP","HEARUS CLINICS LTD","Y60","MIDLANDS COMMISSIONING REGION"]
["ANA","HEATHBRIDGE PRACTICE (HQ)","Y56","LONDON COMMISSIONING REGION"]
["AX1","HEATHER HALL HYPNOTHERAPY HQ","Y61","EAST OF ENGLAND COMMISSIONING REGION"]
["DV0","HEEL2HEAL","Y58","SOUTH WEST COMMISSIONING REGION"]
["ALH","HEM CLINICAL ULTRASOUND SERVICE LIMITED","Y59","SOUTH EAST COMMISSIONING REGION"]
["AXH","HENDON EYECARE OPTICIANS","Y56","LONDON COMMISSIONING REGION"]
["NWX","HERE","Y59","SOUTH EAST COMMISSIONING REGION"]
["NWX00","HERE","Y59","SOUTH EAST COMMISSIONING REGION"]
["NE0","HEREFORD OSTEOPATHIC PRACTICE LTD","Y60","MIDLANDS COMMISSIONING REGION"]
["NNP","HERITAGE HEARING","Y62","NORTH WEST COMMISSIONING REGION"]
["DJV","HERNE BAY HEALTH CARE LTD","Y59","SOUTH EAST COMMISSIONING REGION"]
["NKS","HERTFORDSHIRE EYE HOSPITAL","Y61","EAST OF ENGLAND COMMISSIONING REGION"]
["DQL","HERTS & ESSEX FERTILITY CENTRE","Y56","LONDON COMMISSIONING REGION"]
["NW2","HERTS HEALTH LTD","Y61","EAST OF ENGLAND COMMISSIONING REGION"]
["NW3","HERTS HEALTH RESPIRATORY","Y61","EAST OF ENGLAND COMMISSIONING REGION"]
["NO4","HERTS MIND NETWORK","Y61","EAST OF ENGLAND COMMISSIONING REGION"]
["DT3","HERTS URGENT CARE LTD","Y61","EAST OF ENGLAND COMMISSIONING REGION"]
["AAT","HIDDEN HEARING LIMITED","Y59","SOUTH EAST COMMISSIONING REGION"]
["NQP","HILLINGDON ACTION GROUP FOR ADDICTION MANAGEMENT","Y56","LONDON COMMISSIONING REGION"]
["NPV","HILLINGDON HEALTH LIMITED","Y59","SOUTH EAST COMMISSIONING REGION"]
["AWW","HILLINGDON MIND","Y56","LONDON COMMISSIONING REGION"]
["DLV","HILLINGDON PRIMARY CARE CONFEDERATION","Y56","LONDON COMMISSIONING REGION"]
["AJQ","HINCKLEY & BOSWORTH MEDICAL ALLIANCE LIMITED","Y60","MIDLANDS COMMISSIONING REGION"]
["DV8","HMR INTEGRATED COMMUNITY SERVICES","Y62","NORTH WEST COMMISSIONING REGION"]
["DDR","HOBBS REHABILITATION LIMITED","Y59","SOUTH EAST COMMISSIONING REGION"]
["NDO","HODDESDON AND HERTFORD COUNSELLING SERVICE","Y61","EAST OF ENGLAND COMMISSIONING REGION"]
["AAY","HOLBEACH AND EAST ELLOE HOSPITAL TRUST","Y60","MIDLANDS COMMISSIONING REGION"]
["DJ5","HOLT PHYSIO LTD","Y61","EAST OF ENGLAND COMMISSIONING REGION"]
["NLC","HOLYWELL HEALTHCARE","Y60","MIDLANDS COMMISSIONING REGION"]
["DPT","HOMECARE SERVICES","Y62","NORTH WEST COMMISSIONING REGION"]
["NXM","HORDER HEALTHCARE","Y59","SOUTH EAST COMMISSIONING REGION"]
["NXM00","HORDER HEALTHCARE","Y59","SOUTH EAST COMMISSIONING REGION"]
["NV8","HORIZON HEALTH","Y61","EAST OF ENGLAND COMMISSIONING REGION"]
["NV800","HORIZON HEALTH","Y61","EAST OF ENGLAND COMMISSIONING REGION"]
["NMM","HOSPITAL OF ST JOHN AND ST ELIZABETH","Y56","LONDON COMMISSIONING REGION"]
["AQ8","HOUNSLOW GP FEDERATION CIC","Y56","LONDON COMMISSIONING REGION"]
["AGH","HOUSE OF LIGHT POSTNATAL DEPRESSION SUPPORT GROUP","Y63","NORTH EAST AND YORKSHIRE COMMISSIONING REGION"]
["NMA","HOYLAKE COTTAGE HOSPITAL","Y62","NORTH WEST COMMISSIONING REGION"]
["NL4","HUDDERSFIELD MEDICAL SERVICES LTD","Y63","NORTH EAST AND YORKSHIRE COMMISSIONING REGION"]
["DDF","HULL AND EAST YORKSHIRE MIND","Y63","NORTH EAST AND YORKSHIRE COMMISSIONING REGION"]
["DT2","HULL COLLABORATIVE GP EXTENDED ACCESS SERVICE","Y63","NORTH EAST AND YORKSHIRE COMMISSIONING REGION"]
["AHK","HUMANITAS HEALTHCARE SERVICES LIMITED","Y60","MIDLANDS COMMISSIONING REGION"]
["AJ6","HUMANKIND","Y63","NORTH EAST AND YORKSHIRE COMMISSIONING REGION"]
["AFY","ICALL CARE LTD","Y60","MIDLANDS COMMISSIONING REGION"]
["DRM","ICC AND FAILSWORTH PRIMARY CARE LTD","Y62","NORTH WEST COMMISSIONING REGION"]
["DQ5","ICE CREATES LIMITED","Y62","NORTH WEST COMMISSIONING REGION"]
["AG1","ICENI HEALTHCARE LIMITED","Y61","EAST OF ENGLAND COMMISSIONING REGION"]
["DTL","ICOM TELECOMUNICATIONS LIMITED","Y59","SOUTH EAST COMMISSIONING REGION"]
["AKE","ID MEDICAL GROUP LTD","Y61","EAST OF ENGLAND COMMISSIONING REGION"]
["DW5","IDH GROUP LIMITED","Y62","NORTH WEST COMMISSIONING REGION"]
["AM6","IESO DIGITAL HEALTH LTD","Y61","EAST OF ENGLAND COMMISSIONING REGION"]
["AVC","IGP CARE LTD","Y62","NORTH WEST COMMISSIONING REGION"]
["NIA","I-HEALTH","Y56","LONDON COMMISSIONING REGION"]
["DQG","IHEALTHCARE SOLUTIONS LIMITED","Y60","MIDLANDS COMMISSIONING REGION"]
["DMN","ILS24 HEALTH CARE LTD","Y63","NORTH EAST AND YORKSHIRE COMMISSIONING REGION"]
["DJ1","I'M OUT OF HERE LIMITED","Y58","SOUTH WEST COMMISSIONING REGION"]
["DQV","IMP HEALTHCARE LTD","Y60","MIDLANDS COMMISSIONING REGION"]
["DJ8","IMPERIAL COLLEGE HEALTH PARTNERS","Y56","LONDON COMMISSIONING REGION"]
["AEW","IMPROVING HEALTH LTD","Y56","LONDON COMMISSIONING REGION"]
["AGK","INDEPENDENT COMMUNITY CARE MANAGEMENT LTD","Y60","MIDLANDS COMMISSIONING REGION"]
["NXP","INDEPENDENT HEALTH GROUP","Y58","SOUTH WEST COMMISSIONING REGION"]
["NXP00","INDEPENDENT HEALTH GROUP","Y58","SOUTH WEST COMMISSIONING REGION"]
["NNB","INDEPENDENT VASCULAR SERVICES LTD","Y62","NORTH WEST COMMISSIONING REGION"]
["NI6","INFORM","Y56","LONDON COMMISSIONING REGION"]
["NIV","INFORM HEALTH & FITNESS LTD","Y56","LONDON COMMISSIONING REGION"]
["AYE","INGEUS UK LTD","Y60","MIDLANDS COMMISSIONING REGION"]
["NWA","INHEALTH ECHOTECH LTD","Y59","SOUTH EAST COMMISSIONING REGION"]
["NV1","INHEALTH LIMITED","Y59","SOUTH EAST COMMISSIONING REGION"]
["NV100","INHEALTH LIMITED","Y59","SOUTH EAST COMMISSIONING REGION"]
["NY6","INHEALTH PAIN MANAGEMENT SOLUTIONS LIMITED","Y63","NORTH EAST AND YORKSHIRE COMMISSIONING REGION"]
["NY600","INHEALTH PAIN MANAGEMENT SOLUTIONS LIMITED","Y63","NORTH EAST AND YORKSHIRE COMMISSIONING REGION"]
["AW9","INMED ENTERPRISE LTD","Y60","MIDLANDS COMMISSIONING REGION"]
["AHL","INMIND HEALTHCARE - HEAD OFFICE","Y59","SOUTH EAST COMMISSIONING REGION"]
["NWR","INNOVATIONS IN PRIMARY CARE LIMITED","Y59","SOUTH EAST COMMISSIONING REGION"]
["DN5","INPHASE MOBILE MRI SERVICES LTD","Y63","NORTH EAST AND YORKSHIRE COMMISSIONING REGION"]
["NHA","INSIDEVUE LIMITED","Y59","SOUTH EAST COMMISSIONING REGION"]
["NDC","INSIGHT HEALTHCARE","Y63","NORTH EAST AND YORKSHIRE COMMISSIONING REGION"]
["ATW","INSPIRA HEALTH","Y62","NORTH WEST COMMISSIONING REGION"]
["DP8","INTEGRATED CARDIOLOGY SOLUTIONS LTD","Y59","SOUTH EAST COMMISSIONING REGION"]
["NVE","INTEGRATED CARE 24 LTD","Y59","SOUTH EAST COMMISSIONING REGION"]
["AYC","INTEGRATED CARE PARTNERSHIP","Y59","SOUTH EAST COMMISSIONING REGION"]
["ANN","INTEGRATED COMMUNITY CARE LTD","Y59","SOUTH EAST COMMISSIONING REGION"]
["DHH","INTEGRATED FAMILY HEALTHCARE LTD","Y59","SOUTH EAST COMMISSIONING REGION"]
["AHG","INTELLIGENT PRESCRIBING SOLUTIONS LTD","Y63","NORTH EAST AND YORKSHIRE COMMISSIONING REGION"]
["AWJ","INTERCOM TRUST","Y58","SOUTH WEST COMMISSIONING REGION"]
["DJN","INTERGRAL MEDICAL HOLDINGS IMH OR MALLING HEALTH","Y62","NORTH WEST COMMISSIONING REGION"]
["NCJ","INTERHEALTH CANADA UK","Y56","LONDON COMMISSIONING REGION"]
["NTD","INTERHEALTH CARE SERVICES (UK) LTD","Y62","NORTH WEST COMMISSIONING REGION"]
["ATF","INTERHEARING LTD","Y60","MIDLANDS COMMISSIONING REGION"]
["AH8","INTERSERVE HEALTHCARE","Y60","MIDLANDS COMMISSIONING REGION"]
["AA4","INTRAHEALTH LTD","Y63","NORTH EAST AND YORKSHIRE COMMISSIONING REGION"]
["NYF","INVICTA HEALTH COMMUNITY INTEREST COMPANY","Y59","SOUTH EAST COMMISSIONING REGION"]
["NJV","INVIZO LTD","Y63","NORTH EAST AND YORKSHIRE COMMISSIONING REGION"]
["ANK","IP&E (TRADING) LIMITED","Y60","MIDLANDS COMMISSIONING REGION"]
["ANG","IP&E LIMITED","Y60","MIDLANDS COMMISSIONING REGION"]
["NNG","IPLATO HEALTHCARE LIMITED","Y56","LONDON COMMISSIONING REGION"]
["NY3","IPSCOM","Y61","EAST OF ENGLAND COMMISSIONING REGION"]
["DRJ","IPSWICH PRIMARY CARE","Y61","EAST OF ENGLAND COMMISSIONING REGION"]
["AVE","IQ CARE LTD","Y59","SOUTH EAST COMMISSIONING REGION"]
["NCR","ISIGHT","Y62","NORTH WEST COMMISSIONING REGION"]
["AAJ","ISIS CHIROPRACTIC CENTRES","Y61","EAST OF ENGLAND COMMISSIONING REGION"]
["DR4","IVEL VALLEY EXTENDED ACCESS","Y61","EAST OF ENGLAND COMMISSIONING REGION"]
["NY2","IVRY STREET MINOR SURGERY UNIT","Y61","EAST OF ENGLAND COMMISSIONING REGION"]
["DPP","JAAN SERVICES LIMITED","Y60","MIDLANDS COMMISSIONING REGION"]
["DNX","JAMES BRINDLEY SCHOOL","Y60","MIDLANDS COMMISSIONING REGION"]
["NIR","JAMES STREET CLINIC","Y62","NORTH WEST COMMISSIONING REGION"]
["DR2","JAWA GROUP","Y56","LONDON COMMISSIONING REGION"]
["NAR","JAYATI TARAFDER (AQP)","Y63","NORTH EAST AND YORKSHIRE COMMISSIONING REGION"]
["AWM","JB PHYSIOTHERAPY","Y63","NORTH EAST AND YORKSHIRE COMMISSIONING REGION"]
["NVJ","JEDHEATH LTD","Y62","NORTH WEST COMMISSIONING REGION"]
["NLN","JEESAL AKMAN CARE CORPORATION LTD","Y61","EAST OF ENGLAND COMMISSIONING REGION"]
["NFY","JMA HEALTHCARE LTD","Y63","NORTH EAST AND YORKSHIRE COMMISSIONING REGION"]
["NAP","JOHN HETHERINGTON (AQP)","Y63","NORTH EAST AND YORKSHIRE COMMISSIONING REGION"]
["AXQ","JOHN LOW LTD","Y63","NORTH EAST AND YORKSHIRE COMMISSIONING REGION"]
["NL0","JOHN MUNROE HOSPITAL","Y60","MIDLANDS COMMISSIONING REGION"]
["NR9","JOHN TAYLOR HOSPICE CHARITY","Y60","MIDLANDS COMMISSIONING REGION"]
["AQD","JORVIK PODIATRY LTD","Y63","NORTH EAST AND YORKSHIRE COMMISSIONING REGION"]
["DPX","JUBILEE HEALTHCARE","Y60","MIDLANDS COMMISSIONING REGION"]
["NHJ","JUDITH HANDLEY PHYSIOTHERAPY SERVICES","Y58","SOUTH WEST COMMISSIONING REGION"]
["DWJ","JURASSIC COAST HEALTHCARE LTD","Y58","SOUTH WEST COMMISSIONING REGION"]
["ANW","K & W HEALTHCARE LTD","Y56","LONDON COMMISSIONING REGION"]
["DQR","K2 FEDERATION","Y60","MIDLANDS COMMISSIONING REGION"]
["NQ8","KALEIDOSCOPE PROJECT","WALES","WALES"]
["DC9","KEECH HOSPICE CHARITY","Y61","EAST OF ENGLAND COMMISSIONING REGION"]
["ADK","KEMP TOWN HEALTHCARE LTD","Y61","EAST OF ENGLAND COMMISSIONING REGION"]
["AYG","KERNOW HEALTH CIC","Y58","SOUTH WEST COMMISSIONING REGION"]
["ALD","KESSON PHYSIOTHERAPY LTD","Y59","SOUTH EAST COMMISSIONING REGION"]
["AYH","KEYSTONES MENTAL HEALTH SERVICES","Y58","SOUTH WEST COMMISSIONING REGION"]
["ANX","KILBURN PRIMARY CARE CO-OP LIMITED","Y56","LONDON COMMISSIONING REGION"]
["ADP","KIMS HOSPITAL","Y59","SOUTH EAST COMMISSIONING REGION"]
["AHR","KING EDWARD VII'S HOSPITAL SISTER AGNES HQ","Y56","LONDON COMMISSIONING REGION"]
["DNH","KINGFISHER CARE SERVICES","Y60","MIDLANDS COMMISSIONING REGION"]
["DKN","KINGS FERTILITY LIMITED","Y56","LONDON COMMISSIONING REGION"]
["DEQ","KINGS IFM","Y56","LONDON COMMISSIONING REGION"]
["AJR","KINGS LYNN CHIROPRACTIC CLINIC LTD","Y61","EAST OF ENGLAND COMMISSIONING REGION"]
["ACV","KINGSNORTH MEDICAL SERVICES LTD","Y59","SOUTH EAST COMMISSIONING REGION"]
["APG","KINGSTON GENERAL PRACTICE CHAMBERS LIMITED","Y56","LONDON COMMISSIONING REGION"]
["DGY","KINGSWINFORD PHYSIOTHERAPY CLINIC LTD","Y60","MIDLANDS COMMISSIONING REGION"]
["DRH","KINVARA PRIVATE HOSPITAL LTD","Y63","NORTH EAST AND YORKSHIRE COMMISSIONING REGION"]
["AXW","KIRTON LINDSEY SURGERY MCATS","Y63","NORTH EAST AND YORKSHIRE COMMISSIONING REGION"]
["NFO","KLEYN HEALTHCARE","Y62","NORTH WEST COMMISSIONING REGION"]
["DEG","KNOWLE WEST HEALTH PARK COMPANY","Y58","SOUTH WEST COMMISSIONING REGION"]
["DWG","KRINVEST CARE","Y56","LONDON COMMISSIONING REGION"]
["NMU","LAKELAND DIALYSIS LTD","Y63","NORTH EAST AND YORKSHIRE COMMISSIONING REGION"]
["AH7","LAKESIDE + LTD","Y60","MIDLANDS COMMISSIONING REGION"]
["AH700","LAKESIDE + LTD","Y60","MIDLANDS COMMISSIONING REGION"]
["NBI","LAKESIDE MEDICAL DIAGNOSTICS","Y61","EAST OF ENGLAND COMMISSIONING REGION"]
["NBW","LAMBETH COMMUNITY DIABETES SERVICE","Y56","LONDON COMMISSIONING REGION"]
["AX5","LAMBETH PRACTICES LIMITED","Y56","LONDON COMMISSIONING REGION"]
["DE4","LANCASHIRE CHILD HEALTH INFORMATION SERVICE","Y62","NORTH WEST COMMISSIONING REGION"]
["AKR","LANCASHIRE WOMEN'S CENTRES","Y62","NORTH WEST COMMISSIONING REGION"]
["NLE","LANCASTER HOUSE CONSULTING DIAGNOSTICS SURGICAL LTD","Y62","NORTH WEST COMMISSIONING REGION"]
["NBS","LANE PHYSIOTHERAPY CLINIC","Y61","EAST OF ENGLAND COMMISSIONING REGION"]
["AMJ","LEA VALE MEDICAL GROUP (HQ)","Y61","EAST OF ENGLAND COMMISSIONING REGION"]
["ANF","LEA VALLEY HEALTH LTD","Y61","EAST OF ENGLAND COMMISSIONING REGION"]
["DT0","LEEDS GENERAL PRACTICE CONFEDERATION LIMITED","Y63","NORTH EAST AND YORKSHIRE COMMISSIONING REGION"]
["AQX","LEICESTER CITY CENTRAL HEALTHCARE LTD","Y60","MIDLANDS COMMISSIONING REGION"]
["DPE","LEICESTER EVENT MEDICAL LTD","Y60","MIDLANDS COMMISSIONING REGION"]
["NI0","LEICESTER, LEICESTERSHIRE & RUTLAND PROVIDER COMPANY","Y60","MIDLANDS COMMISSIONING REGION"]
["DR6","LEIGHTON BUZZARD EXTENDED ACCESS","Y61","EAST OF ENGLAND COMMISSIONING REGION"]
["AJ2","LENTELLS LIMITED","Y58","SOUTH WEST COMMISSIONING REGION"]
["NNL","LEODIS CARE LIMITED","Y63","NORTH EAST AND YORKSHIRE COMMISSIONING REGION"]
["AJK","LEONG ENT LTD","Y61","EAST OF ENGLAND COMMISSIONING REGION"]
["AW0","LEWISHAM 4 HEALTH LTD","Y56","LONDON COMMISSIONING REGION"]
["AVX","LEWISHAM HEALTHCARE LIMITED","Y56","LONDON COMMISSIONING REGION"]
["AVY","LEWISHAM PRIMARY CARE PARTNERSHIP LIMITED","Y56","LONDON COMMISSIONING REGION"]
["NHB","LEXDEN PHYSIOTHERAPY LTD","Y61","EAST OF ENGLAND COMMISSIONING REGION"]
["DH9","LEYBURN MEDICAL PRACTICE","Y63","NORTH EAST AND YORKSHIRE COMMISSIONING REGION"]
["AA7","LEYLAND PHYSIOTHERAPY","Y62","NORTH WEST COMMISSIONING REGION"]
["NBL","LIBERTY PHYSIO & REHAB LTD","Y60","MIDLANDS COMMISSIONING REGION"]
["AAR","LIFELINE PROJECT LTD","Y62","NORTH WEST COMMISSIONING REGION"]
["NBA","LIFESTYLE PHYSIOTHERAPY AND SPORTS INJURY CLINIC","Y60","MIDLANDS COMMISSIONING REGION"]
["NES","LIGHTHOUSE HEALTHCARE LIMITED","Y60","MIDLANDS COMMISSIONING REGION"]
["NCB","LINCOLN CHIROPRACTIC CLINIC","Y60","MIDLANDS COMMISSIONING REGION"]
["NBF","LINCOLNSHIRE AND DISTRICTS MEDICAL SERVICES","Y60","MIDLANDS COMMISSIONING REGION"]
["DEE","LINCOLNSHIRE EAST HEALTHCARE LIMITED","Y60","MIDLANDS COMMISSIONING REGION"]
["AHA","LINCS HEALTH LIMITED","Y60","MIDLANDS COMMISSIONING REGION"]
["DM4","LINCS MEDICAL SERVICES LTD","Y63","NORTH EAST AND YORKSHIRE COMMISSIONING REGION"]
["DEV","LINIA LTD","Y56","LONDON COMMISSIONING REGION"]
["NXW","LIVABILITY","Y56","LONDON COMMISSIONING REGION"]
["DRW","LIVERPOOL EXTENDED PRIMARY CARE SERVICE","Y62","NORTH WEST COMMISSIONING REGION"]
["DD8","LIVERPOOL GP PROVIDER ORGANISATION","Y62","NORTH WEST COMMISSIONING REGION"]
["NR5","LIVEWELL SOUTHWEST","Y58","SOUTH WEST COMMISSIONING REGION"]
["NR500","LIVEWELL SOUTHWEST","Y58","SOUTH WEST COMMISSIONING REGION"]
["DAH","LIVING WELL INTERNATIONAL CIC","Y56","LONDON COMMISSIONING REGION"]
["DNN","LIVINGSTONECARE SERVICE LIMITED","Y60","MIDLANDS COMMISSIONING REGION"]
["AW6","LLOYDS PHARMACY CLINICAL HOMECARE","Y56","LONDON COMMISSIONING REGION"]
["AEJ","LLR NHS PARTNER ALLIANCE","Y60","MIDLANDS COMMISSIONING REGION"]
["DAY","LLR PROVIDER COMPANY LTD","Y60","MIDLANDS COMMISSIONING REGION"]
["ARN","LOCAL CARE DIRECT","Y63","NORTH EAST AND YORKSHIRE COMMISSIONING REGION"]
["AK6","LOCAL INTEGRATED NETWORK OF CARE SERVICES HQ","Y63","NORTH EAST AND YORKSHIRE COMMISSIONING REGION"]
["DMF","LOCAL PRIMARY CARE","Y62","NORTH WEST COMMISSIONING REGION"]
["NL8","LOCALA COMMUNITY PARTNERSHIPS CIC","Y63","NORTH EAST AND YORKSHIRE COMMISSIONING REGION"]
["NVA","LODESTONE PATIENT CARE","Y56","LONDON COMMISSIONING REGION"]
["AVF","LOEWS HEALTHCARE LTD","Y63","NORTH EAST AND YORKSHIRE COMMISSIONING REGION"]
["AAK","LONDON CANCER - UCLPARTNERS","Y56","LONDON COMMISSIONING REGION"]
["NKB","LONDON CENTRAL AND WEST UNSCHEDULED CARE COLLABORATIVE","Y56","LONDON COMMISSIONING REGION"]
["AEC","LONDON EYE HOSPITAL LTD","Y56","LONDON COMMISSIONING REGION"]
["APD","LONDON MEDICAL ASSOCIATES LIMITED","Y56","LONDON COMMISSIONING REGION"]
["DD0","LONDON VISION CLINIC","Y56","LONDON COMMISSIONING REGION"]
["NVT","LONDON WOUND HEALING CENTRES LTD","Y56","LONDON COMMISSIONING REGION"]
["NCG","LONGVIEW PRIMARY SURGICAL SERVICES LTD","Y62","NORTH WEST COMMISSIONING REGION"]
["DP4","LOOKHEALTH LTD","Y56","LONDON COMMISSIONING REGION"]
["NGJ","LOUGHBOROUGH PHYSIOTHERAPY AND SPORTS INJURIES CLINIC LTD","Y60","MIDLANDS COMMISSIONING REGION"]
["NEX","LOWS PHARAMCY","Y63","NORTH EAST AND YORKSHIRE COMMISSIONING REGION"]
["DVQ","LSA SECURE LTD","Y56","LONDON COMMISSIONING REGION"]
["AHX","LUDLOW STREET HEALTHCARE (HQ)","WALES","WALES"]
["DR9","LUTON EXTENDED ACCESS","Y61","EAST OF ENGLAND COMMISSIONING REGION"]
["DLF","LYCAHEALTH LIMITED","Y56","LONDON COMMISSIONING REGION"]
["NN9","LYME NHS CLINICAL SERVICES","Y58","SOUTH WEST COMMISSIONING REGION"]
["AP4","LYMPHOEDEMA SPECIALIST SERVICES LTD","Y59","SOUTH EAST COMMISSIONING REGION"]
["NET","M & M (CHEMISTS) LTD","Y63","NORTH EAST AND YORKSHIRE COMMISSIONING REGION"]
["DAW","M JOSEPH LTD","Y60","MIDLANDS COMMISSIONING REGION"]
["NEW","M.D & A.G BURDON LTD","Y63","NORTH EAST AND YORKSHIRE COMMISSIONING REGION"]
["AG6","MACMILLAN CANCER SUPPORT HQ","Y56","LONDON COMMISSIONING REGION"]
["NMQ","MAKING SPACE","Y62","NORTH WEST COMMISSIONING REGION"]
["ANH","MALLING HEALTH UK LIMITED","Y59","SOUTH EAST COMMISSIONING REGION"]
["DTC","MALLUCCI LONDON LTD","Y56","LONDON COMMISSIONING REGION"]
["DKC","MANAGED HEALTHCARE SERVICES LIMITED","Y63","NORTH EAST AND YORKSHIRE COMMISSIONING REGION"]
["AW7","MANCHESTER EYE AND COSMETIC CLINIC LIMITED","Y62","NORTH WEST COMMISSIONING REGION"]
["DFM","MANCHESTER FERTILITY SERVICES LIMITED","Y62","NORTH WEST COMMISSIONING REGION"]
["DHR","MANCHESTER MEDICAL SERVICES","Y62","NORTH WEST COMMISSIONING REGION"]
["DKF","MANCHESTER PRIVATE CLINIC LTD","Y62","NORTH WEST COMMISSIONING REGION"]
["NN5","MANCHESTER SURGICAL SERVICES LTD","Y62","NORTH WEST COMMISSIONING REGION"]
["NN500","MANCHESTER SURGICAL SERVICES LTD","Y62","NORTH WEST COMMISSIONING REGION"]
["DGC","MANOR PRIMARY CARE GPSI SERVICES","Y62","NORTH WEST COMMISSIONING REGION"]
["NFK","MAPLYN CARE SERVICES (MCS)","Y60","MIDLANDS COMMISSIONING REGION"]
["NTG","MARIE STOPES INTERNATIONAL","Y56","LONDON COMMISSIONING REGION"]
["DG4","MARS HEALTH CARE SERVICES UK LTD","Y56","LONDON COMMISSIONING REGION"]
["NQD","MARSHGATE MEDICAL SERVICES LTD","Y63","NORTH EAST AND YORKSHIRE COMMISSIONING REGION"]
["NCE","MASTERCALL HEALTHCARE","Y62","NORTH WEST COMMISSIONING REGION"]
["NAH","MATRIX HEALTH SERVICES UK LIMITED","Y63","NORTH EAST AND YORKSHIRE COMMISSIONING REGION"]
["DLG","MAYFLOWER HEALTHCARE ALLIANCE","Y61","EAST OF ENGLAND COMMISSIONING REGION"]
["AMQ","MEARS GROUP PLC","Y58","SOUTH WEST COMMISSIONING REGION"]
["DEX","MED IMAGING HEALTHCARE LIMITED","Y62","NORTH WEST COMMISSIONING REGION"]
["DJ4","MEDCARE SOLUTIONS LIMITED","Y56","LONDON COMMISSIONING REGION"]
["DDX","MEDDIGITAL","Y56","LONDON COMMISSIONING REGION"]
["AY1","MEDEFER","Y56","LONDON COMMISSIONING REGION"]
["DP6","MEDEXPRESS","Y61","EAST OF ENGLAND COMMISSIONING REGION"]
["DMC","MEDI 4 AMBULANCE SERVICES LTD","Y59","SOUTH EAST COMMISSIONING REGION"]
["AG9","MEDICAL AND ORTHOPAEDIC SERVICES HQ","Y60","MIDLANDS COMMISSIONING REGION"]
["AJJ","MEDICAL ILLUSTRATION UK LTD","Y56","LONDON COMMISSIONING REGION"]
["DC8","MEDICAL IMAGING PARTNERSHIP LTD","Y59","SOUTH EAST COMMISSIONING REGION"]
["AL0","MEDICAL SKILLS CARE LTD","Y61","EAST OF ENGLAND COMMISSIONING REGION"]
["AX8","MEDICO PARTNERS LIMITED","Y60","MIDLANDS COMMISSIONING REGION"]
["NBG","MEDISCAN DIAGNOSTICS SERVICES LIMITED","Y62","NORTH WEST COMMISSIONING REGION"]
["AMX","MEDISICO CLINICS LTD","Y56","LONDON COMMISSIONING REGION"]
["NQ7","MEDWAY COMMUNITY HEALTHCARE","Y59","SOUTH EAST COMMISSIONING REGION"]
["NQ700","MEDWAY COMMUNITY HEALTHCARE","Y59","SOUTH EAST COMMISSIONING REGION"]
["AVL","MEDWAY PRACTICES ALLIANCE LTD (MPA)","Y59","SOUTH EAST COMMISSIONING REGION"]
["NKF","MEE HEALTHCARE","Y56","LONDON COMMISSIONING REGION"]
["APX","MENTAL HEALTH CONCERN","Y63","NORTH EAST AND YORKSHIRE COMMISSIONING REGION"]
["NO2","MENTAL HEALTH MATTERS","Y63","NORTH EAST AND YORKSHIRE COMMISSIONING REGION"]
["DTG","MERIDIAN HEALTH GROUP","Y63","NORTH EAST AND YORKSHIRE COMMISSIONING REGION"]
["NGI","MERSEA ROAD CLINIC","Y61","EAST OF ENGLAND COMMISSIONING REGION"]
["DRA","MERTON HEALTH GP FEDERATION","Y56","LONDON COMMISSIONING REGION"]
["AJE","MHC (HEALTH) LTD","Y62","NORTH WEST COMMISSIONING REGION"]
["DD6","MID AND NORTH ESSEX MIND","Y61","EAST OF ENGLAND COMMISSIONING REGION"]
["ARA","MID HAMPSHIRE HEALTHCARE LIMITED","Y59","SOUTH EAST COMMISSIONING REGION"]
["AQ0","MIDDLEWOOD LTD","Y62","NORTH WEST COMMISSIONING REGION"]
["AEF","MIDLANDS EYE CARE LIMITED","Y60","MIDLANDS COMMISSIONING REGION"]
["NRX","MIDLANDS PSYCHOLOGY CIC","Y60","MIDLANDS COMMISSIONING REGION"]
["NYE","MILDMAY UK","Y56","LONDON COMMISSIONING REGION"]
["DE5","MILLENNIUM HEALTH LTD","Y60","MIDLANDS COMMISSIONING REGION"]
["DMW","MILLTOWN ALLIANCE LIMITED","Y62","NORTH WEST COMMISSIONING REGION"]
["NPH","MILTON KEYNES URGENT CARE SERVICES CIC HQ","Y61","EAST OF ENGLAND COMMISSIONING REGION"]
["NFG","MIND CENTRE","Y63","NORTH EAST AND YORKSHIRE COMMISSIONING REGION"]
["AME","MIND IN BEXLEY","Y56","LONDON COMMISSIONING REGION"]
["DAX","MIND IN MID HERTS","Y61","EAST OF ENGLAND COMMISSIONING REGION"]
["AJD","MINDMASTERS","Y62","NORTH WEST COMMISSIONING REGION"]
["NX2","MINOR OPS LTD","Y63","NORTH EAST AND YORKSHIRE COMMISSIONING REGION"]
["NCA","MK GP PHYSIOTHERAPY (B.J. WETHERELL LTD)","Y60","MIDLANDS COMMISSIONING REGION"]
["DHL","MKGP LTD","Y56","LONDON COMMISSIONING REGION"]
["DHK","MKGP PLUS LTD","Y56","LONDON COMMISSIONING REGION"]
["DHQ","MODALITY PARTNERSHIP","Y60","MIDLANDS COMMISSIONING REGION"]
["NXQ","MODUS CARE","Y58","SOUTH WEST COMMISSIONING REGION"]
["NV5","MOLECULAR IMAGING SOLUTIONS LTD (MIS)","Y59","SOUTH EAST COMMISSIONING REGION"]
["NRA","MOLNLYCKE HEALTHCARE LTD","Y61","EAST OF ENGLAND COMMISSIONING REGION"]
["ARX","MONMEDICAL LTD","Y56","LONDON COMMISSIONING REGION"]
["DV2","MORECAMBE BAY COMMUNITY HEALTH SERVICES","Y62","NORTH WEST COMMISSIONING REGION"]
["DPJ","MOREWAYS HEALTHCARE","Y56","LONDON COMMISSIONING REGION"]
["AV9","MOUNTAIN HEALTHCARE LIMITED","Y61","EAST OF ENGLAND COMMISSIONING REGION"]
["DGM","MOUNTS BAY MEDICAL LTD","Y58","SOUTH WEST COMMISSIONING REGION"]
["NAV","MR SIMON TYRELL (AQP)","Y63","NORTH EAST AND YORKSHIRE COMMISSIONING REGION"]
["NAT","MR STEVE MAGUINESS (AQP)","Y63","NORTH EAST AND YORKSHIRE COMMISSIONING REGION"]
["DFG","MUBEEN AHMED LOCUMS LTD","Y62","NORTH WEST COMMISSIONING REGION"]
["NKY","MULBERRY HEALTH LTD","Y60","MIDLANDS COMMISSIONING REGION"]
["NWL","MY GENERAL PRACTICE LIMITED","Y59","SOUTH EAST COMMISSIONING REGION"]
["AWT","MYA COSMETIC SURGERY LIMITED","Y56","LONDON COMMISSIONING REGION"]
["NFA","NABIDA CARE MANAGEMENT","Y60","MIDLANDS COMMISSIONING REGION"]
["AYP","NACRO","Y56","LONDON COMMISSIONING REGION"]
["AQV","NAMRON CARE PROVIDER LTD","Y60","MIDLANDS COMMISSIONING REGION"]
["DFA","NATIONAL CENTRE FOR EATING DISORDERS","Y59","SOUTH EAST COMMISSIONING REGION"]
["NMY","NATIONAL CENTRE FOR YOUNG PEOPLE WITH EPILEPSY","Y59","SOUTH EAST COMMISSIONING REGION"]
["NTA","NATIONS HEALTHCARE LTD","Y56","LONDON COMMISSIONING REGION"]
["DE6","NATURAL LOOK CLINIC","Y63","NORTH EAST AND YORKSHIRE COMMISSIONING REGION"]
["NNW","NAVAS","Y61","EAST OF ENGLAND COMMISSIONING REGION"]
["NIN","NAVIGATION SUPPORT & CARE SERVICES LTD","Y60","MIDLANDS COMMISSIONING REGION"]
["NQL","NAVIGO HEALTH AND SOCIAL CARE CIC","Y63","NORTH EAST AND YORKSHIRE COMMISSIONING REGION"]
["NW8","NELSON HEALTH LTD","Y56","LONDON COMMISSIONING REGION"]
["AGQ","NEMS COMMUNITY BENEFIT SERVICES LTD","Y60","MIDLANDS COMMISSIONING REGION"]
["NLV","NEMS HEALTHCARE","Y60","MIDLANDS COMMISSIONING REGION"]
["NQE","NENE COMMISSIONING COMMUNITY INTEREST COMPANY","Y60","MIDLANDS COMMISSIONING REGION"]
["DJ9","NERAMS LTD","Y63","NORTH EAST AND YORKSHIRE COMMISSIONING REGION"]
["ATQ","NESTOR PRIMECARE SERVICES LTD","Y60","MIDLANDS COMMISSIONING REGION"]
["DRR","NETCALL TELECOM LTD","Y61","EAST OF ENGLAND COMMISSIONING REGION"]
["NT7","NETCARE HEALTHCARE UK","Y56","LONDON COMMISSIONING REGION"]
["DJD","NETWORK GROUP HOLDINGS LTD","Y60","MIDLANDS COMMISSIONING REGION"]
["NFS","NEW FOREST CLINICS LTD","Y59","SOUTH EAST COMMISSIONING REGION"]
["ARV","NEW FOREST HEALTHCARE LTD","Y59","SOUTH EAST COMMISSIONING REGION"]
["ANP","NEW FOREST PHYSIOTHERAPY CLINIC LTD","Y59","SOUTH EAST COMMISSIONING REGION"]
["AC6","NEW HAYESBANK SURGERY CLINICS","Y59","SOUTH EAST COMMISSIONING REGION"]
["ACG","NEW MEDICAL SYSTEMS LIMITED","Y56","LONDON COMMISSIONING REGION"]
["DJW","NEW PROVIDERS FOR HEALTH","Y60","MIDLANDS COMMISSIONING REGION"]
["AXN","NEW WAVES INTEGRATED CARE LIMITED","Y58","SOUTH WEST COMMISSIONING REGION"]
["ATM","NEWBRIDGE CARE SYSTEMS LTD","Y60","MIDLANDS COMMISSIONING REGION"]
["DNW","NEWBURY GP ALLIANCE","Y59","SOUTH EAST COMMISSIONING REGION"]
["DNA","NEWCASTLE PREMIER HEALTH LTD","Y63","NORTH EAST AND YORKSHIRE COMMISSIONING REGION"]
["AM8","NEWCASTLE TALKING THERAPIES (HQ)","Y63","NORTH EAST AND YORKSHIRE COMMISSIONING REGION"]
["DDJ","NEWCO. ENFIELD","Y56","LONDON COMMISSIONING REGION"]
["DL2","NEWHAM HEALTH COLLABORATIVE LTD","Y56","LONDON COMMISSIONING REGION"]
["DL3","NEWHAM HEALTH COLLABORATIVE LTD (NHC)","Y56","LONDON COMMISSIONING REGION"]
["NIX","NEWPORT CARDIAC CENTRE","WALES","WALES"]
["NFT","NEXT STEPS LTD HQ","Y56","LONDON COMMISSIONING REGION"]
["NQY","NHS INNOVATIONS SOUTH EAST LIMITED","Y59","SOUTH EAST COMMISSIONING REGION"]
["AT0","NHS PRACTITIONER HEALTH PROGRAMME","Y56","LONDON COMMISSIONING REGION"]
["NCS","NHS PROPERTY SERVICES LIMITED","Y56","LONDON COMMISSIONING REGION"]
["DTP","NIMBUSCARE LIMITED","Y63","NORTH EAST AND YORKSHIRE COMMISSIONING REGION"]
["AD6","NL GROUP LIMITED","Y63","NORTH EAST AND YORKSHIRE COMMISSIONING REGION"]
["NVH","NO 27 (BURNSIDE CARE)","Y63","NORTH EAST AND YORKSHIRE COMMISSIONING REGION"]
["NJL","NON INVASIVE CARDIOLOGY SERVICES LTD","Y61","EAST OF ENGLAND COMMISSIONING REGION"]
["NPC","NORFOLK SURGICAL DIAGNOSTIC CENTRE","Y61","EAST OF ENGLAND COMMISSIONING REGION"]
["NYK","NORK CLINIC","Y59","SOUTH EAST COMMISSIONING REGION"]
["DW0","NORTH BOURNEMOUTH PRIMARY HEALTHCARE LTD","Y58","SOUTH WEST COMMISSIONING REGION"]
["NHR","NORTH CORNWALL PHYSIOTHERAPY","Y58","SOUTH WEST COMMISSIONING REGION"]
["DW6","NORTH CUMBRIA PRIMARY CARE","Y63","NORTH EAST AND YORKSHIRE COMMISSIONING REGION"]
["DRG","NORTH EAST ALLIANCE LTD","Y56","LONDON COMMISSIONING REGION"]
["AC8","NORTH EAST COMMUNITY HEALTH NETWORK","Y63","NORTH EAST AND YORKSHIRE COMMISSIONING REGION"]
["NQ3","NORTH EAST ORTHOPAEDIC AND SPORTS INJURY SURGERY LTD","Y63","NORTH EAST AND YORKSHIRE COMMISSIONING REGION"]
["NJC","NORTH EAST PODIATRY","Y63","NORTH EAST AND YORKSHIRE COMMISSIONING REGION"]
["DEA","NORTH EASTERN DERBYSHIRE HEALTHCARE LIMITED","Y60","MIDLANDS COMMISSIONING REGION"]
["NHX","NORTH HAMPSHIRE URGENT CARE","Y59","SOUTH EAST COMMISSIONING REGION"]
["DA5","NORTH KENT MIND","Y59","SOUTH EAST COMMISSIONING REGION"]
["AVV","NORTH LEWISHAM HEALTH LIMITED","Y56","LONDON COMMISSIONING REGION"]
["NPK","NORTH NORFOLK HEALTHCARE CIC LTD","Y61","EAST OF ENGLAND COMMISSIONING REGION"]
["DPA","NORTH SOLIHULL COLLABORATIVE BOSWORTH HUB","Y60","MIDLANDS COMMISSIONING REGION"]
["NLT","NORTH SOMERSET COMMUNITY PARTNERSHIP COMMUNITY INTEREST COMPANY","Y58","SOUTH WEST COMMISSIONING REGION"]
["NLT00","NORTH SOMERSET COMMUNITY PARTNERSHIP COMMUNITY INTEREST COMPANY","Y58","SOUTH WEST COMMISSIONING REGION"]
["AJT","NORTH WEST LEICESTERSHIRE GP LIMITED","Y60","MIDLANDS COMMISSIONING REGION"]
["DP9","NORTH WEST SURREY INTEGRATED CARE SERVICES (NICS) LIMITED","Y59","SOUTH EAST COMMISSIONING REGION"]
["ACY","NORTHAMPTONSHIRE FORENSIC MEDICAL SERVICES","Y60","MIDLANDS COMMISSIONING REGION"]
["ARJ","NORTHAMPTONSHIRE PSYCHOLOGICAL CARE SERVICE LTD","Y60","MIDLANDS COMMISSIONING REGION"]
["NJW","NORTHANTS ACCOMMODATION SOCIAL CARE","Y60","MIDLANDS COMMISSIONING REGION"]
["DNP","NORTHANTS COMMUNITY CARE LIMITED","Y60","MIDLANDS COMMISSIONING REGION"]
["AQR","NORTHERN HEALTH GPPO LTD","Y62","NORTH WEST COMMISSIONING REGION"]
["AYR","NORTHFIELD ALLIANCE LIMITED","Y60","MIDLANDS COMMISSIONING REGION"]
["NWY","NORTHGATE PUBLIC SERVICES","Y59","SOUTH EAST COMMISSIONING REGION"]
["ADX","NORTHPOINT WELLBEING LIMITED","Y63","NORTH EAST AND YORKSHIRE COMMISSIONING REGION"]
["DL1","NORTHUMBERLAND A1 CLUSTER","Y63","NORTH EAST AND YORKSHIRE COMMISSIONING REGION"]
["ADF","NORTHWEST DIAGNOSTIC & TREATMENT SERVICES","Y62","NORTH WEST COMMISSIONING REGION"]
["DNR","NORTON NURSES LTD","Y60","MIDLANDS COMMISSIONING REGION"]
["DFQ","NORWICH & NORFOLK SURGICAL LTD (N2S)","Y61","EAST OF ENGLAND COMMISSIONING REGION"]
["NMH","NORWICH PRACTICES LIMITED","Y61","EAST OF ENGLAND COMMISSIONING REGION"]
["DTD","NORWICH/NPL IMPROVED ACCESS HUB","Y61","EAST OF ENGLAND COMMISSIONING REGION"]
["DTH","NOTTINGHAM CITY GP ALLIANCE","Y60","MIDLANDS COMMISSIONING REGION"]
["NR3","NOTTINGHAM CITYCARE PARTNERSHIP","Y60","MIDLANDS COMMISSIONING REGION"]
["NR300","NOTTINGHAM CITYCARE PARTNERSHIP","Y60","MIDLANDS COMMISSIONING REGION"]
["DTY","NOTTINGHAMSHIRE HOSPICE","Y60","MIDLANDS COMMISSIONING REGION"]
["NQH","NOVUS HEALTH LTD","Y63","NORTH EAST AND YORKSHIRE COMMISSIONING REGION"]
["AV6","NSL CARE SERVICES HQ","Y56","LONDON COMMISSIONING REGION"]
["NT2","NUFFIELD HEALTH","Y59","SOUTH EAST COMMISSIONING REGION"]
["NL6","NUPAS LTD","Y60","MIDLANDS COMMISSIONING REGION"]
["AWQ","NWSURREY LOCALITY HUBS","Y59","SOUTH EAST COMMISSIONING REGION"]
["DCT","OAKTREE MIDLANDS LIMITED","Y60","MIDLANDS COMMISSIONING REGION"]
["DNV","OASIS EAST ORTHOPAEDIC CLINIC","Y58","SOUTH WEST COMMISSIONING REGION"]
["DDM","OASIS TALKING THERAPIES CIC","Y58","SOUTH WEST COMMISSIONING REGION"]
["DF4","OFF CENTRE LIMITED","Y56","LONDON COMMISSIONING REGION"]
["DV7","OFF THE RECORD YOUTH COUNSELLING","Y56","LONDON COMMISSIONING REGION"]
["AQ7","ONE CARE (BNSSG) LIMITED","Y58","SOUTH WEST COMMISSIONING REGION"]
["DGW","ONE HEALTH","Y56","LONDON COMMISSIONING REGION"]
["DAJ","ONE HEALTH LEWISHAM LTD","Y56","LONDON COMMISSIONING REGION"]
["AVQ","ONE HEALTHCARE","Y56","LONDON COMMISSIONING REGION"]
["AVQ00","ONE HEALTHCARE","Y56","LONDON COMMISSIONING REGION"]
["AXT","ONE MEDICAL GROUP LIMITED","Y63","NORTH EAST AND YORKSHIRE COMMISSIONING REGION"]
["AWR","ONE STOP DOCTORS LIMITED","Y61","EAST OF ENGLAND COMMISSIONING REGION"]
["NDE","ONE TO ONE (NORTH WEST) LIMITED","Y62","NORTH WEST COMMISSIONING REGION"]
["NYL","ONE TO ONE PHYSIOTHERAPY & REHABILITATION CENTRE","Y60","MIDLANDS COMMISSIONING REGION"]
["DJP","ONE WIGHT HEALTH","Y59","SOUTH EAST COMMISSIONING REGION"]
["DPR","ONECARE UK LTD","Y56","LONDON COMMISSIONING REGION"]
["DKM","ONE-MSK","Y56","LONDON COMMISSIONING REGION"]
["ANC","OPEN DOOR SURGERY (HQ)","Y56","LONDON COMMISSIONING REGION"]
["NNH","OPTEGRA UK","Y59","SOUTH EAST COMMISSIONING REGION"]
["DQH","OPTIMUS HEALTHCARE LINCOLN LTD","Y60","MIDLANDS COMMISSIONING REGION"]
["DWH","OPTIONS FOR CARE","Y60","MIDLANDS COMMISSIONING REGION"]
["AJP","OPTYCO LTD","Y60","MIDLANDS COMMISSIONING REGION"]
["AV7","ORBIT HEALTHCARE LTD","Y62","NORTH WEST COMMISSIONING REGION"]
["NV0","ORCHARD 2000 GROUP","Y63","NORTH EAST AND YORKSHIRE COMMISSIONING REGION"]
["AKT","ORCHARD PORTMAN HOUSE LTD","Y58","SOUTH WEST COMMISSIONING REGION"]
["DN8","ORTHO HEALTH + LTD","Y63","NORTH EAST AND YORKSHIRE COMMISSIONING REGION"]
["NQM","ORTHOPAEDICS & SPINE SPECIALIST HOSPITAL","Y61","EAST OF ENGLAND COMMISSIONING REGION"]
["DF1","ORWELL HOUSING ASSOCIATION LIMITED","Y61","EAST OF ENGLAND COMMISSIONING REGION"]
["STJ","OSTEOPATHY PLUS LTD","Y61","EAST OF ENGLAND COMMISSIONING REGION"]
["NTY","OTHER PRIVATE HEALTHCARE PROVIDERS","Y63","NORTH EAST AND YORKSHIRE COMMISSIONING REGION"]
["AGY","OTTO BOCK HEALTHCARE PLC","Y59","SOUTH EAST COMMISSIONING REGION"]
["DQQ","OUR HEALTH PARTNERSHIP","Y60","MIDLANDS COMMISSIONING REGION"]
["AM5","OUTLOOK SW LTD","Y58","SOUTH WEST COMMISSIONING REGION"]
["DDH","OXFED HEALTH & CARE","Y59","SOUTH EAST COMMISSIONING REGION"]
["AEA","OXFORD & BUCKS UROLOGY PARTNERSHIP LTD","Y59","SOUTH EAST COMMISSIONING REGION"]
["DDT","OXFORD PRIVATE MEDICAL PRACTICE LTD","Y59","SOUTH EAST COMMISSIONING REGION"]
["NGD","OXTED HEALTH CENTRE","Y59","SOUTH EAST COMMISSIONING REGION"]
["DCG","PALL MALL MEDICAL LTD","Y62","NORTH WEST COMMISSIONING REGION"]
["AGP","PALM TREE HOME CARE LIMITED (HQ)","Y58","SOUTH WEST COMMISSIONING REGION"]
["AVA","PALMARIS HEALTHCARE LIMITED","Y56","LONDON COMMISSIONING REGION"]
["DQ7","PANACEA FEDERATION","Y63","NORTH EAST AND YORKSHIRE COMMISSIONING REGION"]
["DV1","PARK HEALTH CLINICS","Y59","SOUTH EAST COMMISSIONING REGION"]
["NCT","PARKSIDE MEDICAL CENTRE","Y61","EAST OF ENGLAND COMMISSIONING REGION"]
["NCI","PARTNERS4HEALTH","Y62","NORTH WEST COMMISSIONING REGION"]
["AWP","PARTNERSHEALTH LLP","Y60","MIDLANDS COMMISSIONING REGION"]
["NMV","PARTNERSHIPS IN CARE LTD","Y61","EAST OF ENGLAND COMMISSIONING REGION"]
["NM4","PASTORAL CYMRU","WALES","WALES"]
["NAL","PATIENTFIRST SOCIAL ENTERPRISE","Y56","LONDON COMMISSIONING REGION"]
["NMX","PAYDENS (NURSING HOMES) LTD","Y59","SOUTH EAST COMMISSIONING REGION"]
["NKJ","PCRM LIMITED","Y58","SOUTH WEST COMMISSIONING REGION"]
["NV6","PDS MEDICAL LTD","Y62","NORTH WEST COMMISSIONING REGION"]
["NAI","PEACOCKS MEDICAL GROUP LTD","Y63","NORTH EAST AND YORKSHIRE COMMISSIONING REGION"]
["DNT","PEAK WELLBEING LTD","Y60","MIDLANDS COMMISSIONING REGION"]
["DRV","PENHALIGON'S FRIENDS","Y58","SOUTH WEST COMMISSIONING REGION"]
["NP8","PENINSULA GENERAL SURGERY LTD","Y58","SOUTH WEST COMMISSIONING REGION"]
["NMN","PENINSULA HEALTH LLP","Y62","NORTH WEST COMMISSIONING REGION"]
["NVD","PENINSULA PLASTIC SURGERY LTD","Y58","SOUTH WEST COMMISSIONING REGION"]
["ATH","PENINSULA TRAUMA NETWORK","Y58","SOUTH WEST COMMISSIONING REGION"]
["NEF","PENINSULA ULTRASOUND LIMITED","Y58","SOUTH WEST COMMISSIONING REGION"]
["NP7","PENINSULA UROLOGY LTD","Y58","SOUTH WEST COMMISSIONING REGION"]
["AQH","PENNINE GP ALLIANCE LTD","Y63","NORTH EAST AND YORKSHIRE COMMISSIONING REGION"]
["NLF","PENNINE MUSCULOSKELETAL PARTNERSHIP (ICATS)","Y62","NORTH WEST COMMISSIONING REGION"]
["NLF00","PENNINE MUSCULOSKELETAL PARTNERSHIP (ICATS)","Y62","NORTH WEST COMMISSIONING REGION"]
["DNC","PENNINE VALLEY COMMUNITY HEALTH LTD","Y62","NORTH WEST COMMISSIONING REGION"]
["NJF","PENNY BROHN CANCER CARE","Y58","SOUTH WEST COMMISSIONING REGION"]
["AAM","PERSONALISED 4 AUTISM","Y60","MIDLANDS COMMISSIONING REGION"]
["DJE","PERTEMPS MEDICAL","Y60","MIDLANDS COMMISSIONING REGION"]
["NJM","PHILIP MCGUCKEN LTD","Y62","NORTH WEST COMMISSIONING REGION"]
["AQN","PHL OUT OF HOURS LTD","Y59","SOUTH EAST COMMISSIONING REGION"]
["NEQ","PHOENIX HEALTH SOLUTIONS LIMITED HQ","Y63","NORTH EAST AND YORKSHIRE COMMISSIONING REGION"]
["NEQ00","PHOENIX HEALTH SOLUTIONS LIMITED HQ","Y63","NORTH EAST AND YORKSHIRE COMMISSIONING REGION"]
["DM8","PHOENIX HOSPITAL GROUP","Y56","LONDON COMMISSIONING REGION"]
["DTT","PHOENIX PUBLIC HEALTH LTD","Y62","NORTH WEST COMMISSIONING REGION"]
["AG8","PHYSIO & HEALTH MATTERS LTD","Y60","MIDLANDS COMMISSIONING REGION"]
["AY4","PHYSIO R US LIMITED","Y59","SOUTH EAST COMMISSIONING REGION"]
["AG2","PHYSIO.CO.UK","Y62","NORTH WEST COMMISSIONING REGION"]
["DK9","PHYSIOFIT LTD","Y62","NORTH WEST COMMISSIONING REGION"]
["AKY","PHYSIOLOGIC PAIN RELIEF SOLUTIONS LTD","Y59","SOUTH EAST COMMISSIONING REGION"]
["DMG","PHYSIO-LOGICAL","Y59","SOUTH EAST COMMISSIONING REGION"]
["NXV","PHYSIOLOGICAL MEASUREMENTS LTD","Y60","MIDLANDS COMMISSIONING REGION"]
["NJQ","PHYSIOTHERAPY MATTERS LIMITED","Y63","NORTH EAST AND YORKSHIRE COMMISSIONING REGION"]
["AWF","PHYSIOTHERAPY REWARD","Y59","SOUTH EAST COMMISSIONING REGION"]
["NIL","PHYSIOTHERAPY2FIT LTD","Y59","SOUTH EAST COMMISSIONING REGION"]
["ANY","PHYSIO-WORKS (UK) LTD","Y63","NORTH EAST AND YORKSHIRE COMMISSIONING REGION"]
["AM4","PICKARD JOAN (COUNSELLOR HQ)","Y63","NORTH EAST AND YORKSHIRE COMMISSIONING REGION"]
["NNR","PIMS PATHWAY LTD","Y59","SOUTH EAST COMMISSIONING REGION"]
["DLN","PINCHES MEDICAL LIMITED","Y62","NORTH WEST COMMISSIONING REGION"]
["NEY","PIONEER HEALTHCARE LIMITED","Y63","NORTH EAST AND YORKSHIRE COMMISSIONING REGION"]
["NEY00","PIONEER HEALTHCARE LIMITED","Y63","NORTH EAST AND YORKSHIRE COMMISSIONING REGION"]
["DAR","PLATFORM 7 LIMITED","Y62","NORTH WEST COMMISSIONING REGION"]
["DDD","PLYMOUTH CHIROPRACTIC CLINIC","Y58","SOUTH WEST COMMISSIONING REGION"]
["AMA","PML COUNSELLING SERVICE (HQ)","Y59","SOUTH EAST COMMISSIONING REGION"]
["DT8","PML/DOCMED FEDERATION HUB","Y59","SOUTH EAST COMMISSIONING REGION"]
["DGQ","POLARIS MEDICAL SERVICES LIMITED","Y62","NORTH WEST COMMISSIONING REGION"]
["AR7","PORTSMOUTH PRIMARY CARE ALLIANCE LTD","Y59","SOUTH EAST COMMISSIONING REGION"]
["AWH","PRACTICE BASED CLINICAL SERVICES LIMITED","Y56","LONDON COMMISSIONING REGION"]
["NTK","PREM HOUSE CLINIC LTD","Y62","NORTH WEST COMMISSIONING REGION"]
["DHY","PREMIER CARE (MIDLANDS) LTD.","Y60","MIDLANDS COMMISSIONING REGION"]
["NJR","PREMIER CHILDREN AND YOUNG PEOPLE'S CARE AND PROTECTION SERVICES LTD","Y61","EAST OF ENGLAND COMMISSIONING REGION"]
["DW7","PREMIER LASER & SKIN CLINIC","Y56","LONDON COMMISSIONING REGION"]
["NCP","PREMIER PHYSICAL HEALTHCARE LTD","Y56","LONDON COMMISSIONING REGION"]
["AXJ","PRE-SCHOOL LEARNING ALLIANCE","Y56","LONDON COMMISSIONING REGION"]
["NJD","PRESTON PRIMARY CARE CENTRE LTD","Y63","NORTH EAST AND YORKSHIRE COMMISSIONING REGION"]
["NY0","PRIDERM LLP","Y62","NORTH WEST COMMISSIONING REGION"]
["ATV","PRIMARY CARE CHESHIRE CIC","Y62","NORTH WEST COMMISSIONING REGION"]
["DME","PRIMARY CARE DONCASTER LIMITED","Y63","NORTH EAST AND YORKSHIRE COMMISSIONING REGION"]
["DFW","PRIMARY CARE LINCOLSNHIRE MEDICAL SERVICES LIMITED","Y60","MIDLANDS COMMISSIONING REGION"]
["NIM","PRIMARY CARE PARTNERSHIP SERVICES LIMITED","Y56","LONDON COMMISSIONING REGION"]
["ARL","PRIMARY CARE SHEFFIELD LTD","Y63","NORTH EAST AND YORKSHIRE COMMISSIONING REGION"]
["AJL","PRIMARY CARE WARWICKSHIRE LTD","Y60","MIDLANDS COMMISSIONING REGION"]
["AF6","PRIMARY EYECARE (AIREDALE, BRADFORD & LEEDS) LIMITED","Y56","LONDON COMMISSIONING REGION"]
["AGV","PRIMARY EYECARE (AVON) LIMITED HQ","Y56","LONDON COMMISSIONING REGION"]
["AF7","PRIMARY EYECARE (BARNET, ENFIELD & HARINGEY) LIMITED","Y56","LONDON COMMISSIONING REGION"]
["AF8","PRIMARY EYECARE (BEDFORDSHIRE) LIMITED","Y56","LONDON COMMISSIONING REGION"]
["AF9","PRIMARY EYECARE (BEXLEY, BROMLEY & GREENWICH) LIMITED","Y56","LONDON COMMISSIONING REGION"]
["AGG","PRIMARY EYECARE (CAMBRIDGESHIRE) LIMITED","Y56","LONDON COMMISSIONING REGION"]
["AFA","PRIMARY EYECARE (CAMDEN & ISLINGTON) LIMITED","Y56","LONDON COMMISSIONING REGION"]
["AFC","PRIMARY EYECARE (CHESHIRE) LIMITED","Y56","LONDON COMMISSIONING REGION"]
["AFE","PRIMARY EYECARE (CORNWALL & ISLES OF SCILLY) LIMITED","Y56","LONDON COMMISSIONING REGION"]
["AFF","PRIMARY EYECARE (COVENTRY) LIMITED","Y56","LONDON COMMISSIONING REGION"]
["AFG","PRIMARY EYECARE (CROYDON) LIMITED","Y56","LONDON COMMISSIONING REGION"]
["AEP","PRIMARY EYECARE (DEVON) LIMITED","Y56","LONDON COMMISSIONING REGION"]
["AFH","PRIMARY EYECARE (DONCASTER) LIMITED","Y56","LONDON COMMISSIONING REGION"]
["AFJ","PRIMARY EYECARE (DORSET) LIMITED","Y56","LONDON COMMISSIONING REGION"]
["AF2","PRIMARY EYECARE (EAST LONDON & CITY) LIMITED","Y56","LONDON COMMISSIONING REGION"]
["AFP","PRIMARY EYECARE (EAST MIDLANDS) LIMITED","Y56","LONDON COMMISSIONING REGION"]
["AFK","PRIMARY EYECARE (ESSEX) LIMITED","Y56","LONDON COMMISSIONING REGION"]
["AFL","PRIMARY EYECARE (GLOUCESTERSHIRE) LIMITED","Y56","LONDON COMMISSIONING REGION"]
["AFM","PRIMARY EYECARE (HEART OF WEST MIDLANDS) LIMITED","Y56","LONDON COMMISSIONING REGION"]
["AWD","PRIMARY EYECARE (HERTFORDSHIRE) LTD","Y56","LONDON COMMISSIONING REGION"]
["AF3","PRIMARY EYECARE (KENT & MEDWAY) LIMITED","Y56","LONDON COMMISSIONING REGION"]
["AJ5","PRIMARY EYECARE (LANCASHIRE) LTD","Y56","LONDON COMMISSIONING REGION"]
["AF4","PRIMARY EYECARE (LINCOLNSHIRE) LIMITED","Y56","LONDON COMMISSIONING REGION"]
["AFN","PRIMARY EYECARE (MERSEYSIDE) LIMITED","Y56","LONDON COMMISSIONING REGION"]
["AEV","PRIMARY EYECARE (MERTON, SUTTON & WANDSWORTH) LIMITED","Y56","LONDON COMMISSIONING REGION"]
["AGR","PRIMARY EYECARE (NORFOLK & WAVENEY) LIMITED","Y56","LONDON COMMISSIONING REGION"]
["AET","PRIMARY EYECARE (NORTH EAST) LIMITED","Y56","LONDON COMMISSIONING REGION"]
["AED","PRIMARY EYECARE (NORTH YORKSHIRE & HUMBER) LIMITED","Y56","LONDON COMMISSIONING REGION"]
["AFQ","PRIMARY EYECARE (OXFORDSHIRE) LIMITED","Y56","LONDON COMMISSIONING REGION"]
["AFR","PRIMARY EYECARE (SHEFFIELD) LIMITED","Y56","LONDON COMMISSIONING REGION"]
["AFT","PRIMARY EYECARE (SHROPSHIRE & STAFFORDSHIRE) LIMITED","Y56","LONDON COMMISSIONING REGION"]
["AFV","PRIMARY EYECARE (SUSSEX) LIMITED","Y56","LONDON COMMISSIONING REGION"]
["DCC","PRIMARY EYECARE WIRRAL","Y56","LONDON COMMISSIONING REGION"]
["AMR","PRIMARY HEALTHCARE DARLINGTON LTD","Y63","NORTH EAST AND YORKSHIRE COMMISSIONING REGION"]
["ADN","PRIMARY INTEGRATED COMMUNITY SERVICES LTD","Y60","MIDLANDS COMMISSIONING REGION"]
["NCC","PRIMARY PROVIDER COMPANY LIMITED","Y63","NORTH EAST AND YORKSHIRE COMMISSIONING REGION"]
["NPP","PRIME ENDOSCOPY (BRISTOL) LIMITED","Y59","SOUTH EAST COMMISSIONING REGION"]
["ALP","PRIME PRACTICE PARTNERSHIP LTD","Y56","LONDON COMMISSIONING REGION"]
["NQR","PRIMECARE PRIMARY CARE","Y60","MIDLANDS COMMISSIONING REGION"]
["APQ","PRIMEGP PLC","Y60","MIDLANDS COMMISSIONING REGION"]
["NBH","PRIORITYLINKS LIMITED","Y63","NORTH EAST AND YORKSHIRE COMMISSIONING REGION"]
["NTN","PRIORY GROUP LIMITED","Y56","LONDON COMMISSIONING REGION"]
["AVD","PRIORY MEDICAL CENTRE ENDOSCOPY SERVICE","Y62","NORTH WEST COMMISSIONING REGION"]
["DJF","PRIVATE GP SERVICES","Y56","LONDON COMMISSIONING REGION"]
["AXY","PRIVATE PSYCHIATRY LLP","Y59","SOUTH EAST COMMISSIONING REGION"]
["DWQ","PROACT IT UK LIMITED","Y60","MIDLANDS COMMISSIONING REGION"]
["NAM","PROBUS SURGERY LIMITED","Y58","SOUTH WEST COMMISSIONING REGION"]
["AQG","PROCARE HEALTH LIMITED","Y59","SOUTH EAST COMMISSIONING REGION"]
["DVD","PROHEALTH LTD","Y62","NORTH WEST COMMISSIONING REGION"]
["DCM","PROTON PARTNERS INTERNATIONAL LIMITED","Y63","NORTH EAST AND YORKSHIRE COMMISSIONING REGION"]
["NQA","PROVIDE","Y61","EAST OF ENGLAND COMMISSIONING REGION"]
["NQA00","PROVIDE","Y61","EAST OF ENGLAND COMMISSIONING REGION"]
["NJJ","PSICON LIMITED","Y59","SOUTH EAST COMMISSIONING REGION"]
["DQT","PSYCHIATRY-UK","Y58","SOUTH WEST COMMISSIONING REGION"]
["NHO","PSYCHOLOGICAL HEALTH AND WELLBEING SERVICE LTD","Y62","NORTH WEST COMMISSIONING REGION"]
["AXF","PURE HOMECARE","Y60","MIDLANDS COMMISSIONING REGION"]
["DH6","PUSH DR LIMITED","Y62","NORTH WEST COMMISSIONING REGION"]
["AN5","PUTNEYMEAD GROUP MEDICAL PRACTICE (HQ)","Y56","LONDON COMMISSIONING REGION"]
["NXT","QUALITY HEALTH LTD","Y60","MIDLANDS COMMISSIONING REGION"]
["DLX","QUALITY HOME CARE ANGLIA LTD","Y61","EAST OF ENGLAND COMMISSIONING REGION"]
["AEG","QUAY HEALTH SOLUTIONS CIC","Y56","LONDON COMMISSIONING REGION"]
["NLJ","QUAY MEDICAL LTD","Y58","SOUTH WEST COMMISSIONING REGION"]
["DEL","QUEEN ANNE STREET MEDICAL CENTRE","Y56","LONDON COMMISSIONING REGION"]
["NI7","QUEENS PHYSIOTHERAPY AND SPORTS INJURY CLINIC","Y59","SOUTH EAST COMMISSIONING REGION"]
["AG3","R & T (BOSTON) LIMITED","Y60","MIDLANDS COMMISSIONING REGION"]
["NHF","RAINHAM PHYSIOTHERAPY CENTRE","Y59","SOUTH EAST COMMISSIONING REGION"]
["NVC","RAMSAY HEALTHCARE UK OPERATIONS LIMITED","Y61","EAST OF ENGLAND COMMISSIONING REGION"]
["NVC00","RAMSAY HEALTHCARE UK OPERATIONS LIMITED","Y61","EAST OF ENGLAND COMMISSIONING REGION"]
["NR0","RAPHAEL HEALTHCARE LTD","Y62","NORTH WEST COMMISSIONING REGION"]
["DGX","RAPID IMPROVEMENT LIMITED","Y56","LONDON COMMISSIONING REGION"]
["DDQ","RAUF MEDICARE LIMITED","Y60","MIDLANDS COMMISSIONING REGION"]
["NCF","RAVENSCROFT HEALTHCARE LTD","Y56","LONDON COMMISSIONING REGION"]
["DVW","READING PRIMARY CARE ALLIANCE","Y59","SOUTH EAST COMMISSIONING REGION"]
["NWN","REALHEALTH(UK) LIMITED","Y56","LONDON COMMISSIONING REGION"]
["DJA","REDBRIDGE COUNCIL FOR VOLUNTARY SERVICE","Y56","LONDON COMMISSIONING REGION"]
["AP7","REDBRIDGE OSTEOPATHS","Y56","LONDON COMMISSIONING REGION"]
["DM9","REED MOMENTA LTD","Y56","LONDON COMMISSIONING REGION"]
["ADM","REFLEXIVE SOLUTIONS LTD","Y63","NORTH EAST AND YORKSHIRE COMMISSIONING REGION"]
["NY7","REGIONAL HEARING SPECIALISTS LTD","Y58","SOUTH WEST COMMISSIONING REGION"]
["AT7","REHABILITATION AND THERAPY SKILLS DEVELOPMENT LTD","Y59","SOUTH EAST COMMISSIONING REGION"]
["DLT","REHABILITATION DIRECT LTD","Y63","NORTH EAST AND YORKSHIRE COMMISSIONING REGION"]
["DRN","REIMAGINING GENERAL PRACTICE LTD","Y63","NORTH EAST AND YORKSHIRE COMMISSIONING REGION"]
["AYV","RELATE","Y63","NORTH EAST AND YORKSHIRE COMMISSIONING REGION"]
["AMN","RELATE (AVON) (HQ)","Y58","SOUTH WEST COMMISSIONING REGION"]
["AM0","RELATE (BRADFORD)","Y63","NORTH EAST AND YORKSHIRE COMMISSIONING REGION"]
["AYQ","RELATE DACORUM, WATFORD AND THREE RIVERS","Y61","EAST OF ENGLAND COMMISSIONING REGION"]
["DPW","RELATE RICHMOND, KINGSTON, HOUNSLOW (TA RELATE LONDON SW)","Y56","LONDON COMMISSIONING REGION"]
["DHE","REMOTEHEALTH TECH LIMITED","Y56","LONDON COMMISSIONING REGION"]
["AHE","REPRODUCTIVE HEALTH GROUP LIMITED","Y62","NORTH WEST COMMISSIONING REGION"]
["AV1","RESPIRICARE LIMITED","Y59","SOUTH EAST COMMISSIONING REGION"]
["AE5","RESPONSE PHYSIOTHERAPY LTD HQ","Y60","MIDLANDS COMMISSIONING REGION"]
["NO6","RETHINK MENTAL ILLNESS","Y56","LONDON COMMISSIONING REGION"]
["NM0","RIALTO CARE SERVICES","Y62","NORTH WEST COMMISSIONING REGION"]
["APE","RICHMOND GENERAL PRACTICE ALLIANCE LTD","Y56","LONDON COMMISSIONING REGION"]
["AAC","RILA PUBLICATIONS LTD","Y56","LONDON COMMISSIONING REGION"]
["NDW","RIPPLEZ CIC","Y60","MIDLANDS COMMISSIONING REGION"]
["NRC","RIVERDALE GRANGE LIMITED","Y63","NORTH EAST AND YORKSHIRE COMMISSIONING REGION"]
["AY3","RM PARTNERS","Y56","LONDON COMMISSIONING REGION"]
["NHK","ROBIN NEWELL OSTEOPATH","Y56","LONDON COMMISSIONING REGION"]
["DJT","ROCHDALE HEALTH ALLIANCE","Y62","NORTH WEST COMMISSIONING REGION"]
["DKY","ROCHE DIABETES CARE LIMITED","Y59","SOUTH EAST COMMISSIONING REGION"]
["AKW","ROMNEY MARSH PHYSIOTHERAPY CENTRE","Y59","SOUTH EAST COMMISSIONING REGION"]
["DND","ROSS NURSING SERVICES LTD","Y61","EAST OF ENGLAND COMMISSIONING REGION"]
["DCE","ROTHERHAM & BARNSLEY MIND","Y63","NORTH EAST AND YORKSHIRE COMMISSIONING REGION"]
["AXD","ROYAL SOCIETY FOR PUBLIC HEALTH","Y56","LONDON COMMISSIONING REGION"]
["DRX","S&F 7 DAY GP SERVICE","Y62","NORTH WEST COMMISSIONING REGION"]
["DLL","S24 LTD","Y56","LONDON COMMISSIONING REGION"]
["ALX","SAFECARE NETWORK LIMITED","Y63","NORTH EAST AND YORKSHIRE COMMISSIONING REGION"]
["AR6","SALFORD PRIMARY CARE TOGETHER","Y62","NORTH WEST COMMISSIONING REGION"]
["DVY","SALTLEY AND FERNBANK MEDICAL PRACTICE","Y60","MIDLANDS COMMISSIONING REGION"]
["DFT","SALUS MEDICAL SERVICES LIMITED","Y59","SOUTH EAST COMMISSIONING REGION"]
["DVL","SANDWELL CHILDREN'S TRUST","Y60","MIDLANDS COMMISSIONING REGION"]
["DK4","SANDWELL HEALTH PARTNERSHIP","Y60","MIDLANDS COMMISSIONING REGION"]
["NDS","SANDY HILL PHYSIO LTD","Y58","SOUTH WEST COMMISSIONING REGION"]
["AQ9","SAROIA STAFFING SERVICES LIMITED","Y60","MIDLANDS COMMISSIONING REGION"]
["NFB","SCAN ASSURE MEDICAL ULTRASOUND LIMITED","Y62","NORTH WEST COMMISSIONING REGION"]
["DRT","SCARBOROUGH EXTENDED ACCESS SERVICE","Y63","NORTH EAST AND YORKSHIRE COMMISSIONING REGION"]
["DLY","SCHOEN CLINIC LONDON LTD","Y56","LONDON COMMISSIONING REGION"]
["NIC","SCOTT OSTEOPATHIC & HEALTH CLINIC","Y59","SOUTH EAST COMMISSIONING REGION"]
["NXX","SCRIVENS LTD","Y60","MIDLANDS COMMISSIONING REGION"]
["NXX00","SCRIVENS LTD","Y60","MIDLANDS COMMISSIONING REGION"]
["DVX","SDS MYHEALTHCARE","Y60","MIDLANDS COMMISSIONING REGION"]
["ALW","SECOND STEP","Y58","SOUTH WEST COMMISSIONING REGION"]
["DKJ","SEFTON TRANSGENDER SERVICE","Y62","NORTH WEST COMMISSIONING REGION"]
["AMC","SELF HELP SERVICES","Y62","NORTH WEST COMMISSIONING REGION"]
["NNS","SELLINDGE PRACTICE LTD","Y59","SOUTH EAST COMMISSIONING REGION"]
["NWE","SENTINEL HEALTHCARE SOUTHWEST COMMUNITY INTEREST COMPANY","Y58","SOUTH WEST COMMISSIONING REGION"]
["NLY","SEQOL","Y58","SOUTH WEST COMMISSIONING REGION"]
["NEN","SERCO LTD","Y59","SOUTH EAST COMMISSIONING REGION"]
["NAK","SERENITY-SEQUEL HEALTHCARE LTD","Y63","NORTH EAST AND YORKSHIRE COMMISSIONING REGION"]
["ALN","SEVENOAKS AREA MIND HQ","Y59","SOUTH EAST COMMISSIONING REGION"]
["NFQ","SG RADIOLOGY AND ASSOCIATES LIMITED","Y63","NORTH EAST AND YORKSHIRE COMMISSIONING REGION"]
["NKL","SHEPHERD CHIROPODY","Y60","MIDLANDS COMMISSIONING REGION"]
["DVC","SHEREEN MEDICAL SERVICES","Y60","MIDLANDS COMMISSIONING REGION"]
["AGD","SHIELD HEALTHCARE","Y62","NORTH WEST COMMISSIONING REGION"]
["AKM","SHIRE HEALTH LTD","Y56","LONDON COMMISSIONING REGION"]
["DQE","SHORE MEDICAL","Y58","SOUTH WEST COMMISSIONING REGION"]
["AJG","SHREEJI OPHTHALMIC PRIMARY CARE SERVICES LLP (HQ)","Y62","NORTH WEST COMMISSIONING REGION"]
["NKA","SHUROPODY FOOTCARE LTD","Y60","MIDLANDS COMMISSIONING REGION"]
["AM7","SIGN HEALTH (HQ)","Y59","SOUTH EAST COMMISSIONING REGION"]
["NDI","SIMON BACON LTD","Y61","EAST OF ENGLAND COMMISSIONING REGION"]
["NLX","SIRONA CARE & HEALTH","Y58","SOUTH WEST COMMISSIONING REGION"]
["NLX00","SIRONA CARE & HEALTH","Y58","SOUTH WEST COMMISSIONING REGION"]
["NCM","SIX DEGREES SOCIAL ENTERPRISE CIC","Y62","NORTH WEST COMMISSIONING REGION"]
["NDH","SJ HELPLINE SERVICES CIC","Y62","NORTH WEST COMMISSIONING REGION"]
["NAA","SK HEALTH LTD","Y62","NORTH WEST COMMISSIONING REGION"]
["NLU","SK:N (LASERCARE CLINICS LTD)","Y60","MIDLANDS COMMISSIONING REGION"]
["AA8","SMART CJS","Y59","SOUTH EAST COMMISSIONING REGION"]
["AGT","SMGPF LIMITED","Y62","NORTH WEST COMMISSIONING REGION"]
["AWK","SMILE TOGETHER DENTAL CIC","Y58","SOUTH WEST COMMISSIONING REGION"]
["NR4","SOCIAL ADVENTURES LIMITED","Y62","NORTH WEST COMMISSIONING REGION"]
["DL9","SOCIAL CARE ACADEMY LTD","Y60","MIDLANDS COMMISSIONING REGION"]
["NNC","SOLENT MEDICAL SERVICES LIMITED","Y59","SOUTH EAST COMMISSIONING REGION"]
["AAG","SOLICITUDE LTD","Y60","MIDLANDS COMMISSIONING REGION"]
["DQN","SOLIHEALTH","Y60","MIDLANDS COMMISSIONING REGION"]
["DQP","SOLIHEALTH LTD","Y60","MIDLANDS COMMISSIONING REGION"]
["AEX","SOMERSET PRIMARY HEALTHCARE LIMITED","Y58","SOUTH WEST COMMISSIONING REGION"]
["NFH","SOMERSET SURGICAL SERVICES HQ","Y58","SOUTH WEST COMMISSIONING REGION"]
["NFH00","SOMERSET SURGICAL SERVICES HQ","Y58","SOUTH WEST COMMISSIONING REGION"]
["NMI","SONARCARE LIMITED","Y58","SOUTH WEST COMMISSIONING REGION"]
["DP7","SOUTH & EAST LEEDS GENERAL PRACTICE GROUP","Y63","NORTH EAST AND YORKSHIRE COMMISSIONING REGION"]
["ALK","SOUTH CHARNWOOD GP NETWORK LIMITED","Y60","MIDLANDS COMMISSIONING REGION"]
["DG6","SOUTH CHESHIRE & VALE ROYAL PRIMARY CARE ACCESS HUB","Y62","NORTH WEST COMMISSIONING REGION"]
["DMY","SOUTH COTSWOLDS SHARED HUB","Y58","SOUTH WEST COMMISSIONING REGION"]
["NKR","SOUTH DEVON OSTEOPATHS LTD","Y58","SOUTH WEST COMMISSIONING REGION"]
["NIT","SOUTH DOC SERVICES LIMITED HQ","Y60","MIDLANDS COMMISSIONING REGION"]
["DKL","SOUTH DOWNS HEALTH AND CARE LTD","Y59","SOUTH EAST COMMISSIONING REGION"]
["DFE","SOUTH DURHAM HEALTH C.I.C.","Y63","NORTH EAST AND YORKSHIRE COMMISSIONING REGION"]
["NBR","SOUTH EAST FERTILITY CLINIC LTD","Y59","SOUTH EAST COMMISSIONING REGION"]
["AT9","SOUTH EAST LAMBETH HEALTH PARTNERSHIP","Y56","LONDON COMMISSIONING REGION"]
["ALC","SOUTH EAST ULTRASOUND LTD","Y59","SOUTH EAST COMMISSIONING REGION"]
["AQY","SOUTH EASTERN HAMPSHIRE ALLIANCE LIMITED","Y59","SOUTH EAST COMMISSIONING REGION"]
["NGE","SOUTH ESSEX EMERGENCY DOCTORS SERVICE","Y61","EAST OF ENGLAND COMMISSIONING REGION"]
["DQY","SOUTH LINCOLN HEALTHCARE LIMITED","Y60","MIDLANDS COMMISSIONING REGION"]
["DRP","SOUTH NORFOLK BRECKLAND HUB","Y61","EAST OF ENGLAND COMMISSIONING REGION"]
["NJP","SOUTH NORFOLK HEALTHCARE","Y63","NORTH EAST AND YORKSHIRE COMMISSIONING REGION"]
["NPJ","SOUTH NORFOLK HEALTHCARE CIC","Y61","EAST OF ENGLAND COMMISSIONING REGION"]
["DVK","SOUTH NORFOLK MID NORFOLK HUB","Y61","EAST OF ENGLAND COMMISSIONING REGION"]
["DNL","SOUTH SEFTON PRIMARY HEALTHCARE LTD","Y62","NORTH WEST COMMISSIONING REGION"]
["DCV","SOUTH TEES MEDICAL LTD","Y63","NORTH EAST AND YORKSHIRE COMMISSIONING REGION"]
["DCY","SOUTH TEES MEDICAL LTD","Y63","NORTH EAST AND YORKSHIRE COMMISSIONING REGION"]
["APJ","SOUTH WARWICKSHIRE GP LIMITED","Y60","MIDLANDS COMMISSIONING REGION"]
["AP8","SOUTH WEST ADVICE AND NEUROLOGY SERVICES (SWANS)","Y58","SOUTH WEST COMMISSIONING REGION"]
["NQF","SOUTH WEST BARIATRIC SURGERY GROUP","Y58","SOUTH WEST COMMISSIONING REGION"]
["DMK","SOUTH WESTMINSTER PRIMARY CARE HOME","Y56","LONDON COMMISSIONING REGION"]
["AJ4","SOUTH WORCESTERSHIRE PRIMARY CARE LIMITED","Y60","MIDLANDS COMMISSIONING REGION"]
["NHD","SOUTH YORKSHIRE DIAGNOSTICS LIMITED","Y63","NORTH EAST AND YORKSHIRE COMMISSIONING REGION"]
["AR4","SOUTHAMPTON PRIMARY CARE LIMITED","Y59","SOUTH EAST COMMISSIONING REGION"]
["NNM","SOUTHERN ALLIANCE HEALTHCARE","Y59","SOUTH EAST COMMISSIONING REGION"]
["DKR","SOUTHERN BROOKS COMMUNITY PARTNERSHIPS","Y58","SOUTH WEST COMMISSIONING REGION"]
["NR7","SOUTHERN CROSS HEALTHCARE GROUP PLC","Y63","NORTH EAST AND YORKSHIRE COMMISSIONING REGION"]
["DJ2","SOUTHERN HAMPSHIRE PRIMARY CARE ALLIANCE","Y59","SOUTH EAST COMMISSIONING REGION"]
["AXL","SOUTHERN HILL HOSPITAL","Y61","EAST OF ENGLAND COMMISSIONING REGION"]
["AQ2","SOUTHERN INDEPENDENT MEDICAL PRACTICE LIMITED","Y58","SOUTH WEST COMMISSIONING REGION"]
["DTA","SOUTHERN ULTRASOUND LTD","Y56","LONDON COMMISSIONING REGION"]
["AYK","SOUTHPORT AND FORMBY HEALTH LIMITED","Y62","NORTH WEST COMMISSIONING REGION"]
["NPG","SPAMEDICA","Y62","NORTH WEST COMMISSIONING REGION"]
["DFP","SPC PHYSIOTHERAPY & SPORTS INJURY CENTRE","Y60","MIDLANDS COMMISSIONING REGION"]
["AYD","SPECIALIST CARDIAC DIAGNOSTICS LTD","Y56","LONDON COMMISSIONING REGION"]
["DV3","SPECIALIST COMPUTER CENTRES","Y60","MIDLANDS COMMISSIONING REGION"]
["NX4","SPECIALIST HEALTH SERVICES LIMITED","Y59","SOUTH EAST COMMISSIONING REGION"]
["NWW","SPECIALIST MEDICAL IMAGING LIMITED","Y62","NORTH WEST COMMISSIONING REGION"]
["NYN","SPECSAVERS HEARCARE GROUP LTD","Y60","MIDLANDS COMMISSIONING REGION"]
["NYN00","SPECSAVERS HEARCARE GROUP LTD","Y60","MIDLANDS COMMISSIONING REGION"]
["NL1","SPECTRUM COMMUNITY HEALTH - CIC","Y63","NORTH EAST AND YORKSHIRE COMMISSIONING REGION"]
["DGR","SPINES PHYSIOTHERAPY CLINIC","Y60","MIDLANDS COMMISSIONING REGION"]
["NQK","SPIRAL HEALTH C.I.C","Y62","NORTH WEST COMMISSIONING REGION"]
["NT3","SPIRE HEALTHCARE","Y56","LONDON COMMISSIONING REGION"]
["NLD","SPRINGDALE HEALTH LTD","Y58","SOUTH WEST COMMISSIONING REGION"]
["ARE","SRCL LTD","Y63","NORTH EAST AND YORKSHIRE COMMISSIONING REGION"]
["AAE","SSAFA CARE CIC","Y56","LONDON COMMISSIONING REGION"]
["NX6","ST ALBANS & HARPENDEN MUSCULOSKELETAL CATS","Y61","EAST OF ENGLAND COMMISSIONING REGION"]
["NYA","ST ANDREW'S HEALTHCARE","Y60","MIDLANDS COMMISSIONING REGION"]
["NP5","ST ANNE'S","Y63","NORTH EAST AND YORKSHIRE COMMISSIONING REGION"]
["AEH","ST DAVIDS HOME","Y56","LONDON COMMISSIONING REGION"]
["NQ4","ST GEORGE HEALTHCARE GROUP","Y62","NORTH WEST COMMISSIONING REGION"]
["NM6","ST GEORGES HOSPITAL LTD","Y59","SOUTH EAST COMMISSIONING REGION"]
["NMR","ST GEORGE'S HOSPITAL MEDICAL SCHOOL","Y56","LONDON COMMISSIONING REGION"]
["DPY","ST HELENS ROTA LIMITED","Y62","NORTH WEST COMMISSIONING REGION"]
["DL0","ST JOSEPH'S HOSPICE","Y56","LONDON COMMISSIONING REGION"]
["NPX","ST JOSEPHS PRIVATE HOSPITAL","WALES","WALES"]
["DJ0","ST LUKES HOSPICE (HARROW)","Y56","LONDON COMMISSIONING REGION"]
["DRQ","ST LUKE'S RADIOLOGY OXFORD","Y59","SOUTH EAST COMMISSIONING REGION"]
["AJ3","ST MARGARETS HOSPICE","Y58","SOUTH WEST COMMISSIONING REGION"]
["ALM","ST MARTINS HEALTHCARE SERVICES CIC","Y63","NORTH EAST AND YORKSHIRE COMMISSIONING REGION"]
["NFJ","ST MATTHEWS HEALTHCARE","Y60","MIDLANDS COMMISSIONING REGION"]
["AHP","ST MICHAEL'S CLINIC LIMITED","Y60","MIDLANDS COMMISSIONING REGION"]
["ARD","ST MICHAEL'S HOSPICE","Y59","SOUTH EAST COMMISSIONING REGION"]
["DV4","ST PAUL'S SHARED HUB","Y58","SOUTH WEST COMMISSIONING REGION"]
["DKV","ST PETER'S HOSPICE","Y58","SOUTH WEST COMMISSIONING REGION"]
["ARF","ST WILFRID'S HOSPICE","Y59","SOUTH EAST COMMISSIONING REGION"]
["NR6","ST. LUKE'S HEALTH CARE","Y61","EAST OF ENGLAND COMMISSIONING REGION"]
["DH7","STADN LTD","Y56","LONDON COMMISSIONING REGION"]
["DM2","STAHFED LTD","Y61","EAST OF ENGLAND COMMISSIONING REGION"]
["NDG","STAHMIS","Y61","EAST OF ENGLAND COMMISSIONING REGION"]
["NHW","STANDARD HEALTH LTD","Y56","LONDON COMMISSIONING REGION"]
["NMD","STAPELY HOSPITAL","Y62","NORTH WEST COMMISSIONING REGION"]
["AEY","STARFISH HEALTH AND WELLBEING HQ","Y60","MIDLANDS COMMISSIONING REGION"]
["DT6","STEALTH & BEAUTY LTD","Y56","LONDON COMMISSIONING REGION"]
["AH5","STELLAR HEALTHCARE","Y61","EAST OF ENGLAND COMMISSIONING REGION"]
["NFR","STEPPING STONE CARE HOMES","Y60","MIDLANDS COMMISSIONING REGION"]
["DF7","STEPS REHABILITATION LIMITED","Y63","NORTH EAST AND YORKSHIRE COMMISSIONING REGION"]
["ANE","STEREOPSIS LTD","Y59","SOUTH EAST COMMISSIONING REGION"]
["NN2","STERIA LIMITED","Y61","EAST OF ENGLAND COMMISSIONING REGION"]
["NKC","STEVEN ORTON LTD","Y59","SOUTH EAST COMMISSIONING REGION"]
["DRC","STEVENAGE HEALTH LTD","Y61","EAST OF ENGLAND COMMISSIONING REGION"]
["DV9","STORT VALLEY HEALHTCARE LTD","Y56","LONDON COMMISSIONING REGION"]
["DRD","STORT VALLEY HEALTHCARE LTD","Y61","EAST OF ENGLAND COMMISSIONING REGION"]
["DQ6","STOURBRIDGE PHYSIOTHERAPY PRACTICE LIMITED","Y60","MIDLANDS COMMISSIONING REGION"]
["NAC","STREATHAM YOUNG PERSON'S CLINIC","Y56","LONDON COMMISSIONING REGION"]
["DMX","STROUD SHARED HUB","Y58","SOUTH WEST COMMISSIONING REGION"]
["NQ2","SUDBURY HEALTHCARE PARTNERSHIP LIMITED","Y61","EAST OF ENGLAND COMMISSIONING REGION"]
["NHM","SUFFOLK COMMUNITY HEALTHCARE","Y61","EAST OF ENGLAND COMMISSIONING REGION"]
["NHM00","SUFFOLK COMMUNITY HEALTHCARE","Y61","EAST OF ENGLAND COMMISSIONING REGION"]
["NDL","SUFFOLK GP FEDERATION","Y61","EAST OF ENGLAND COMMISSIONING REGION"]
["NXR","SUFFOLK INTEGRATED HEALTHCARE","Y61","EAST OF ENGLAND COMMISSIONING REGION"]
["DJ7","SUFFOLK PRIMARY CARE","Y61","EAST OF ENGLAND COMMISSIONING REGION"]
["ATE","SUNDERLAND GP ALLIANCE LIMITED","Y63","NORTH EAST AND YORKSHIRE COMMISSIONING REGION"]
["DWC","SUPPORTED LIVING SERVICES LTD","Y56","LONDON COMMISSIONING REGION"]
["DGL","SUPPORTIVE CARE (UK) LIMITED","Y62","NORTH WEST COMMISSIONING REGION"]
["DPF","SURGEASE","Y62","NORTH WEST COMMISSIONING REGION"]
["DK6","SURGIMED HEALTHCARE LTD","Y56","LONDON COMMISSIONING REGION"]
["DCP","SURGMED GROUP LIMITED","Y63","NORTH EAST AND YORKSHIRE COMMISSIONING REGION"]
["NM8","SURREY & SUSSEX CONSULTANT PARTNERSHIP LIMITED","Y59","SOUTH EAST COMMISSIONING REGION"]
["DJQ","SURREY HEALTHY CHILDREN AND FAMILIES LLP","Y59","SOUTH EAST COMMISSIONING REGION"]
["DVP","SURREY HEATH COMMUNITY PROVIDERS LTD","Y59","SOUTH EAST COMMISSIONING REGION"]
["DAA","SURREY MEDICAL NETWORK","Y59","SOUTH EAST COMMISSIONING REGION"]
["NKG","SURREY PHYSIO GROUP LTD","Y56","LONDON COMMISSIONING REGION"]
["NBU","SURREY ULTRASOUND SERVICES","Y59","SOUTH EAST COMMISSIONING REGION"]
["DA2","SURVIVORS MANCHESTER","Y62","NORTH WEST COMMISSIONING REGION"]
["NEU","SUSAN SHOWELL-WESTRIP - PSYCHOLOGICAL THERAPIST","Y61","EAST OF ENGLAND COMMISSIONING REGION"]
["NYG","SUSSEX COMMUNITY DERMATOLOGY SERVICE","Y59","SOUTH EAST COMMISSIONING REGION"]
["NYG00","SUSSEX COMMUNITY DERMATOLOGY SERVICE","Y59","SOUTH EAST COMMISSIONING REGION"]
["NL2","SUSSEX HEALTH CARE AUDIOLOGY LTD","Y59","SOUTH EAST COMMISSIONING REGION"]
["NMC","SUSSEX MEDICAL CENTRE LTD","Y59","SOUTH EAST COMMISSIONING REGION"]
["AJX","SUSSEX MSK PARTNERSHIP 2","Y59","SOUTH EAST COMMISSIONING REGION"]
["AVN","SUTTON GP SERVICES LIMITED","Y56","LONDON COMMISSIONING REGION"]
["NCW","SUTTON MEDICAL CONSULTING CENTRE","Y60","MIDLANDS COMMISSIONING REGION"]
["DKT","SV2 - SUPPORTING VICTIMS OF SEXUAL VIOLENCE LTD","Y60","MIDLANDS COMMISSIONING REGION"]
["AX6","SW LAMBETH HEALTH CARE LIMITED","Y56","LONDON COMMISSIONING REGION"]
["DQ0","SWADLINCOTE EXTENDED ACCESS SERVICE","Y60","MIDLANDS COMMISSIONING REGION"]
["DFV","SWAN GP CLUSTER","Y62","NORTH WEST COMMISSIONING REGION"]
["AKV","SWANSWELL CHARITABLE TRUST","Y60","MIDLANDS COMMISSIONING REGION"]
["NT0","SYDENHAM HOUSE GROUP","Y63","NORTH EAST AND YORKSHIRE COMMISSIONING REGION"]
["AAX","SYDENHAM HOUSE MEDICAL PRACTICE","Y59","SOUTH EAST COMMISSIONING REGION"]
["AE0","SYMBOL (UK) LIMITED","Y59","SOUTH EAST COMMISSIONING REGION"]
["DCN","SYMPHONY HEALTHCARE SERVICES LIMITED","Y58","SOUTH WEST COMMISSIONING REGION"]
["AX2","SYNCHRONICITY CARE LTD","Y63","NORTH EAST AND YORKSHIRE COMMISSIONING REGION"]
["DTE","SYNEXTRA LTD","Y62","NORTH WEST COMMISSIONING REGION"]
["DG0","TABA+ GP CLUSTER","Y62","NORTH WEST COMMISSIONING REGION"]
["NNI","TALKING THERAPIES LTD","Y59","SOUTH EAST COMMISSIONING REGION"]
["NCH","TALKPLUS","Y59","SOUTH EAST COMMISSIONING REGION"]
["NME","TARPORLEY WAR MEMORIAL HOSPITAL TRUST","Y62","NORTH WEST COMMISSIONING REGION"]
["NGX","TAURUS HEALTHCARE LTD","Y60","MIDLANDS COMMISSIONING REGION"]
["AXV","TEASDALE HEALTHCARE LTD","Y60","MIDLANDS COMMISSIONING REGION"]
["DW8","TELDOC","Y60","MIDLANDS COMMISSIONING REGION"]
["AYY","TEMENOS PSYCHOTHERAPY AND COUNSELLING","Y63","NORTH EAST AND YORKSHIRE COMMISSIONING REGION"]
["AVT","TERRENCE HIGGINS TRUST HQ","Y56","LONDON COMMISSIONING REGION"]
["AAH","TETBURY HOSPITAL TRUST LTD","Y58","SOUTH WEST COMMISSIONING REGION"]
["AAH00","TETBURY HOSPITAL TRUST LTD","Y58","SOUTH WEST COMMISSIONING REGION"]
["AY0","TFHC LIMITED","Y62","NORTH WEST COMMISSIONING REGION"]
["NP1","THAMES MEDICAL","Y59","SOUTH EAST COMMISSIONING REGION"]
["NP3","THAMES MEDICAL LLP","Y59","SOUTH EAST COMMISSIONING REGION"]
["DNJ","THAMES VALLEY AIR AMBULANCE","Y59","SOUTH EAST COMMISSIONING REGION"]
["ADE","THAMES VALLEY AMBULANCE AND PARAMEDIC SERVICE","Y61","EAST OF ENGLAND COMMISSIONING REGION"]
["DPG","THAMES VALLEY FERTILTY","Y59","SOUTH EAST COMMISSIONING REGION"]
["AQ6","THAMES VALLEY VASECTOMY SERVICES LTD","Y59","SOUTH EAST COMMISSIONING REGION"]
["DDK","THE ABERDEEN CLINIC","Y62","NORTH WEST COMMISSIONING REGION"]
["NFW","THE ASHGROVE CLINIC","Y60","MIDLANDS COMMISSIONING REGION"]
["NN7","THE BACK PAIN TEAM LTD","Y59","SOUTH EAST COMMISSIONING REGION"]
["NBK","THE BARIATRIC CONSULTANCY","Y56","LONDON COMMISSIONING REGION"]
["AN0","THE BIG LIFE GROUP LTD","Y62","NORTH WEST COMMISSIONING REGION"]
["AWV","THE BIRMINGHAM PROSTATE CLINIC LTD","Y60","MIDLANDS COMMISSIONING REGION"]
["DGT","THE BRANDON CENTRE","Y56","LONDON COMMISSIONING REGION"]
["NIO","THE BRITISH SCHOOL OF OSTEOPATHY","Y56","LONDON COMMISSIONING REGION"]
["DPD","THE BURGHWOOD CLINIC","Y59","SOUTH EAST COMMISSIONING REGION"]
["AGN","THE CAMBRIDGE CENTRE (SCARBOROUGH ALCOHOL AND DRUGS ADVISORY CENTRE) LTD","Y63","NORTH EAST AND YORKSHIRE COMMISSIONING REGION"]
["DFR","THE CATARACT CENTRE LTD","Y56","LONDON COMMISSIONING REGION"]
["NMT","THE CHARLOTTE STRAKER HOSPITAL PROJECT TRUST","Y63","NORTH EAST AND YORKSHIRE COMMISSIONING REGION"]
["NWQ","THE CHASELEY TRUST","Y59","SOUTH EAST COMMISSIONING REGION"]
["AQF","THE CLATTERBRIDGE CLINIC LLP","Y62","NORTH WEST COMMISSIONING REGION"]
["AQJ","THE COLLEGE OF ST BARNABAS","Y59","SOUTH EAST COMMISSIONING REGION"]
["DHT","THE COLTE PARTNERSHIP","Y61","EAST OF ENGLAND COMMISSIONING REGION"]
["NGR","THE COUNSELLING FOUNDATION","Y61","EAST OF ENGLAND COMMISSIONING REGION"]
["DMA","THE CRAMLINGTON OUT OF HOURS HUB","Y63","NORTH EAST AND YORKSHIRE COMMISSIONING REGION"]
["DL6","THE DEVONSHIRE CLINIC","Y56","LONDON COMMISSIONING REGION"]
["DGK","THE DORSET SKIN CLINIC","Y56","LONDON COMMISSIONING REGION"]
["AN9","THE EARLSFIELD PRACTICE (HQ)","Y56","LONDON COMMISSIONING REGION"]
["NW5","THE ELMS MEDICAL PRACTICE","Y61","EAST OF ENGLAND COMMISSIONING REGION"]
["AR8","THE EYE ACADEMY (RICHMOND) LTD","Y59","SOUTH EAST COMMISSIONING REGION"]
["NPD","THE FERTILITY PARTNERSHIP- OXFORD","Y59","SOUTH EAST COMMISSIONING REGION"]
["NJT","THE FORGE CLINIC","Y56","LONDON COMMISSIONING REGION"]
["DG3","THE FORWARD TRUST","Y56","LONDON COMMISSIONING REGION"]
["AJ8","THE GRANGE MEDICAL CENTRE HQ","Y63","NORTH EAST AND YORKSHIRE COMMISSIONING REGION"]
["AYJ","THE GREAT NORTH AIR AMBULANCE SERVICE HQ","Y63","NORTH EAST AND YORKSHIRE COMMISSIONING REGION"]
["AKP","THE GREEN HOUSE","Y58","SOUTH WEST COMMISSIONING REGION"]
["NW4","THE GYNAECOLOGY PARTNERSHIP LTD.","Y61","EAST OF ENGLAND COMMISSIONING REGION"]
["DFF","THE HAMLET","Y61","EAST OF ENGLAND COMMISSIONING REGION"]
["NBB","THE HELPING HAND COMPANY","Y60","MIDLANDS COMMISSIONING REGION"]
["AC2","THE HERNE BAY OPHTHALMOLOGY CLINIC","Y59","SOUTH EAST COMMISSIONING REGION"]
["NV2","THE HUNTERCOMBE GROUP","Y62","NORTH WEST COMMISSIONING REGION"]
["DT7","THE IMAGING CENTRE","Y56","LONDON COMMISSIONING REGION"]
["NPF","THE INDUSTRIAL DIAGNOSTICS COMPANY [HQ]","Y60","MIDLANDS COMMISSIONING REGION"]
["DCH","THE ISLINGTON GP GROUP LIMITED","Y56","LONDON COMMISSIONING REGION"]
["AMD","THE KALEIDOSCOPE PLUS GROUP","Y60","MIDLANDS COMMISSIONING REGION"]
["NVK","THE LEARNING ASSESSMENT & NEUROCARE CENTRE","Y59","SOUTH EAST COMMISSIONING REGION"]
["DF2","THE LEGER CLINIC","Y63","NORTH EAST AND YORKSHIRE COMMISSIONING REGION"]
["DJ6","THE LEWISHAM CARE PARTNERSHIP","Y56","LONDON COMMISSIONING REGION"]
["NKV","THE LINCOLN PHYSIOTHERAPY & SPORTS INJURIES CLINIC","Y60","MIDLANDS COMMISSIONING REGION"]
["NID","THE LIVING CARE GROUP","Y63","NORTH EAST AND YORKSHIRE COMMISSIONING REGION"]
["DWP","THE LONDON FOOT AND ANKLE CENTRE","Y56","LONDON COMMISSIONING REGION"]
["DWR","THE LUNA HIVE HQ","Y59","SOUTH EAST COMMISSIONING REGION"]
["DA3","THE MAGDALENE PROJECT","Y62","NORTH WEST COMMISSIONING REGION"]
["DMQ","THE MEDICAL","Y58","SOUTH WEST COMMISSIONING REGION"]
["ATA","THE MEWS PRACTICE","Y59","SOUTH EAST COMMISSIONING REGION"]
["NLP","THE MOLE CLINIC LTD","Y56","LONDON COMMISSIONING REGION"]
["AX0","THE NEW VICTORIA HOSPITAL LIMITED","Y56","LONDON COMMISSIONING REGION"]
["AW8","THE NEWHALL MEDICAL PRACTICE LIMITED","Y60","MIDLANDS COMMISSIONING REGION"]
["AKD","THE OAKTREE CLINIC","Y60","MIDLANDS COMMISSIONING REGION"]
["NTX","THE ONE HEALTH GROUP LTD","Y63","NORTH EAST AND YORKSHIRE COMMISSIONING REGION"]
["NTX00","THE ONE HEALTH GROUP LTD","Y63","NORTH EAST AND YORKSHIRE COMMISSIONING REGION"]
["DCW","THE ONE STOP PSYCHOTHERAPY SHOP LTD","Y58","SOUTH WEST COMMISSIONING REGION"]
["NFC","THE OUTSIDE CLINIC","Y58","SOUTH WEST COMMISSIONING REGION"]
["AY6","THE OZASE CLINIC","Y60","MIDLANDS COMMISSIONING REGION"]
["NFF","THE PHYSIOTHERAPY CENTRE HQ","Y59","SOUTH EAST COMMISSIONING REGION"]
["NGA","THE PHYSIOTHERAPY PRACTICE LTD","Y61","EAST OF ENGLAND COMMISSIONING REGION"]
["NGQ","THE PINNACLE PRACTICE","Y60","MIDLANDS COMMISSIONING REGION"]
["NEK","THE POINT OSTEOPATHIC CLINIC","Y61","EAST OF ENGLAND COMMISSIONING REGION"]
["NX1","THE PRACTICE","Y59","SOUTH EAST COMMISSIONING REGION"]
["NW1","THE PRACTICE PLC","Y59","SOUTH EAST COMMISSIONING REGION"]
["NV4","THE PRIMARY CARE COLLABORATIVE LTD","Y59","SOUTH EAST COMMISSIONING REGION"]
["DDE","THE PRIVATE CLINIC OF HARLEY STREET LIMITED","Y56","LONDON COMMISSIONING REGION"]
["NPE","THE RETREAT HOSPITAL","Y63","NORTH EAST AND YORKSHIRE COMMISSIONING REGION"]
["DHX","THE RIDGE MEDICAL CENTRE","Y63","NORTH EAST AND YORKSHIRE COMMISSIONING REGION"]
["DJR","THE RIDGEWAY PRACTICE LIMITED","Y59","SOUTH EAST COMMISSIONING REGION"]
["DJH","THE ROYAL BUCKINGHAMSHIRE HOSPITAL LTD","Y58","SOUTH WEST COMMISSIONING REGION"]
["NN1","THE ROYAL HOSPITAL FOR NEURO-DISABILITY","Y56","LONDON COMMISSIONING REGION"]
["DHM","THE SALISBURY PRACTICE LTD","Y58","SOUTH WEST COMMISSIONING REGION"]
["DGH","THE SARA LEE TRUST","Y59","SOUTH EAST COMMISSIONING REGION"]
["DNY","THE SCAN ROOM","Y63","NORTH EAST AND YORKSHIRE COMMISSIONING REGION"]
["NIU","THE SEAN BARKES CLINIC LTD","Y60","MIDLANDS COMMISSIONING REGION"]
["DE9","THE SHERWOOD CLINIC LIMITED","Y56","LONDON COMMISSIONING REGION"]
["DEC","THE SOCIETY OF ST JAMES","Y59","SOUTH EAST COMMISSIONING REGION"]
["AX3","THE SOUTH WEST LONDON ELECTIVE ORTHOPAEDIC CENTRE","Y59","SOUTH EAST COMMISSIONING REGION"]
["DPK","THE STONEYGATE EYE HOSPITAL","Y60","MIDLANDS COMMISSIONING REGION"]
["AE8","THE SUSSEX BEACON","Y59","SOUTH EAST COMMISSIONING REGION"]
["DTX","THE UNICARE GROUP","Y60","MIDLANDS COMMISSIONING REGION"]
["ARY","THE VILLAGE PRACTICE","Y62","NORTH WEST COMMISSIONING REGION"]
["NEE","THE VILLAGE SURGERY","Y62","NORTH WEST COMMISSIONING REGION"]
["AP3","THE WATERSIDE PHYSIOTHERAPY AND OSTEOPATHY CLINIC","Y59","SOUTH EAST COMMISSIONING REGION"]
["NN0","THE WELLBEING SERVICE CIC","Y56","LONDON COMMISSIONING REGION"]
["DT9","THE WHAT CENTRE LIMITED","Y60","MIDLANDS COMMISSIONING REGION"]
["DF8","THE WISH CENTRE LIMITED","Y56","LONDON COMMISSIONING REGION"]
["AV4","THE YORKSHIRE NO-SCAPEL VASECTOMY SERVICE","Y63","NORTH EAST AND YORKSHIRE COMMISSIONING REGION"]
["NKD","THE YOUTH ENQUIRY SERVICE (PLYMOUTH) LTD","Y58","SOUTH WEST COMMISSIONING REGION"]
["ALF","THERAPEUTIC RESOURCES & COUNSELLING SERVICES LTD","Y60","MIDLANDS COMMISSIONING REGION"]
["NAG","THINKACTION MENTAL HEALTH SERVICE (FORMERLY KNOWN AS KCA)","Y59","SOUTH EAST COMMISSIONING REGION"]
["NNU","THIS IS MY: LIMITED","Y63","NORTH EAST AND YORKSHIRE COMMISSIONING REGION"]
["ACQ","THOMPSON OPTICIANS LTD","Y63","NORTH EAST AND YORKSHIRE COMMISSIONING REGION"]
["NII","THORPES PHYSIOTHERAPY LIMITED","Y59","SOUTH EAST COMMISSIONING REGION"]
["ATD","THRIVE PARTNERSHIP LLP","Y56","LONDON COMMISSIONING REGION"]
["AQQ","THURLEIGH ROAD PRACTICE","Y56","LONDON COMMISSIONING REGION"]
["NGO","TIM HUMPHRIES PHYSIOTHERAPY LTD","Y61","EAST OF ENGLAND COMMISSIONING REGION"]
["DHF","TIM PARKER PHYSIOTHERAPY","Y60","MIDLANDS COMMISSIONING REGION"]
["NGK","TLC MEDICAL CENTRE LLP","Y63","NORTH EAST AND YORKSHIRE COMMISSIONING REGION"]
["DNK","TOGETHER DRUG AND ALCOHOL SERVICE","Y58","SOUTH WEST COMMISSIONING REGION"]
["AW1","TOGETHER FIRST LTD","Y56","LONDON COMMISSIONING REGION"]
["DKA","TOGETHER4HEALTHCARE LIMITED","Y60","MIDLANDS COMMISSIONING REGION"]
["NQX","TOLLGATE CLINIC LTD","Y61","EAST OF ENGLAND COMMISSIONING REGION"]
["NBD","TOTAL HEALTH CARE CLINICS LTD","Y60","MIDLANDS COMMISSIONING REGION"]
["DC7","TOTAL HEALTH ETHOS LIMITED","Y58","SOUTH WEST COMMISSIONING REGION"]
["AKX","TOTAL PHYSIOTHERAPY LTD","Y62","NORTH WEST COMMISSIONING REGION"]
["DAP","TOTALLY HEALTH HQ","Y56","LONDON COMMISSIONING REGION"]
["AVR","TOUCHSTONE LEEDS","Y63","NORTH EAST AND YORKSHIRE COMMISSIONING REGION"]
["AXA","TOWER HAMLETS GP CARE GROUP CIC","Y56","LONDON COMMISSIONING REGION"]
["DLK","TOWER HAMLETS GP CARE GROUP CIC","Y56","LONDON COMMISSIONING REGION"]
["DKH","TOWER HAMLETS TOBACCO CESSATION SERVICE","Y56","LONDON COMMISSIONING REGION"]
["ARK","TOWNSEND HOUSE ENT SERVICES","Y58","SOUTH WEST COMMISSIONING REGION"]
["DER","TRAVEL KLINIX","Y60","MIDLANDS COMMISSIONING REGION"]
["AM9","TRENT CBT SERVICES LTD","Y60","MIDLANDS COMMISSIONING REGION"]
["NLS","TRENT PTS","Y60","MIDLANDS COMMISSIONING REGION"]
["ANM","TRI LOCALITY CARE LTD","Y59","SOUTH EAST COMMISSIONING REGION"]
["AVK","TRINITY CARE WAKEFIELD","Y63","NORTH EAST AND YORKSHIRE COMMISSIONING REGION"]
["DEM","TRINITY MEDICAL IMAGING","Y56","LONDON COMMISSIONING REGION"]
["NLH","TRU LTD","Y62","NORTH WEST COMMISSIONING REGION"]
["APH","TRUST PRIMARY CARE LTD","Y63","NORTH EAST AND YORKSHIRE COMMISSIONING REGION"]
["NYJ","TULIP MENTAL HEALTH GROUP","Y56","LONDON COMMISSIONING REGION"]
["NKI","TURNING POINT","Y56","LONDON COMMISSIONING REGION"]
["NBO","TURNPIKE MEDICAL LTD","Y60","MIDLANDS COMMISSIONING REGION"]
["AWL","TWO HARBOURS HEALTHCARE LTD","Y58","SOUTH WEST COMMISSIONING REGION"]
["NTR","TYNE AND WEAR SURGERY LTD","Y61","EAST OF ENGLAND COMMISSIONING REGION"]
["AQA","TYNEHEALTH LTD","Y63","NORTH EAST AND YORKSHIRE COMMISSIONING REGION"]
["NN4","TYNESIDE SURGICAL SERVICES LTD","Y63","NORTH EAST AND YORKSHIRE COMMISSIONING REGION"]
["NJO","UCLAN DENTAL CLINIC","Y62","NORTH WEST COMMISSIONING REGION"]
["DHW","UK ENDOSCOPY GROUP LTD","Y62","NORTH WEST COMMISSIONING REGION"]
["NTC","UK SPECIALIST HOSPITALS LTD","Y56","LONDON COMMISSIONING REGION"]
["DTM","ULTRACARDIAC LTD","Y58","SOUTH WEST COMMISSIONING REGION"]
["NDB","ULTRASOUND NOW LTD","Y62","NORTH WEST COMMISSIONING REGION"]
["DVM","ULTRASOUND PLUS LTD","Y60","MIDLANDS COMMISSIONING REGION"]
["NHU","ULTRASOUND SCANNING SERVICES LTD","Y56","LONDON COMMISSIONING REGION"]
["VTK","UNIQUE CARE NETWORK LIMITED","Y60","MIDLANDS COMMISSIONING REGION"]
["NAE","UNITED HEALTH UK","Y56","LONDON COMMISSIONING REGION"]
["DFX","UNITED OPEN MRI LTD","Y56","LONDON COMMISSIONING REGION"]
["ALJ","UNITINGCARE PARTNERSHIP LLP","Y61","EAST OF ENGLAND COMMISSIONING REGION"]
["NKT","UNIVERSITY MEDICAL CENTRE","Y59","SOUTH EAST COMMISSIONING REGION"]
["NRF","UNIVERSITY OF SOUTHAMPTON AUDITORY IMPLANT SERVICE","Y59","SOUTH EAST COMMISSIONING REGION"]
["NPQ","URGENT CARE 24","Y62","NORTH WEST COMMISSIONING REGION"]
["AH6","URGENT CARE CENTRE- HURLEY GROUP HQ","Y56","LONDON COMMISSIONING REGION"]
["AHM","UTTLESFORD HEALTH LIMITED (HQ)","Y56","LONDON COMMISSIONING REGION"]
["AJC","VACCINATION UK LIMITED","Y61","EAST OF ENGLAND COMMISSIONING REGION"]
["NPY","VALE HEALTHCARE LTD","WALES","WALES"]
["NHE","VANGUARD GROUP LTD","Y58","SOUTH WEST COMMISSIONING REGION"]
["NHG","VANSCAN LTD HQ","Y60","MIDLANDS COMMISSIONING REGION"]
["DC0","VAST SERVICES (1920)","Y60","MIDLANDS COMMISSIONING REGION"]
["NX7","VEINCENTRE LIMITED","Y60","MIDLANDS COMMISSIONING REGION"]
["AQK","VERNOVA HEALTHCARE COMMUNITY INTEREST COMPANY","Y62","NORTH WEST COMMISSIONING REGION"]
["NEA","VH COMMUNITY SERVICES LTD","Y56","LONDON COMMISSIONING REGION"]
["NCY","VH DOCTORS LTD","Y56","LONDON COMMISSIONING REGION"]
["DDW","VIADUCT CARE CIC","Y62","NORTH WEST COMMISSIONING REGION"]
["NQT","VIRGIN CARE LTD","Y62","NORTH WEST COMMISSIONING REGION"]
["DNQ","VIRGIN CARE PRIVATE LIMITED","Y56","LONDON COMMISSIONING REGION"]
["NDR","VIRGIN CARE PROVIDER SERVICES LTD","Y61","EAST OF ENGLAND COMMISSIONING REGION"]
["NDA","VIRGIN CARE SERVICES LTD","Y56","LONDON COMMISSIONING REGION"]
["NDA00","VIRGIN CARE SERVICES LTD","Y56","LONDON COMMISSIONING REGION"]
["ACR","VISION CHECKS LTD","Y58","SOUTH WEST COMMISSIONING REGION"]
["NLO","VOCARE","Y63","NORTH EAST AND YORKSHIRE COMMISSIONING REGION"]
["ADD","VOYAGE CARE","Y60","MIDLANDS COMMISSIONING REGION"]
["NRD","WANDSWORTH REFERRAL SERVICE","Y56","LONDON COMMISSIONING REGION"]
["DKK","WANSBECK HUB","Y63","NORTH EAST AND YORKSHIRE COMMISSIONING REGION"]
["NIE","WARD ANNE KATHLEEN DR (DERMATOLOGY)","Y60","MIDLANDS COMMISSIONING REGION"]
["NDU","WARDOUR GROUP LIMITED","Y56","LONDON COMMISSIONING REGION"]
["ARP","WARRINGTON PRIMARY CARE HOMES CIC","Y62","NORTH WEST COMMISSIONING REGION"]
["ALY","WASHINGBOROUGH FAMILY PRACTICE GROUP","Y60","MIDLANDS COMMISSIONING REGION"]
["DM3","WASP SOFTWARE LTD","Y60","MIDLANDS COMMISSIONING REGION"]
["NHC","WATCHTOWER HOUSE MEDICAL/INFIRMARY SERVICES","Y56","LONDON COMMISSIONING REGION"]
["DJX","WATER LANE CLINIC LTD","Y62","NORTH WEST COMMISSIONING REGION"]
["AYF","WATERCRESS MEDICAL","Y59","SOUTH EAST COMMISSIONING REGION"]
["NGW","WATFORD & HERTS COUNSELLING LLP","Y61","EAST OF ENGLAND COMMISSIONING REGION"]
["NVW","WAVENEY PRACTICE BASED COMMISSIONING","Y61","EAST OF ENGLAND COMMISSIONING REGION"]
["DKW","WEALDEN AMBULANCE SERVICES LTD","Y59","SOUTH EAST COMMISSIONING REGION"]
["DTQ","WEIGHT TO GO LTD","Y60","MIDLANDS COMMISSIONING REGION"]
["AXC","WELBECK HEALTHCARE LIMITED","Y56","LONDON COMMISSIONING REGION"]
["NDM","WELDRICKS PHARMACY (CASH SERVICE)","Y63","NORTH EAST AND YORKSHIRE COMMISSIONING REGION"]
["AXE","WELLBEING NORFOLK AND WAVENEY","Y61","EAST OF ENGLAND COMMISSIONING REGION"]
["NGN","WELLINGTON SUPPORT LTD","Y60","MIDLANDS COMMISSIONING REGION"]
["DWK","WELLNESS INTERNATIONAL LTD","Y62","NORTH WEST COMMISSIONING REGION"]
["NXK","WELL-ONE CLINIC","Y63","NORTH EAST AND YORKSHIRE COMMISSIONING REGION"]
["DLJ","WELLS COMMUNITY HOSPITAL TRUST","Y61","EAST OF ENGLAND COMMISSIONING REGION"]
["AKA","WELLSPRING HEALTHY LIVING CENTRE","Y58","SOUTH WEST COMMISSIONING REGION"]
["DWV","WEM TECH SOLUTIONS LTD","Y63","NORTH EAST AND YORKSHIRE COMMISSIONING REGION"]
["ACN","WESSEX FERTILITY LTD","Y59","SOUTH EAST COMMISSIONING REGION"]
["DTJ","WESSEX FERTILITY LTD","Y59","SOUTH EAST COMMISSIONING REGION"]
["DQK","WEST CAMBS FEDERATION","Y61","EAST OF ENGLAND COMMISSIONING REGION"]
["DWN","WEST KENT HEALTH LIMITED","Y59","SOUTH EAST COMMISSIONING REGION"]
["NM1","WEST LANCASHIRE HEALTHCARE PARTNERSHIP COMMUNITY CIC","Y62","NORTH WEST COMMISSIONING REGION"]
["NM100","WEST LANCASHIRE HEALTHCARE PARTNERSHIP COMMUNITY CIC","Y62","NORTH WEST COMMISSIONING REGION"]
["DR7","WEST MID BEDS EXTENDED ACCESS","Y61","EAST OF ENGLAND COMMISSIONING REGION"]
["NDT","WEST MIDLANDS DIAGNOSTIC SERVICES LTD","Y60","MIDLANDS COMMISSIONING REGION"]
["NEB","WEST NORFOLK HEALTH","Y61","EAST OF ENGLAND COMMISSIONING REGION"]
["AJH","WEST NORFOLK OSTEOPATHS LTD","Y61","EAST OF ENGLAND COMMISSIONING REGION"]
["AHT","WEST WAKEFIELD HEALTH & WELLBEING LIMITED","Y63","NORTH EAST AND YORKSHIRE COMMISSIONING REGION"]
["APK","WEST WAKEFIELD HEALTH AND WELLBEING LIMITED","Y63","NORTH EAST AND YORKSHIRE COMMISSIONING REGION"]
["AGA","WESTCLIFFE HEALTH INNOVATIONS LTD","Y63","NORTH EAST AND YORKSHIRE COMMISSIONING REGION"]
["AGA00","WESTCLIFFE HEALTH INNOVATIONS LTD","Y63","NORTH EAST AND YORKSHIRE COMMISSIONING REGION"]
["AG7","WESTCLIFFE MEDICAL SERVICES LTD","Y63","NORTH EAST AND YORKSHIRE COMMISSIONING REGION"]
["ARG","WESTMINISTER DRUG PROJECT","Y56","LONDON COMMISSIONING REGION"]
["AD7","WESTMINSTER MIND","Y56","LONDON COMMISSIONING REGION"]
["DLD","WESTON HOSPICECARE","Y58","SOUTH WEST COMMISSIONING REGION"]
["AJY","WF FEDERATED GP NETWORK LIMITED","Y56","LONDON COMMISSIONING REGION"]
["NP6","WHITMORE REANS HEALTH SERVICES LTD","Y60","MIDLANDS COMMISSIONING REGION"]
["ACH","WHITSTABLE MEDICAL PRACTICE","Y59","SOUTH EAST COMMISSIONING REGION"]
["NKP","WHIZZ-KIDZ","Y56","LONDON COMMISSIONING REGION"]
["AEQ","WIGAN BOROUGH FEDERATED HEALTHCARE LTD","Y62","NORTH WEST COMMISSIONING REGION"]
["NWG","WILCARE HEALTH LTD","Y58","SOUTH WEST COMMISSIONING REGION"]
["DTF","WILTSHIRE GP ALLIANCE","Y58","SOUTH WEST COMMISSIONING REGION"]
["AXG","WILTSHIRE HEALTH & CARE","Y58","SOUTH WEST COMMISSIONING REGION"]
["AXG00","WILTSHIRE HEALTH & CARE","Y58","SOUTH WEST COMMISSIONING REGION"]
["NBT","WINGATE MINOR SURGERY SERVICE","Y62","NORTH WEST COMMISSIONING REGION"]
["NAU","WISBECH OSTEOPATHIC CLINIC","Y61","EAST OF ENGLAND COMMISSIONING REGION"]
["NX9","WMP SERVICES","Y59","SOUTH EAST COMMISSIONING REGION"]
["AXK","WOLVERHAMPTON DOCTORS ON CALL LIMITED","Y60","MIDLANDS COMMISSIONING REGION"]
["AQ3","WOODBURY MEDICAL LTD","Y56","LONDON COMMISSIONING REGION"]
["NO3","WOODFIELD PHYSIOTHERAPY LTD","Y61","EAST OF ENGLAND COMMISSIONING REGION"]
["AYN","WOODLANDS VASECTOMY CLINIC","Y59","SOUTH EAST COMMISSIONING REGION"]
["NR1","WOODSIDE HOSPITAL","Y63","NORTH EAST AND YORKSHIRE COMMISSIONING REGION"]
["DK7","WORCESTERSHIRE IMAGING CENTRE","Y60","MIDLANDS COMMISSIONING REGION"]
["AJN","WORKINGTON HEALTH LIMITED","Y63","NORTH EAST AND YORKSHIRE COMMISSIONING REGION"]
["ADH","WSDM LTD","Y59","SOUTH EAST COMMISSIONING REGION"]
["DFC","XENZONE LIMITED","Y56","LONDON COMMISSIONING REGION"]
["NDK","YARBOROUGH CLEE CARE LIMITED","Y63","NORTH EAST AND YORKSHIRE COMMISSIONING REGION"]
["ANR","YORDALES HEALTH LTD","Y63","NORTH EAST AND YORKSHIRE COMMISSIONING REGION"]
["AYA","YORHEALTH LTD","Y63","NORTH EAST AND YORKSHIRE COMMISSIONING REGION"]
["NTL","YORK CATARACT COMPANY LTD","Y63","NORTH EAST AND YORKSHIRE COMMISSIONING REGION"]
["AH0","YORKSHIRE FATIGUE CLINIC LTD","Y63","NORTH EAST AND YORKSHIRE COMMISSIONING REGION"]
["DLE","YORKSHIRE HEALTH NETWORK","Y63","NORTH EAST AND YORKSHIRE COMMISSIONING REGION"]
["ACX","YORKSHIRE HEALTH PARTNERS LTD","Y63","NORTH EAST AND YORKSHIRE COMMISSIONING REGION"]
["NKO","YORKSHIRE HEALTH SOLUTIONS LTD","Y63","NORTH EAST AND YORKSHIRE COMMISSIONING REGION"]
["DTV","YOUNG PERSONS ADVISORY SERVICE","Y62","NORTH WEST COMMISSIONING REGION"]
["DCQ","YOUR HEALTH AND WELLBEING MENDIP","Y58","SOUTH WEST COMMISSIONING REGION"]
["NNV","YOUR HEALTHCARE","Y56","LONDON COMMISSIONING REGION"]
["DF5","ZENITH COSMETIC CLINICS LTD","Y60","MIDLANDS COMMISSIONING REGION"]
["NGG01",188,"Y60","MIDLANDS COMMISSIONING REGION"]
["AFX02","118 LIMITED (CHATHAM)","Y59","SOUTH EAST COMMISSIONING REGION"]
["AFX01","118 LIMITED HQ","Y61","EAST OF ENGLAND COMMISSIONING REGION"]
["AK901","12 POINT CARE","Y61","EAST OF ENGLAND COMMISSIONING REGION"]
["DCK01","152 HARLEY STREET LTD","Y56","LONDON COMMISSIONING REGION"]
["AVP01","18 WEEK SUPPORT","Y56","LONDON COMMISSIONING REGION"]
["DAL01","18 WEEK SUPPORT GASTROENTEROLOGY","Y56","LONDON COMMISSIONING REGION"]
["NX801","1-GREATLIFE LTD","Y61","EAST OF ENGLAND COMMISSIONING REGION"]
["AML01","1POINT (NORTH WEST)","Y62","NORTH WEST COMMISSIONING REGION"]
["ANL01","1ST CARE CUMBRIA","Y63","NORTH EAST AND YORKSHIRE COMMISSIONING REGION"]
["NQ723","2 AMBLEY GREEN","Y59","SOUTH EAST COMMISSIONING REGION"]
["NQ516","222 PROJECT","Y58","SOUTH WEST COMMISSIONING REGION"]
["DDV1D","3 LOWER BROUGHTON MEDICAL PRACTICE","Y62","NORTH WEST COMMISSIONING REGION"]
["NFX01","3 SPIRES MSK SERVICE HQ","Y58","SOUTH WEST COMMISSIONING REGION"]
["AAF01","360 CARE LTD - GRIMSBY","Y63","NORTH EAST AND YORKSHIRE COMMISSIONING REGION"]
["NEM26","3D MEDICAL CENTRE","Y62","NORTH WEST COMMISSIONING REGION"]
["DKE50","3D MEDICAL CENTRE","Y62","NORTH WEST COMMISSIONING REGION"]
["DTK01","3SIXTY CARE - ST MARYS HOSPITAL","Y60","MIDLANDS COMMISSIONING REGION"]
["DEF02","3V HEALTHCARE LIMITED (CHAPEL HEALTH)","Y60","MIDLANDS COMMISSIONING REGION"]
["DEF01","3V HEALTHCARE LIMITED (COVENTRY)","Y60","MIDLANDS COMMISSIONING REGION"]
["DEF04","3V HEALTHCARE LIMITED (GOYT VALLEY)","Y60","MIDLANDS COMMISSIONING REGION"]
["DEF03","3V HEALTHCARE LIMITED (THORNBROOK)","Y60","MIDLANDS COMMISSIONING REGION"]
["DRL01","42ND STREET (MANCHESTER)","Y62","NORTH WEST COMMISSIONING REGION"]
["DKQ0P","45 PORTLAND ROAD","Y60","MIDLANDS COMMISSIONING REGION"]
["NQ771","50 PEMBROKE COURT","Y59","SOUTH EAST COMMISSIONING REGION"]
["NXD01","8 NARBOROUGH WOOD PARK","Y60","MIDLANDS COMMISSIONING REGION"]
["NY501","8 NARBOROUGH WOOD PARK","Y60","MIDLANDS COMMISSIONING REGION"]
["DAJ02","828 GP SERVICE","Y56","LONDON COMMISSIONING REGION"]
["ALX20","8-8 HEALTH CENTRE","Y63","NORTH EAST AND YORKSHIRE COMMISSIONING REGION"]
["NXV1H","A AYLESFORD SURGERY","Y59","SOUTH EAST COMMISSIONING REGION"]
["NXV1D","A BURDWOOD SURGERY","Y59","SOUTH EAST COMMISSIONING REGION"]
["NXV1A","A CEDARS SURGERY","Y59","SOUTH EAST COMMISSIONING REGION"]
["NRM01","A H PANJVANI (MORDEN EYE CENTRE)","Y56","LONDON COMMISSIONING REGION"]
["NXV99","A LEE HOUSE SURGERY","Y59","SOUTH EAST COMMISSIONING REGION"]
["NXV1M","A MANOR PARK MEDICAL CENTRE","Y59","SOUTH EAST COMMISSIONING REGION"]
["NXV1C","A MORTIMER SURGERY","Y59","SOUTH EAST COMMISSIONING REGION"]
["NXV1E","A NEW HAYES BANK SURGERY","Y59","SOUTH EAST COMMISSIONING REGION"]
["NXV1L","A PANGBOURNE MEDICAL PRACTICE","Y59","SOUTH EAST COMMISSIONING REGION"]
["NXV1G","A PENCESTER SURGERY","Y59","SOUTH EAST COMMISSIONING REGION"]
["NXV1F","A PETERS STREET SURGERY","Y59","SOUTH EAST COMMISSIONING REGION"]
["NXV1N","A SHINFIELD MEDICAL CENTRE","Y59","SOUTH EAST COMMISSIONING REGION"]
["NXV1K","A SWALLOWFIELD MEDICAL PRACTICE","Y59","SOUTH EAST COMMISSIONING REGION"]
["NV610","A TAYLOR OPTICIANS","Y62","NORTH WEST COMMISSIONING REGION"]
["NXV1J","A WATERINGBURY","Y59","SOUTH EAST COMMISSIONING REGION"]
["DM601","A&E LIFE SUPPORT","Y62","NORTH WEST COMMISSIONING REGION"]
["NAO01","A&Z WOUNDS LIMITED (LONDON)","Y56","LONDON COMMISSIONING REGION"]
["NDAE9","A2 DOMINION","Y59","SOUTH EAST COMMISSIONING REGION"]
["AFD02","A6 PHYSIOTHERAPY","Y62","NORTH WEST COMMISSIONING REGION"]
["NX210","AARON OPTOMETRISTS","Y63","NORTH EAST AND YORKSHIRE COMMISSIONING REGION"]
["NCU03","ABACUS PHYSIOTHERAPY","Y63","NORTH EAST AND YORKSHIRE COMMISSIONING REGION"]
["NEM1H","ABBEY","Y60","MIDLANDS COMMISSIONING REGION"]
["NQ746","ABBEY COURT SCHOOL","Y59","SOUTH EAST COMMISSIONING REGION"]
["NWV49","ABBEY FIELD MEDICAL CENTRE","Y61","EAST OF ENGLAND COMMISSIONING REGION"]
["NGA04","ABBEY FIELDS MEDICAL CENTRE","Y61","EAST OF ENGLAND COMMISSIONING REGION"]
["NTF01","ABBEY GISBURNE PARK HOSPITAL","Y62","NORTH WEST COMMISSIONING REGION"]
["NMV15","ABBEY HOUSE","Y60","MIDLANDS COMMISSIONING REGION"]
["NTN0N","ABBEY HOUSE","Y60","MIDLANDS COMMISSIONING REGION"]
["NWV38","ABBEY MEADS MEDICAL GROUP","Y58","SOUTH WEST COMMISSIONING REGION"]
["NMG66","ABBEY MEDICAL CENTRE","Y56","LONDON COMMISSIONING REGION"]
["NEM0E","ABBEY MEDICAL CENTRE","Y63","NORTH EAST AND YORKSHIRE COMMISSIONING REGION"]
["NRP41","ABBEY MEDICAL GROUP","Y60","MIDLANDS COMMISSIONING REGION"]
["NT4C5","ABBEY MEDICAL PRACTICE","Y60","MIDLANDS COMMISSIONING REGION"]
["NQT2R","ABBEY RISE","Y58","SOUTH WEST COMMISSIONING REGION"]
["NXV1U","ABBEY ROAD MEDICAL CENTRE","Y56","LONDON COMMISSIONING REGION"]
["NMW01","ABBEY SEFTON HOSPITAL","Y62","NORTH WEST COMMISSIONING REGION"]
["NPR01","ABOUT HEALTH HQ","Y58","SOUTH WEST COMMISSIONING REGION"]
["AWX01","ACCREDO SUPPORT & DEVELOPMENT LTD - OADBY","Y60","MIDLANDS COMMISSIONING REGION"]
["AE901","ACHOR HEALTHCARE LIMITED","Y59","SOUTH EAST COMMISSIONING REGION"]
["NI348","ADDACTION BLACKPOOL FULFILLING LIVES","Y62","NORTH WEST COMMISSIONING REGION"]
["NI352","ADDACTION CORNWALL REDRUTH","Y58","SOUTH WEST COMMISSIONING REGION"]
["NI355","ADDACTION HARTLEPOOL","Y63","NORTH EAST AND YORKSHIRE COMMISSIONING REGION"]
["NI301","ADDACTION HQ","Y56","LONDON COMMISSIONING REGION"]
["NI362","ADDACTION NORTH & WEST REGIONAL OFFICE","Y62","NORTH WEST COMMISSIONING REGION"]
["NI334","ADDACTION ST HELENS","Y62","NORTH WEST COMMISSIONING REGION"]
["DE827","ADDERLEY GREEN","Y60","MIDLANDS COMMISSIONING REGION"]
["DDN01","ADVANCED DIAGNOSTICS SERVICES","Y62","NORTH WEST COMMISSIONING REGION"]
["NX251","AELFGAR SURGERY - AQP ADULT HEARING","Y60","MIDLANDS COMMISSIONING REGION"]
["NEC06","AHP SUFFOLK (RIVERSIDE CLINIC)","Y61","EAST OF ENGLAND COMMISSIONING REGION"]
["NMV40","ALBION HOUSE","Y56","LONDON COMMISSIONING REGION"]
["NTW01","ALEXANDER HOUSE","Y56","LONDON COMMISSIONING REGION"]
["NEL10","ALFRETON PRIMARY CARE CENTRE","Y60","MIDLANDS COMMISSIONING REGION"]
["NT941","ALLIANCE MEDICAL MRI SERVICE - BIRMINGHAM","Y60","MIDLANDS COMMISSIONING REGION"]
["NT929","ALLIANCE MEDICAL MRI SERVICE - DONCASTER","Y63","NORTH EAST AND YORKSHIRE COMMISSIONING REGION"]
["AAW01","ALLIED HEALTHCARE GROUP (HATFIELD)","Y61","EAST OF ENGLAND COMMISSIONING REGION"]
["NDF01","ALPHA MEDICAL (GROUP) LIMITED (ESSEX)","Y61","EAST OF ENGLAND COMMISSIONING REGION"]
["NO04M","AMBAR MEDICAL CENTRE","Y60","MIDLANDS COMMISSIONING REGION"]
["NGH07","AMPLIFON HEARING SPECIALISTS (BIDEFORD)","Y58","SOUTH WEST COMMISSIONING REGION"]
["NNV0E","AMY WOODGATE HOUSE","Y56","LONDON COMMISSIONING REGION"]
["NHH01","AN APPLE A DAY LIMITED","Y58","SOUTH WEST COMMISSIONING REGION"]
["NKK03","ANGEL & BOWDEN - WEST THAMES PHYSIO","Y56","LONDON COMMISSIONING REGION"]
["NWR02","ANGMERING MEDICAL CENTRE","Y59","SOUTH EAST COMMISSIONING REGION"]
["AFD05","APEX PHYSIOTHERAPY (CHORLEY)","Y62","NORTH WEST COMMISSIONING REGION"]
["NEM1R","ARBORETUM","Y60","MIDLANDS COMMISSIONING REGION"]
["NQT04","ARLINGTON CENTRE","Y58","SOUTH WEST COMMISSIONING REGION"]
["NL10G","ARP LEIGH SEXUAL HEALTH","Y62","NORTH WEST COMMISSIONING REGION"]
["NQTT5","ASH TREES SURGERY","Y62","NORTH WEST COMMISSIONING REGION"]
["NO090","ASHFIELD MEDICAL CENTRE","Y60","MIDLANDS COMMISSIONING REGION"]
["NTV1Y","ASHFORD HOSPITAL","Y59","SOUTH EAST COMMISSIONING REGION"]
["NED30","ASHTEAD HOSPITAL","Y59","SOUTH EAST COMMISSIONING REGION"]
["AKK13","ASHVILLE SURGERY","Y56","LONDON COMMISSIONING REGION"]
["NTPWE","ASHWAY COURT","Y58","SOUTH WEST COMMISSIONING REGION"]
["DKQ01","ASPEN HOUSE","Y63","NORTH EAST AND YORKSHIRE COMMISSIONING REGION"]
["NQTYA","ASSURA - STAPENHILL MEDICAL CENTRE","Y60","MIDLANDS COMMISSIONING REGION"]
["NQTX0","ASSURA NORTH SURREY","Y59","SOUTH EAST COMMISSIONING REGION"]
["NKW02","ASTON MINOR SURGERY SERVICE","Y62","NORTH WEST COMMISSIONING REGION"]
["NO04A","ATHERSTONE SURGERY","Y60","MIDLANDS COMMISSIONING REGION"]
["DTW02","ATRUMED URGENT GP CLINIC","Y61","EAST OF ENGLAND COMMISSIONING REGION"]
["NLW06","AVONMOUTH MEDICAL CENTRE","Y58","SOUTH WEST COMMISSIONING REGION"]
["NL51R","AYLMER LODGE SURGERY","Y60","MIDLANDS COMMISSIONING REGION"]
["NKE16","BACK2HEALTH EMSWORTH","Y59","SOUTH EAST COMMISSIONING REGION"]
["NKE10","BACK2HEALTH MIDHURST","Y59","SOUTH EAST COMMISSIONING REGION"]
["NDA92","BAGSHOT SURE START CHILDRENS CENTRE","Y59","SOUTH EAST COMMISSIONING REGION"]
["DE839","BALLINGTON HOUSE","Y60","MIDLANDS COMMISSIONING REGION"]
["NEL18","BARBOURNE HEALTH CENTRE","Y60","MIDLANDS COMMISSIONING REGION"]
["NV214","BARLEYCOMBE","Y61","EAST OF ENGLAND COMMISSIONING REGION"]
["NQT0H","BARNES/GREENWAYS","Y58","SOUTH WEST COMMISSIONING REGION"]
["NMI03","BARTON SURGERY","Y58","SOUTH WEST COMMISSIONING REGION"]
["NQT6G","BATH AND NORTH EAST SOMERSET COMMUNITY HEALTH AND CARE SERVICES (KEYNSHAM CIVIC CENTRE)","Y58","SOUTH WEST COMMISSIONING REGION"]
["NTQ08","BAXTER HEALTHCARE (MIDDLESEX)","Y56","LONDON COMMISSIONING REGION"]
["NMJ37","BEACON HOUSE","Y63","NORTH EAST AND YORKSHIRE COMMISSIONING REGION"]
["DGE02","BEACON PRIMARY CARE GPSI (RAILWAY ROAD SURGERY)","Y62","NORTH WEST COMMISSIONING REGION"]
["NEPF4","BEARSTED MEDICAL PRACTICE","Y59","SOUTH EAST COMMISSIONING REGION"]
["AD910","BEDFONT CENTRE","Y56","LONDON COMMISSIONING REGION"]
["DWF01","BEECHFIELD MEDICAL CENTRE SITE","Y60","MIDLANDS COMMISSIONING REGION"]
["NV216","BEETON GRANGE","Y60","MIDLANDS COMMISSIONING REGION"]
["NYT15","BELTON SURGERY","Y63","NORTH EAST AND YORKSHIRE COMMISSIONING REGION"]
["NTY57","BENENDEN HOSPITAL","Y59","SOUTH EAST COMMISSIONING REGION"]
["DJQ27","BERKSHIRE ROAD CLINIC","Y59","SOUTH EAST COMMISSIONING REGION"]
["NR320","BEST CREATIVE (ASPLEY COMMUNITY TRANING CENTRE)","Y60","MIDLANDS COMMISSIONING REGION"]
["NTN2L","BEVERLEY MEWS","Y60","MIDLANDS COMMISSIONING REGION"]
["ATP07","BGPA BECKENHAM BEACON","Y56","LONDON COMMISSIONING REGION"]
["NWX11","BICS-COMMUNITY","Y59","SOUTH EAST COMMISSIONING REGION"]
["ANG26","BICTON HEATH PHARMACY","Y60","MIDLANDS COMMISSIONING REGION"]
["NIB06","BILBROOK MEDICAL CENTRE","Y60","MIDLANDS COMMISSIONING REGION"]
["AGA23","BINGLEY MEDICAL PRACTICE","Y63","NORTH EAST AND YORKSHIRE COMMISSIONING REGION"]
["NL834","BIRK-BEES CHILDREN'S CENTRE","Y63","NORTH EAST AND YORKSHIRE COMMISSIONING REGION"]
["NT9D8","BISHOP AUCKLAND FOOTBALL CLUB (ALLIANCE MEDICAL SCANNER PAD)","Y63","NORTH EAST AND YORKSHIRE COMMISSIONING REGION"]
["NL5DM","BITTERNE HEALTH CENTRE","Y59","SOUTH EAST COMMISSIONING REGION"]
["NQTF5","BLACKETTS MEDICAL PRACTICE","Y63","NORTH EAST AND YORKSHIRE COMMISSIONING REGION"]
["NV106","BLACKHEATH HOSPITAL","Y56","LONDON COMMISSIONING REGION"]
["NQA18","BLANDFORD HOUSE","Y61","EAST OF ENGLAND COMMISSIONING REGION"]
["NV1O0","BLUEBELL PHYSIO - MEOPHAM","Y59","SOUTH EAST COMMISSIONING REGION"]
["NT409","BMI - CHELSFIELD PARK HOSPITAL","Y56","LONDON COMMISSIONING REGION"]
["NT418","BMI - THE HAMPSHIRE CLINIC","Y59","SOUTH EAST COMMISSIONING REGION"]
["NT423","BMI - THE MANOR HOSPITAL","Y61","EAST OF ENGLAND COMMISSIONING REGION"]
["NT440","BMI - THORNBURY HOSPITAL","Y63","NORTH EAST AND YORKSHIRE COMMISSIONING REGION"]
["NV13U","BMI ESPERANCE HOSPITAL","Y59","SOUTH EAST COMMISSIONING REGION"]
["NT4F1","BMI HEALTHCARE OUTREACH CLINIC - FAKENHAM MEDICAL PRACTICE","Y61","EAST OF ENGLAND COMMISSIONING REGION"]
["NT446","BMI ST EDMUNDS HOSPITAL","Y61","EAST OF ENGLAND COMMISSIONING REGION"]
["NT447","BMI THE DUCHY HOSPITAL","Y63","NORTH EAST AND YORKSHIRE COMMISSIONING REGION"]
["NAD04","BOC (MIDDLESBROUGH)","Y63","NORTH EAST AND YORKSHIRE COMMISSIONING REGION"]
["NL5N9","BODY AND SOLE","Y60","MIDLANDS COMMISSIONING REGION"]
["AAA01","BOOTS - ANTICOAGULATION SERVICE","Y56","LONDON COMMISSIONING REGION"]
["AAA13","BOOTS ANTICOAGULATION SERVICE (HIGH WYCOMBE)","Y59","SOUTH EAST COMMISSIONING REGION"]
["NEL37","BOOTS HEARINGCARE 3492 (EVESHAM)","Y60","MIDLANDS COMMISSIONING REGION"]
["NEL07","BOOTS HEARINGCARE LTD (TRINITY SQUARE)","WALES","WALES"]
["NMJ0D","BOSTALL HOUSE","Y56","LONDON COMMISSIONING REGION"]
["NEM0B","BOURNE GALLETLY","Y60","MIDLANDS COMMISSIONING REGION"]
["NT105","BPAS (BRIGHTON)","Y59","SOUTH EAST COMMISSIONING REGION"]
["NT128","BPAS BASINGSTOKE DCU","Y59","SOUTH EAST COMMISSIONING REGION"]
["NT106","BPAS BRIGHTON CLINIC","Y59","SOUTH EAST COMMISSIONING REGION"]
["NT186","BPAS MANCHESTER EAST DCU","Y62","NORTH WEST COMMISSIONING REGION"]
["NT159","BPAS ST HELENS DCU","Y62","NORTH WEST COMMISSIONING REGION"]
["NMK59","BRACKNELL HEALTHSPACE","Y59","SOUTH EAST COMMISSIONING REGION"]
["NES06","BRADLEY WOODLANDS","Y63","NORTH EAST AND YORKSHIRE COMMISSIONING REGION"]
["DE818","BRAEBURN HOUSE","Y62","NORTH WEST COMMISSIONING REGION"]
["DKQ29","BRAMBLES","Y61","EAST OF ENGLAND COMMISSIONING REGION"]
["AA434","BRANDON LANE SURGERY","Y63","NORTH EAST AND YORKSHIRE COMMISSIONING REGION"]
["NT974","BREIGHTMET HEALTH CENTRE (SCANNER PAD)","Y62","NORTH WEST COMMISSIONING REGION"]
["NQA90","BRENTWOOD REGUS OFFICES","Y61","EAST OF ENGLAND COMMISSIONING REGION"]
["NBG3P","BREWERY LANE SURGERY","Y63","NORTH EAST AND YORKSHIRE COMMISSIONING REGION"]
["NEF07","BRIDGE MEDICAL CENTRE","Y58","SOUTH WEST COMMISSIONING REGION"]
["NTM14","BRIDLINGTON DIALYSIS UNIT","Y63","NORTH EAST AND YORKSHIRE COMMISSIONING REGION"]
["NEM1O","BRIMPTON HOUSE SURGERY","Y61","EAST OF ENGLAND COMMISSIONING REGION"]
["NJX01","BRISTOL PLASTIC SURGERY","Y58","SOUTH WEST COMMISSIONING REGION"]
["NHT47","BROADWATER FARM MEDICAL PRACTICE","Y56","LONDON COMMISSIONING REGION"]
["NEP0W","BROCKLEBANK GROUP PRACTICE","Y56","LONDON COMMISSIONING REGION"]
["NCP12","BROMYARD MARKET TOWN & PERIPHERY","Y60","MIDLANDS COMMISSIONING REGION"]
["NDD02","BROOK HOUSE","Y59","SOUTH EAST COMMISSIONING REGION"]
["NQ506","BROOK PENNINE (OLDHAM)","Y62","NORTH WEST COMMISSIONING REGION"]
["NKO15","BROOKHOUSE MEDICAL CENTRE","Y62","NORTH WEST COMMISSIONING REGION"]
["NMJ67","BROUGHTON HOUSE","Y60","MIDLANDS COMMISSIONING REGION"]
["NMJ93","BROUGHTON LODGE","Y62","NORTH WEST COMMISSIONING REGION"]
["NBY11","BUCKDEN DERMATOLOGY SERVICE - MOATHOUSE SURGERY","Y61","EAST OF ENGLAND COMMISSIONING REGION"]
["DMT04","BUCKS 24/7, BUCKINGHAM COMMUNITY HOSPITAL","Y59","SOUTH EAST COMMISSIONING REGION"]
["NFI02","BUNNYHILL PRIMARY CARE CENTRE","Y63","NORTH EAST AND YORKSHIRE COMMISSIONING REGION"]
["NEM1S","BURGHLEY ROAD","Y61","EAST OF ENGLAND COMMISSIONING REGION"]
["NQG01","BURRSWOOD HOSPITAL SITE","Y59","SOUTH EAST COMMISSIONING REGION"]
["NQT4P","BURSCOUGH HEALTH CENTRE","Y62","NORTH WEST COMMISSIONING REGION"]
["DAN01","BUTTERWICK HOSPICE (STOCKTON)","Y63","NORTH EAST AND YORKSHIRE COMMISSIONING REGION"]
["AJ606","CALDERDALE DRUG & ALCOHOL SERVICE","Y63","NORTH EAST AND YORKSHIRE COMMISSIONING REGION"]
["NTT27","CAMBIAN ANSEL CLINIC","Y60","MIDLANDS COMMISSIONING REGION"]
["NTT26","CAMBIAN WILLOWS","Y61","EAST OF ENGLAND COMMISSIONING REGION"]
["NYR14","CAMBRIDGE CITY CENTRE (BOOTS) MEDICAL PRACTICE","Y61","EAST OF ENGLAND COMMISSIONING REGION"]
["NBY04","CAMBS & PETERBOROUGH REFERRAL SUPPORT SERVICES - CAMBRIDGE AREA","Y61","EAST OF ENGLAND COMMISSIONING REGION"]
["NEM46","CANALSIDE HEALTH CARE CENTRE","Y63","NORTH EAST AND YORKSHIRE COMMISSIONING REGION"]
["NO00X","CANNOCK HOSPITAL","Y60","MIDLANDS COMMISSIONING REGION"]
["DD70B","CAPITAL PHYSIO (BARBICAN)","Y56","LONDON COMMISSIONING REGION"]
["DD720","CAPITAL PHYSIO (EPPING)","Y61","EAST OF ENGLAND COMMISSIONING REGION"]
["DD70L","CAPITAL PHYSIO (HOLBORN)","Y56","LONDON COMMISSIONING REGION"]
["DD715","CAPITAL PHYSIO (WESTMINSTER)","Y56","LONDON COMMISSIONING REGION"]
["NXX4O","CARE UK AT GOSPORT WAR MEMORIAL HOSPITAL - GOSPORT","Y59","SOUTH EAST COMMISSIONING REGION"]
["NTPD6","CARE UK URGENT CARE/CRH","Y63","NORTH EAST AND YORKSHIRE COMMISSIONING REGION"]
["NL821","CARLINGHOW & WILTON CHILDREN'S CENTRE","Y63","NORTH EAST AND YORKSHIRE COMMISSIONING REGION"]
["NQT5X","CARRSWOOD DAY SERVICES","Y58","SOUTH WEST COMMISSIONING REGION"]
["NNV0S","CASTLE HILL PRIMARY SCHOOL","Y56","LONDON COMMISSIONING REGION"]
["DJQ24","CATERHAM DENE COMMUNITY HOSPITAL","Y59","SOUTH EAST COMMISSIONING REGION"]
["ANG10","CAXTON MEDICAL PRACTICE","Y60","MIDLANDS COMMISSIONING REGION"]
["NXVD2","CEDAR PARK HEALTH CARE","Y60","MIDLANDS COMMISSIONING REGION"]
["NTT12","CEDARS","Y60","MIDLANDS COMMISSIONING REGION"]
["ANJ01","CENTRAL LONDON PRIMARY CARE COUNSELLORS (LISSON GROVE)","Y56","LONDON COMMISSIONING REGION"]
["NV304","CENTRES OF CLINICAL EXCELLENCE - PLYMOUTH","Y58","SOUTH WEST COMMISSIONING REGION"]
["NEC20","CHANTRY CLINIC","Y61","EAST OF ENGLAND COMMISSIONING REGION"]
["ACE01","CHARING MEDICAL PARTNERSHIP","Y59","SOUTH EAST COMMISSIONING REGION"]
["NRQ02","CHARTER MEDICAL SERVICES (WITHINGTON COMMUNITY HOSPITAL)","Y62","NORTH WEST COMMISSIONING REGION"]
["NV1A3","CHASE FARM HOSPITAL","Y56","LONDON COMMISSIONING REGION"]
["NRP0I","CHEADLE MEDICAL PRACTICE","Y62","NORTH WEST COMMISSIONING REGION"]
["NTV1V","CHERTSEY HEALTH CENTRE","Y59","SOUTH EAST COMMISSIONING REGION"]
["DE840","CHESTERFIELD HOUSE","Y60","MIDLANDS COMMISSIONING REGION"]
["AV201","CHILD DYNAMIX (PRESTON ROAD)","Y63","NORTH EAST AND YORKSHIRE COMMISSIONING REGION"]
["NHN01","CHILDREN'S RESPITE CARE LTD","Y61","EAST OF ENGLAND COMMISSIONING REGION"]
["NX011","CHIME SOCIAL ENTERPRISE - OTTERY ST. MARY HOSPITAL","Y58","SOUTH WEST COMMISSIONING REGION"]
["NIQ01","CHIROPRACTIC HEALTH CENTRES LTD HQ","Y61","EAST OF ENGLAND COMMISSIONING REGION"]
["AFD22","CHORLEY MEDICS PHYSIO - ACRESWOOD COPPULL SURGERY","Y62","NORTH WEST COMMISSIONING REGION"]
["AFD23","CHORLEY MEDICS PHYSIO - REGENT HOUSE SURGERY","Y62","NORTH WEST COMMISSIONING REGION"]
["DPV02","CHUMS CIC (PINNACLE HOUSE)","Y61","EAST OF ENGLAND COMMISSIONING REGION"]
["DPV01","CHUMS CIC (WREST PARK)","Y61","EAST OF ENGLAND COMMISSIONING REGION"]
["NTP53","CHURCH STREET SURGERY","Y63","NORTH EAST AND YORKSHIRE COMMISSIONING REGION"]
["DL507","CINICAL PARTNERS EXETER","Y58","SOUTH WEST COMMISSIONING REGION"]
["NV302","CIRCLE BATH HOSPITAL","Y58","SOUTH WEST COMMISSIONING REGION"]
["NV336","CIRCLE MSK BEDFORD","Y61","EAST OF ENGLAND COMMISSIONING REGION"]
["NV1L4","CIRENCESTER HOSPITAL","Y58","SOUTH WEST COMMISSIONING REGION"]
["NWV0A","CIRENCESTER HOSPITAL","Y58","SOUTH WEST COMMISSIONING REGION"]
["NHI01","CLACTON CHIROPRACTIC CLINIC","Y61","EAST OF ENGLAND COMMISSIONING REGION"]
["NDA97","CLARENDON CHILDREN'S CENTRE","Y59","SOUTH EAST COMMISSIONING REGION"]
["NBG15","CLAYTON HEALTH CENTRE","Y62","NORTH WEST COMMISSIONING REGION"]
["NLT02","CLEVEDON HOSPITAL","Y58","SOUTH WEST COMMISSIONING REGION"]
["NEM8H","CLIFF VILLAGES","Y60","MIDLANDS COMMISSIONING REGION"]
["NNF36","CLIFTON CHILDRENS CENTRE","Y63","NORTH EAST AND YORKSHIRE COMMISSIONING REGION"]
["AH901","CLINICAL DIAGNOSTIX LTD - DERBY","Y60","MIDLANDS COMMISSIONING REGION"]
["NPR07","CLITHEROE HEALTH CENTRE","Y62","NORTH WEST COMMISSIONING REGION"]
["NFC0G","COALPIT HEATH SURGERY","Y58","SOUTH WEST COMMISSIONING REGION"]
["NQ530","COBC COLLEGE GREEN","Y58","SOUTH WEST COMMISSIONING REGION"]
["NEM32","COCKERMOUTH HOSPITAL & HEALTH CENTRE","Y63","NORTH EAST AND YORKSHIRE COMMISSIONING REGION"]
["NV503","COLCHESTER","Y61","EAST OF ENGLAND COMMISSIONING REGION"]
["NDI03","COLCHESTER PRIMARY CARE CENTRE","Y61","EAST OF ENGLAND COMMISSIONING REGION"]
["NQA26","COLLINGWOOD ROAD","Y61","EAST OF ENGLAND COMMISSIONING REGION"]
["NEM8M","COMBERTON","Y61","EAST OF ENGLAND COMMISSIONING REGION"]
["AGJ01","COMMUNITY COLPOSCOPY SERVICES - CUMBERLAND HOUSE","Y62","NORTH WEST COMMISSIONING REGION"]
["NLX15","COMMUNITY EQUIPMENT SERVICE & COMMUNITY ALARMS","Y58","SOUTH WEST COMMISSIONING REGION"]
["AAV09","COMMUNITY HEALTH & EYECARE LTD(SUZANNE DENNIS OPTOMETRIST COPPULL)","Y62","NORTH WEST COMMISSIONING REGION"]
["NWV63","COMMUNITY VOLUNTARY SERVICES TENDRING","Y61","EAST OF ENGLAND COMMISSIONING REGION"]
["NFC0I","CONCORDE MEDICAL CENTRE","Y58","SOUTH WEST COMMISSIONING REGION"]
["NMG06","CONNECT PHYSICAL HEALTH - HEATON","Y63","NORTH EAST AND YORKSHIRE COMMISSIONING REGION"]
["NMG25","CONNECT PHYSICAL HEALTH - NEWCASTLE GENERAL HOSPITAL","Y63","NORTH EAST AND YORKSHIRE COMMISSIONING REGION"]
["AER01","CONSULTANT EYE SURGEONS PARTNERSHIP (CANTERBURY) LLP - CATERHAM","Y59","SOUTH EAST COMMISSIONING REGION"]
["DDV33","CORKLAND ROAD MEDICAL PRACTICE","Y62","NORTH WEST COMMISSIONING REGION"]
["AXG04","CORSHAM CAMPUS","Y58","SOUTH WEST COMMISSIONING REGION"]
["AA904","COTTER LAUBIS PARTNERS (BEDSIDE MANOR)","Y56","LONDON COMMISSIONING REGION"]
["AA906","COTTER LAUBIS PARTNERS (GOOD HEALTH)","Y56","LONDON COMMISSIONING REGION"]
["NQ751","COURT VIEW SURGERY","Y59","SOUTH EAST COMMISSIONING REGION"]
["NMV46","CRAGSTON COURT","Y63","NORTH EAST AND YORKSHIRE COMMISSIONING REGION"]
["NT171","CRAWLEY DCU","Y59","SOUTH EAST COMMISSIONING REGION"]
["NT978","CREFFIELD MEDICAL CENTRE (ALLIANCE MEDICAL SCANNER PAD)","Y61","EAST OF ENGLAND COMMISSIONING REGION"]
["ANG42","CRESSAGE MEDICAL PRACTICE","Y60","MIDLANDS COMMISSIONING REGION"]
["NL304","CROMWELL ROAD RESOURCE CENTRE","Y63","NORTH EAST AND YORKSHIRE COMMISSIONING REGION"]
["NL51A","CROUCH HALL ROAD SURGERY","Y56","LONDON COMMISSIONING REGION"]
["AG006","CROXTON LODGE HOSPITAL","Y60","MIDLANDS COMMISSIONING REGION"]
["NT721","CUMBERLAND INFIRMARY - CARLISLE","Y63","NORTH EAST AND YORKSHIRE COMMISSIONING REGION"]
["NHT50","CUSTOM HOUSE SURGERY","Y56","LONDON COMMISSIONING REGION"]
["NMJ88","CYGNET ASPEN CLINIC","Y63","NORTH EAST AND YORKSHIRE COMMISSIONING REGION"]
["NMJ44","CYGNET HOSPITAL COLCHESTER","Y61","EAST OF ENGLAND COMMISSIONING REGION"]
["NMJ29","CYGNET RAGLAN HOUSE","Y60","MIDLANDS COMMISSIONING REGION"]
["DLC01","CYNOSURE HEALTH CARE","Y60","MIDLANDS COMMISSIONING REGION"]
["NNV2S","DARELL PRIMARY AND NURSERY SCHOOL","Y56","LONDON COMMISSIONING REGION"]
["NEM31","DARWEN HEALTH CENTRE","Y62","NORTH WEST COMMISSIONING REGION"]
["NCP66","DAVENAL HOUSE SURGERY","Y60","MIDLANDS COMMISSIONING REGION"]
["NQT2J","DAWLISH HOSPITAL","Y58","SOUTH WEST COMMISSIONING REGION"]
["NEPE6","DEARNE VALLEY MEDICAL PRACTICE","Y63","NORTH EAST AND YORKSHIRE COMMISSIONING REGION"]
["NV1E2","DENE BARTON COMMUNITY UNIT","Y58","SOUTH WEST COMMISSIONING REGION"]
["DH801","DERMAN","Y56","LONDON COMMISSIONING REGION"]
["DKQ0X","DEVON LODGE","Y59","SOUTH EAST COMMISSIONING REGION"]
["NMJ96","DEVON LODGE","Y59","SOUTH EAST COMMISSIONING REGION"]
["NNJ08","DHU LLR HOME VISITING OOH UNIT","Y60","MIDLANDS COMMISSIONING REGION"]
["NCP71","DIBDEN PURLIEU SURGERY","Y59","SOUTH EAST COMMISSIONING REGION"]
["DGJ12","DIRECT MEDICARE UK - GARNET FOLD PRACTICE","Y62","NORTH WEST COMMISSIONING REGION"]
["DGJ18","DIRECT MEDICARE UK - THE CHOWDHURY PRACTICE","Y62","NORTH WEST COMMISSIONING REGION"]
["NCN0S","DMC COMMUNITY DERMATOLOGY & MINOR OPS SERVICE - HAMMERSMITH & FULHAM","Y56","LONDON COMMISSIONING REGION"]
["NCN18","DMC COMMUNITY DERMATOLOGY SERVICE - ASHFORD - THE CHARING PRACTICE","Y59","SOUTH EAST COMMISSIONING REGION"]
["NCNBT","DMC COMMUNITY DERMATOLOGY SERVICE - ERY - THE BARTHOLOMEW MEDICAL GROUP (GOOLE)","Y63","NORTH EAST AND YORKSHIRE COMMISSIONING REGION"]
["NCN29","DMC COMMUNITY DERMATOLOGY SERVICE - RBWF - MILLSTREAM SURGERY","Y60","MIDLANDS COMMISSIONING REGION"]
["NCN14","DMC COMMUNITY SERVICES- REDBRIDGE (SOUTH WOODFORD HEALTH CENTRE)","Y56","LONDON COMMISSIONING REGION"]
["NEM8U","DOGSTHORPE MEDICAL CENTRE","Y61","EAST OF ENGLAND COMMISSIONING REGION"]
["NO091","DONNINGTON MEDICAL CENTRE","Y60","MIDLANDS COMMISSIONING REGION"]
["DF907","DORSET DESP OFFICE","Y58","SOUTH WEST COMMISSIONING REGION"]
["NRJ02","DR A CHAMBERS' MEDICAL PRACTICE (NEWARK)","Y60","MIDLANDS COMMISSIONING REGION"]
["NBG0O","DR CP KHATRI AND PARTNERS","Y62","NORTH WEST COMMISSIONING REGION"]
["NBG44","DR MAHMOOD & PARTNERS","Y63","NORTH EAST AND YORKSHIRE COMMISSIONING REGION"]
["ALX11","DR VORA AND PARTNERS","Y63","NORTH EAST AND YORKSHIRE COMMISSIONING REGION"]
["NEPG4","DRAGON COTTAGE SURGERY","Y59","SOUTH EAST COMMISSIONING REGION"]
["DNG01","DUKES MEADOWS GOLF & TENNIS","Y56","LONDON COMMISSIONING REGION"]
["NX20C","EAGLESCLIFFE HEALTH CENTRE","Y63","NORTH EAST AND YORKSHIRE COMMISSIONING REGION"]
["NLW31","EAST BRISTOL INTERMEDIATE CARE CENTRE","Y58","SOUTH WEST COMMISSIONING REGION"]
["NHL04","EAST LANCASHIRE DEAF SOCIETY (BURNLEY)","Y62","NORTH WEST COMMISSIONING REGION"]
["DAK01","EAST LANCASHIRE UNION OF GPS","Y62","NORTH WEST COMMISSIONING REGION"]
["NGU07","EAST SUFFOLK EYE CARE SERVICES","Y61","EAST OF ENGLAND COMMISSIONING REGION"]
["NL5EF","EASTNEY HEALTH CENTRE","Y59","SOUTH EAST COMMISSIONING REGION"]
["NAX03","ECCH BECCLES HOSPITAL","Y61","EAST OF ENGLAND COMMISSIONING REGION"]
["NAX21","ECCH NELSON","Y61","EAST OF ENGLAND COMMISSIONING REGION"]
["NAX25","ECCH PRIORY CC","Y61","EAST OF ENGLAND COMMISSIONING REGION"]
["NBG1P","ECCLES GATEWAY","Y62","NORTH WEST COMMISSIONING REGION"]
["NGL01","ECHOGENICITY LIMITED HQ","Y58","SOUTH WEST COMMISSIONING REGION"]
["NTN35","EGERTON ROAD NEURO-REHABILITATION CENTRE","Y59","SOUTH EAST COMMISSIONING REGION"]
["NMJ45","ELENI HOUSE","Y61","EAST OF ENGLAND COMMISSIONING REGION"]
["DN701","ELLERN MEDE BARNET (LONDON)","Y56","LONDON COMMISSIONING REGION"]
["NQT6C","ELM HAYES SURGERY","Y58","SOUTH WEST COMMISSIONING REGION"]
["AC010","ELMS PENDLE VALLEY MILL MEDICAL PRACTICE","Y62","NORTH WEST COMMISSIONING REGION"]
["NLX33","EMERSONS GREEN MEDICAL CENTRE","Y58","SOUTH WEST COMMISSIONING REGION"]
["NAN01","ENFIELD HEALTH PARTNERSHIP (GREENLANE SURGERY)","Y56","LONDON COMMISSIONING REGION"]
["NBF15","EPWORTH PHYSIOTHERAPY & SPORTS INJURIES CLINIC","Y63","NORTH EAST AND YORKSHIRE COMMISSIONING REGION"]
["NHX04","EQUINIX","Y59","SOUTH EAST COMMISSIONING REGION"]
["AXX01","ESSENZE (WILTON PARK)","Y59","SOUTH EAST COMMISSIONING REGION"]
["NQT11","EVERGREEN HOUSE","Y58","SOUTH WEST COMMISSIONING REGION"]
["NTV11","EWELL COURT CLINIC","Y59","SOUTH EAST COMMISSIONING REGION"]
["NGP0A","EXCELL ULTRASOUND LTD - WATERHOUSE BUSINESS CENTRE","Y61","EAST OF ENGLAND COMMISSIONING REGION"]
["NGP13","EXCELL ULTRASOUND LTD (PRINCE OF WALES HOSPITAL)","Y61","EAST OF ENGLAND COMMISSIONING REGION"]
["NGP20","EXCELL ULTRASOUND LTD (PRIORY FIELDS SURGERY)","Y61","EAST OF ENGLAND COMMISSIONING REGION"]
["AK801","EXERCISE REFERRAL/COMMUNITY WEIGHT MANAGEMENT/MATERNITY LIFESTYLE PROGRAMME","Y63","NORTH EAST AND YORKSHIRE COMMISSIONING REGION"]
["AEW02","EXTENDED PRIMARY CARE SERVICE","Y56","LONDON COMMISSIONING REGION"]
["NVG01","FAIRFIELD HOSPITAL","Y62","NORTH WEST COMMISSIONING REGION"]
["NNF21","FAITH HOUSE SURGERY","Y63","NORTH EAST AND YORKSHIRE COMMISSIONING REGION"]
["NTN26","FARMFIELD","Y59","SOUTH EAST COMMISSIONING REGION"]
["APH06","FARROW MEDICAL CENTRE (DERMATOLOGY)","Y63","NORTH EAST AND YORKSHIRE COMMISSIONING REGION"]
["NV13V","FAWKHAM MANOR","Y59","SOUTH EAST COMMISSIONING REGION"]
["NBH03","FELMORES MEDICAL CENTRE","Y61","EAST OF ENGLAND COMMISSIONING REGION"]
["NES04","FIELD HOUSE","Y60","MIDLANDS COMMISSIONING REGION"]
["NWE18","FIRE SERVICE TRAINING CENTRE","Y58","SOUTH WEST COMMISSIONING REGION"]
["AWH05","FITZALAN MEDICAL CENTRE","Y59","SOUTH EAST COMMISSIONING REGION"]
["AQR01","FIVE OAKS FAMILY PRACTICE","Y62","NORTH WEST COMMISSIONING REGION"]
["DKE10","FLORENCE HOUSE MEDICAL PRACTICE","Y62","NORTH WEST COMMISSIONING REGION"]
["AXG08","FORDINGBRIDGE COMMUNITY HOSPITAL","Y59","SOUTH EAST COMMISSIONING REGION"]
["NEP84","FOREST HOUSE MEDICAL CENTRE","Y60","MIDLANDS COMMISSIONING REGION"]
["DMH01","FRAMEWORK MILLERS COURT","Y60","MIDLANDS COMMISSIONING REGION"]
["NBGA7","FRANCIS OPTICIANS","Y62","NORTH WEST COMMISSIONING REGION"]
["AK605","FRESHNEY GREEM MEDICAL CENTRE","Y63","NORTH EAST AND YORKSHIRE COMMISSIONING REGION"]
["NTV0M","FRIMLEY PARK HOSPITAL","Y59","SOUTH EAST COMMISSIONING REGION"]
["NWC02","FULHAM: ENERGIE FITNESS CENTRE","Y56","LONDON COMMISSIONING REGION"]
["AP501","FUTURE PROOF HEALTH LTD","Y60","MIDLANDS COMMISSIONING REGION"]
["NDD01","G4S CARE & JUSTICE SERVICES","Y56","LONDON COMMISSIONING REGION"]
["NQA98","GALEN HOUSE","Y61","EAST OF ENGLAND COMMISSIONING REGION"]
["NBG1C","GATE MEDICAL CENTRE","Y60","MIDLANDS COMMISSIONING REGION"]
["AJF01","GENEIX","Y59","SOUTH EAST COMMISSIONING REGION"]
["NIH13","GENIX HEALTHCARE HULL","Y63","NORTH EAST AND YORKSHIRE COMMISSIONING REGION"]
["NIH17","GENIX HEALTHCARE MARSKE","Y63","NORTH EAST AND YORKSHIRE COMMISSIONING REGION"]
["NDS03","GERRANS HILL SURGERY","Y58","SOUTH WEST COMMISSIONING REGION"]
["NQA67","GLADYS MALPAS HOUSE","Y61","EAST OF ENGLAND COMMISSIONING REGION"]
["NXV52","GLEN ROAD MEDICAL CENTRE","Y56","LONDON COMMISSIONING REGION"]
["NWE10","GLENSIDE MEDICAL CENTRE","Y58","SOUTH WEST COMMISSIONING REGION"]
["NLW22","GLOUCESTER ROAD MEDICAL CENTRE","Y58","SOUTH WEST COMMISSIONING REGION"]
["NED08","GOLDSWORTH PARK HEALTH CENTRE (EDICS)","Y59","SOUTH EAST COMMISSIONING REGION"]
["NWR05","GORING HALL HOSPITAL","Y59","SOUTH EAST COMMISSIONING REGION"]
["NWV01","GP CARE UK","Y58","SOUTH WEST COMMISSIONING REGION"]
["ATK10","GPHP EXTENDED ACCESS HUB - HEATHCOTE","Y59","SOUTH EAST COMMISSIONING REGION"]
["AJ804","GRANGE METHLEY","Y63","NORTH EAST AND YORKSHIRE COMMISSIONING REGION"]
["AJ805","GRANGE STUART ROAD","Y63","NORTH EAST AND YORKSHIRE COMMISSIONING REGION"]
["NDA67","GRAYSHOTT SURGERY","Y59","SOUTH EAST COMMISSIONING REGION"]
["NL515","GREAT OAKLEY MEDICAL CENTRE","Y60","MIDLANDS COMMISSIONING REGION"]
["NTPM7","GREATER MANCHESTER NHS CLINICAL ASSESSMENT & TREATMENT SERVICE CARE UK (STRETFORD LEISURE CENTRE)","Y62","NORTH WEST COMMISSIONING REGION"]
["NM905","GREENBANKS HOMECARE LTD - GUILDFORD","Y59","SOUTH EAST COMMISSIONING REGION"]
["NAL05","GREENGATE MEDICAL CENTRE","Y56","LONDON COMMISSIONING REGION"]
["NL832","GREENHEAD PHARMACY","Y63","NORTH EAST AND YORKSHIRE COMMISSIONING REGION"]
["NXP23","GREENWAY COMMUNITY PRACTICE","Y58","SOUTH WEST COMMISSIONING REGION"]
["ALL01","GREYSTONE PHYSIOTHERAPY CLINIC","Y60","MIDLANDS COMMISSIONING REGION"]
["NIJ01","GROVE ROAD MEDICAL CENTRE (EAST 17 HQ)","Y56","LONDON COMMISSIONING REGION"]
["NDAA3","GUILDFORD CC YORK ROAD","Y59","SOUTH EAST COMMISSIONING REGION"]
["NKX01","H S PHYSIOTHERAPY LTD (BOSTON)","Y60","MIDLANDS COMMISSIONING REGION"]
["NKX05","H S PHYSIOTHERAPY LTD (SKEGNESS)","Y60","MIDLANDS COMMISSIONING REGION"]
["NV114","HAINAULT HEALTH CENTRE","Y56","LONDON COMMISSIONING REGION"]
["NL571","HALL LANE SURGERY","Y60","MIDLANDS COMMISSIONING REGION"]
["NYH01","HAMPSHIRE HEALTH LLP - CHASE COMMUNITY HOSPITAL","Y59","SOUTH EAST COMMISSIONING REGION"]
["NX104","HANOVER HOUSE","Y59","SOUTH EAST COMMISSIONING REGION"]
["DEV01","HARLEY HEALTH VILLAGE","Y56","LONDON COMMISSIONING REGION"]
["NQ1HH","HARLOW HUB CASH CLINIC","Y61","EAST OF ENGLAND COMMISSIONING REGION"]
["NMV25","HARRISONS YARD","Y61","EAST OF ENGLAND COMMISSIONING REGION"]
["NR801","HARVEY HOUSE SOCIAL ENTERPRISE LTD HQ","Y62","NORTH WEST COMMISSIONING REGION"]
["NX170","HAUGHMOND VIEW MEDICAL PRACTICE","Y60","MIDLANDS COMMISSIONING REGION"]
["NEH03","HAVERSTOCK HEALTHCARE (ROYAL FREE HOSPITAL)","Y56","LONDON COMMISSIONING REGION"]
["NNV07","HAWKS ROAD CLINIC","Y56","LONDON COMMISSIONING REGION"]
["NBG72","HAZELDENE MEDICAL CENTRE","Y62","NORTH WEST COMMISSIONING REGION"]
["NMK43","HEADCORN SURGERY","Y59","SOUTH EAST COMMISSIONING REGION"]
["DF901","HEALTH INTELLIGENCE LTD","Y62","NORTH WEST COMMISSIONING REGION"]
["NWV97","HEALTHY LIVING ZONE","Y58","SOUTH WEST COMMISSIONING REGION"]
["NVX26","HEARBASE ELM LODGE SURGERY","Y56","LONDON COMMISSIONING REGION"]
["DKG02","HEARBASE LTD","Y56","LONDON COMMISSIONING REGION"]
["NVX22","HEARBASE THE PARK PRACTICE, LONDON","Y56","LONDON COMMISSIONING REGION"]
["AX101","HEATHER HALL HYPNOTHERAPY - HARLEY STREET","Y56","LONDON COMMISSIONING REGION"]
["NL819","HECKMONDWIKE HEALTH CENTRE","Y63","NORTH EAST AND YORKSHIRE COMMISSIONING REGION"]
["DDV0F","HENFIELD MEDICAL CENTRE","Y59","SOUTH EAST COMMISSIONING REGION"]
["NCP07","HEREFORD CITY","Y60","MIDLANDS COMMISSIONING REGION"]
["NNP01","HERITAGE HEARING","Y62","NORTH WEST COMMISSIONING REGION"]
["NW404","HERTS COMMUNITY GYNAE - DACORUM","Y61","EAST OF ENGLAND COMMISSIONING REGION"]
["NX219","HETTON GROUP PRACTICE","Y63","NORTH EAST AND YORKSHIRE COMMISSIONING REGION"]
["AAT14","HIDDEN HEARING - EASTBOURNE","Y59","SOUTH EAST COMMISSIONING REGION"]
["AAT16","HIDDEN HEARING - TUNBRIDGE WELLS","Y59","SOUTH EAST COMMISSIONING REGION"]
["NEM55","HIGHCROFT SURGERY","Y60","MIDLANDS COMMISSIONING REGION"]
["NV60M","HIGHFIELD SUGERY","Y62","NORTH WEST COMMISSIONING REGION"]
["NQT5V","HILL STREET HEALTH & WELLBEING CENTRE","Y60","MIDLANDS COMMISSIONING REGION"]
["NHT84","HILLINGDON COMMUNITY DERMATOLOGY SERVICE (WALLASEY MEDICAL CENTRE)","Y56","LONDON COMMISSIONING REGION"]
["DLV01","HILLINGDON PRIMARY CARE CONFEDERATION - ACORN MEDICAL CENTRE","Y56","LONDON COMMISSIONING REGION"]
["NV1Q9","HINCKLEY HEALTH CENTRES","Y60","MIDLANDS COMMISSIONING REGION"]
["NAU04","HOLBEACH OSTEOPATHIC CLINIC","Y60","MIDLANDS COMMISSIONING REGION"]
["NTP75","HOLMES CHAPEL HEALTH CENTRE","Y62","NORTH WEST COMMISSIONING REGION"]
["NEF23","HOMECROFT SURGERY","Y58","SOUTH WEST COMMISSIONING REGION"]
["NNF31","HOOPER BUILDING","Y63","NORTH EAST AND YORKSHIRE COMMISSIONING REGION"]
["NL305","HOPE STREET MEDICAL CENTRE","Y63","NORTH EAST AND YORKSHIRE COMMISSIONING REGION"]
["NV1C4","HORNSEY RISE HEALTH CENTRE","Y56","LONDON COMMISSIONING REGION"]
["NMM01","HOSPITAL OF ST JOHN AND ST ELIZABETH (GROVE END ROAD)","Y56","LONDON COMMISSIONING REGION"]
["NL5D4","HOVETON & WROXHAM MEDICAL CENTRE","Y61","EAST OF ENGLAND COMMISSIONING REGION"]
["NL573","HUGGLESCOTE SURGERY","Y60","MIDLANDS COMMISSIONING REGION"]
["NX10D","HUME STREET MEDICAL CENTRE","Y60","MIDLANDS COMMISSIONING REGION"]
["NQTF3","HUNDENS LANE DAY HOSPITAL","Y63","NORTH EAST AND YORKSHIRE COMMISSIONING REGION"]
["NTPM3","HYDE ROAD, LONGSIGHT","Y62","NORTH WEST COMMISSIONING REGION"]
["AM601","IESO DIGITAL HEALTH","Y61","EAST OF ENGLAND COMMISSIONING REGION"]
["DJ101","I'M OUT OF HERE LIMITED","Y58","SOUTH WEST COMMISSIONING REGION"]
["NI601","INFORM (HQ)","Y56","LONDON COMMISSIONING REGION"]
["NV11B","INHEALTH - DEANE MEDICAL CENTRE","Y62","NORTH WEST COMMISSIONING REGION"]
["NV1AV","INHEALTH - FAREHAM COMMUNITY HOSPITAL","Y59","SOUTH EAST COMMISSIONING REGION"]
["NV1Y2","INHEALTH - MARYSVILLE MEDICAL PRACTICE","Y60","MIDLANDS COMMISSIONING REGION"]
["NV1G4","INHEALTH - PREVENTICUM UK LTD","Y56","LONDON COMMISSIONING REGION"]
["NV11P","INHEALTH - SURREY LODGE GROUP PRACTICE","Y62","NORTH WEST COMMISSIONING REGION"]
["NV1AY","INHEALTH - WILLOWS MEDICAL CENTRE","Y60","MIDLANDS COMMISSIONING REGION"]
["NV1Q3","INHEALTH NORTH LONDON DIAGNOSTIC CENTRE","Y56","LONDON COMMISSIONING REGION"]
["NY6M5","INHEALTH PAIN MANAGEMENT SOLUTIONS - ASHBY TURN PRIMARY CARE CENTRE","Y63","NORTH EAST AND YORKSHIRE COMMISSIONING REGION"]
["NY6J3","INHEALTH PAIN MANAGEMENT SOLUTIONS - PETERLEE LEISURE CENTRE","Y63","NORTH EAST AND YORKSHIRE COMMISSIONING REGION"]
["NV1K4","INHEALTH PET CT CENTRE","Y59","SOUTH EAST COMMISSIONING REGION"]
["NDC14","INSIGHT HEALTHCARE TALKING THERAPIES (DARLINGTON)","Y63","NORTH EAST AND YORKSHIRE COMMISSIONING REGION"]
["NVE02","INTEGRATED CARE 24 SUSSEX OOH","Y59","SOUTH EAST COMMISSIONING REGION"]
["NQT1C","INTEGRATED CHILDREN'S SERVICES (ONE CAPITAL)","Y58","SOUTH WEST COMMISSIONING REGION"]
["NCJ02","INTERHEALTH CANADA UK (NORTH WALSHAM HOSPITAL)","Y61","EAST OF ENGLAND COMMISSIONING REGION"]
["ANG01","IP&E","Y60","MIDLANDS COMMISSIONING REGION"]
["NRP0P","IRLAM GROUP PRACTICE","Y62","NORTH WEST COMMISSIONING REGION"]
["DCH01","ISLINGTON I:HUB - CITY ROAD","Y56","LONDON COMMISSIONING REGION"]
["NEP3R","IVER HEATH HEALTH CENTRE (BUCKINGHAMSHIRE)","Y59","SOUTH EAST COMMISSIONING REGION"]
["NEF28","IVYBRIDGE HEALTH CENTRE","Y58","SOUTH WEST COMMISSIONING REGION"]
["DF105","JAMIE CANN HOUSE","Y61","EAST OF ENGLAND COMMISSIONING REGION"]
["AYR08","JIGGINS LANE MEDICAL CENTRE","Y60","MIDLANDS COMMISSIONING REGION"]
["NCPD6","JOINTS & POINTS - HIGHER BEBINGTON","Y62","NORTH WEST COMMISSIONING REGION"]
["NEM89","JOSEPHS WELL","Y63","NORTH EAST AND YORKSHIRE COMMISSIONING REGION"]
["DPX01","JUBILEE HEALTHCARE (COVENTRY)","Y60","MIDLANDS COMMISSIONING REGION"]
["NQT57","KEADBY SURGERY","Y63","NORTH EAST AND YORKSHIRE COMMISSIONING REGION"]
["NBG6V","KENSINGTON PARTNERSHIP","Y63","NORTH EAST AND YORKSHIRE COMMISSIONING REGION"]
["NX204","KEVIN MCGUINESS OPTICIANS","Y63","NORTH EAST AND YORKSHIRE COMMISSIONING REGION"]
["ADP12","KIMS OUTREACH - FAVERSHAM MEDICAL PRACTICE","Y59","SOUTH EAST COMMISSIONING REGION"]
["ADP10","KIMS OUTREACH - MCH GILLINGHAM","Y59","SOUTH EAST COMMISSIONING REGION"]
["DHQ0B","KINGFISHER HEALTH CENTRE","Y60","MIDLANDS COMMISSIONING REGION"]
["NQTYP","KINGS LANE MEDICAL CENTRE","Y62","NORTH WEST COMMISSIONING REGION"]
["NL5Q8","KINGSFOLD MEDICAL CENTRE","Y62","NORTH WEST COMMISSIONING REGION"]
["NNV37","KINGSTON COLLEGE","Y56","LONDON COMMISSIONING REGION"]
["NNV2F","KINGSTON HEALTH CENTER","Y56","LONDON COMMISSIONING REGION"]
["AAT08","KINGSWOOD HEALTH CENTRE","Y58","SOUTH WEST COMMISSIONING REGION"]
["DDV0A","KIPPAX HALL SURGERY","Y63","NORTH EAST AND YORKSHIRE COMMISSIONING REGION"]
["AXW01","KIRTON LINDSEY SURGERY MCATS","Y63","NORTH EAST AND YORKSHIRE COMMISSIONING REGION"]
["NFO06","KLEYN ULTRASOUND ERIC MOORE PARTNERSHIP ORFORD JUBILEE","Y62","NORTH WEST COMMISSIONING REGION"]
["NFO40","KLEYN ULTRASOUND WESTLEIGH SURGERY","Y62","NORTH WEST COMMISSIONING REGION"]
["NFO41","KLEYN ULTRASOUND WILLOW TREE","Y62","NORTH WEST COMMISSIONING REGION"]
["NLW33","KNOWLE CLINIC","Y58","SOUTH WEST COMMISSIONING REGION"]
["AV103","LAKESIDE HEALTH CENTRE","Y56","LONDON COMMISSIONING REGION"]
["DE401","LANCASHIRE CHILD HEALTH INFORMATION SERVICE","Y62","NORTH WEST COMMISSIONING REGION"]
["NV118","LANGTHORNE HEALTH CENTRE","Y56","LONDON COMMISSIONING REGION"]
["NMK03","LATCHMERE LEISURE CENTRE","Y56","LONDON COMMISSIONING REGION"]
["DAY02","LATHAM HOUSE MEDICAL PRACTICE","Y60","MIDLANDS COMMISSIONING REGION"]
["NKO52","LAWRENCE HOUSE MEDICAL CENTRE","Y63","NORTH EAST AND YORKSHIRE COMMISSIONING REGION"]
["NTV12","LEATHERHEAD CLINIC","Y59","SOUTH EAST COMMISSIONING REGION"]
["NHT05","LEEDS STUDENT MEDICAL PRACTICE","Y63","NORTH EAST AND YORKSHIRE COMMISSIONING REGION"]
["NHT03","LEIGH VIEW MEDICAL CENTRE","Y63","NORTH EAST AND YORKSHIRE COMMISSIONING REGION"]
["NNL03","LEODIS CARE LTD - BELLBROOKE SURGERY","Y63","NORTH EAST AND YORKSHIRE COMMISSIONING REGION"]
["NEL15","LEOMINSTER DISTRICT COMMUNITY ASSOCIATION","Y60","MIDLANDS COMMISSIONING REGION"]
["NV1P4","LEY HILL SURGERY","Y60","MIDLANDS COMMISSIONING REGION"]
["NL52W","LIBRARY HOUSE SURGERY","Y62","NORTH WEST COMMISSIONING REGION"]
["NY6D8","LIGHTMORE SURGERY","Y60","MIDLANDS COMMISSIONING REGION"]
["NKV02","LINCOLN PHYSIOTHERAPY AND SPORTS INJURIES CLINIC","Y60","MIDLANDS COMMISSIONING REGION"]
["NTPL4","LINCOLNSHIRE MSK - SKEGNESS","Y60","MIDLANDS COMMISSIONING REGION"]
["NP402","LINCOLNSHIRE PCSS (DR PHIPPS)","Y60","MIDLANDS COMMISSIONING REGION"]
["NXV73","LINGWELL CROFT SURGERY","Y63","NORTH EAST AND YORKSHIRE COMMISSIONING REGION"]
["NTA09","LISTER HOUSE SURGERY - DERBY","Y60","MIDLANDS COMMISSIONING REGION"]
["NBG75","LITTLEBOROUGH HEALTH CENTRE","Y62","NORTH WEST COMMISSIONING REGION"]
["NW701","LIVERPOOL STREET NHS WALK-IN CENTRE","Y56","LONDON COMMISSIONING REGION"]
["NID11","LIVINGCARE","Y63","NORTH EAST AND YORKSHIRE COMMISSIONING REGION"]
["ARN17","LOCAL CARE DIRECT - WHARFEDALE MIU","Y63","NORTH EAST AND YORKSHIRE COMMISSIONING REGION"]
["NLT10","LOCKING CASTLE MEDICAL CENTRE","Y58","SOUTH WEST COMMISSIONING REGION"]
["NW60S","LONDON DIGESTIVE CENTRE","Y56","LONDON COMMISSIONING REGION"]
["AXC01","LONDON WELBECK HOSPITAL","Y56","LONDON COMMISSIONING REGION"]
["DKQ0E","LONG EATON DAY SERVICES","Y60","MIDLANDS COMMISSIONING REGION"]
["NLE04","LONGFORD STREET GROUP PRACTICE","Y62","NORTH WEST COMMISSIONING REGION"]
["NV1J2","LONGTON COTTAGE HOSPITAL","Y60","MIDLANDS COMMISSIONING REGION"]
["NL52I","LOSTOCK HALL MEDICAL CENTRE","Y62","NORTH WEST COMMISSIONING REGION"]
["NCU02","LOUTH PHYSIOFIRST CENTRE","Y60","MIDLANDS COMMISSIONING REGION"]
["NBG1K","LOW MOOR MEDICAL CENTRE","Y63","NORTH EAST AND YORKSHIRE COMMISSIONING REGION"]
["DDV2Q","LOWFIELD SURGERY","Y62","NORTH WEST COMMISSIONING REGION"]
["NX152","LUPSET SURGERY","Y63","NORTH EAST AND YORKSHIRE COMMISSIONING REGION"]
["NET02","M & M PHARMACY (SAWMILLS LANE)","Y63","NORTH EAST AND YORKSHIRE COMMISSIONING REGION"]
["NBG6P","MAJOR OAK MEDICAL PRACTICE","Y60","MIDLANDS COMMISSIONING REGION"]
["AXG0I","MALMESBURY PRIMARY CARE CENTRE","Y58","SOUTH WEST COMMISSIONING REGION"]
["DKC01","MANAGED HEALTHCARE SERVICES LIMITED","Y63","NORTH EAST AND YORKSHIRE COMMISSIONING REGION"]
["NWE11","MANNAMEAD SURGERY","Y58","SOUTH WEST COMMISSIONING REGION"]
["DJC02","MANOR PARK SURGERY","Y63","NORTH EAST AND YORKSHIRE COMMISSIONING REGION"]
["NNV1L","MAPLE INFANT SCHOOL","Y56","LONDON COMMISSIONING REGION"]
["NNF65","MARFLEET GROUP PRACTICE","Y63","NORTH EAST AND YORKSHIRE COMMISSIONING REGION"]
["NTG91","MARIE STOPES INTERNATIONAL BATLEY EARLY MEDICAL UNIT","Y63","NORTH EAST AND YORKSHIRE COMMISSIONING REGION"]
["NTG40","MARIE STOPES INTERNATIONAL CRAWLEY CENTRE","Y59","SOUTH EAST COMMISSIONING REGION"]
["NTG1L","MARIE STOPES INTERNATIONAL HARTLEPOOL VASECTOMY CENTRE","Y63","NORTH EAST AND YORKSHIRE COMMISSIONING REGION"]
["NTG60","MARIE STOPES INTERNATIONAL NORTH ORMESBY VASECTOMY CENTRE","Y63","NORTH EAST AND YORKSHIRE COMMISSIONING REGION"]
["NTG94","MARIE STOPES INTERNATIONAL SCUNTHORPE EARLY MEDICAL UNIT","Y63","NORTH EAST AND YORKSHIRE COMMISSIONING REGION"]
["NTG63","MARIE STOPES INTERNATIONAL WEMBLEY EARLY MEDICAL UNIT","Y56","LONDON COMMISSIONING REGION"]
["NTG01","MARIE STOPES INTERNATIONAL WEST LONDON CENTRE","Y56","LONDON COMMISSIONING REGION"]
["NEM5S","MARKET RASEN","Y60","MIDLANDS COMMISSIONING REGION"]
["NV1M9","MARPLE MEDICAL CENTRE","Y62","NORTH WEST COMMISSIONING REGION"]
["NAX04","MARTHAM HEALTH CENTRE","Y61","EAST OF ENGLAND COMMISSIONING REGION"]
["NDA48","MAYBURY CENTRE","Y59","SOUTH EAST COMMISSIONING REGION"]
["NXV28","MAYWOOD HEALTH CENTRE","Y59","SOUTH EAST COMMISSIONING REGION"]
["NEP1B","MAYWOOD SURGERY (COASTAL WEST SUSSEX)","Y59","SOUTH EAST COMMISSIONING REGION"]
["NRP48","MEADOWS HEALTH CENTRE","Y60","MIDLANDS COMMISSIONING REGION"]
["DJ401","MEDCARE SOLUTIONS (KEMP HOUSE)","Y56","LONDON COMMISSIONING REGION"]
["NHG04","MEDICAL PRACTICE","Y60","MIDLANDS COMMISSIONING REGION"]
["NBGC2","MEDISCAN - KING'S MEDICAL PRACTICE","Y63","NORTH EAST AND YORKSHIRE COMMISSIONING REGION"]
["NBG78","MEDISCAN (OPHTHALMOLOGY) - SPECSAVERS ROTHWELL","Y63","NORTH EAST AND YORKSHIRE COMMISSIONING REGION"]
["NBG01","MEDISCAN DIAGNOSTICS SERVICES LTD HQ","Y62","NORTH WEST COMMISSIONING REGION"]
["NO02H","MELBOURNE HOUSE SURGERY","Y61","EAST OF ENGLAND COMMISSIONING REGION"]
["APX11","MENTAL HEALTH CONCERN (ALEXANDRA ROAD)","Y63","NORTH EAST AND YORKSHIRE COMMISSIONING REGION"]
["AAT17","MERIDIAN SURGERY","Y59","SOUTH EAST COMMISSIONING REGION"]
["AMT02","MEXBOROUGH INTEGRATED HEALTHCARE CENTRE","Y63","NORTH EAST AND YORKSHIRE COMMISSIONING REGION"]
["AA417","MIDDLECHARE MEDICAL GROUP","Y63","NORTH EAST AND YORKSHIRE COMMISSIONING REGION"]
["AQ001","MIDDLEWOOD","Y62","NORTH WEST COMMISSIONING REGION"]
["NEL29","MILEHOUSE PRIMARY CARE CENTRE","Y60","MIDLANDS COMMISSIONING REGION"]
["NEM86","MILLVIEW MEDICAL CENTRE","Y60","MIDLANDS COMMISSIONING REGION"]
["NAX59","MILLWOOD SURGERY","Y61","EAST OF ENGLAND COMMISSIONING REGION"]
["NBG2P","MINSTER MEDICAL PRACTICE","Y60","MIDLANDS COMMISSIONING REGION"]
["NWV95","MITCHELDEAN SURGERY","Y58","SOUTH WEST COMMISSIONING REGION"]
["NT910","MOBILE FASTRACK MRI SCANNER (10)","Y60","MIDLANDS COMMISSIONING REGION"]
["NQ737","MOLEHILL COPSE CLINIC","Y59","SOUTH EAST COMMISSIONING REGION"]
["NO00U","MONKSPATH SURGERY","Y60","MIDLANDS COMMISSIONING REGION"]
["AA477","MOORGATE PRIMARY CARE CENTRE","Y62","NORTH WEST COMMISSIONING REGION"]
["AA476","MOORSIDE LIBRARY/COMMUNITY CENTRE","Y62","NORTH WEST COMMISSIONING REGION"]
["NAM06","MORRAB SURGERY","Y58","SOUTH WEST COMMISSIONING REGION"]
["NEPH5","MOSS STREET SURGERY","Y60","MIDLANDS COMMISSIONING REGION"]
["NVC08","MOUNT STUART HOSPITAL","Y58","SOUTH WEST COMMISSIONING REGION"]
["NEM6F","MUNRO","Y60","MIDLANDS COMMISSIONING REGION"]
["ALD06","MUSCULOKELETAL SOLUTIONS MARGATE","Y59","SOUTH EAST COMMISSIONING REGION"]
["AQV01","NAMRON CARE PROVIDER LTD (HOLLY STREET)","Y60","MIDLANDS COMMISSIONING REGION"]
["NNW08","NAVAS [MANSFIELD COMMUNITY HOSPITAL]","Y60","MIDLANDS COMMISSIONING REGION"]
["NQ781","NELSON LIFT","Y59","SOUTH EAST COMMISSIONING REGION"]
["NHT15","NETTLEHAM MEDICAL CENTRE","Y60","MIDLANDS COMMISSIONING REGION"]
["NLW54","NEVIL ROAD SURGERY","Y58","SOUTH WEST COMMISSIONING REGION"]
["NVC09","NEW HALL HOSPITAL","Y58","SOUTH WEST COMMISSIONING REGION"]
["NEM6W","NEW QUEEN STREET","Y61","EAST OF ENGLAND COMMISSIONING REGION"]
["NMJ0M","NEWBUS GRANGE HOSPITAL","Y63","NORTH EAST AND YORKSHIRE COMMISSIONING REGION"]
["DRY06","NEWGATE MEDICAL GROUP","Y63","NORTH EAST AND YORKSHIRE COMMISSIONING REGION"]
["ACG20","NEWMEDICA - BRISTOL - LITFIELD HOUSE","Y58","SOUTH WEST COMMISSIONING REGION"]
["ACG24","NEWMEDICA - SOUTH TEES - NORTH ORMESBY HEALTH VILLAGE","Y63","NORTH EAST AND YORKSHIRE COMMISSIONING REGION"]
["ACG12","NEWMEDICA COMMUNITY OPHTHALMOLOGY - NORTH EAST LINCOLNSHIRE - GRIMSBY","Y63","NORTH EAST AND YORKSHIRE COMMISSIONING REGION"]
["DFE03","NEWTON AYCLIFFE PRIMARY CARE SERVICE","Y63","NORTH EAST AND YORKSHIRE COMMISSIONING REGION"]
["NTPUP","NHS COMMUNITY ULTRASOUND (OUSE VALLEY) CARE UK","Y59","SOUTH EAST COMMISSIONING REGION"]
["NRD02","NHS WANDSWORTH COMMUNITY DERMATOLOGY SERVICE","Y56","LONDON COMMISSIONING REGION"]
["NXV63","NON OBSTETRIC ULTRASOUND THE BONDGATE PRACTICE","Y63","NORTH EAST AND YORKSHIRE COMMISSIONING REGION"]
["NXV68","NON OBSTETRIC ULTRASOUND THE GREYSWOOD PRACTICE","Y56","LONDON COMMISSIONING REGION"]
["NXV0M","NON-OBSTETRIC ULTRASOUND - WOOD FARM HEALTH CENTRE","Y59","SOUTH EAST COMMISSIONING REGION"]
["NHR01","NORTH CORNWALL PHYSIOTHERAPY (CAMELFORD)","Y58","SOUTH WEST COMMISSIONING REGION"]
["AC804","NORTH EAST COMMUNITY HEALTH NETWORK - THE PRACTICE SAYEED MEDICAL CENTRE","Y60","MIDLANDS COMMISSIONING REGION"]
["AKH09","NORTH HYDE MEDICAL PRACTICE","Y56","LONDON COMMISSIONING REGION"]
["NHT90","NORTH MANCHESTER COMMUNITY DERMATOLOGY NEW ISLINGTON PRACTICE","Y62","NORTH WEST COMMISSIONING REGION"]
["NT961","NORTH MANCHESTER MR CENTRE","Y62","NORTH WEST COMMISSIONING REGION"]
["NV12A","NORTH WEST CATS - INHEALTH (TRINITY HOUSE PRACTICE, MACCLESFIELD)","Y62","NORTH WEST COMMISSIONING REGION"]
["AJT01","NORTH WEST LEICESTERSHIRE GP LIMITED","Y60","MIDLANDS COMMISSIONING REGION"]
["NTP98","NORTHAMPTONSHIRE NHS NECK & LOWER BACK PHYSIO SERVICE","Y60","MIDLANDS COMMISSIONING REGION"]
["NV1R7","NORTHERN HEIGHTS MEDICAL CENTRE","Y60","MIDLANDS COMMISSIONING REGION"]
["ADX02","NORTHPOINT WELLBEING LIMITED (HALIFAX)","Y63","NORTH EAST AND YORKSHIRE COMMISSIONING REGION"]
["ADF02","NORTHWEST DIAGNOSTIC & TREATMENT SERVICES (HADFIELD MEDICAL CENTRE)","Y62","NORTH WEST COMMISSIONING REGION"]
["DTD01","NORWICH/NPL IMPROVED ACCESS (CITY HALL)","Y61","EAST OF ENGLAND COMMISSIONING REGION"]
["NV501","NOTTINGHAM PET CENTRE","Y60","MIDLANDS COMMISSIONING REGION"]
["NXVC3","NOUS GROVEHURST SURGERY","Y59","SOUTH EAST COMMISSIONING REGION"]
["NKO64","NOVA SCOTIA MEDICAL CENTRE","Y63","NORTH EAST AND YORKSHIRE COMMISSIONING REGION"]
["NQH43","NOVUS HEALTH (CHAPELTHORPE MEDICAL CENTRE)","Y63","NORTH EAST AND YORKSHIRE COMMISSIONING REGION"]
["NQH16","NOVUS HEALTH (MAYBUSH MEDICAL CENTRE)","Y63","NORTH EAST AND YORKSHIRE COMMISSIONING REGION"]
["NQH15","NOVUS HEALTH (RIVERSIDE MEDICAL CENTRE)","Y63","NORTH EAST AND YORKSHIRE COMMISSIONING REGION"]
["NPC02","NSDC - SOUTHGATES MEDICAL AND SURGICAL CENTRE","Y61","EAST OF ENGLAND COMMISSIONING REGION"]
["NT20E","NUFFIELD HEALTH LONDON CITY MEDICAL CENTRE","Y56","LONDON COMMISSIONING REGION"]
["NT264","NUFFIELD HEALTH TEES HOSPITAL AT HARTLEPOOL ONE LIFE","Y63","NORTH EAST AND YORKSHIRE COMMISSIONING REGION"]
["NT212","NUFFIELD HEALTH, CHICHESTER HOSPITAL","Y59","SOUTH EAST COMMISSIONING REGION"]
["NT238","NUFFIELD HEALTH, TAUNTON HOSPITAL","Y58","SOUTH WEST COMMISSIONING REGION"]
["NL604","NUPAS BOLTON","Y62","NORTH WEST COMMISSIONING REGION"]
["NL622","NUPAS OLDHAM","Y62","NORTH WEST COMMISSIONING REGION"]
["NRP16","NYE BEVAN HOUSE","Y62","NORTH WEST COMMISSIONING REGION"]
["NTPA2","OAK PARK COMMUNITY CLINIC","Y59","SOUTH EAST COMMISSIONING REGION"]
["NEPE7","OAKLANDS HEALTH CENTRE","Y63","NORTH EAST AND YORKSHIRE COMMISSIONING REGION"]
["NTN0R","OAKTREE MANOR","Y61","EAST OF ENGLAND COMMISSIONING REGION"]
["NY6D2","OASIS HEALTH CARE","Y60","MIDLANDS COMMISSIONING REGION"]
["NPD11","OFU - SWINDON","Y58","SOUTH WEST COMMISSIONING REGION"]
["NR305","OLD BASFORD HEALTH CENTRE","Y60","MIDLANDS COMMISSIONING REGION"]
["NQAC2","OLD ROAD MEDICAL PRACTICE","Y61","EAST OF ENGLAND COMMISSIONING REGION"]
["NVF03","OLDHAM INTEGRATED CARE CENTRE","Y62","NORTH WEST COMMISSIONING REGION"]
["NL848","ON TRAK HUDDERSFIELD","Y63","NORTH EAST AND YORKSHIRE COMMISSIONING REGION"]
["NTX0A","ONE HEALTH GROUP - ROTHERHAM - RAWMARSH","Y63","NORTH EAST AND YORKSHIRE COMMISSIONING REGION"]
["NTX12","ONE HEALTH GROUP CLINIC - CLAREMONT","Y63","NORTH EAST AND YORKSHIRE COMMISSIONING REGION"]
["NYL01","ONE TO ONE (HIGH MARCH)","Y60","MIDLANDS COMMISSIONING REGION"]
["DPR01","ONECARE UK LTD - HARROW","Y56","LONDON COMMISSIONING REGION"]
["NNH03","OPTEGRA (SURREY EYE HOSPITAL)","Y59","SOUTH EAST COMMISSIONING REGION"]
["NAE02","OPTUM RFS","Y56","LONDON COMMISSIONING REGION"]
["NEPG1","ORCHARD SURGERY","Y60","MIDLANDS COMMISSIONING REGION"]
["NQM01","ORTHOPAEDICS & SPINE SPECIALIST HOSPITAL SITE","Y61","EAST OF ENGLAND COMMISSIONING REGION"]
["NCP13","OSBORNE PRACTICE","Y59","SOUTH EAST COMMISSIONING REGION"]
["NMJ68","OUTWOOD","Y63","NORTH EAST AND YORKSHIRE COMMISSIONING REGION"]
["NHP02","PADDOCK WOOD CHIROPRACTIC CLINIC","Y59","SOUTH EAST COMMISSIONING REGION"]
["NY60H","PAIN MANAGEMENT SOLUTIONS - CREWE YMCA","Y62","NORTH WEST COMMISSIONING REGION"]
["NY6F8","PAIN MANAGEMENT SOLUTIONS - HUNGERFORD MEDICAL PRACTICE","Y62","NORTH WEST COMMISSIONING REGION"]
["NY61E","PAIN MANAGEMENT SOLUTIONS - I TRAIN SPORTS CENTRE","Y62","NORTH WEST COMMISSIONING REGION"]
["NY6F6","PAIN MANAGEMENT SOLUTIONS - QUINTON PARK BAPTIST CHURCH HALL","Y60","MIDLANDS COMMISSIONING REGION"]
["NY6A4","PAIN MANAGEMENT SOLUTIONS - THE LANTERN","Y60","MIDLANDS COMMISSIONING REGION"]
["NY6G7","PAIN MANAGEMENT SOLUTIONS - UNIVERSITY OF BRIGHTON","Y59","SOUTH EAST COMMISSIONING REGION"]
["NY621","PAIN MANAGEMENT SOLUTIONS (HARWORTH PRIMARY CARE CENTRE)","Y63","NORTH EAST AND YORKSHIRE COMMISSIONING REGION"]
["NY604","PAIN MANAGEMENT SOLUTIONS (MILL ROAD SURGERY)","Y63","NORTH EAST AND YORKSHIRE COMMISSIONING REGION"]
["NY6A6","PAIN MANAGEMENT SOLUTIONS (MIRFIELD HEALTH CENTRE)","Y63","NORTH EAST AND YORKSHIRE COMMISSIONING REGION"]
["NY647","PAIN MANAGEMENT SOLUTIONS (THE GRANGE MEDICAL CENTRE)","Y63","NORTH EAST AND YORKSHIRE COMMISSIONING REGION"]
["NWV23","PAINSWICK SURGERY","Y58","SOUTH WEST COMMISSIONING REGION"]
["NV838","PARK END SURGERY","Y61","EAST OF ENGLAND COMMISSIONING REGION"]
["NX247","PARK LANE CONSULTATING ROOMS LTD - AQP ADULT HEARING","Y62","NORTH WEST COMMISSIONING REGION"]
["DJQ0W","PARK ROAD SURGERY","Y59","SOUTH EAST COMMISSIONING REGION"]
["NL213","PARK VIEW HEALTH PARTNERSHIP","Y59","SOUTH EAST COMMISSIONING REGION"]
["APH07","PARKLANDS MEDICAL PRACTICE (DERMATOLOGY)","Y63","NORTH EAST AND YORKSHIRE COMMISSIONING REGION"]
["NRP36","PARKWAY HOUSE","Y62","NORTH WEST COMMISSIONING REGION"]
["AQX05","PASLEY ROAD HEALTH CENTRE","Y60","MIDLANDS COMMISSIONING REGION"]
["NEI02","PAULTON COMMUNITY HOSPITAL (BANES)","Y58","SOUTH WEST COMMISSIONING REGION"]
["NP401","PCSS MINOR SURGERY CLINIC (DR PHIPPS)","Y60","MIDLANDS COMMISSIONING REGION"]
["NV607","PDS MEDICAL - BROADHURST OPTOMETRISTS","Y62","NORTH WEST COMMISSIONING REGION"]
["NV662","PDS MEDICAL - GARSTON FAMILY HEALTH CENTRE","Y62","NORTH WEST COMMISSIONING REGION"]
["NV608","PDS MEDICAL - OPTOMETRISTS","Y62","NORTH WEST COMMISSIONING REGION"]
["NV636","PDS MEDICAL - SIMPSON MEDICAL PRACTICE","Y62","NORTH WEST COMMISSIONING REGION"]
["NV661","PDS MEDICAL - TOWER HILL PRIMARY CARE RESOURCE CENTRE","Y62","NORTH WEST COMMISSIONING REGION"]
["NV60E","PDS MEDICAL (THE ELMS PRACTICE)","Y62","NORTH WEST COMMISSIONING REGION"]
["NQA0C","PEARTREE CLINIC","Y61","EAST OF ENGLAND COMMISSIONING REGION"]
["NX185","PEMBROKE COURT","Y59","SOUTH EAST COMMISSIONING REGION"]
["DDV1U","PENINE MEDICAL CENTRE","Y62","NORTH WEST COMMISSIONING REGION"]
["NQTY0","PENINSULA HEALTH LLP","Y62","NORTH WEST COMMISSIONING REGION"]
["DNC01","PENNINE VALLEY COMMUNITY HEALTH","Y62","NORTH WEST COMMISSIONING REGION"]
["NMK51","PENWORTHAM ST MARYS HEALTH CENTRE","Y62","NORTH WEST COMMISSIONING REGION"]
["NDJ0A","PHEONIX HOUSE","Y59","SOUTH EAST COMMISSIONING REGION"]
["NV1N5","PHYSIO 1ST","Y59","SOUTH EAST COMMISSIONING REGION"]
["AG206","PHYSIO.CO.UK - QUAYSIDE MEDICAL CENTRE","Y63","NORTH EAST AND YORKSHIRE COMMISSIONING REGION"]
["DK901","PHYSIOFIT LTD","Y62","NORTH WEST COMMISSIONING REGION"]
["ALD03","PHYSIOTHERAPY IN ACTION","Y59","SOUTH EAST COMMISSIONING REGION"]
["NLX42","PILNING SURGERY","Y58","SOUTH WEST COMMISSIONING REGION"]
["NYM09","PINN MEDICAL CENTRE","Y56","LONDON COMMISSIONING REGION"]
["NQ756","PLATTERS FARM LODGE","Y59","SOUTH EAST COMMISSIONING REGION"]
["NT711","PLYMOUTH HOSPITAL","Y58","SOUTH WEST COMMISSIONING REGION"]
["NNF68","POCKLINGTON HEALTH CENTRE","Y63","NORTH EAST AND YORKSHIRE COMMISSIONING REGION"]
["AMY07","POOLE ROAD MEDICAL CENTRE","Y58","SOUTH WEST COMMISSIONING REGION"]
["NDJ19","POSTERNGATE FARM","Y59","SOUTH EAST COMMISSIONING REGION"]
["DW703","PREMIER LASER & SKIN CLINIC (FULHAM)","Y56","LONDON COMMISSIONING REGION"]
["NDAH3","PRESTWICH CLINIC","Y62","NORTH WEST COMMISSIONING REGION"]
["AA478","PRESTWICH HEALTH CENTRE","Y62","NORTH WEST COMMISSIONING REGION"]
["AF901","PRIMARY EYECARE (BEXLEY, BROMLEY & GREENWICH) LIMITED","Y56","LONDON COMMISSIONING REGION"]
["AEV01","PRIMARY EYECARE (MERTON, SUTTON & WANDSWORTH) LIMITED","Y56","LONDON COMMISSIONING REGION"]
["ALP01","PRIME PRACTICE PARTNERSHIP","Y56","LONDON COMMISSIONING REGION"]
["NX402","PRINCESS MARGARET HOSPITAL","Y59","SOUTH EAST COMMISSIONING REGION"]
["NX238","PRIORSLEGH MEDICAL CENTRE","Y62","NORTH WEST COMMISSIONING REGION"]
["NNF53","PRIORY CHILDRENS CENTRE","Y63","NORTH EAST AND YORKSHIRE COMMISSIONING REGION"]
["NTN07","PRIORY HOSPITAL CHELMSFORD","Y61","EAST OF ENGLAND COMMISSIONING REGION"]
["AVD01","PRIORY MEDICAL CENTRE ENDOSCOPY SERVICE (LIVERPOOL)","Y62","NORTH WEST COMMISSIONING REGION"]
["DWQ02","PROACT IT UK LIMITED (LD4 SLOUGH)","Y59","SOUTH EAST COMMISSIONING REGION"]
["DQT01","PSYCHIATRY-UK (LOWIN HOUSE)","Y58","SOUTH WEST COMMISSIONING REGION"]
["NL5Y7","PURE POWER STUDIO'S","Y59","SOUTH EAST COMMISSIONING REGION"]
["NL5Y5","PUTNEYMEAD - GROUP PRACTICE","Y56","LONDON COMMISSIONING REGION"]
["NT946","QUEEN ANNE STREET - AMICL","Y56","LONDON COMMISSIONING REGION"]
["NV1V9","QUEENS HOSPITAL","Y60","MIDLANDS COMMISSIONING REGION"]
["AA475","RADCLIFFE PRIMARY CARE CENTRE","Y62","NORTH WEST COMMISSIONING REGION"]
["NHF01","RAINHAM PHYSIOTHERAPY CENTRE HQ","Y59","SOUTH EAST COMMISSIONING REGION"]
["DDQ02","RAUF MEDICARE (SMETHWICK)","Y60","MIDLANDS COMMISSIONING REGION"]
["NCF01","RAVENSCROFT HEALTHCARE LTD (BLETCHLEY)","Y61","EAST OF ENGLAND COMMISSIONING REGION"]
["NO033","READESMOOR MEDICAL GROUP PRACTICE","Y62","NORTH WEST COMMISSIONING REGION"]
["NQT4E","REDCAR CLEVELAND LEISURE COMM HEART","Y63","NORTH EAST AND YORKSHIRE COMMISSIONING REGION"]
["DKQ0T","REDWOOD COURT","Y61","EAST OF ENGLAND COMMISSIONING REGION"]
["NMG28","REGENTS PARK PRACTICE","Y56","LONDON COMMISSIONING REGION"]
["NY706","REGIONAL HEARING SPECIALISTS LTD (BALDWINS GATE SURGERY)","Y60","MIDLANDS COMMISSIONING REGION"]
["AHE01","REPRODUCTIVE HEALTH GROUP","Y62","NORTH WEST COMMISSIONING REGION"]
["NM001","RIALTO CARE SERVICES HQ","Y62","NORTH WEST COMMISSIONING REGION"]
["NDAF6","RIDEWAY SCHOOL","Y59","SOUTH EAST COMMISSIONING REGION"]
["NDW01","RIPPLEZ CIC HQ","Y60","MIDLANDS COMMISSIONING REGION"]
["DKE0F","RISING BROOK SURGERY","Y60","MIDLANDS COMMISSIONING REGION"]
["NT706","RIVERMEAD LEISURE CENTRE","Y59","SOUTH EAST COMMISSIONING REGION"]
["NEM2P","RIVERSIDE PRACTICE","Y61","EAST OF ENGLAND COMMISSIONING REGION"]
["NHK01","ROBIN NEWELL OSTEOPATH HQ","Y56","LONDON COMMISSIONING REGION"]
["NIL04","ROKO GILLINGHAM","Y59","SOUTH EAST COMMISSIONING REGION"]
["NEM22","ROMILEY HEALTH CENTRE","Y62","NORTH WEST COMMISSIONING REGION"]
["NUC02","ROSE VILLA SURGERY","Y61","EAST OF ENGLAND COMMISSIONING REGION"]
["NVC0A","ROSEMARY STREET HEALTH CENTRE","Y60","MIDLANDS COMMISSIONING REGION"]
["NCP39","ROTHWELL SURGERY","Y60","MIDLANDS COMMISSIONING REGION"]
["NLG16","ROYAL ARSENAL MEDICAL CENTRE","Y56","LONDON COMMISSIONING REGION"]
["ARA02","ROYAL HAMPSHIRE COUNTY HOSPITAL (RHCH)","Y59","SOUTH EAST COMMISSIONING REGION"]
["NT717","ROYAL SURREY COUNTY HOSPITAL GUILDFORD","Y59","SOUTH EAST COMMISSIONING REGION"]
["NTPN9","RRP HORSHAM","Y59","SOUTH EAST COMMISSIONING REGION"]
["NL5A5","RUSKINGTON MEDICAL PRACTICE","Y60","MIDLANDS COMMISSIONING REGION"]
["NQT52","RYE MEMORIAL HOSPITAL","Y59","SOUTH EAST COMMISSIONING REGION"]
["NEF20","SAINSBURY'S SUPERSTORE","Y58","SOUTH WEST COMMISSIONING REGION"]
["AXG0P","SALISBURY DISTRICT HOSPITAL","Y58","SOUTH WEST COMMISSIONING REGION"]
["DFT01","SALUS MEDICAL SERVICES","Y59","SOUTH EAST COMMISSIONING REGION"]
["DVL01","SANDWELL CHILDREN'S TRUST (OLDBURY)","Y60","MIDLANDS COMMISSIONING REGION"]
["AXG02","SAVERNAKE COMMUNITY HOSPITAL","Y58","SOUTH WEST COMMISSIONING REGION"]
["NFB02","SCANASSURE ULTRASOUND - CASTLETON HC","Y62","NORTH WEST COMMISSIONING REGION"]
["NID12","SCRIVENS HEARING CARE - HUNSLET","Y63","NORTH EAST AND YORKSHIRE COMMISSIONING REGION"]
["NXXG6","SCRIVENS HEARING CARE AT ABBOTSWOOD SURGERY - YATE","Y58","SOUTH WEST COMMISSIONING REGION"]
["NXXQ3","SCRIVENS HEARING CARE AT BAKEWELL MEDICAL CENTRE - BAKEWELL","Y60","MIDLANDS COMMISSIONING REGION"]
["NXX3W","SCRIVENS HEARING CARE AT BRERETON SURGERY - RUGELEY","Y60","MIDLANDS COMMISSIONING REGION"]
["NXX3A","SCRIVENS HEARING CARE AT CHELSFIELD SURGERY -ORPINGTON","Y56","LONDON COMMISSIONING REGION"]
["NXXAH","SCRIVENS HEARING CARE AT DEERNESS PARK MEDICAL CENTRE - HENDON","Y63","NORTH EAST AND YORKSHIRE COMMISSIONING REGION"]
["NXXG1","SCRIVENS HEARING CARE AT FELDON LANE SURGERY - HALESOWEN","Y60","MIDLANDS COMMISSIONING REGION"]
["NXX2U","SCRIVENS HEARING CARE AT FERRYHILL & CHILTON MEDICAL PRACTICE - CO DURHAM","Y63","NORTH EAST AND YORKSHIRE COMMISSIONING REGION"]
["NXXH5","SCRIVENS HEARING CARE AT GURNEY SURGERY - NORWICH","Y61","EAST OF ENGLAND COMMISSIONING REGION"]
["NXXE5","SCRIVENS HEARING CARE AT HINGHAM SURGERY - HINGHAM","Y61","EAST OF ENGLAND COMMISSIONING REGION"]
["NXXD8","SCRIVENS HEARING CARE AT KINGSFIELD MEDICAL CENTRE - KINGS HEATH","Y60","MIDLANDS COMMISSIONING REGION"]
["NXXTQ","SCRIVENS HEARING CARE AT LION HEALTH - STOURBRIDGE","Y60","MIDLANDS COMMISSIONING REGION"]
["NXXVF","SCRIVENS HEARING CARE AT MID SUSSEX HEALTH CARE - HURSTPIERPOINT","Y59","SOUTH EAST COMMISSIONING REGION"]
["NXXG9","SCRIVENS HEARING CARE AT NANTWICH HEALTH CENTRE - NANTWICH","Y62","NORTH WEST COMMISSIONING REGION"]
["NXXQM","SCRIVENS HEARING CARE AT OVERDALE MEDICAL PRACTICE - BORROWASH","Y60","MIDLANDS COMMISSIONING REGION"]
["NXX1G","SCRIVENS HEARING CARE AT PRIMARY CARE CENTRE - WEST BROMWICH","Y60","MIDLANDS COMMISSIONING REGION"]
["NXX3J","SCRIVENS HEARING CARE AT ST FILLAN'S MEDICAL CENTRE - PENWORTHAM","Y62","NORTH WEST COMMISSIONING REGION"]
["NXX3R","SCRIVENS HEARING CARE AT THE HARLEQUIN SURGERY - SHARD END","Y60","MIDLANDS COMMISSIONING REGION"]
["NXX4E","SCRIVENS HEARING CARE AT THE LAWSON PRACTICE - LONDON","Y56","LONDON COMMISSIONING REGION"]
["NXXAA","SCRIVENS HEARING CARE AT THE WHITSWOOD PRACTICE - WHITSWOOD CLOSE","Y62","NORTH WEST COMMISSIONING REGION"]
["NXX3E","SCRIVENS HEARING CARE AT WHICKHAM HEALTH CENTRE - GATESHEAD","Y63","NORTH EAST AND YORKSHIRE COMMISSIONING REGION"]
["NXX73","SCRIVENS OPTICIANS & THE HEARING COMPANY - CLIFTON","Y58","SOUTH WEST COMMISSIONING REGION"]
["NXX43","SCRIVENS OPTICIANS & THE HEARING COMPANY - HAWTHORN RD, KINGSTANDING","Y60","MIDLANDS COMMISSIONING REGION"]
["NXX40","SCRIVENS OPTICIANS & THE HEARING COMPANY - OLDBURY","Y60","MIDLANDS COMMISSIONING REGION"]
["NXX84","SCRIVENS OPTICIANS AND HEARING CARE - BOLTON","Y62","NORTH WEST COMMISSIONING REGION"]
["NXXRC","SCRIVENS OPTICIANS AND HEARING CARE - HARTLEPOOL","Y63","NORTH EAST AND YORKSHIRE COMMISSIONING REGION"]
["NXX47","SCRIVENS OPTICIANS AND HEARING CARE - NORTHFIELD","Y60","MIDLANDS COMMISSIONING REGION"]
["NXXC3","SCRIVENS OPTICIANS AND HEARING CARE - SHIRLEY, SOUTHAMPTON","Y59","SOUTH EAST COMMISSIONING REGION"]
["NXX0R","SCRIVENS OPTICIANS AND THE HEARING COMPANY - CHINGFORD","Y56","LONDON COMMISSIONING REGION"]
["NXXWA","SCRIVENS OPTICIANS AND THE HEARING COMPANY - LOUGHBOROUGH","Y60","MIDLANDS COMMISSIONING REGION"]
["NX253","SEAHAM PRIMARY CARE CENTRE","Y63","NORTH EAST AND YORKSHIRE COMMISSIONING REGION"]
["AMC01","SELF HELP SERVICES (HQ)","Y62","NORTH WEST COMMISSIONING REGION"]
["NWE20","SENTINEL ASSESSMENT AND TREATMENT SERVICES - PENINSULA TREATMENT CENTRE","Y58","SOUTH WEST COMMISSIONING REGION"]
["NR507","SEVENTREES CLINIC","Y58","SOUTH WEST COMMISSIONING REGION"]
["NQTAE","SEXUAL HEALTH MILTON KEYNES","Y61","EAST OF ENGLAND COMMISSIONING REGION"]
["NBG25","SHANTI MEDICAL CENTRE","Y62","NORTH WEST COMMISSIONING REGION"]
["NBG5S","SHELDON MEDICAL PRACTICE","Y60","MIDLANDS COMMISSIONING REGION"]
["NDAE4","SHERE SURGERY","Y59","SOUTH EAST COMMISSIONING REGION"]
["AGD01","SHIELD HEALTHCARE (WALLASEY)","Y62","NORTH WEST COMMISSIONING REGION"]
["NVC86","SHIPSTON MEDICAL CENTRE","Y60","MIDLANDS COMMISSIONING REGION"]
["NYR21","SHRUB END SURGERY","Y61","EAST OF ENGLAND COMMISSIONING REGION"]
["NQA28","SILVER END CHILDREN'S CENTRE","Y61","EAST OF ENGLAND COMMISSIONING REGION"]
["NLU0C","SK:N - BLUEWATER","Y59","SOUTH EAST COMMISSIONING REGION"]
["NLU15","SK:N EAST FINCHLEY","Y56","LONDON COMMISSIONING REGION"]
["NLU24","SK:N NEWCASTLE","Y63","NORTH EAST AND YORKSHIRE COMMISSIONING REGION"]
["NLU25","SK:N NORTHAMPTON","Y60","MIDLANDS COMMISSIONING REGION"]
["NLX0D","SKYLARK REHABILITATION UIT","Y58","SOUTH WEST COMMISSIONING REGION"]
["NEMA8","SNEINTON HEALTH CENTRE","Y60","MIDLANDS COMMISSIONING REGION"]
["NVA12","SOMERSET MRI","Y58","SOUTH WEST COMMISSIONING REGION"]
["NLW59","SOUTH BRISTOL SPORTS CENTRE","Y58","SOUTH WEST COMMISSIONING REGION"]
["NLX51","SOUTH GLOS CLDT","Y58","SOUTH WEST COMMISSIONING REGION"]
["NR526","SOUTH HAMS (KINGSBRIDGE) HOSPITAL","Y58","SOUTH WEST COMMISSIONING REGION"]
["NPJ01","SOUTH NORFOLK HEALTHCARE CIC (NRP)","Y61","EAST OF ENGLAND COMMISSIONING REGION"]
["DCV01","SOUTH TEES MEDICAL LTD","Y63","NORTH EAST AND YORKSHIRE COMMISSIONING REGION"]
["NHD01","SOUTH YORKSHIRE DIAGNOSTICS LIMITED HQ","Y63","NORTH EAST AND YORKSHIRE COMMISSIONING REGION"]
["NVE56","SOUTHEND OOH BASE","Y61","EAST OF ENGLAND COMMISSIONING REGION"]
["NLX59","SOUTHMEAD HOSPITAL","Y58","SOUTH WEST COMMISSIONING REGION"]
["NLW60","SOUTHMEAD HOSPITAL BRUNEL BUILDING","Y58","SOUTH WEST COMMISSIONING REGION"]
["NPG12","SPAMEDICA (BRADFORD)","Y63","NORTH EAST AND YORKSHIRE COMMISSIONING REGION"]
["NBGG9","SPARKHILL SURGERY","Y60","MIDLANDS COMMISSIONING REGION"]
["NYNWJ","SPECSAVERS - WEST HAMPSHIRE - NEW MILTON","Y59","SOUTH EAST COMMISSIONING REGION"]
["NYN88","SPECSAVERS HEARCARE - ARDEN - SHIPSTON ON STOUR","Y60","MIDLANDS COMMISSIONING REGION"]
["NYNAB","SPECSAVERS HEARCARE - BERKSHIRE - THATCHAM (BURDWOOD SURGERY)","Y59","SOUTH EAST COMMISSIONING REGION"]
["NYNRH","SPECSAVERS HEARCARE - BERKSHIRE - WOOSEHILL (NYNRE)","Y59","SOUTH EAST COMMISSIONING REGION"]
["NYNDO","SPECSAVERS HEARCARE - BIRMINGHAM & SOLIHULL - RICHMOND PRIMARY CARE CENTRE - STECHFORD","Y60","MIDLANDS COMMISSIONING REGION"]
["NYNCD","SPECSAVERS HEARCARE - BLACK COUNTRY - WALSALL","Y60","MIDLANDS COMMISSIONING REGION"]
["NYNJV","SPECSAVERS HEARCARE - BOX - DIDCOT","Y59","SOUTH EAST COMMISSIONING REGION"]
["NYNJL","SPECSAVERS HEARCARE - BOX - THAME","Y59","SOUTH EAST COMMISSIONING REGION"]
["NYNBP","SPECSAVERS HEARCARE - CAMBRIDGESHIRE - ELY LISLE LANE SAINSBURY'S","Y61","EAST OF ENGLAND COMMISSIONING REGION"]
["NYN47","SPECSAVERS HEARCARE - CAMBRIDGESHIRE (MOBILE - LINTON)","Y61","EAST OF ENGLAND COMMISSIONING REGION"]
["NYNR5","SPECSAVERS HEARCARE - CAMDEN - BRUNSWICK","Y56","LONDON COMMISSIONING REGION"]
["NYN02","SPECSAVERS HEARCARE - CO. DURHAM [BISHOP AUCKLAND]","Y63","NORTH EAST AND YORKSHIRE COMMISSIONING REGION"]
["NYN55","SPECSAVERS HEARCARE - CODURHA (CHESTER LE STREET)","Y63","NORTH EAST AND YORKSHIRE COMMISSIONING REGION"]
["NYNCV","SPECSAVERS HEARCARE - CORNWALL - FALMOUTH","Y58","SOUTH WEST COMMISSIONING REGION"]
["NYNB8","SPECSAVERS HEARCARE - CW SUSSEX - SHOREHAM","Y59","SOUTH EAST COMMISSIONING REGION"]
["NYNC5","SPECSAVERS HEARCARE - DERBYSHIRE - LONG EATON","Y60","MIDLANDS COMMISSIONING REGION"]
["NYNA8","SPECSAVERS HEARCARE - DEVON - HONITON","Y58","SOUTH WEST COMMISSIONING REGION"]
["NYNM3","SPECSAVERS HEARCARE - EAST SUSSEX - EASTBOURNE","Y59","SOUTH EAST COMMISSIONING REGION"]
["NYNRL","SPECSAVERS HEARCARE - ESSEX - COLCHESTER","Y61","EAST OF ENGLAND COMMISSIONING REGION"]
["NYNV8","SPECSAVERS HEARCARE - KERNOW - ST IVES (CARBIS BAY PHARMACY)","Y58","SOUTH WEST COMMISSIONING REGION"]
["NYNF9","SPECSAVERS HEARCARE - LANCASHIRE - CHORLEY","Y62","NORTH WEST COMMISSIONING REGION"]
["NYNF6","SPECSAVERS HEARCARE - LANCASHIRE - ST ANNE'S","Y62","NORTH WEST COMMISSIONING REGION"]
["NYNP1","SPECSAVERS HEARCARE - LONDON - ACTON STORE","Y56","LONDON COMMISSIONING REGION"]
["NYNHG","SPECSAVERS HEARCARE - LONDON - EDGWARE ROAD","Y56","LONDON COMMISSIONING REGION"]
["NYNPG","SPECSAVERS HEARCARE - LONDON - FULHAM","Y56","LONDON COMMISSIONING REGION"]
["NYNPH","SPECSAVERS HEARCARE - LONDON - SHEPHERDS BUSH","Y56","LONDON COMMISSIONING REGION"]
["NYNEN","SPECSAVERS HEARCARE - LONDON SE - PECKHAM","Y56","LONDON COMMISSIONING REGION"]
["NYNGY","SPECSAVERS HEARCARE - MANCHESTER - MANCHESTER (ARNDALE)","Y62","NORTH WEST COMMISSIONING REGION"]
["NYNV9","SPECSAVERS HEARCARE - MERSEYSIDE - HALEWOOD STORE","Y62","NORTH WEST COMMISSIONING REGION"]
["NYNJA","SPECSAVERS HEARCARE - MERSEYSIDE - NEWTON LE WILLOWS","Y62","NORTH WEST COMMISSIONING REGION"]
["NYN11","SPECSAVERS HEARCARE - N.STAFFS (LONGTON)","Y60","MIDLANDS COMMISSIONING REGION"]
["NYNKI","SPECSAVERS HEARCARE - NORFOLK - NORWICH - WHITE LION","Y61","EAST OF ENGLAND COMMISSIONING REGION"]
["NYN01","SPECSAVERS HEARCARE - NOTTS [NOTTINGHAM]","Y60","MIDLANDS COMMISSIONING REGION"]
["NYNMT","SPECSAVERS HEARCARE - SHP - BOSCOMBE","Y58","SOUTH WEST COMMISSIONING REGION"]
["NYNFY","SPECSAVERS HEARCARE - SHP (HAVANT)","Y59","SOUTH EAST COMMISSIONING REGION"]
["NYN16","SPECSAVERS HEARCARE - SOLIHULL (SHIRLEY)","Y60","MIDLANDS COMMISSIONING REGION"]
["NYNMN","SPECSAVERS HEARCARE - SOUTH OF TYNE - HEXHAM","Y63","NORTH EAST AND YORKSHIRE COMMISSIONING REGION"]
["NYND3","SPECSAVERS HEARCARE - STAFFORDSHIRE - TAMWORTH","Y60","MIDLANDS COMMISSIONING REGION"]
["NYNWF","SPECSAVERS HEARCARE - SWALE - SHIVA MEDICAL CENTRE","Y59","SOUTH EAST COMMISSIONING REGION"]
["NYNKR","SPECSAVERS HEARCARE - WCS - BOGNOR REGIS","Y59","SOUTH EAST COMMISSIONING REGION"]
["NYNEM","SPECSAVERS HEARCARE - WEST KENT - MAIDSTONE STORE","Y59","SOUTH EAST COMMISSIONING REGION"]
["NYNHA","SPECSAVERS HEARCARE - WEST KENT - SEVENOAKS STORE","Y59","SOUTH EAST COMMISSIONING REGION"]
["NYNDH","SPECSAVERS HEARCARE - WEST MERCIA - SHREWSBURY","Y60","MIDLANDS COMMISSIONING REGION"]
["NYNLM","SPECSAVERS HEARCARE - WIRRAL - MORETON","Y62","NORTH WEST COMMISSIONING REGION"]
["NYNRC","SPECSAVERS HEARCARE - YORKSHIRE - HARROWGATE","Y63","NORTH EAST AND YORKSHIRE COMMISSIONING REGION"]
["NYNTA","SPECSAVERS OPTICIANS AND HEARING CENTRE - BATH (NYNTA)","Y58","SOUTH WEST COMMISSIONING REGION"]
["NYNTL","SPECSAVERS OPTICIANS AND HEARING CENTRE - NOTTINGHAM (NYNTL)","Y60","MIDLANDS COMMISSIONING REGION"]
["NL540","SPEKE NEIGHBOURHOOD HEALTH CENTRE","Y62","NORTH WEST COMMISSIONING REGION"]
["NT3X1","SPIRE ARDEN HOUSE CLINIC","Y60","MIDLANDS COMMISSIONING REGION"]
["NT383","SPIRE CHRISTCHURCH CLINIC","Y58","SOUTH WEST COMMISSIONING REGION"]
["NT378","SPIRE GREATER LANCASHIRE CLINIC","Y62","NORTH WEST COMMISSIONING REGION"]
["NT372","SPIRE LANCASHIRE CLINIC","Y62","NORTH WEST COMMISSIONING REGION"]
["NT337","SPIRE LIVERPOOL HOSPITAL","Y62","NORTH WEST COMMISSIONING REGION"]
["NT3X5","SPIRE NORTHWICH CLINIC","Y62","NORTH WEST COMMISSIONING REGION"]
["NT346","SPIRE ST SAVIOURS HOSPITAL","Y59","SOUTH EAST COMMISSIONING REGION"]
["AJL08","SPRING HILL SURGERY","Y60","MIDLANDS COMMISSIONING REGION"]
["NKO35","SPRINGFIELD SURGERY","Y62","NORTH WEST COMMISSIONING REGION"]
["NDAE5","ST ANDREWS CHURCH HALL","Y59","SOUTH EAST COMMISSIONING REGION"]
["NX160","ST ANDREWS MEDICAL CENTRE","Y62","NORTH WEST COMMISSIONING REGION"]
["NQT6R","ST AUGUSTINE'S SURGERY","Y58","SOUTH WEST COMMISSIONING REGION"]
["NV1F5","ST CHARLES COMMUNITY HOSPITAL","Y56","LONDON COMMISSIONING REGION"]
["NR327","ST FRANCIS UNIT","Y60","MIDLANDS COMMISSIONING REGION"]
["NEP0N","ST GEORGES MEDICAL CENTRE","Y59","SOUTH EAST COMMISSIONING REGION"]
["NT925","ST JAMES' (SCANNER PAD)","Y63","NORTH EAST AND YORKSHIRE COMMISSIONING REGION"]
["NDAE6","ST JOHNS HEALTH CENTRE","Y59","SOUTH EAST COMMISSIONING REGION"]
["NEB07","ST JOHNS SURGERY","Y61","EAST OF ENGLAND COMMISSIONING REGION"]
["NR608","ST LUKE'S HOSPITAL","Y61","EAST OF ENGLAND COMMISSIONING REGION"]
["NNV30","ST MARY'S CENTRE CHESSINGTON","Y56","LONDON COMMISSIONING REGION"]
["NT707","ST MARY'S HOSPITAL","Y59","SOUTH EAST COMMISSIONING REGION"]
["NFJ03","ST MATTHEWS UNIT","Y60","MIDLANDS COMMISSIONING REGION"]
["NNJ06","ST OSWALDS HOSPITAL","Y60","MIDLANDS COMMISSIONING REGION"]
["NV1J5","ST PETER'S HOSPITAL","Y59","SOUTH EAST COMMISSIONING REGION"]
["ALT04","ST WOOLOS - ANN PHYSIOCARE","WALES","WALES"]
["NCP31","ST. CLEMENTS PRACTICE","Y59","SOUTH EAST COMMISSIONING REGION"]
["DM201","STAHFED","Y61","EAST OF ENGLAND COMMISSIONING REGION"]
["NHW01","STANDARD HEALTH LTD HQ","Y56","LONDON COMMISSIONING REGION"]
["NMD01","STAPELY RESIDENTIAL AND NURSING HOME","Y62","NORTH WEST COMMISSIONING REGION"]
["ANG52","STATION DRIVE MEDICAL PRACTICE","Y60","MIDLANDS COMMISSIONING REGION"]
["NFR02","STEPPING STONES CARE HOMES - PRIMROSE HOUSE","Y60","MIDLANDS COMMISSIONING REGION"]
["NN201","STERIA LIMITED (THREE CHERRY TREES LANE)","Y61","EAST OF ENGLAND COMMISSIONING REGION"]
["NO03T","STOCKINGFORD MEDICAL CENTRE","Y60","MIDLANDS COMMISSIONING REGION"]
["NLX40","STOKE GIFFORD MEDICAL CENTRE","Y58","SOUTH WEST COMMISSIONING REGION"]
["NHM19","STOW LODGE CENTRE","Y61","EAST OF ENGLAND COMMISSIONING REGION"]
["NEM0P","STREETS CORNER SURGERY","Y60","MIDLANDS COMMISSIONING REGION"]
["NDL01","SUFFOLK GP FEDERATION - WOODBRIDGE","Y61","EAST OF ENGLAND COMMISSIONING REGION"]
["NDL04","SUFFOLK GP+ FELIXSTOWE MIU","Y61","EAST OF ENGLAND COMMISSIONING REGION"]
["NDA50","SUNBURY HEALTH CENTRE","Y59","SOUTH EAST COMMISSIONING REGION"]
["DWC01","SUPPORTED LIVING SERVICES (HOE STREET)","Y56","LONDON COMMISSIONING REGION"]
["DPF02","SURGEASE (CROFT SHIFA HEALTH CENTRE)","Y62","NORTH WEST COMMISSIONING REGION"]
["NKG10","SURREY PHYSIO - SOUTH CROYDON","Y56","LONDON COMMISSIONING REGION"]
["NYG26","SUSSEX COMMUNITY DERMATOLOGY SERVCE (WORTHING SKIN CLINIC)","Y59","SOUTH EAST COMMISSIONING REGION"]
["NYG08","SUSSEX COMMUNITY DERMATOLOGY SERVICE (HOLBROOK SURGERY)","Y59","SOUTH EAST COMMISSIONING REGION"]
["NL206","SUSSEX HEALTH CARE AUDIOLGY ADMIN BASE","Y59","SOUTH EAST COMMISSIONING REGION"]
["NNF56","SUTTON MANOR SURGERY","Y63","NORTH EAST AND YORKSHIRE COMMISSIONING REGION"]
["NO05J","SWANPOOL MEDICAL CENTRE","Y60","MIDLANDS COMMISSIONING REGION"]
["NHG03","SWINESHEAD MEDICAL GROUP","Y60","MIDLANDS COMMISSIONING REGION"]
["NR511","SYRENA HOUSE","Y58","SOUTH WEST COMMISSIONING REGION"]
["NDAC7","SYTHWOOD CHILDRENS CENTRE","Y59","SOUTH EAST COMMISSIONING REGION"]
["NRP57","TAMESIDE GENERAL HOSPITAL","Y62","NORTH WEST COMMISSIONING REGION"]
["NT709","TAUNTON DEANE","Y58","SOUTH WEST COMMISSIONING REGION"]
["NNV2J","TEDDINGTON MEMORIAL HOSPITAL","Y56","LONDON COMMISSIONING REGION"]
["NQA44","TENNYSON HOUSE SURGERY","Y61","EAST OF ENGLAND COMMISSIONING REGION"]
["NXP22","TEWKESBURY COMMUNITY HOSPITAL - IHG","Y58","SOUTH WEST COMMISSIONING REGION"]
["ALT09","THATCHAM - ANN PHYSIOCARE","Y59","SOUTH EAST COMMISSIONING REGION"]
["NEP4E","THE ARUNDEL SURGERY (WEST SUSSEX)","Y59","SOUTH EAST COMMISSIONING REGION"]
["NVC02","THE BERKSHIRE INDEPENDENT HOSPITAL","Y59","SOUTH EAST COMMISSIONING REGION"]
["NIO01","THE BRITISH SCHOOL OF OSTEOPATHY - LONDON","Y56","LONDON COMMISSIONING REGION"]
["DDV2G","THE BROOKE SURGERY","Y62","NORTH WEST COMMISSIONING REGION"]
["NV130","THE CENTRE","Y56","LONDON COMMISSIONING REGION"]
["NNV65","THE CHURCH OF THE HOLY NAME","Y59","SOUTH EAST COMMISSIONING REGION"]
["NO05T","THE CONSULTING ROOMS","Y61","EAST OF ENGLAND COMMISSIONING REGION"]
["NEP1Y","THE CROFT MEDICAL CENTRE","Y60","MIDLANDS COMMISSIONING REGION"]
["NTN0G","THE DENE","Y59","SOUTH EAST COMMISSIONING REGION"]
["DGK01","THE DORSET SKIN CLINIC (BREAKSPEAR RD)","Y56","LONDON COMMISSIONING REGION"]
["NW501","THE ELMS MEDICAL PRACTICE - CATS","Y61","EAST OF ENGLAND COMMISSIONING REGION"]
["NQ7F5","THE FORGE SURGERY","Y59","SOUTH EAST COMMISSIONING REGION"]
["AG016","THE GABLES RESIDENTIAL SERVICE","Y63","NORTH EAST AND YORKSHIRE COMMISSIONING REGION"]
["NL576","THE GLENFIELD SURGERY","Y60","MIDLANDS COMMISSIONING REGION"]
["NKO22","THE GROVE SURGERY","Y63","NORTH EAST AND YORKSHIRE COMMISSIONING REGION"]
["NT254","THE GUILDFORD CLINIC","Y59","SOUTH EAST COMMISSIONING REGION"]
["NEL61","THE HEADLAND MEDICAL CENTRE","Y63","NORTH EAST AND YORKSHIRE COMMISSIONING REGION"]
["NQV08","THE HILL SURGERY","Y56","LONDON COMMISSIONING REGION"]
["NV245","THE HUNTERCOMBE CENTRE SHERWOOD","Y60","MIDLANDS COMMISSIONING REGION"]
["NV249","THE HUNTERCOMBE HOSPITAL - ROEHAMPTON","Y56","LONDON COMMISSIONING REGION"]
["NHT8A","THE JOLLY MEDICAL CENTRE","Y62","NORTH WEST COMMISSIONING REGION"]
["NKR15","THE KINGTON SURGERY","Y60","MIDLANDS COMMISSIONING REGION"]
["NL5M9","THE LITTLE SURGERY","Y60","MIDLANDS COMMISSIONING REGION"]
["DWP01","THE LONDON FOOT AND ANKLE CENTRE - ST JOHN & ST ELIZABETH","Y56","LONDON COMMISSIONING REGION"]
["NEP27","THE MARKET PLACE SURGERY","Y59","SOUTH EAST COMMISSIONING REGION"]
["NL51E","THE MARKET SURGERY (AYLSHAM)","Y61","EAST OF ENGLAND COMMISSIONING REGION"]
["NTP56","THE MEDICAL CENTRE","Y61","EAST OF ENGLAND COMMISSIONING REGION"]
["NQA22","THE MULBERRIES","Y61","EAST OF ENGLAND COMMISSIONING REGION"]
["NO00J","THE OAKLEY SUGRERY","Y61","EAST OF ENGLAND COMMISSIONING REGION"]
["DCW01","THE ONE STOP PSYCHOTHERAPY SHOP LTD","Y58","SOUTH WEST COMMISSIONING REGION"]
["DDV0C","THE PARK SURGERY","Y59","SOUTH EAST COMMISSIONING REGION"]
["NXV20","THE PARKS MEDICAL PRACTICE","Y59","SOUTH EAST COMMISSIONING REGION"]
["NL597","THE PRACTICE - SAYEED MEDICAL CENTRE","Y60","MIDLANDS COMMISSIONING REGION"]
["NTN46","THE PRIORY CLOISTERS","Y59","SOUTH EAST COMMISSIONING REGION"]
["NTN25","THE PRIORY LONDON CONSULTING ROOMS","Y56","LONDON COMMISSIONING REGION"]
["AV401","THE RIDGE MEDICAL CENTRE","Y63","NORTH EAST AND YORKSHIRE COMMISSIONING REGION"]
["DJH02","THE ROYAL BUCKINGHAMSHIRE HOSPITAL LTD (COUNTY GATES HOUSE)","Y58","SOUTH WEST COMMISSIONING REGION"]
["NWV45","THE ROYAL CRESCENT SURGERY","Y58","SOUTH WEST COMMISSIONING REGION"]
["NBG1A","THE SIDINGS MEDICAL PRACTICE","Y60","MIDLANDS COMMISSIONING REGION"]
["NNV86","THE STAR CENTRE","Y56","LONDON COMMISSIONING REGION"]
["NXH08","THE SURGERY - ACOMB ROAD","Y63","NORTH EAST AND YORKSHIRE COMMISSIONING REGION"]
["NQA21","THE TEKHNICON CENTRE","Y61","EAST OF ENGLAND COMMISSIONING REGION"]
["NQA32","THE VALLEY CHILDREN'S CENTRE","Y61","EAST OF ENGLAND COMMISSIONING REGION"]
["DDV37","THE VILLAGE MEDICAL CENTRE","Y62","NORTH WEST COMMISSIONING REGION"]
["NQV09","THE WAVERLEY PRACTICE","Y56","LONDON COMMISSIONING REGION"]
["NL5P3","THE WILLOWS MEDICAL CENTRE","Y60","MIDLANDS COMMISSIONING REGION"]
["NVC20","THE YORKSHIRE CLINIC","Y63","NORTH EAST AND YORKSHIRE COMMISSIONING REGION"]
["NAG05","THINKACTION MENTAL HEALTH AT THANET (FORMERLY KNOWN AS KCA)","Y59","SOUTH EAST COMMISSIONING REGION"]
["DJG05","THIS IS MY","Y63","NORTH EAST AND YORKSHIRE COMMISSIONING REGION"]
["NMJ0T","THORNFIELD GRANGE AUTISM SERVICE","Y63","NORTH EAST AND YORKSHIRE COMMISSIONING REGION"]
["NMJ0U","THORS PARK","Y61","EAST OF ENGLAND COMMISSIONING REGION"]
["NKOTT","TIEVE TARA MEDICAL CENTRE","Y63","NORTH EAST AND YORKSHIRE COMMISSIONING REGION"]
["NWV99","TIPTREE COMMUNITY CENTRE","Y61","EAST OF ENGLAND COMMISSIONING REGION"]
["NQT0G","TIVERTON AND DISTRICT HOSPITAL","Y58","SOUTH WEST COMMISSIONING REGION"]
["NQX06","TOLGATE CLINIC @ BUSHEY MEDICAL CENTRE","Y61","EAST OF ENGLAND COMMISSIONING REGION"]
["NNV05","TOLWORTH HOSPITAL","Y56","LONDON COMMISSIONING REGION"]
["DFR05","TORRINGTON PARK HEALTH CENTRE","Y56","LONDON COMMISSIONING REGION"]
["NCNTH","TOWER HAMLETS TELEDERMATOLOGY AND DERMATOLOGY ONE STOP ASSESSMENT AND TREATMENT SERVICE (OATS)","Y56","LONDON COMMISSIONING REGION"]
["NAA09","TOWER HILL PRIMARY CARE & COMMUNITY RESOURCE CENTRE","Y62","NORTH WEST COMMISSIONING REGION"]
["AA474","TOWNSIDE","Y62","NORTH WEST COMMISSIONING REGION"]
["DER01","TRAVEL KLINIX (WARWICK)","Y60","MIDLANDS COMMISSIONING REGION"]
["NEPG9","TRINITY HEALTH (BRILL SURGERY)","Y59","SOUTH EAST COMMISSIONING REGION"]
["NEM9B","TRUMPINGTON SURGERY","Y61","EAST OF ENGLAND COMMISSIONING REGION"]
["NV14M","TUNSTALL PRIMARY CARE CENTRE","Y60","MIDLANDS COMMISSIONING REGION"]
["NKI23","TURNING POINT - HOOLE ROAD","Y62","NORTH WEST COMMISSIONING REGION"]
["NQT8V","TUTBURY HEALTH CENTRE","Y60","MIDLANDS COMMISSIONING REGION"]
["NMV17","TY CATRIN","WALES","WALES"]
["NN401","TYNESIDE SURGICAL SERVICES","Y63","NORTH EAST AND YORKSHIRE COMMISSIONING REGION"]
["NEM0C","UK FAST","Y62","NORTH WEST COMMISSIONING REGION"]
["NFB12","ULTRASOUND - MIDDLETON CLINIC","Y62","NORTH WEST COMMISSIONING REGION"]
["NTPUA","ULTRASOUND CONSTABLE COUNTY MEDICAL PRACTICE","Y61","EAST OF ENGLAND COMMISSIONING REGION"]
["NTPU2","ULTRASOUND SERVICE GRAINGER MEDICAL GROUP (ELSWICK)","Y63","NORTH EAST AND YORKSHIRE COMMISSIONING REGION"]
["DFX01","UNITED OPEN MRI LTD","Y56","LONDON COMMISSIONING REGION"]
["NKT01","UNIVERSITY MEDICAL CENTRE - PSYCHOLOGICAL THERAPIES","Y59","SOUTH EAST COMMISSIONING REGION"]
["NRF06","USAIS (SPIRE SOUTHAMPTON HOSPITAL)","Y59","SOUTH EAST COMMISSIONING REGION"]
["NRF02","USAIS (TREMONA ROAD)","Y59","SOUTH EAST COMMISSIONING REGION"]
["NMV64","VANCOUVER HOUSE","Y62","NORTH WEST COMMISSIONING REGION"]
["NX136","VERNEY CLOSE SURGERY","Y59","SOUTH EAST COMMISSIONING REGION"]
["DDW02","VIADUCT CARE CIC (STOPFORD HOUSE)","Y62","NORTH WEST COMMISSIONING REGION"]
["NL5T3","VILLA MEDICAL CENTRE","Y62","NORTH WEST COMMISSIONING REGION"]
["NQTD0","VIRGIN CARE CHELMSFORD LLP","Y61","EAST OF ENGLAND COMMISSIONING REGION"]
["NQTE0","VIRGIN CARE COVENTRY LLP","Y60","MIDLANDS COMMISSIONING REGION"]
["NQT30","VIRGIN CARE VERTIS LLP","Y60","MIDLANDS COMMISSIONING REGION"]
["NT966","WAKEFIELD AND DISTRICT MRI","Y63","NORTH EAST AND YORKSHIRE COMMISSIONING REGION"]
["DKQ17","WALKERN LODGE","Y61","EAST OF ENGLAND COMMISSIONING REGION"]
["NDA07","WALTON COMMUNITY HOSPITAL","Y59","SOUTH EAST COMMISSIONING REGION"]
["NWC03","WANDSWORTH: WANDSWORTH MEDICAL CENTRE","Y56","LONDON COMMISSIONING REGION"]
["NEP32","WARDERS MEDICAL CENTRE","Y59","SOUTH EAST COMMISSIONING REGION"]
["ALY01","WASHINGBOROUGH SURGERY","Y60","MIDLANDS COMMISSIONING REGION"]
["AG023","WAST HILLS HOSPITAL","Y60","MIDLANDS COMMISSIONING REGION"]
["NCP33","WATERSIDE MEDICAL CENTRE","Y59","SOUTH EAST COMMISSIONING REGION"]
["NX113","WEALDSTONE MEDICAL CENTRE","Y56","LONDON COMMISSIONING REGION"]
["AK604","WEELSBY VIEW MEDICAL CENTRE","Y63","NORTH EAST AND YORKSHIRE COMMISSIONING REGION"]
["AKG06","WELLESLEY ROAD PRACTICE","Y56","LONDON COMMISSIONING REGION"]
["NWV68","WELLS ROAD OSTEOPATHS","Y58","SOUTH WEST COMMISSIONING REGION"]
["NPD05","WES - BASINGSTOKE SATELLITE","Y59","SOUTH EAST COMMISSIONING REGION"]
["DJQ0B","WEST BYFLEET HEALTH CENTRE","Y59","SOUTH EAST COMMISSIONING REGION"]
["DQK02","WEST CAMBS FEDERATION (CROMWELL PLACE)","Y61","EAST OF ENGLAND COMMISSIONING REGION"]
["DJQ09","WEST HILL SCHOOL","Y59","SOUTH EAST COMMISSIONING REGION"]
["NYG33","WEST KENT DERMATOLOGY - TONBRIDGE COTTAGE HOSPITAL","Y59","SOUTH EAST COMMISSIONING REGION"]
["NEB01","WEST NORFOLK HEALTH HQ","Y61","EAST OF ENGLAND COMMISSIONING REGION"]
["NPT05","WEST SUSSEX OUT OF HOURS SERVICE","Y59","SOUTH EAST COMMISSIONING REGION"]
["NFC0F","WEST WALK SURGERY","Y58","SOUTH WEST COMMISSIONING REGION"]
["NEM45","WESTBOURNE GREEN COMMUNITY HEALTH CARE CENTRE","Y63","NORTH EAST AND YORKSHIRE COMMISSIONING REGION"]
["AGA08","WESTCLIFFE HEALTH AND SPECSAVERS - HEADINGLY","Y63","NORTH EAST AND YORKSHIRE COMMISSIONING REGION"]
["NEPC0","WESTERHAM PRACTICE","Y59","SOUTH EAST COMMISSIONING REGION"]
["NKO27","WESTGATE SURGERY","Y63","NORTH EAST AND YORKSHIRE COMMISSIONING REGION"]
["NBO02","WESTSIDE SURGERY","Y60","MIDLANDS COMMISSIONING REGION"]
["NKO37","WETHERBY SURGERY","Y63","NORTH EAST AND YORKSHIRE COMMISSIONING REGION"]
["ADK05","WHEATFIELD SURGERY","Y61","EAST OF ENGLAND COMMISSIONING REGION"]
["AKK30","WHITE CITY HEALTH CENTRE","Y56","LONDON COMMISSIONING REGION"]
["NNV68","WHITEFARM LODGE","Y56","LONDON COMMISSIONING REGION"]
["AA486","WHITTAKER LANE","Y62","NORTH WEST COMMISSIONING REGION"]
["ARP03","WHP GREENBANK","Y62","NORTH WEST COMMISSIONING REGION"]
["NJY06","WIDNES HEALTH CARE & RESOURCE CENTRE","Y62","NORTH WEST COMMISSIONING REGION"]
["DKE0D","WILLINGTON SUREGRY","Y60","MIDLANDS COMMISSIONING REGION"]
["NN502","WILMSLOW HEALTH CENTRE","Y62","NORTH WEST COMMISSIONING REGION"]
["AFD12","WINCKLEY PHYSIO CENTRE","Y62","NORTH WEST COMMISSIONING REGION"]
["NEPH6","WINSHILL MEDICAL CENTRE","Y60","MIDLANDS COMMISSIONING REGION"]
["NBG1F","WINTERTON MEDICAL PRACTICE","Y63","NORTH EAST AND YORKSHIRE COMMISSIONING REGION"]
["NV12G","WITNEY COMMUNITY HOSPITAL","Y59","SOUTH EAST COMMISSIONING REGION"]
["NVC0G","WOKINGHAM MEDICAL CENTRE","Y59","SOUTH EAST COMMISSIONING REGION"]
["AHL01","WOMENS LOW SECURE AND LOCKED REHABILITATION UNIT","Y63","NORTH EAST AND YORKSHIRE COMMISSIONING REGION"]
["NBF14","WOODHALL SPA NEW SURGERY","Y60","MIDLANDS COMMISSIONING REGION"]
["NLS02","WOODLANDS LODGE","Y60","MIDLANDS COMMISSIONING REGION"]
["NMK71","WOODLANDS MEDICAL CENTRE","Y59","SOUTH EAST COMMISSIONING REGION"]
["NTT39","WOODSIDE HOSPITAL","Y63","NORTH EAST AND YORKSHIRE COMMISSIONING REGION"]
["NEP08","WOOSEHILL SURGERY","Y59","SOUTH EAST COMMISSIONING REGION"]
["NVE37","WORTHING OOH BASE","Y59","SOUTH EAST COMMISSIONING REGION"]
["NI003","WYCLIFFE MEDICAL CENTRE","Y60","MIDLANDS COMMISSIONING REGION"]
["NV1R1","YARDLEY WOOD HEALTH CENTRE","Y60","MIDLANDS COMMISSIONING REGION"]
["NEL49","YARM MEDICAL CENTRE","Y63","NORTH EAST AND YORKSHIRE COMMISSIONING REGION"]
["NTN2H","YEW TREE LODGE","Y59","SOUTH EAST COMMISSIONING REGION"]
["NL10D","YORK DRUG & ALCOHOL SERVICE","Y63","NORTH EAST AND YORKSHIRE COMMISSIONING REGION"]
["AH001","YORKSHIRE FATIGUE CLINIC LTD - ALNE","Y63","NORTH EAST AND YORKSHIRE COMMISSIONING REGION"]
["8K586","1ST ENABLE LIMITED","Y62","NORTH WEST COMMISSIONING REGION"]
["8CQ35","3 PRINCE OF WALES ROAD","Y58","SOUTH WEST COMMISSIONING REGION"]
["8J467","360CRM LTD (UK CENTRE)","Y59","SOUTH EAST COMMISSIONING REGION"]
["8J011","4CHILDREN (WILTSHIRE CHILDREN'S CENTRES)","Y58","SOUTH WEST COMMISSIONING REGION"]
["8FQ01","A M LUNT HYPNOTHERAPIST / ANALYST","Y61","EAST OF ENGLAND COMMISSIONING REGION"]
["8DE38","AARON GRANGE CARE HOME","Y62","NORTH WEST COMMISSIONING REGION"]
["8DC30","ABBERLEY HOUSE NH","Y62","NORTH WEST COMMISSIONING REGION"]
["8AW82","ABBEY COURT NH (DERBY)","Y60","MIDLANDS COMMISSIONING REGION"]
["8FX05","ABBEY SEFTON SUITE","Y62","NORTH WEST COMMISSIONING REGION"]
["8FX01","ABBEYLAWNS NH","Y62","NORTH WEST COMMISSIONING REGION"]
["8AY04","ABELARD NH","Y60","MIDLANDS COMMISSIONING REGION"]
["8JT20","ABSOLUTE CARE AT HOME LTD","Y62","NORTH WEST COMMISSIONING REGION"]
["8CJ24","ACACIA LODGE NH (CROYDON)","Y56","LONDON COMMISSIONING REGION"]
["8JT17","ACCURX LIMITED","Y56","LONDON COMMISSIONING REGION"]
["8JG33","ACKROYDS","Y63","NORTH EAST AND YORKSHIRE COMMISSIONING REGION"]
["8J040","ACORNS WORCESTER","Y60","MIDLANDS COMMISSIONING REGION"]
["8HR45","ACTION FOR CHILDREN","Y61","EAST OF ENGLAND COMMISSIONING REGION"]
["8J839","ACTIVE RECOVERY","Y63","NORTH EAST AND YORKSHIRE COMMISSIONING REGION"]
["8FR20","ADAM DAVID (HYPNOTHERAPIST)","Y58","SOUTH WEST COMMISSIONING REGION"]
["8HR72","ADDICTION DEPENDENCY SOLUTIONS","Y62","NORTH WEST COMMISSIONING REGION"]
["8K681","ADOPTION SERVICES FOR ADULTS","Y59","SOUTH EAST COMMISSIONING REGION"]
["8GP89","ADVANCED HYPNOTHERAPY","Y63","NORTH EAST AND YORKSHIRE COMMISSIONING REGION"]
["8K676","AETNA GLOBAL BENEFITS (EUROPE) LTD","Y56","LONDON COMMISSIONING REGION"]
["8J308","AFFINITY TRUST","Y59","SOUTH EAST COMMISSIONING REGION"]
["8J369","AGE CONCERN SUPPORT SERVICES (YORKSHIRE & HUMBER)","Y63","NORTH EAST AND YORKSHIRE COMMISSIONING REGION"]
["8J507","AGE UK CORNWALL & THE ISLES OF SCILLY","Y58","SOUTH WEST COMMISSIONING REGION"]
["8JD81","AGE UK NORTH TYNESIDE","Y63","NORTH EAST AND YORKSHIRE COMMISSIONING REGION"]
["8JY48","AGE UK SOUTH GLOUCESTERSHIRE","Y58","SOUTH WEST COMMISSIONING REGION"]
["8J690","AGE UK SUTTON","Y56","LONDON COMMISSIONING REGION"]
["8HP17","AGILENT TECHNOLOGIES LDA UK LIMITED","Y61","EAST OF ENGLAND COMMISSIONING REGION"]
["8HM28","AIRBUS CIMPA LIMITED","Y58","SOUTH WEST COMMISSIONING REGION"]
["8WA31","ALASTAIR HOUSE","WALES","WALES"]
["8JR42","ALBION IN THE COMMUNITY","Y59","SOUTH EAST COMMISSIONING REGION"]
["8DR39","ALDRED E M","Y60","MIDLANDS COMMISSIONING REGION"]
["8G260","ALDRIDGE MALCOLM (HYPNOTHERAPIST)","Y60","MIDLANDS COMMISSIONING REGION"]
["8A513","ALEXANDRA HOUSE NH (GREAT YARMOUTH)","Y61","EAST OF ENGLAND COMMISSIONING REGION"]
["8FX34","ALEXANDRA NH (POULTON LE FYLDE)","Y62","NORTH WEST COMMISSIONING REGION"]
["8J082","ALL ANSWERS LTD","Y60","MIDLANDS COMMISSIONING REGION"]
["8FD47","ALLEN M J (DR)","Y60","MIDLANDS COMMISSIONING REGION"]
["8FY57","ALLSOP SUZANNE (HYPNOTHERAPIST)","Y63","NORTH EAST AND YORKSHIRE COMMISSIONING REGION"]
["8K270","ALLSORTS YOUTH PROJECT","Y59","SOUTH EAST COMMISSIONING REGION"]
["8K306","ALSTON GARRARD AND COMPANY LIMITED","Y58","SOUTH WEST COMMISSIONING REGION"]
["8JQ91","ALWAYS HERE LTD","Y63","NORTH EAST AND YORKSHIRE COMMISSIONING REGION"]
["8EA43","AMBERLEY COURT NH","Y60","MIDLANDS COMMISSIONING REGION"]
["8J239","AMEY COMMUNITY LIMITED","Y59","SOUTH EAST COMMISSIONING REGION"]
["8G414","AMIN OPTICIANS","Y56","LONDON COMMISSIONING REGION"]
["8HG26","ANDERSON LORRAINE (HYPNOTHERAPIST)","Y61","EAST OF ENGLAND COMMISSIONING REGION"]
["8GC77","ANGEL PHARMACY","Y58","SOUTH WEST COMMISSIONING REGION"]
["8CH71","ANN MOSS DOMUS","Y56","LONDON COMMISSIONING REGION"]
["8C921","ANSON HOUSE NH","Y60","MIDLANDS COMMISSIONING REGION"]
["8JH46","APPDRAGON LTD","Y56","LONDON COMMISSIONING REGION"]
["8HM24","APPLIED BUSINESS SOLUTIONS UK LIMITED","Y58","SOUTH WEST COMMISSIONING REGION"]
["8E307","APR CONSULTANCY","Y62","NORTH WEST COMMISSIONING REGION"]
["8A903","ARBOURS CRISIS CENTRE","Y56","LONDON COMMISSIONING REGION"]
["8JH24","ARCOS: ASSOCIATION FOR REHABILITATION OF COMMUNICATION AND ORAL SKILLS","Y60","MIDLANDS COMMISSIONING REGION"]
["8E906","ARJO LTD","Y58","SOUTH WEST COMMISSIONING REGION"]
["8DE37","ARNCLIFFE COURT NH","Y62","NORTH WEST COMMISSIONING REGION"]
["8FR55","ARNSTEIN PETER M (SURGEON)","Y59","SOUTH EAST COMMISSIONING REGION"]
["8K369","ARTLIFT","Y58","SOUTH WEST COMMISSIONING REGION"]
["8D621","ASCOT LODGE NH","Y63","NORTH EAST AND YORKSHIRE COMMISSIONING REGION"]
["8GC94","ASHBOURNE PHYSIOTHERAPY & SPORTS INJURY CLINIC","Y60","MIDLANDS COMMISSIONING REGION"]
["8AT76","ASHCROFT NH (CLECKHEATON)","Y63","NORTH EAST AND YORKSHIRE COMMISSIONING REGION"]
["8CN61","ASHDOWN NH","Y59","SOUTH EAST COMMISSIONING REGION"]
["8CN66","ASHINGTON NH","Y59","SOUTH EAST COMMISSIONING REGION"]
["8AX81","ASHLEIGH NH","Y60","MIDLANDS COMMISSIONING REGION"]
["8CF83","ASHMINSTER HOUSE","Y59","SOUTH EAST COMMISSIONING REGION"]
["8AG69","ASHTON RICHARD E (DR) (CONSULTANT DERMATOLOGIST)","Y59","SOUTH EAST COMMISSIONING REGION"]
["8CG61","ASHURST PARK NH","Y59","SOUTH EAST COMMISSIONING REGION"]
["8DJ65","ASMALL HALL NH","Y62","NORTH WEST COMMISSIONING REGION"]
["8JQ78","ASPYRA TECHNOLOGIES LTD","Y61","EAST OF ENGLAND COMMISSIONING REGION"]
["8C563","ASTLEY HALL PRIVATE NH","Y60","MIDLANDS COMMISSIONING REGION"]
["8J721","ASTUTE MOBILE DATA SOLUTIONS LTD","Y61","EAST OF ENGLAND COMMISSIONING REGION"]
["8AG55","ATLANTIC ENTERPRISE UK LTD","Y58","SOUTH WEST COMMISSIONING REGION"]
["8HY29","ATOS (BULWELL)","Y60","MIDLANDS COMMISSIONING REGION"]
["8K037","AUK SUPPLIES LTD","Y58","SOUTH WEST COMMISSIONING REGION"]
["8C918","AUTUMN HOUSE","Y60","MIDLANDS COMMISSIONING REGION"]
["8K596","AVENTIS PHARMA LTD","Y59","SOUTH EAST COMMISSIONING REGION"]
["8A721","AVON HOUSE (LONDON)","Y56","LONDON COMMISSIONING REGION"]
["8CT40","AVONDALE","Y58","SOUTH WEST COMMISSIONING REGION"]
["8K393","AXIA ASD LTD","Y62","NORTH WEST COMMISSIONING REGION"]
["8HD35","AYUB FIAZ (HYPNOTHERAPIST)","Y56","LONDON COMMISSIONING REGION"]
["8HE71","BADDOW HALL CONSULTING LTD","Y59","SOUTH EAST COMMISSIONING REGION"]
["8G439","BAHRI PRADEED KUMAR","Y56","LONDON COMMISSIONING REGION"]
["8G330","BALKERNE GARDENS TRUST","Y61","EAST OF ENGLAND COMMISSIONING REGION"]
["8A767","BALKERNE GARDENS TRUST LTD","Y61","EAST OF ENGLAND COMMISSIONING REGION"]
["8DK40","BANK HOUSE NH (BURY)","Y62","NORTH WEST COMMISSIONING REGION"]
["8CT25","BARCHESTER HEALTHCARE","Y59","SOUTH EAST COMMISSIONING REGION"]
["8HH06","BARLOW MICHELLE (HYPNOTHERAPIST)","Y62","NORTH WEST COMMISSIONING REGION"]
["8DG40","BARNSTON COURT NH","Y62","NORTH WEST COMMISSIONING REGION"]
["8DJ79","BARRISLE NH","Y62","NORTH WEST COMMISSIONING REGION"]
["8GK20","BARRON MICHAEL K (HYPNOTHERAPIST)","Y61","EAST OF ENGLAND COMMISSIONING REGION"]
["8C638","BASFORD HURSTPARK R & NH","Y60","MIDLANDS COMMISSIONING REGION"]
["8CT81","BATH CLINIC","Y58","SOUTH WEST COMMISSIONING REGION"]
["8WC88","BAXTER HEALTHCARE LTD, RENAL UNIT","WALES","WALES"]
["8WH08","BCB MARINE LTD","WALES","WALES"]
["8JY47","BEACON","Y59","SOUTH EAST COMMISSIONING REGION"]
["8JL04","BEACON HOUSE MINISTRIES","Y61","EAST OF ENGLAND COMMISSIONING REGION"]
["8C953","BEATRICE COURT NH","Y60","MIDLANDS COMMISSIONING REGION"]
["8AY59","BEAUVALE NH","Y60","MIDLANDS COMMISSIONING REGION"]
["8EL19","BEDS CARE AT HOME","Y61","EAST OF ENGLAND COMMISSIONING REGION"]
["8G931","BEECH HOUSE NH (BRISTOL)","Y58","SOUTH WEST COMMISSIONING REGION"]
["8CX45","BEECHCOURT NH (WITNEY)","Y59","SOUTH EAST COMMISSIONING REGION"]
["8AQ45","BEECHWOOD NH","Y63","NORTH EAST AND YORKSHIRE COMMISSIONING REGION"]
["8FT34","BELL SUSAN L (HYPNOTHERAPIST)","Y56","LONDON COMMISSIONING REGION"]
["8DW43","BELMONT SURGERY WELL WOMAN CLINIC","Y63","NORTH EAST AND YORKSHIRE COMMISSIONING REGION"]
["8AL37","BENFIELD VILLA NH","Y63","NORTH EAST AND YORKSHIRE COMMISSIONING REGION"]
["8CA40","BENWELL DENE NH","Y63","NORTH EAST AND YORKSHIRE COMMISSIONING REGION"]
["8G623","BEREWEEKE COURT NH","Y59","SOUTH EAST COMMISSIONING REGION"]
["8AX41","BERRYSTEAD NH","Y60","MIDLANDS COMMISSIONING REGION"]
["8JJ11","BETHEL HEALTHCARE SERVICES LTD","Y60","MIDLANDS COMMISSIONING REGION"]
["8CJ63","BEVERLEY LODGE NH","Y56","LONDON COMMISSIONING REGION"]
["8AA77","BHATNAGAR P K (DR)","Y62","NORTH WEST COMMISSIONING REGION"]
["8F601","BIANCARDI JENNY (PSYCHOTHERAPIST)","Y63","NORTH EAST AND YORKSHIRE COMMISSIONING REGION"]
["8K422","BILLERICAY DENTAL SUPPLY COMPANY LIMITED","Y61","EAST OF ENGLAND COMMISSIONING REGION"]
["8JD02","BIOGEN","Y59","SOUTH EAST COMMISSIONING REGION"]
["8F146","BIRCHLANDS CARE HOME","Y63","NORTH EAST AND YORKSHIRE COMMISSIONING REGION"]
["8EX41","BIRMINGHAM INSTITUTE FOR THE DEAF","Y60","MIDLANDS COMMISSIONING REGION"]
["8K019","BIRMINGHAM VOLUNTARY SERVICE COUNCIL","Y60","MIDLANDS COMMISSIONING REGION"]
["8JH37","BITJAM LIMITED","Y60","MIDLANDS COMMISSIONING REGION"]
["8F719","BLACKHILL HEALTHCARE LTD","Y56","LONDON COMMISSIONING REGION"]
["8FP05","BLAIR HOUSE","Y60","MIDLANDS COMMISSIONING REGION"]
["8CF04","BLENHEIM HOUSE NH (DEAL)","Y59","SOUTH EAST COMMISSIONING REGION"]
["8G787","BLISS WILLIAM (THERAPIST)","Y61","EAST OF ENGLAND COMMISSIONING REGION"]
["8JL94","BLUE DONUT STUDIOS LIMITED","Y59","SOUTH EAST COMMISSIONING REGION"]
["8J807","BLUEBIRD CARE (SHEFFIELD)","Y63","NORTH EAST AND YORKSHIRE COMMISSIONING REGION"]
["8A254","BLYTON COURT NH","Y60","MIDLANDS COMMISSIONING REGION"]
["8E231","BOLLEN S R","Y63","NORTH EAST AND YORKSHIRE COMMISSIONING REGION"]
["8C013","BONAER NH","Y58","SOUTH WEST COMMISSIONING REGION"]
["8JR68","BONNEY CARE AGENCY LTD","Y60","MIDLANDS COMMISSIONING REGION"]
["8G857","BOOTS LASERCARE (SWINDON)","Y58","SOUTH WEST COMMISSIONING REGION"]
["8HY36","BOURNEMOUTH DRUG & ALCOHOL ACTION TEAM","Y58","SOUTH WEST COMMISSIONING REGION"]
["8HW54","BOX IT GROUP","Y60","MIDLANDS COMMISSIONING REGION"]
["8A766","BRADFIELD PLACE","Y61","EAST OF ENGLAND COMMISSIONING REGION"]
["8F913","BRADY SHELAGH (ACUPUNCTURIST)","Y56","LONDON COMMISSIONING REGION"]
["8DK67","BRAESIDE CARE HOME","Y62","NORTH WEST COMMISSIONING REGION"]
["8CN72","BRAMLEY HOUSE NH (WORTHING)","Y59","SOUTH EAST COMMISSIONING REGION"]
["8AR70","BRANWELL LODGE NH","Y63","NORTH EAST AND YORKSHIRE COMMISSIONING REGION"]
["8ET83","BRENNI RAY","Y60","MIDLANDS COMMISSIONING REGION"]
["8GC97","BRIDGE STREET SURGERY","Y63","NORTH EAST AND YORKSHIRE COMMISSIONING REGION"]
["8F881","BRIEF THERAPY PRACTICE","Y56","LONDON COMMISSIONING REGION"]
["8JJ46","BRIEF THERAPY SUPPORT SERVICES","Y62","NORTH WEST COMMISSIONING REGION"]
["8D405","BRIND WILLIAM","Y61","EAST OF ENGLAND COMMISSIONING REGION"]
["8JE50","BRITANNIA TAXIS","Y60","MIDLANDS COMMISSIONING REGION"]
["8HW35","BROAD ACRES RESIDENTIAL/NURSING HOME","Y61","EAST OF ENGLAND COMMISSIONING REGION"]
["8DG96","BROADWAY NH (BLACKPOOL)","Y62","NORTH WEST COMMISSIONING REGION"]
["8C625","BROMLEY HOUSE NH","Y60","MIDLANDS COMMISSIONING REGION"]
["8D584","BROOK VIEW, COLTEN CARE LTD","Y58","SOUTH WEST COMMISSIONING REGION"]
["8G199","BROOKFIELD CHRISTIAN CARE HOME","Y59","SOUTH EAST COMMISSIONING REGION"]
["8CQ44","BROOKLYN NH","Y63","NORTH EAST AND YORKSHIRE COMMISSIONING REGION"]
["8HP78","BROOMWELL HEALTHWATCH LIMITED","Y62","NORTH WEST COMMISSIONING REGION"]
["8EE67","BROWN KATHLEEN JOYCE (PSYCHOTHERAPIST)","Y60","MIDLANDS COMMISSIONING REGION"]
["8E232","BROWN R F","Y63","NORTH EAST AND YORKSHIRE COMMISSIONING REGION"]
["8DR07","BRUCE JOY (COUNSELLOR)","Y59","SOUTH EAST COMMISSIONING REGION"]
["8F098","BRYMORE HOUSE","Y56","LONDON COMMISSIONING REGION"]
["8HY21","BTB MAILFLIGHT LIMITED","Y61","EAST OF ENGLAND COMMISSIONING REGION"]
["8K157","BUILDING CIRCLES IN GLOUCESTERSHIRE","Y58","SOUTH WEST COMMISSIONING REGION"]
["8J512","BULL INFORMATION SYSTEMS LTD","Y61","EAST OF ENGLAND COMMISSIONING REGION"]
["8GJ27","BURDEN LYNNE (HYPNOTHERAPIST)","Y62","NORTH WEST COMMISSIONING REGION"]
["8AJ84","BURN JANE (COUNSELLOR)","Y59","SOUTH EAST COMMISSIONING REGION"]
["8A930","BURSTON HOUSE LDS","Y61","EAST OF ENGLAND COMMISSIONING REGION"]
["8C777","BUSHBURY COURT","Y60","MIDLANDS COMMISSIONING REGION"]
["8CL22","BUXTON LODGE NH","Y59","SOUTH EAST COMMISSIONING REGION"]
["8AG48","BWT CHARTERED PHYSIOTHERAPISTS","Y58","SOUTH WEST COMMISSIONING REGION"]
["8HJ51","BYTES TECHNOLOGY GROUP","Y59","SOUTH EAST COMMISSIONING REGION"]
["8K050","CADLINE LIMITED","Y59","SOUTH EAST COMMISSIONING REGION"]
["8HN24","CALL HANDLING SERVICES LTD","Y61","EAST OF ENGLAND COMMISSIONING REGION"]
["8C860","CAMBRIAN HOUSE","Y60","MIDLANDS COMMISSIONING REGION"]
["8A913","CAMBRIDGE HOUSE NH","Y56","LONDON COMMISSIONING REGION"]
["8DK48","CAMERON HOUSE NH","Y62","NORTH WEST COMMISSIONING REGION"]
["8J060","CANCER RESEARCH UK","Y56","LONDON COMMISSIONING REGION"]
["8HE62","CAPITA","Y59","SOUTH EAST COMMISSIONING REGION"]
["8JA16","CAPITA TRANSLATION AND INTERPRETING LTD","Y62","NORTH WEST COMMISSIONING REGION"]
["8FX75","CAPWELL GRANGE NH (BONETTI HOUSE)","Y61","EAST OF ENGLAND COMMISSIONING REGION"]
["8J926","CARDIOLOGIC LTD","Y63","NORTH EAST AND YORKSHIRE COMMISSIONING REGION"]
["8K062","CARE CENTRED LTD","Y56","LONDON COMMISSIONING REGION"]
["8G692","CARE PRINCIPLES LTD","Y59","SOUTH EAST COMMISSIONING REGION"]
["8K138","CAREBANK HEALTHCARE","Y60","MIDLANDS COMMISSIONING REGION"]
["8JF72","CARERS NORTHUMBERLAND","Y63","NORTH EAST AND YORKSHIRE COMMISSIONING REGION"]
["8J517","CARERS RESOURCE (SHIPLEY)","Y63","NORTH EAST AND YORKSHIRE COMMISSIONING REGION"]
["8K236","CAREVISIONS@HOME LTD","Y63","NORTH EAST AND YORKSHIRE COMMISSIONING REGION"]
["8C029","CARITATE LTD","Y58","SOUTH WEST COMMISSIONING REGION"]
["8A780","CARNARVON NH","Y61","EAST OF ENGLAND COMMISSIONING REGION"]
["8J054","CARTER HOLMES LTD","Y59","SOUTH EAST COMMISSIONING REGION"]
["8AM86","CASTLE COURT (SALTBURN-BY-THE-SEA)","Y63","NORTH EAST AND YORKSHIRE COMMISSIONING REGION"]
["8JM52","CASTLE HOME CARE LTD","Y61","EAST OF ENGLAND COMMISSIONING REGION"]
["8FX89","CASTLETROY NURSING & RESIDENTIAL HOME","Y61","EAST OF ENGLAND COMMISSIONING REGION"]
["8EG40","CAVALIERE VINCE (DR)","Y63","NORTH EAST AND YORKSHIRE COMMISSIONING REGION"]
["8HW82","CDI DOCUMENT MANAGEMENT LTD","Y60","MIDLANDS COMMISSIONING REGION"]
["8CN93","CEDARS NH","Y58","SOUTH WEST COMMISSIONING REGION"]
["8E845","CENTRAL ENGLAND EYE SURGEONS","Y60","MIDLANDS COMMISSIONING REGION"]
["8HJ17","CENTRAL TELECOM UK LTD","Y60","MIDLANDS COMMISSIONING REGION"]
["8CQ10","CERNE ABBAS CARE CENTRE","Y58","SOUTH WEST COMMISSIONING REGION"]
["8AE76","CHALLANDS CATHERINE (COUNSELLOR)","Y56","LONDON COMMISSIONING REGION"]
["8K220","CHANECO (CHRIS HANLEY&PARTNERS)","Y60","MIDLANDS COMMISSIONING REGION"]
["8A017","CHAPEL VIEW","Y63","NORTH EAST AND YORKSHIRE COMMISSIONING REGION"]
["8A172","CHARLTON COURT NH","Y63","NORTH EAST AND YORKSHIRE COMMISSIONING REGION"]
["8AY83","CHARNWOOD COURT NH","Y60","MIDLANDS COMMISSIONING REGION"]
["8EL71","CHATS (COUNSELLING SERVICE)","Y58","SOUTH WEST COMMISSIONING REGION"]
["8D150","CHELTENHAM IMAGING CENTRE","Y58","SOUTH WEST COMMISSIONING REGION"]
["8HC29","CHERRY STEPHEN (THERAPIST)","Y56","LONDON COMMISSIONING REGION"]
["8E799","CHESHIRE HOMES","Y63","NORTH EAST AND YORKSHIRE COMMISSIONING REGION"]
["8GC21","CHESTER DIALYSIS UNIT","Y62","NORTH WEST COMMISSIONING REGION"]
["8A224","CHEYNE HOUSE NH","Y60","MIDLANDS COMMISSIONING REGION"]
["8HK83","CHILTERN","Y59","SOUTH EAST COMMISSIONING REGION"]
["8CP09","CHINE BREEZE COURT","Y58","SOUTH WEST COMMISSIONING REGION"]
["8E351","CHORLEY CHIROPODY PRACTICE","Y62","NORTH WEST COMMISSIONING REGION"]
["8GR21","CHOULES LEE (HYPNOTHERAPIST, PSYCHOTHERAPIST)","Y56","LONDON COMMISSIONING REGION"]
["8J584","CHRYSALIS CENTRE FOR CHANGE","Y62","NORTH WEST COMMISSIONING REGION"]
["8HY39","CHURCHFIELDS IT LTD","Y60","MIDLANDS COMMISSIONING REGION"]
["8HQ25","CISIV LTD","Y56","LONDON COMMISSIONING REGION"]
["8E122","CITY OF LONDON MIGRAINE CLINIC","Y56","LONDON COMMISSIONING REGION"]
["8JA25","CLAIRE HOUSE CHILDREN'S HOSPICE","Y62","NORTH WEST COMMISSIONING REGION"]
["8D998","CLAREMONT HEALTH (PHYSIOTHERAPY & COUNSELLING)","Y59","SOUTH EAST COMMISSIONING REGION"]
["8JC39","CLARES BUSINESS SOLUTIONS LTD","Y59","SOUTH EAST COMMISSIONING REGION"]
["8DX44","CLARKE N M P","Y59","SOUTH EAST COMMISSIONING REGION"]
["8HD52","CLAY SETH (HYPNOTHERAPIST)","Y62","NORTH WEST COMMISSIONING REGION"]
["8AX17","CLEEVE VILLAS","Y60","MIDLANDS COMMISSIONING REGION"]
["8C836","CLENT COTTAGE","Y60","MIDLANDS COMMISSIONING REGION"]
["8GR40","CLIFFORD CLAIR (PSYCHOLOGIST)","Y60","MIDLANDS COMMISSIONING REGION"]
["8JV31","CLINICAL NETWORK SYSTEMS LTD","Y56","LONDON COMMISSIONING REGION"]
["8JP69","CLOUD ENERGY SOFTWARE LIMITED","Y62","NORTH WEST COMMISSIONING REGION"]
["8AQ66","CLYDE COURT NH","Y63","NORTH EAST AND YORKSHIRE COMMISSIONING REGION"]
["8HJ85","CMS COMMUNICATIONS","Y61","EAST OF ENGLAND COMMISSIONING REGION"]
["8WF11","COED DUON NH","WALES","WALES"]
["8CH56","COLEGROVE CLINIC","Y56","LONDON COMMISSIONING REGION"]
["8DQ89","COLLS JENNY (PSYCHOTHERAPIST)","Y58","SOUTH WEST COMMISSIONING REGION"]
["8JX63","COMENIUS TALENT MANAGEMENT LIMITED","Y61","EAST OF ENGLAND COMMISSIONING REGION"]
["8GA92","COMMUNITY INTEGRATED CARE","Y63","NORTH EAST AND YORKSHIRE COMMISSIONING REGION"]
["8HY40","COMMUNITY LINKS TRUST LIMITED","Y56","LONDON COMMISSIONING REGION"]
["8HV40","COMPUTACENTER (UK) LTD","Y61","EAST OF ENGLAND COMMISSIONING REGION"]
["8J625","CONCEPT CARE & CONSULTANCY SERVICES LTD","Y60","MIDLANDS COMMISSIONING REGION"]
["8AQ38","CONNAUGHT COURT","Y63","NORTH EAST AND YORKSHIRE COMMISSIONING REGION"]
["8J057","CONSOLOR LTD","Y58","SOUTH WEST COMMISSIONING REGION"]
["8HE45","COOK KAY (CLINICAL HYPNOTHERAPIST)","Y58","SOUTH WEST COMMISSIONING REGION"]
["8HC35","COOK LYNDON (HYPNOTHERAPIST)","Y58","SOUTH WEST COMMISSIONING REGION"]
["8K690","COPELAND OCCUPATIONAL AND SOCIAL CENTRE","Y63","NORTH EAST AND YORKSHIRE COMMISSIONING REGION"]
["8JK34","CORBETT CHIROPRACTIC AND SPORTS INJURY CLINIC","Y58","SOUTH WEST COMMISSIONING REGION"]
["8CG39","CORNFORD HOUSE NH","Y59","SOUTH EAST COMMISSIONING REGION"]
["8J265","CORPORATE DOCUMENT SERVICES LTD","Y63","NORTH EAST AND YORKSHIRE COMMISSIONING REGION"]
["8E358","COUNCIL FOR INVOLUNTARY TRANQUILLISER ADDICTION","Y62","NORTH WEST COMMISSIONING REGION"]
["8JP16","COUNTRY CARERS","Y59","SOUTH EAST COMMISSIONING REGION"]
["8GC12","COURTHOUSE CLINIC","Y61","EAST OF ENGLAND COMMISSIONING REGION"]
["8C430","COWLEY MANOR","Y58","SOUTH WEST COMMISSIONING REGION"]
["8HN99","CRAEGMOOR GROUP","Y60","MIDLANDS COMMISSIONING REGION"]
["8HR61","CRANSTOUN DRUG SERVICES","Y56","LONDON COMMISSIONING REGION"]
["8GT50","CRAWFORD JOHN (HYPNOTHERAPIST)","Y58","SOUTH WEST COMMISSIONING REGION"]
["8J849","CREATIVE SUPPORT","Y62","NORTH WEST COMMISSIONING REGION"]
["8HX73","CRI - MANCHESTER DRUGS SERVICE SOUTH","Y62","NORTH WEST COMMISSIONING REGION"]
["8A381","CROMWELL CLINIC NH (RESIDENTIAL UNIT)","Y61","EAST OF ENGLAND COMMISSIONING REGION"]
["8K301","CROSSROADS CARING FOR CARERS (WORCESTERSHIRE)","Y60","MIDLANDS COMMISSIONING REGION"]
["8C735","CROWN MEADOW NH","Y60","MIDLANDS COMMISSIONING REGION"]
["8JJ74","CRS VAT CONSULTING","Y56","LONDON COMMISSIONING REGION"]
["8GT90","CSW LTD GROUP","Y59","SOUTH EAST COMMISSIONING REGION"]
["8JD85","CUMBRIA CEREBRAL PALSY","Y63","NORTH EAST AND YORKSHIRE COMMISSIONING REGION"]
["8CH58","CUTCOMBE ROAD","Y56","LONDON COMMISSIONING REGION"]
["8HM90","CYGNET LODGE LEWISHAM","Y56","LONDON COMMISSIONING REGION"]
["8HL02","CYPHER INFORMATION TECHNOLOGY LTD","Y59","SOUTH EAST COMMISSIONING REGION"]
["8HP21","DAILS CHIROPRACTIC CLINIC","Y62","NORTH WEST COMMISSIONING REGION"]
["8AR81","DALES NH","Y63","NORTH EAST AND YORKSHIRE COMMISSIONING REGION"]
["8WG32","DANIEL LEONNE (LIFE COACH)","WALES","WALES"]
["8FE72","DAS PETER (DR)","Y59","SOUTH EAST COMMISSIONING REGION"]
["8K287","DATA INTENSITY LIMITED","Y61","EAST OF ENGLAND COMMISSIONING REGION"]
["8JD75","DATASYM (UK) LTD","Y59","SOUTH EAST COMMISSIONING REGION"]
["8DC35","DAVID LEWIS CENTRE (ASSESSMENT UNIT)","Y62","NORTH WEST COMMISSIONING REGION"]
["8DT80","DAWES FAMILY PRACTICE","Y62","NORTH WEST COMMISSIONING REGION"]
["8F944","DE BURGH JULIE ROSALIND (THERAPIST)","Y56","LONDON COMMISSIONING REGION"]
["8F287","DEAN PHILIPPA","Y60","MIDLANDS COMMISSIONING REGION"]
["8GG38","DEBBIE WALLER HYPNOTHERAPY & STRESS MANAGEMENT","Y63","NORTH EAST AND YORKSHIRE COMMISSIONING REGION"]
["8JH51","DEEPMIND TECHNOLOGIES LIMITED","Y56","LONDON COMMISSIONING REGION"]
["8HN50","DELPHI MEDICAL CONSULTANTS LTD","Y62","NORTH WEST COMMISSIONING REGION"]
["8HA45","DENFLEET PHARMA LTD","Y61","EAST OF ENGLAND COMMISSIONING REGION"]
["8HM13","DEPARTMENT FOR CHILDREN, SCHOOLS AND FAMILIES","Y56","LONDON COMMISSIONING REGION"]
["8JE06","DEPRESSION ALLIANCE","Y56","LONDON COMMISSIONING REGION"]
["8E366","DESAI R S (GYNAECOLOGIST)","Y62","NORTH WEST COMMISSIONING REGION"]
["8K516","DEXCEL PHARMA LIMITED","Y60","MIDLANDS COMMISSIONING REGION"]
["8HD71","DHL / EXEL SUPPLY CHAIN","Y61","EAST OF ENGLAND COMMISSIONING REGION"]
["8JY16","DIGITAL CARE PLANNING","Y56","LONDON COMMISSIONING REGION"]
["8C853","DIMENSIONS (UK) LTD","Y60","MIDLANDS COMMISSIONING REGION"]
["8FT50","DIMENSIONS-UK.ORG","Y59","SOUTH EAST COMMISSIONING REGION"]
["8JG71","DISABLEMENT ASSOCIATION HILLINGDON (DASH)","Y56","LONDON COMMISSIONING REGION"]
["8J652","DMC IMAGING LTD","Y56","LONDON COMMISSIONING REGION"]
["8HH47","DOCTORS.NET.UK LTD","Y59","SOUTH EAST COMMISSIONING REGION"]
["8HQ38","DON WHITLEY SCIENTIFIC LTD","Y63","NORTH EAST AND YORKSHIRE COMMISSIONING REGION"]
["8CT86","DOROTHY HOUSE HOSPICE CARE","Y58","SOUTH WEST COMMISSIONING REGION"]
["8J851","DORSET ADVOCACY","Y58","SOUTH WEST COMMISSIONING REGION"]
["8A196","DOULTON COURT LODGE NH","Y60","MIDLANDS COMMISSIONING REGION"]
["8C331","DOWDESWELL COURT NH","Y58","SOUTH WEST COMMISSIONING REGION"]
["8EX18","DR ANAND VASECTOMY CLINIC","Y60","MIDLANDS COMMISSIONING REGION"]
["8EK36","DR DONNAN & PARTNERS","Y63","NORTH EAST AND YORKSHIRE COMMISSIONING REGION"]
["8EK26","DR ISLAM & PARTNERS","Y63","NORTH EAST AND YORKSHIRE COMMISSIONING REGION"]
["8EK31","DR KAMAL & PARTNERS","Y63","NORTH EAST AND YORKSHIRE COMMISSIONING REGION"]
["8EK29","DR RASHID & PARTNERS","Y63","NORTH EAST AND YORKSHIRE COMMISSIONING REGION"]
["8JX61","DRAGON RECRUITING LTD","Y56","LONDON COMMISSIONING REGION"]
["8EQ87","DRS HOWELL & PARTNERS","Y58","SOUTH WEST COMMISSIONING REGION"]
["8G506","DRUMMOND FIONA H (HYPNOTHERAPIST)","Y61","EAST OF ENGLAND COMMISSIONING REGION"]
["8HE96","DUCHESNE BERNADETTE (HYPNOTHERAPIST)","Y63","NORTH EAST AND YORKSHIRE COMMISSIONING REGION"]
["8GA45","DUNCAN DAWN (THERAPIST)","Y60","MIDLANDS COMMISSIONING REGION"]
["8FC15","DUNNE W (DR) (ACUPUNCTURIST)","Y62","NORTH WEST COMMISSIONING REGION"]
["8D149","DWYER NUALA (DR) (GYNAECOLOGIST)","Y58","SOUTH WEST COMMISSIONING REGION"]
["8GC92","DYSTER GRAHAM (HYPNOTHERAPIST)","Y61","EAST OF ENGLAND COMMISSIONING REGION"]
["8HA38","E.NOVATION UK","Y59","SOUTH EAST COMMISSIONING REGION"]
["8JM49","EARL MOUNTBATTEN HOSPICE","Y59","SOUTH EAST COMMISSIONING REGION"]
["8EK20","EAST MIDLANDS PHYSIOTHERAPY CLINIC","Y60","MIDLANDS COMMISSIONING REGION"]
["8C333","EASTINGTON PARK NH","Y58","SOUTH WEST COMMISSIONING REGION"]
["8FT46","EATING DISORDERS COUNSELLING","Y61","EAST OF ENGLAND COMMISSIONING REGION"]
["8WG68","ECKERT & ZIEGLER BEBIG SA","WALES","WALES"]
["8K811","ECOLAB LTD","Y63","NORTH EAST AND YORKSHIRE COMMISSIONING REGION"]
["8CL91","EDENSIDE NH","Y59","SOUTH EAST COMMISSIONING REGION"]
["8HD36","EDWARDS ANNE (HYPNOTHERAPIST)","Y60","MIDLANDS COMMISSIONING REGION"]
["8CF97","EGLANTINE VILLA NH","Y59","SOUTH EAST COMMISSIONING REGION"]
["8JK30","ELCOM SYSTEMS LTD","Y61","EAST OF ENGLAND COMMISSIONING REGION"]
["8EM81","ELECTRO MEDICAL EQUIPMENT LTD (EME)","Y59","SOUTH EAST COMMISSIONING REGION"]
["8GA47","ELLIOTT ANGELA JANE (HYPNOTHERAPIST)","Y56","LONDON COMMISSIONING REGION"]
["8HH75","ELLIS MANDY (CLINICAL HYPNOTHERAPIST)","Y63","NORTH EAST AND YORKSHIRE COMMISSIONING REGION"]
["8C597","ELMHURST NH","Y60","MIDLANDS COMMISSIONING REGION"]
["8DK39","ELTON HOUSE NH","Y62","NORTH WEST COMMISSIONING REGION"]
["8G842","ELYSIAN VILLAS MENTAL NH","Y58","SOUTH WEST COMMISSIONING REGION"]
["8AP22","EMMANUEL NH","Y63","NORTH EAST AND YORKSHIRE COMMISSIONING REGION"]
["8K739","ENDO VENTURES LIMITED","Y56","LONDON COMMISSIONING REGION"]
["8JT28","ENTERPRISE STUDY","Y58","SOUTH WEST COMMISSIONING REGION"]
["8EY25","EPSTEIN SUSAN H (COUNSELLOR)","Y56","LONDON COMMISSIONING REGION"]
["8G759","ERICKSON MARGARET HARRISON (COUNSELLOR)","Y61","EAST OF ENGLAND COMMISSIONING REGION"]
["8CD95","ERSHAM HOUSE NURSING HOME","Y59","SOUTH EAST COMMISSIONING REGION"]
["8JL64","ESSEX & HERTS AIR AMBULANCE TRUST","Y61","EAST OF ENGLAND COMMISSIONING REGION"]
["8JM13","EULARIS GROUP LIMITED","Y59","SOUTH EAST COMMISSIONING REGION"]
["8GG96","EVANS JOANNE (THERAPIST)","Y61","EAST OF ENGLAND COMMISSIONING REGION"]
["8D526","EVERITT JULIE (COUNSELLOR)","Y61","EAST OF ENGLAND COMMISSIONING REGION"]
["8FR33","EWING ANGUS W (HYPNOTHERAPIST)","Y59","SOUTH EAST COMMISSIONING REGION"]
["8F167","EX SERVICES MENTAL WELFARE SOCIETY (COMBAT STRESS)","Y60","MIDLANDS COMMISSIONING REGION"]
["8JJ83","EXTRAVISION","Y62","NORTH WEST COMMISSIONING REGION"]
["8A832","FAIR HAVENS HOSPICE","Y61","EAST OF ENGLAND COMMISSIONING REGION"]
["8EA94","FAIRHOME","Y61","EAST OF ENGLAND COMMISSIONING REGION"]
["8EN37","FALKNER MARTIN J (DR)","Y58","SOUTH WEST COMMISSIONING REGION"]
["8C222","FANSHAWE NH","Y58","SOUTH WEST COMMISSIONING REGION"]
["8DX15","FARJO MEDICAL CENTRE FOR ADVANCE HAIR TECHNOLOGY","Y62","NORTH WEST COMMISSIONING REGION"]
["8G245","FARRER PATRICK (HYPNOTHERAPIST)","Y56","LONDON COMMISSIONING REGION"]
["8GC35","FEDOULOFF KATHLEEN (HYPNOTHERAPIST)","Y56","LONDON COMMISSIONING REGION"]
["8A823","FERNBROOK HOUSE NH","Y61","EAST OF ENGLAND COMMISSIONING REGION"]
["8E239","FESTER J (DR)","Y63","NORTH EAST AND YORKSHIRE COMMISSIONING REGION"]
["8ER05","FIELD ROBERT (PODIATRIST)","Y59","SOUTH EAST COMMISSIONING REGION"]
["8FT79","FINCH MANOR NH","Y62","NORTH WEST COMMISSIONING REGION"]
["8K060","FIREWATCH SOUTH WEST LTD","Y58","SOUTH WEST COMMISSIONING REGION"]
["8HT37","FIRST MOVE LTD","Y59","SOUTH EAST COMMISSIONING REGION"]
["8HH45","FISHER DEBBIE (HYPNOTHERAPIST)","Y61","EAST OF ENGLAND COMMISSIONING REGION"]
["8CV84","FLEETWOOD HOUSE NH","Y59","SOUTH EAST COMMISSIONING REGION"]
["8WH03","FLEXICARE (GROUP) LIMITED","WALES","WALES"]
["8G069","FLYNN KEVIN (HYPNOTHERAPIST)","Y63","NORTH EAST AND YORKSHIRE COMMISSIONING REGION"]
["8CG27","FONTENAY NH","Y59","SOUTH EAST COMMISSIONING REGION"]
["8ET44","FOREST HEALTH CARE","Y58","SOUTH WEST COMMISSIONING REGION"]
["8CK75","FORREST BARBARA","Y60","MIDLANDS COMMISSIONING REGION"]
["8DR92","FORSTER I W","Y60","MIDLANDS COMMISSIONING REGION"]
["8HF62","FOSTER NEIL (HYPNOTHERAPIST)","Y62","NORTH WEST COMMISSIONING REGION"]
["8AK80","FOUR SEASONS HEALTHCARE","Y63","NORTH EAST AND YORKSHIRE COMMISSIONING REGION"]
["8HV68","FR3DOM HEALTH SOLUTIONS LTD","Y59","SOUTH EAST COMMISSIONING REGION"]
["8FD39","FRANKLIN ANNA M (DR) (CHIROPRACTOR)","Y59","SOUTH EAST COMMISSIONING REGION"]
["8EL11","FRAYLING-CORK SUE","Y59","SOUTH EAST COMMISSIONING REGION"]
["8JD66","FRESH VOICE TALKING LTD","Y59","SOUTH EAST COMMISSIONING REGION"]
["8DL50","FRISTON HOUSE","Y59","SOUTH EAST COMMISSIONING REGION"]
["8JA37","FRY-IT LIMITED","Y56","LONDON COMMISSIONING REGION"]
["8J842","FUTURE HEALTH TECHNOLOGIES LTD","Y60","MIDLANDS COMMISSIONING REGION"]
["8FT26","G WHITFIELD LTD","Y63","NORTH EAST AND YORKSHIRE COMMISSIONING REGION"]
["8EA32","GA PROJECTS LTD","Y61","EAST OF ENGLAND COMMISSIONING REGION"]
["8FW08","GALLIONS VIEW MENTAL NH","Y56","LONDON COMMISSIONING REGION"]
["8E530","GARDINER VICKI (PSYCHOLOGIST)","Y61","EAST OF ENGLAND COMMISSIONING REGION"]
["8C227","GATEHOUSE NH","Y58","SOUTH WEST COMMISSIONING REGION"]
["8J571","GB PROHEALTH LTD","Y60","MIDLANDS COMMISSIONING REGION"]
["8HJ92","GE MEDICAL SYSTEMS LTD","Y59","SOUTH EAST COMMISSIONING REGION"]
["8GX69","GENMED","Y56","LONDON COMMISSIONING REGION"]
["8FN67","GEORGE TICKLER WING & DITTON HOUSE (EMBERBROOK CARE CENTRE)","Y59","SOUTH EAST COMMISSIONING REGION"]
["8J373","GI SOLUTIONS GROUP LTD","Y60","MIDLANDS COMMISSIONING REGION"]
["8FX44","GILBERT SCOTT HOUSE NH","Y58","SOUTH WEST COMMISSIONING REGION"]
["8WC83","GLANFFRWD","WALES","WALES"]
["8WD92","GLASFRYN HOUSE","WALES","WALES"]
["8CD65","GLEN HOUSE NH","Y59","SOUTH EAST COMMISSIONING REGION"]
["8CD66","GLINDON NH","Y59","SOUTH EAST COMMISSIONING REGION"]
["8CG63","GODDEN GREEN CLINIC","Y59","SOUTH EAST COMMISSIONING REGION"]
["8F274","GOLDING JAMES (HYPNOTHERAPIST)","Y59","SOUTH EAST COMMISSIONING REGION"]
["8DV18","GOODMAN KAREN (DR) (HOMEOPATHIC CONSULTANT)","Y62","NORTH WEST COMMISSIONING REGION"]
["8GE20","GOODMAN TRACY CAROLINE (COUNSELLOR)","Y56","LONDON COMMISSIONING REGION"]
["8DL67","GORTON PARKS R & NH","Y62","NORTH WEST COMMISSIONING REGION"]
["8E228","GOWLAND-HOPKINS NICK","Y59","SOUTH EAST COMMISSIONING REGION"]
["8HJ01","GRABHAM RACHEL (CLINICAL HYPNOTHERAPIST)","Y61","EAST OF ENGLAND COMMISSIONING REGION"]
["8GQ17","GRAHAM SOBIA (HYPNOTHERAPIST)","Y63","NORTH EAST AND YORKSHIRE COMMISSIONING REGION"]
["8C345","GRANSMOOR NH","Y58","SOUTH WEST COMMISSIONING REGION"]
["8JC96","GRANT THORNTON UK LLP","Y56","LONDON COMMISSIONING REGION"]
["8GG45","GRAY VANESSA (HYPNOTHERAPIST)","Y56","LONDON COMMISSIONING REGION"]
["8E833","GREEN J DR (PSYCHIATRIST)","Y62","NORTH WEST COMMISSIONING REGION"]
["8CQ24","GREENBUSHES NH","Y58","SOUTH WEST COMMISSIONING REGION"]
["8F170","GREENWAYS","Y59","SOUTH EAST COMMISSIONING REGION"]
["8F531","GREENWOOD SUSANNA (THERAPIST)","Y56","LONDON COMMISSIONING REGION"]
["8C348","GREVILL HOUSE NH","Y58","SOUTH WEST COMMISSIONING REGION"]
["8AK45","GRIFFITHS S R (PHYSIOTHERAPIST)","Y60","MIDLANDS COMMISSIONING REGION"]
["8DL65","GROVE PARK NH","Y62","NORTH WEST COMMISSIONING REGION"]
["8GA49","GUPTA ASHOK (HYPNOTHERAPIST)","Y56","LONDON COMMISSIONING REGION"]
["8JL01","H4ALL CIC","Y56","LONDON COMMISSIONING REGION"]
["8EQ39","HAAS J (OCULARIST)","Y56","LONDON COMMISSIONING REGION"]
["8DK25","HAIGHFIELD NH","Y62","NORTH WEST COMMISSIONING REGION"]
["8A016","HALL STEADS NH","Y63","NORTH EAST AND YORKSHIRE COMMISSIONING REGION"]
["8DC80","HALTON HAVEN NH (SHALLOM WING)","Y62","NORTH WEST COMMISSIONING REGION"]
["8A824","HAMLET COURT","Y61","EAST OF ENGLAND COMMISSIONING REGION"]
["8AQ76","HAMPDEN HOUSE NH","Y63","NORTH EAST AND YORKSHIRE COMMISSIONING REGION"]
["8WF72","HANCOCK JANE E M (HYPNOTHERAPIST)","WALES","WALES"]
["8C299","HARBOUR WAY DENTAL SURGERY","Y58","SOUTH WEST COMMISSIONING REGION"]
["8AN40","HARKER GRANGE NH","Y63","NORTH EAST AND YORKSHIRE COMMISSIONING REGION"]
["8HE28","HARLEY STREET ON 15","Y56","LONDON COMMISSIONING REGION"]
["8DL80","HARNHAM HOUSE","Y62","NORTH WEST COMMISSIONING REGION"]
["8FY61","HARRISON - STEVENSON ANGELA (THERAPIST)","Y63","NORTH EAST AND YORKSHIRE COMMISSIONING REGION"]
["8JG95","HART VOLUNTARY ACTION LIMITED","Y59","SOUTH EAST COMMISSIONING REGION"]
["8EN46","HATFIELD ANNE (DR)","Y58","SOUTH WEST COMMISSIONING REGION"]
["8DD87","HAVENVIEW NH","Y62","NORTH WEST COMMISSIONING REGION"]
["8F821","HAWK JOHN (DR)","Y59","SOUTH EAST COMMISSIONING REGION"]
["8CJ32","HAYLES COURT NH","Y56","LONDON COMMISSIONING REGION"]
["8DJ81","HAZEL HOUSE NH (PRESTON)","Y62","NORTH WEST COMMISSIONING REGION"]
["8J483","HCL TECHNOLOGIES UK LIMITED","Y59","SOUTH EAST COMMISSIONING REGION"]
["8JA94","HEADWAY WORCESTERSHIRE","Y60","MIDLANDS COMMISSIONING REGION"]
["8JW91","HEALTH ASSURED LTD","Y62","NORTH WEST COMMISSIONING REGION"]
["8JQ53","HEALTH DATA INSIGHT CIC","Y61","EAST OF ENGLAND COMMISSIONING REGION"]
["8HM92","HEALTH NET CONNECTIONS LTD","Y59","SOUTH EAST COMMISSIONING REGION"]
["8K615","HEALTHCARE MONITORS UK","Y60","MIDLANDS COMMISSIONING REGION"]
["8JH26","HEALTHWATCH ROTHERHAM","Y63","NORTH EAST AND YORKSHIRE COMMISSIONING REGION"]
["8DX88","HEARING & AUDIOLOGY SERVICES","Y60","MIDLANDS COMMISSIONING REGION"]
["8DD15","HEATHERCROFT NURSING HOME","Y62","NORTH WEST COMMISSIONING REGION"]
["8CE13","HEATHERDENE NH (BEXHILL-ON-SEA)","Y59","SOUTH EAST COMMISSIONING REGION"]
["8J748","HELEN ROLLASON CANCER SUPPORT CENTRE","Y61","EAST OF ENGLAND COMMISSIONING REGION"]
["8K302","HELPING HANDS","Y60","MIDLANDS COMMISSIONING REGION"]
["8D633","HENLEIGH HALL NH","Y63","NORTH EAST AND YORKSHIRE COMMISSIONING REGION"]
["8C534","HEREFORD DIALYSIS CENTRE","Y60","MIDLANDS COMMISSIONING REGION"]
["8JT07","HERTFORDSHIRE CARE PROVIDERS ASSOCIATION","Y61","EAST OF ENGLAND COMMISSIONING REGION"]
["8A619","HERTFORDSHIRE CHESHIRE HOME","Y61","EAST OF ENGLAND COMMISSIONING REGION"]
["8AA68","HEYWOOD B (GYNAECOLOGIST)","Y63","NORTH EAST AND YORKSHIRE COMMISSIONING REGION"]
["8F455","HIGGINBOTHAM MAGGIE (COUNSELLOR)","Y60","MIDLANDS COMMISSIONING REGION"]
["8CW29","HIGHCLERE HOUSE","Y61","EAST OF ENGLAND COMMISSIONING REGION"]
["8CQ46","HIGHCLIFFE NH","Y58","SOUTH WEST COMMISSIONING REGION"]
["8F387","HIGSON R J (DR) (DERMATOLOGIST)","Y62","NORTH WEST COMMISSIONING REGION"]
["8HK07","HILL AMANDA (CLINICAL HYPNOTHERAPIST)","Y59","SOUTH EAST COMMISSIONING REGION"]
["8AK78","HILLCREST NH (ALNWICK)","Y63","NORTH EAST AND YORKSHIRE COMMISSIONING REGION"]
["8F808","HILLS A C","Y59","SOUTH EAST COMMISSIONING REGION"]
["8JD58","HILTON NURSING PARTNERS LTD","Y59","SOUTH EAST COMMISSIONING REGION"]
["8F690","HITCHINGS R A (OPHTHALMIC SURGEON)","Y56","LONDON COMMISSIONING REGION"]
["8C935","HOAR CROSS NH","Y60","MIDLANDS COMMISSIONING REGION"]
["8A314","HOLBEACH NH","Y60","MIDLANDS COMMISSIONING REGION"]
["8CV86","HOLLIES NH","Y59","SOUTH EAST COMMISSIONING REGION"]
["8DK49","HOLLYBANK PRIVATE NH","Y62","NORTH WEST COMMISSIONING REGION"]
["8FV85","HOLMES JENNY (COUNSELLOR)","Y59","SOUTH EAST COMMISSIONING REGION"]
["8DD57","HOLMLEIGH RESIDENTIAL NH (LIVERPOOL)","Y62","NORTH WEST COMMISSIONING REGION"]
["8CV52","HOLYPORT LODGE","Y59","SOUTH EAST COMMISSIONING REGION"]
["8HT71","HOMECARE 2000 LTD","Y58","SOUTH WEST COMMISSIONING REGION"]
["8J153","HOME-START MALDON","Y61","EAST OF ENGLAND COMMISSIONING REGION"]
["8F262","HOOK JOHN (DR)","Y59","SOUTH EAST COMMISSIONING REGION"]
["8E848","HORDON L D (DR)","Y63","NORTH EAST AND YORKSHIRE COMMISSIONING REGION"]
["8F206","HORNER THEA (PHYSIOTHERAPIST)","Y61","EAST OF ENGLAND COMMISSIONING REGION"]
["8K426","HORTON HOUSING ASSOCIATION","Y63","NORTH EAST AND YORKSHIRE COMMISSIONING REGION"]
["8DC90","HOUGH GREEN NH","Y62","NORTH WEST COMMISSIONING REGION"]
["8F444","HOWARD LYNNE (HOMOEOPATH)","Y56","LONDON COMMISSIONING REGION"]
["8F569","HOWIE & TICKNER OPTOMETRISTS","Y59","SOUTH EAST COMMISSIONING REGION"]
["8A231","HOWSON NH","Y60","MIDLANDS COMMISSIONING REGION"]
["8HC02","HUDSON WILKA (HYPNOTHERAPIST)","Y63","NORTH EAST AND YORKSHIRE COMMISSIONING REGION"]
["8GK37","HULL & EAST YORKSHIRE MIND, HOUSING DEPT","Y63","NORTH EAST AND YORKSHIRE COMMISSIONING REGION"]
["8CY19","HUMPHREY REPTON HOUSE NH","Y58","SOUTH WEST COMMISSIONING REGION"]
["8JA76","HUNTINGTON'S DISEASE ASSOCIATION","Y62","NORTH WEST COMMISSIONING REGION"]
["8ET95","HURFORD DAVID H","WALES","WALES"]
["8A853","HUTTON VILLAGE NH","Y61","EAST OF ENGLAND COMMISSIONING REGION"]
["8JC25","HYNDBURN HOMEWISE SOCIETY LIMITED","Y62","NORTH WEST COMMISSIONING REGION"]
["8HQ95","ICANHO","Y61","EAST OF ENGLAND COMMISSIONING REGION"]
["8K244","ICOM TELECOMUNICATIONS LIMITED","Y59","SOUTH EAST COMMISSIONING REGION"]
["8HW49","IE DESIGN CONSULTANCY LTD","Y60","MIDLANDS COMMISSIONING REGION"]
["8JV02","IEG4 LTD","Y62","NORTH WEST COMMISSIONING REGION"]
["8C237","ILSHAM VALLEY NH","Y58","SOUTH WEST COMMISSIONING REGION"]
["8HH70","IMPACT MARCOM","Y59","SOUTH EAST COMMISSIONING REGION"]
["8JR84","INDEPENDENCE TRUST","Y58","SOUTH WEST COMMISSIONING REGION"]
["8JR36","INDMIDWIVES","Y63","NORTH EAST AND YORKSHIRE COMMISSIONING REGION"]
["8EC35","INFORMATION AND SUPPORT (I.S)","Y61","EAST OF ENGLAND COMMISSIONING REGION"]
["8HM32","INFORMATION BUILDERS","Y56","LONDON COMMISSIONING REGION"]
["8JV35","INNOVATE LTD","Y58","SOUTH WEST COMMISSIONING REGION"]
["8JE46","INSPIRATION CARE (DOMICILIARY CARE)","Y60","MIDLANDS COMMISSIONING REGION"]
["8JY23","INTEGRAL CARE SOLUTIONS LIMITED","Y60","MIDLANDS COMMISSIONING REGION"]
["8K418","INTER CARE LTD","Y60","MIDLANDS COMMISSIONING REGION"]
["8HQ14","INTERNET LEARNING LIMITED","Y63","NORTH EAST AND YORKSHIRE COMMISSIONING REGION"]
["8J253","INTERSERVE (FACILITIES MANAGEMENT) LTD","Y56","LONDON COMMISSIONING REGION"]
["8K225","INVOLVE VISUAL COLLABORATION LTD","Y62","NORTH WEST COMMISSIONING REGION"]
["8JE28","IPC MANAGEMENT LTD","Y56","LONDON COMMISSIONING REGION"]
["8HM36","IRISOFT LTD","Y62","NORTH WEST COMMISSIONING REGION"]
["8GG73","ISHAM HOUSE","Y60","MIDLANDS COMMISSIONING REGION"]
["8HN72","ITERACY LTD","Y58","SOUTH WEST COMMISSIONING REGION"]
["8K299","IUVO (ALCESTER)","Y60","MIDLANDS COMMISSIONING REGION"]
["8JF01","J&K CARE SPECIALISTS","Y59","SOUTH EAST COMMISSIONING REGION"]
["8HC24","JACKSON LISA (HYPNOTHERAPIST)","Y56","LONDON COMMISSIONING REGION"]
["8AG39","JACOBS R A (DR)","Y58","SOUTH WEST COMMISSIONING REGION"]
["8JK60","JAMIESON CONTRACTING (NW) LTD","Y62","NORTH WEST COMMISSIONING REGION"]
["8FP11","JASPER CHERYL (HYPNOTHERAPIST)","Y60","MIDLANDS COMMISSIONING REGION"]
["8GK53","JEFFORD DR ROBERT (HYPNOTHERAPY)","Y59","SOUTH EAST COMMISSIONING REGION"]
["8GG23","JILLINGS JOHN (THERAPIST)","Y60","MIDLANDS COMMISSIONING REGION"]
["8K421","JOHN WHITE PM LTD","Y56","LONDON COMMISSIONING REGION"]
["8F562","JOHNSON KAREN (PSYCHOTHERAPIST)","Y60","MIDLANDS COMMISSIONING REGION"]
["8FD61","JOHNSTON I D (DR)","Y60","MIDLANDS COMMISSIONING REGION"]
["8E539","JONES I (VASECTOMIST)","Y62","NORTH WEST COMMISSIONING REGION"]
["8FV16","JOSEPHINE BUTLER NH","Y62","NORTH WEST COMMISSIONING REGION"]
["8CH26","JUBILEE NH (LONDON)","Y56","LONDON COMMISSIONING REGION"]
["8JN18","JUST CHECKING LTD","Y60","MIDLANDS COMMISSIONING REGION"]
["8J444","K&H MEDICAL LTD","Y61","EAST OF ENGLAND COMMISSIONING REGION"]
["8GH23","KANE ROS (PSYCHOTHERAPIST)","Y56","LONDON COMMISSIONING REGION"]
["8C960","KATHARINE HOUSE HOSPICE (STAFFORD)","Y60","MIDLANDS COMMISSIONING REGION"]
["8HC74","KEELE UNIVERSITY - DEPARTMENT OF MEDICINES MANAGEMENT","Y60","MIDLANDS COMMISSIONING REGION"]
["8GC68","KEMP DEBORAH (COUNSELLOR)","Y60","MIDLANDS COMMISSIONING REGION"]
["8JV58","KENNEDY SCOTT","Y61","EAST OF ENGLAND COMMISSIONING REGION"]
["8CW57","KENROYAL NH","Y60","MIDLANDS COMMISSIONING REGION"]
["8JY99","KERNOW AMBULANCE SERVICE","Y58","SOUTH WEST COMMISSIONING REGION"]
["8AP44","KESTEVEN GRANGE RESIDENTIAL HOME","Y63","NORTH EAST AND YORKSHIRE COMMISSIONING REGION"]
["8D104","KHAMIS K A (MINOR SURGERY VASECTOMY)","Y63","NORTH EAST AND YORKSHIRE COMMISSIONING REGION"]
["8AX14","KILBURN NH","Y60","MIDLANDS COMMISSIONING REGION"]
["8FM48","KILN MATT (DR)","Y56","LONDON COMMISSIONING REGION"]
["8J322","KINETIC NURSING SERVICES","Y63","NORTH EAST AND YORKSHIRE COMMISSIONING REGION"]
["8CW28","KINGFISHERS NH","Y59","SOUTH EAST COMMISSIONING REGION"]
["8E544","KINGSLAND (GYNAECOLOGIST)","Y62","NORTH WEST COMMISSIONING REGION"]
["8HV50","KINGSTON CO-OPERATIVE INITIATIVE","Y56","LONDON COMMISSIONING REGION"]
["8F161","KINGSWOOD HALL NH (FRODSHAM)","Y62","NORTH WEST COMMISSIONING REGION"]
["8E545","KIRKHAM PHYSIOTHERAPY CENTRE","Y62","NORTH WEST COMMISSIONING REGION"]
["8EW54","KLEIN RONALD DANIEL (OSTEOPATH)","Y56","LONDON COMMISSIONING REGION"]
["8CL18","KNOWLE PARK","Y59","SOUTH EAST COMMISSIONING REGION"]
["8HT99","KPSN","Y59","SOUTH EAST COMMISSIONING REGION"]
["8K554","L.A. JOHNSON LIMITED","Y62","NORTH WEST COMMISSIONING REGION"]
["8FW13","LADY SARAH COHEN MENTAL NH","Y56","LONDON COMMISSIONING REGION"]
["8A089","LADYFIELD NH","Y63","NORTH EAST AND YORKSHIRE COMMISSIONING REGION"]
["8DK26","LAKESIDE REST AND NH","Y62","NORTH WEST COMMISSIONING REGION"]
["8JN79","LANCASHIRE BME NETWORK","Y62","NORTH WEST COMMISSIONING REGION"]
["8AN56","LANERCOST HOUSE","Y63","NORTH EAST AND YORKSHIRE COMMISSIONING REGION"]
["8A179","LANGWITH LODGE RESIDENTIAL HOME","Y63","NORTH EAST AND YORKSHIRE COMMISSIONING REGION"]
["8A167","LARWOOD NH","Y60","MIDLANDS COMMISSIONING REGION"]
["8K519","LASER IMPEX LIMITED","Y56","LONDON COMMISSIONING REGION"]
["8HT26","LATCHAM DIRECT LIMITED","Y58","SOUTH WEST COMMISSIONING REGION"]
["8AT09","LAUREL MOUNT NH","Y63","NORTH EAST AND YORKSHIRE COMMISSIONING REGION"]
["8C362","LAWNS NH","Y58","SOUTH WEST COMMISSIONING REGION"]
["8ER11","LAWSON JANET (OSTEOPATH)","Y60","MIDLANDS COMMISSIONING REGION"]
["8J918","LBG MEDICAL LTD","Y60","MIDLANDS COMMISSIONING REGION"]
["8C733","LEABROOK HOUSE NH","Y60","MIDLANDS COMMISSIONING REGION"]
["8EL29","LEAPS & BOUNDS","Y60","MIDLANDS COMMISSIONING REGION"]
["8HG97","LEE SHARON (NLP PRACTITIONER)","Y62","NORTH WEST COMMISSIONING REGION"]
["8GH28","LEEN ANDREW (THERAPIST)","Y59","SOUTH EAST COMMISSIONING REGION"]
["8EY93","LEITH S E (DR) (CONSULTANT)","Y62","NORTH WEST COMMISSIONING REGION"]
["8C531","LEMORE MANOR NH","Y60","MIDLANDS COMMISSIONING REGION"]
["8EK03","LES BOURGS HOSPICE","SCOTLAND","SCOTLAND"]
["8D510","LEWIN ANN (COUNSELLOR)","Y61","EAST OF ENGLAND COMMISSIONING REGION"]
["8JN99","LHM MEDIA LTD","Y60","MIDLANDS COMMISSIONING REGION"]
["8HX70","LIFELINE EAST LANCASHIRE YOUNG PEOPLE'S SERVICE","Y62","NORTH WEST COMMISSIONING REGION"]
["8HY22","LIFESTAR MEDICAL LTD","Y58","SOUTH WEST COMMISSIONING REGION"]
["8A489","LINCOLN HOUSE","Y61","EAST OF ENGLAND COMMISSIONING REGION"]
["8C134","LINDLEY GRANGE NH","Y63","NORTH EAST AND YORKSHIRE COMMISSIONING REGION"]
["8F126","LINSON COURT NH/ TRI-CARE HOMES LTD","Y63","NORTH EAST AND YORKSHIRE COMMISSIONING REGION"]
["8EY78","LITCHFIELD CHARLES","Y59","SOUTH EAST COMMISSIONING REGION"]
["8CJ36","LITTLE HAYES NH","Y56","LONDON COMMISSIONING REGION"]
["8HN60","LIVERPOOL DIRECT LIMITED","Y62","NORTH WEST COMMISSIONING REGION"]
["8WE57","LLWELLYN WENDY SEYS (REFLEXOLOGIST)","WALES","WALES"]
["8JV68","LOCUMS NEST LTD","Y56","LONDON COMMISSIONING REGION"]
["8J627","LONDON FRIEND","Y56","LONDON COMMISSIONING REGION"]
["8A604","LONDON IRYO CENTRE","Y56","LONDON COMMISSIONING REGION"]
["8FJ06","LONG ROBERT G (DR)","Y60","MIDLANDS COMMISSIONING REGION"]
["8CX41","LONGLANDS NH (WITNEY)","Y59","SOUTH EAST COMMISSIONING REGION"]
["8HG51","LORRAINE INGRAM (COMPLIMENTRY THERAPIST)","Y60","MIDLANDS COMMISSIONING REGION"]
["8GC31","LOWDELL AMANDA","Y59","SOUTH EAST COMMISSIONING REGION"]
["8K117","LTS HEALTH UK LIMITED","Y56","LONDON COMMISSIONING REGION"]
["8JR53","LUCAS MEDIA","Y63","NORTH EAST AND YORKSHIRE COMMISSIONING REGION"]
["8K601","LUPIN HEALTHCARE (UK) LIMITED","Y59","SOUTH EAST COMMISSIONING REGION"]
["8C532","LYNHALES NH","Y60","MIDLANDS COMMISSIONING REGION"]
["8A266","MABLETHORPE HALL NH","Y60","MIDLANDS COMMISSIONING REGION"]
["8GX70","MACKINNON DAVID (HYPNOTHERAPIST)","Y58","SOUTH WEST COMMISSIONING REGION"]
["8C610","MAESBROOK NH","Y60","MIDLANDS COMMISSIONING REGION"]
["8WE15","MAESTEILO","WALES","WALES"]
["8GG39","MAINSTONE FIONA (HYPNOTHERAPIST)","Y59","SOUTH EAST COMMISSIONING REGION"]
["8HY48","MALLING HEALTH (UK) LTD","Y59","SOUTH EAST COMMISSIONING REGION"]
["8E558","MANCHESTER THERAPY CENTRE (PHYSIOTHERAPY)","Y62","NORTH WEST COMMISSIONING REGION"]
["8GE25","MANN NEIL (OSTEOPATH)","Y56","LONDON COMMISSIONING REGION"]
["8C030","MANOR HOUSE NH (ST IVES)","Y58","SOUTH WEST COMMISSIONING REGION"]
["8C906","MANOR HOUSE NH (STAFFORD)","Y60","MIDLANDS COMMISSIONING REGION"]
["8HD83","MANSHIP BRIAN (HYPNOTHERAPIST)","Y63","NORTH EAST AND YORKSHIRE COMMISSIONING REGION"]
["8AL90","MAPLE LODGE NH (DARLINGTON)","Y63","NORTH EAST AND YORKSHIRE COMMISSIONING REGION"]
["8GK24","MARIE CURIE","Y56","LONDON COMMISSIONING REGION"]
["8J668","MARK DURANT CLEANING LLP","Y59","SOUTH EAST COMMISSIONING REGION"]
["8FW43","MARQUIS COURT NH (WINDSOR HOUSE)","Y60","MIDLANDS COMMISSIONING REGION"]
["8G394","MARSHALL ANNETTE V (HYPNOTHERAPIST)","Y59","SOUTH EAST COMMISSIONING REGION"]
["8CT10","MARWA NH","Y59","SOUTH EAST COMMISSIONING REGION"]
["8AJ81","MARZILLIER JOHN (PSYCHOLOGIST)","Y59","SOUTH EAST COMMISSIONING REGION"]
["8JF24","MATRIX DIAGNOSTICS LTD","Y62","NORTH WEST COMMISSIONING REGION"]
["8G013","MAUNG MAUNG (DR)","Y63","NORTH EAST AND YORKSHIRE COMMISSIONING REGION"]
["8K515","MAWDSLEY-BROOKS & COMPANY LIMITED","Y62","NORTH WEST COMMISSIONING REGION"]
["8DE26","MAYFIELD NH","Y62","NORTH WEST COMMISSIONING REGION"]
["8G519","MCCAFFERTY STEWART (PSYCHOTHERAPIST)","Y56","LONDON COMMISSIONING REGION"]
["8D656","MCDERMOTT (DR) & PARTNERS (CHIROPODY)","Y58","SOUTH WEST COMMISSIONING REGION"]
["8GM16","MCINTYRE ARCHIE D O (HYPNOTHERAPIST)","Y58","SOUTH WEST COMMISSIONING REGION"]
["8G876","MCKEE JAMES (THERAPIST)","Y63","NORTH EAST AND YORKSHIRE COMMISSIONING REGION"]
["8EY70","MCMANUS ELIZABETH VALERIE GAYNOR (PSYCHOTHERAPIST)","Y56","LONDON COMMISSIONING REGION"]
["8DJ76","MEADOW BANK NH","Y62","NORTH WEST COMMISSIONING REGION"]
["8WG98","MED TEAM PRIMARY CARE SERVICES LIMITED","WALES","WALES"]
["8J072","MEDEQUIP ASSISTIVE TECHNOLOGY LTD","Y56","LONDON COMMISSIONING REGION"]
["8J610","MEDICAL DIRECT SCREENINGS LIMITED","Y56","LONDON COMMISSIONING REGION"]
["8ER54","MEDICAL MANAGEMENT INITIATIVE","Y58","SOUTH WEST COMMISSIONING REGION"]
["8JK06","MEDICATION MANAGEMENT SOLUTIONS","Y62","NORTH WEST COMMISSIONING REGION"]
["8J215","MEDIGOLD HEALTH CONSULTANCY","Y60","MIDLANDS COMMISSIONING REGION"]
["8HC93","MEDISOFT LTD","Y63","NORTH EAST AND YORKSHIRE COMMISSIONING REGION"]
["8HR40","MEDNET CONSULT LTD","Y63","NORTH EAST AND YORKSHIRE COMMISSIONING REGION"]
["8JT24","MEDSU LTD","Y61","EAST OF ENGLAND COMMISSIONING REGION"]
["8GE39","MEHTA MANISH S (HYPNOTHERAPIST)","Y62","NORTH WEST COMMISSIONING REGION"]
["8GA53","MELVILLE MARK (HYPNOTHERAPIST)","Y56","LONDON COMMISSIONING REGION"]
["8E567","MERCK, SHARPE AND DOHME","Y61","EAST OF ENGLAND COMMISSIONING REGION"]
["8GP35","MERRY SUSAN (HYPNOTHERAPIST)","Y60","MIDLANDS COMMISSIONING REGION"]
["8D307","MERSEYSIDE DRUGS COUNCIL","Y62","NORTH WEST COMMISSIONING REGION"]
["8C925","METHODIST HOMES","Y60","MIDLANDS COMMISSIONING REGION"]
["8JQ97","MICBEE CARE & EMPLOYMENT LTD","Y56","LONDON COMMISSIONING REGION"]
["8A241","MIDDLEFIELD HOUSE NH","Y60","MIDLANDS COMMISSIONING REGION"]
["8DV15","MIDLANDS ASTHMA AND ALLERGY RESEARCH","Y60","MIDLANDS COMMISSIONING REGION"]
["8CN85","MILL HOUSE NH (WORTHING0","Y59","SOUTH EAST COMMISSIONING REGION"]
["8A394","MILL LANE NH","Y61","EAST OF ENGLAND COMMISSIONING REGION"]
["8G760","MILLER STEVE JOHN (HYPNOTHERAPIST)","Y60","MIDLANDS COMMISSIONING REGION"]
["8GA18","MILLS SUSAN MARHEA (THERAPIST)","Y56","LONDON COMMISSIONING REGION"]
["8F197","MILWARD HOME","Y59","SOUTH EAST COMMISSIONING REGION"]
["8K009","MIND IN TAUNTON & WEST SOMERSET","Y58","SOUTH WEST COMMISSIONING REGION"]
["8F994","MING ALEC (DR) (CONSULTANT)","Y63","NORTH EAST AND YORKSHIRE COMMISSIONING REGION"]
["8GY69","MIS EMERGENCY SYSTEMS LIMITED","Y62","NORTH WEST COMMISSIONING REGION"]
["8ER14","MITCHELL A (CONSULTANT)","Y61","EAST OF ENGLAND COMMISSIONING REGION"]
["8JM58","ML DOCTORS","Y62","NORTH WEST COMMISSIONING REGION"]
["8J756","MODERN NETWORKS LIMITED","Y56","LONDON COMMISSIONING REGION"]
["8F769","MONK MICHAEL CHARLES (DR)","Y61","EAST OF ENGLAND COMMISSIONING REGION"]
["8HR24","MONTHIND LIMITED","Y61","EAST OF ENGLAND COMMISSIONING REGION"]
["8CK93","MOOR HOUSE NH","Y59","SOUTH EAST COMMISSIONING REGION"]
["8CG74","MOORGATE LODGE NH","Y63","NORTH EAST AND YORKSHIRE COMMISSIONING REGION"]
["8C444","MORETON HILL FARM CARE","Y58","SOUTH WEST COMMISSIONING REGION"]
["8WD81","MORRIS HOUSE NH","WALES","WALES"]
["8AT10","MORTON CLOSE NH","Y63","NORTH EAST AND YORKSHIRE COMMISSIONING REGION"]
["8DL06","MOSS COTTAGE NH","Y62","NORTH WEST COMMISSIONING REGION"]
["8GD24","MOTHA GOWRI (HYPNOTHERAPIST)","Y56","LONDON COMMISSIONING REGION"]
["8K344","MOUNT TAXIS","Y63","NORTH EAST AND YORKSHIRE COMMISSIONING REGION"]
["8GD39","MRC INSTITUTE OF HEARING RESEARCH","Y60","MIDLANDS COMMISSIONING REGION"]
["8EX25","MUDDU B N (ORTHOPAEDIC SURGEON)","Y62","NORTH WEST COMMISSIONING REGION"]
["8JV29","MULTITONE ELECTRONICS PLC","Y59","SOUTH EAST COMMISSIONING REGION"]
["8ED18","MUNDESLEY MEDICAL CENTRE","Y61","EAST OF ENGLAND COMMISSIONING REGION"]
["8G963","MURRAYFIELD CARE CENTRE","Y56","LONDON COMMISSIONING REGION"]
["8J997","MY RIGHTCARE LIMITED","Y60","MIDLANDS COMMISSIONING REGION"]
["8WA62","NANT-Y-GAER","WALES","WALES"]
["8JC51","NATIONAL DESIGN CONSULTANCY","Y58","SOUTH WEST COMMISSIONING REGION"]
["8CW24","NATIONAL SOCIETY FOR EPILEPSY","Y59","SOUTH EAST COMMISSIONING REGION"]
["8JC17","NAZARETH CARE CHARITABLE TRUST","Y56","LONDON COMMISSIONING REGION"]
["8D548","NEALE G (PHYSIOTHERAPIST)","Y61","EAST OF ENGLAND COMMISSIONING REGION"]
["8HW83","NESS M CARE SERVICES","Y61","EAST OF ENGLAND COMMISSIONING REGION"]
["8C711","NETHERTON GREEN","Y60","MIDLANDS COMMISSIONING REGION"]
["8HD69","NETWORK DEFENCE LTD","Y62","NORTH WEST COMMISSIONING REGION"]
["8CR66","NEW FOREST NH","Y59","SOUTH EAST COMMISSIONING REGION"]
["8C643","NEW MILTON NH","Y60","MIDLANDS COMMISSIONING REGION"]
["8JC29","NEWCASTLE PREMIER HEALTH LTD","Y63","NORTH EAST AND YORKSHIRE COMMISSIONING REGION"]
["8CR09","NEWLANDS NH (SOUTHSEA)","Y59","SOUTH EAST COMMISSIONING REGION"]
["8A899","NEWSTEAD (LONDON)","Y56","LONDON COMMISSIONING REGION"]
["8F028","NEWTON COURT NH","Y62","NORTH WEST COMMISSIONING REGION"]
["8JF29","NGA HUMAN RESOURCES","Y62","NORTH WEST COMMISSIONING REGION"]
["8CF46","NICHOLAS JAMES CARE HOMES","Y59","SOUTH EAST COMMISSIONING REGION"]
["8CP30","NIGHTINGALE","Y58","SOUTH WEST COMMISSIONING REGION"]
["8DH10","NIGHTINGALES NH (THORNTON-CLEVELEYS)","Y62","NORTH WEST COMMISSIONING REGION"]
["8JA24","NIHR TRAINEES COORDINATING CENTRE","Y63","NORTH EAST AND YORKSHIRE COMMISSIONING REGION"]
["8FM17","NO. 8 CHESTNUT ROAD","Y58","SOUTH WEST COMMISSIONING REGION"]
["8JG23","NORFOLK LOCAL DENTAL COMMITTEE","Y61","EAST OF ENGLAND COMMISSIONING REGION"]
["8D617","NORTH BRITISH HOUSING ASSOCIATION","Y63","NORTH EAST AND YORKSHIRE COMMISSIONING REGION"]
["8JT05","NORTH NORFOLK PRIMARY CARE LTD","Y61","EAST OF ENGLAND COMMISSIONING REGION"]
["8EV49","NORTHAMPTON GYNAECOLOGICAL SERVICES","Y60","MIDLANDS COMMISSIONING REGION"]
["8HR03","NORTHAMPTON VOLUNTEER CAR SCHEME","Y60","MIDLANDS COMMISSIONING REGION"]
["8A116","NORTHFIELD NH","Y63","NORTH EAST AND YORKSHIRE COMMISSIONING REGION"]
["8K032","NORVIC HEALTHCARE (ANGLIA) LIMITED","Y61","EAST OF ENGLAND COMMISSIONING REGION"]
["8AY90","NOTTINGHAM CLINIC","Y60","MIDLANDS COMMISSIONING REGION"]
["8HP35","NOVO NORDISK","Y59","SOUTH EAST COMMISSIONING REGION"]
["8HQ01","NTT EUROPE LTD","Y56","LONDON COMMISSIONING REGION"]
["8JL85","NTW SOLUTIONS LTD","Y63","NORTH EAST AND YORKSHIRE COMMISSIONING REGION"]
["8HX34","NURSINGNET LTD","Y60","MIDLANDS COMMISSIONING REGION"]
["8EX16","OAK HOUSE (WALSALL)","Y60","MIDLANDS COMMISSIONING REGION"]
["8DL01","OAKDENE NH","Y62","NORTH WEST COMMISSIONING REGION"]
["8DL66","OAKLAND HOUSE NH","Y62","NORTH WEST COMMISSIONING REGION"]
["8DK76","OAKLAND PRIVATE NH (ROCHDALE)","Y62","NORTH WEST COMMISSIONING REGION"]
["8D954","OAKLEIGH HOUSE NH","Y56","LONDON COMMISSIONING REGION"]
["8A276","OAKWOOD NH","Y60","MIDLANDS COMMISSIONING REGION"]
["8E601","O'BRIEN JANET (PHYSIOTHERAPIST)","Y62","NORTH WEST COMMISSIONING REGION"]
["8DQ33","O'DONOGHUE G M","Y60","MIDLANDS COMMISSIONING REGION"]
["8AA60","O'HARE P (PLASTIC SURGEON)","Y63","NORTH EAST AND YORKSHIRE COMMISSIONING REGION"]
["8GY28","OKE GARY (HYPNOTHERAPIST)","Y62","NORTH WEST COMMISSIONING REGION"]
["8C373","OLD VICARAGE NH (GLOUCESTER)","Y58","SOUTH WEST COMMISSIONING REGION"]
["8EG73","OLIVELLE JOSEPH (CHIROPODIST)","Y56","LONDON COMMISSIONING REGION"]
["8JA04","ONE MEDICAL GROUP LIMITED","Y63","NORTH EAST AND YORKSHIRE COMMISSIONING REGION"]
["8JE74","ONESERVE LTD","Y58","SOUTH WEST COMMISSIONING REGION"]
["8JR74","OPLINKED","Y56","LONDON COMMISSIONING REGION"]
["8J447","OPTIMAL MEDICINE","Y56","LONDON COMMISSIONING REGION"]
["8HT89","OPUS TRUST MARKETING LTD","Y60","MIDLANDS COMMISSIONING REGION"]
["8DA48","ORCHARD HOUSE NH","Y60","MIDLANDS COMMISSIONING REGION"]
["8DG35","ORIEL COURT NH","Y62","NORTH WEST COMMISSIONING REGION"]
["8JP99","ORR MEDICAL LTD","Y62","NORTH WEST COMMISSIONING REGION"]
["8JC91","ORTHIMO LTD","Y62","NORTH WEST COMMISSIONING REGION"]
["8JA77","OSTEOPATH AT THE SHRUBBERIES","Y56","LONDON COMMISSIONING REGION"]
["8JF17","OUR PATH LTD.","Y59","SOUTH EAST COMMISSIONING REGION"]
["8K544","OVIVA UK LIMITED","Y56","LONDON COMMISSIONING REGION"]
["8JV70","OXFORDSHIRE SPORT & PHYSICAL ACTIVITY","Y59","SOUTH EAST COMMISSIONING REGION"]
["8DF84","OXTON LAWN NH","Y62","NORTH WEST COMMISSIONING REGION"]
["8F479","PADBURY STEPHANIE (REFLEXOLOGIST)","Y60","MIDLANDS COMMISSIONING REGION"]
["8JM07","PALADINS CARE LIMITED","Y61","EAST OF ENGLAND COMMISSIONING REGION"]
["8E607","PANDE SANJAY K (COUNSELLOR)","Y62","NORTH WEST COMMISSIONING REGION"]
["8JH77","PARALLAX AGENCY LTD","Y63","NORTH EAST AND YORKSHIRE COMMISSIONING REGION"]
["8AH94","PARFIELDS CHILDRENS HOME","Y58","SOUTH WEST COMMISSIONING REGION"]
["8A960","PARK LODGE NH","Y59","SOUTH EAST COMMISSIONING REGION"]
["8D871","PARK VIEW MEDICAL CLINIC","Y63","NORTH EAST AND YORKSHIRE COMMISSIONING REGION"]
["8HT31","PARKHILL AUDIT AGENCY","Y56","LONDON COMMISSIONING REGION"]
["8F076","PARKLANDS NH","Y61","EAST OF ENGLAND COMMISSIONING REGION"]
["8DK14","PARKVIEW NH","Y62","NORTH WEST COMMISSIONING REGION"]
["8J876","PARKWOOD HEALTHCARE LIMITED","Y62","NORTH WEST COMMISSIONING REGION"]
["8C105","PARTNERSHIPS IN CARE PLC (HULL)","Y63","NORTH EAST AND YORKSHIRE COMMISSIONING REGION"]
["8GC57","PATEL MINESH (DR)","Y59","SOUTH EAST COMMISSIONING REGION"]
["8HQ03","PATHWAY SOLUTIONS UK LTD","Y59","SOUTH EAST COMMISSIONING REGION"]
["8J066","PATIENT PERSPECTIVE LTD","Y59","SOUTH EAST COMMISSIONING REGION"]
["8VE20","PAYDENS LIMITED","Y59","SOUTH EAST COMMISSIONING REGION"]
["8JN71","PAYEDOC PAYROLL SERVICES LTD","Y62","NORTH WEST COMMISSIONING REGION"]
["8AY81","PEACEMILLS","Y60","MIDLANDS COMMISSIONING REGION"]
["8K528","PECKFORTON PHARMACEUTICALS LTD","Y62","NORTH WEST COMMISSIONING REGION"]
["8EX93","PEMBROKE ANDREW (DR)","Y56","LONDON COMMISSIONING REGION"]
["8C068","PENHELLIS HOUSE NH","Y58","SOUTH WEST COMMISSIONING REGION"]
["8JE81","PENTA HEALTH AND WELLBEING LTD","Y58","SOUTH WEST COMMISSIONING REGION"]
["8CN35","PENTLANDS NH","Y59","SOUTH EAST COMMISSIONING REGION"]
["8DE81","PERCIVAL C","Y58","SOUTH WEST COMMISSIONING REGION"]
["8JG06","PERSONAL HOMECARE PHARMACY LTD","Y60","MIDLANDS COMMISSIONING REGION"]
["8AF62","PETERS THEODORE (DR) (OSTEOPATH)","Y59","SOUTH EAST COMMISSIONING REGION"]
["8K109","PHARMASURE LTD","Y61","EAST OF ENGLAND COMMISSIONING REGION"]
["8GA24","PHILLIPS JANET (HYPNOTHERAPIST)","Y61","EAST OF ENGLAND COMMISSIONING REGION"]
["8WG58","PHOENIX HEALTH LIMITED","WALES","WALES"]
["8CL13","PHYLLIS TUCKWELL HOSPICE","Y59","SOUTH EAST COMMISSIONING REGION"]
["8GC17","PHYSIOTHERAPY CLINIC","Y62","NORTH WEST COMMISSIONING REGION"]
["8E454","PICKLES C J","Y60","MIDLANDS COMMISSIONING REGION"]
["8CG19","PILGRIMS WAY NH","Y59","SOUTH EAST COMMISSIONING REGION"]
["8CP33","PINEBEACH","Y58","SOUTH WEST COMMISSIONING REGION"]
["8GW66","PINKNEY DEREK (HYPNOTHERAPY)","Y63","NORTH EAST AND YORKSHIRE COMMISSIONING REGION"]
["8HT24","PJ COUNSELLING","Y60","MIDLANDS COMMISSIONING REGION"]
["8G755","PLESTER JOHN (HYPNOTHERAPIST)","Y61","EAST OF ENGLAND COMMISSIONING REGION"]
["8WC77","POLISH HOUSING CENTRE LTD","WALES","WALES"]
["8EJ63","POLWIN PHILIP J S (DR) (MINOR SURGERY)","Y59","SOUTH EAST COMMISSIONING REGION"]
["8JY24","PORCHLIGHT","Y59","SOUTH EAST COMMISSIONING REGION"]
["8JJ98","POSITIVELY UK","Y56","LONDON COMMISSIONING REGION"]
["8HX90","PRACTICE ASSOCIATES","Y60","MIDLANDS COMMISSIONING REGION"]
["8E261","PREECE L C","Y63","NORTH EAST AND YORKSHIRE COMMISSIONING REGION"]
["8J474","PRESCRIBING SUPPORT SERVICES LTD","Y63","NORTH EAST AND YORKSHIRE COMMISSIONING REGION"]
["8C260","PRESTBURY COURT NH","Y58","SOUTH WEST COMMISSIONING REGION"]
["8AN91","PRESTON TOWERS NH","Y63","NORTH EAST AND YORKSHIRE COMMISSIONING REGION"]
["8JM63","PRIME GROUP PRACTICE LTD","Y62","NORTH WEST COMMISSIONING REGION"]
["8EA80","PRINCES COURT (EDWARD WING)","Y63","NORTH EAST AND YORKSHIRE COMMISSIONING REGION"]
["8DH11","PRIORY COURT NURSING CARE HOME","Y62","NORTH WEST COMMISSIONING REGION"]
["8JW67","PRIORY HEALTHCARE LIMITED","Y56","LONDON COMMISSIONING REGION"]
["8JT90","PRIVATE PUBLIC LTD","Y56","LONDON COMMISSIONING REGION"]
["8JR91","PRO-MAPP LIMITED","Y59","SOUTH EAST COMMISSIONING REGION"]
["8DA87","PROSPECT HOUSE NH (MALPAS)","Y62","NORTH WEST COMMISSIONING REGION"]
["8E553","PSS UK","Y62","NORTH WEST COMMISSIONING REGION"]
["8EN24","PSYCHO-SEMANTICS INSTITUTE CONSULTANCY","Y59","SOUTH EAST COMMISSIONING REGION"]
["8HJ54","PUBLIC SECTOR COSTING ASSOCIATES LIMITED","Y58","SOUTH WEST COMMISSIONING REGION"]
["8GM49","PURNELL DOROTHY (THERAPIST)","Y61","EAST OF ENGLAND COMMISSIONING REGION"]
["8K054","QFI CONSULTING LLP","Y60","MIDLANDS COMMISSIONING REGION"]
["8EK11","QUARSHI A A (DR)","Y63","NORTH EAST AND YORKSHIRE COMMISSIONING REGION"]
["8AM39","QUEENS MEADOW CARE HOME","Y63","NORTH EAST AND YORKSHIRE COMMISSIONING REGION"]
["8AP19","QUEENSGATE","Y63","NORTH EAST AND YORKSHIRE COMMISSIONING REGION"]
["8HE39","QUIGLEY HUGH (PSYCHOTHERAPIST)","Y62","NORTH WEST COMMISSIONING REGION"]
["8JL27","RADIUS - EQUINIX SLOUGH","Y59","SOUTH EAST COMMISSIONING REGION"]
["8C384","RAINOW NH","Y58","SOUTH WEST COMMISSIONING REGION"]
["8GJ20","RAMSEY MICHAEL D. (HYPNOTHERAPIST)","Y59","SOUTH EAST COMMISSIONING REGION"]
["8JG18","RAPID CARE LTD","Y59","SOUTH EAST COMMISSIONING REGION"]
["8HV76","RAPIDE REPROGRAPHICS LTD","Y62","NORTH WEST COMMISSIONING REGION"]
["8GF96","RAWLINS KAREN (HYPNOTHERAPIST)","Y59","SOUTH EAST COMMISSIONING REGION"]
["8G237","READER ANDREW G M (DR)","Y59","SOUTH EAST COMMISSIONING REGION"]
["8CN37","RECTORY HOUSE","Y59","SOUTH EAST COMMISSIONING REGION"]
["8DE05","REDCOURT NH","Y62","NORTH WEST COMMISSIONING REGION"]
["8JT95","REDWING BUSINESS INTELLIGENCE LTD","Y62","NORTH WEST COMMISSIONING REGION"]
["8HC76","REES DAVID KEVIN (THERAPIST)","Y61","EAST OF ENGLAND COMMISSIONING REGION"]
["8J069","REGENCY HOSPITALS LTD","Y62","NORTH WEST COMMISSIONING REGION"]
["8EE51","REID RUTH (COUNSELLOR)","Y56","LONDON COMMISSIONING REGION"]
["8K169","RELATE LTD","Y59","SOUTH EAST COMMISSIONING REGION"]
["8JE72","RENEW COUNSELLING LTD","Y61","EAST OF ENGLAND COMMISSIONING REGION"]
["8J317","RESMED (UK) LTD","Y59","SOUTH EAST COMMISSIONING REGION"]
["8K051","RESPIREX INTERNATIONAL LIMITED","Y59","SOUTH EAST COMMISSIONING REGION"]
["8WA41","RHOS PRIORY","WALES","WALES"]
["8GN27","RICHARD HOUSE CHILDREN'S HOSPICE","Y56","LONDON COMMISSIONING REGION"]
["8C724","RICHMOND COURT NH","Y60","MIDLANDS COMMISSIONING REGION"]
["8C964","RIDER HOUSE","Y60","MIDLANDS COMMISSIONING REGION"]
["8AX13","RIDGEWAY NH","Y60","MIDLANDS COMMISSIONING REGION"]
["8FN91","RINA WENDY (DR)","Y59","SOUTH EAST COMMISSIONING REGION"]
["8DM89","RISEDALE AT ALDINGTON ST CUTHBERTS","Y62","NORTH WEST COMMISSIONING REGION"]
["8EA25","RIVERSIDE COURT NH","Y63","NORTH EAST AND YORKSHIRE COMMISSIONING REGION"]
["8DQ37","RIZK S N M","Y60","MIDLANDS COMMISSIONING REGION"]
["8GV75","ROBERTS JULIE (CLINICAL HYPNOTHERAPIST)","Y62","NORTH WEST COMMISSIONING REGION"]
["8GK21","ROBERTSON ANDREW (THERAPIST)","Y62","NORTH WEST COMMISSIONING REGION"]
["8D123","ROBINSON P J (ENT SURGERY)","Y58","SOUTH WEST COMMISSIONING REGION"]
["8J866","ROD GIBSON ASSOCIATES LTD","Y56","LONDON COMMISSIONING REGION"]
["8K364","ROKSHAW LIMITED","Y63","NORTH EAST AND YORKSHIRE COMMISSIONING REGION"]
["8HA44","ROMFORD AND ILFORD FAMILY CHIROPRACTIC CLINIC LTD","Y56","LONDON COMMISSIONING REGION"]
["8GD20","ROSALYN HOUSE NH","Y61","EAST OF ENGLAND COMMISSIONING REGION"]
["8C916","ROSE VILLA NH (STAFFORD)","Y60","MIDLANDS COMMISSIONING REGION"]
["8DW93","ROSENTHAL J","Y60","MIDLANDS COMMISSIONING REGION"]
["8EL64","ROSS BARBARA (COUNSELLOR)","Y61","EAST OF ENGLAND COMMISSIONING REGION"]
["8EK92","ROWDEN SURGERY","Y58","SOUTH WEST COMMISSIONING REGION"]
["8FJ42","ROWLAND MELANIE JANE (COUNSELLOR)","Y56","LONDON COMMISSIONING REGION"]
["8FA23","ROYAL ASSOCIATION FOR THE DEAF","Y61","EAST OF ENGLAND COMMISSIONING REGION"]
["8CK39","ROYAL STAR & GARTER HOME","Y56","LONDON COMMISSIONING REGION"]
["8GW08","RUFFLES GILL (HYPNOTHERAPIST & NEURO-LINGUISTIC PROGRAMMING)","Y58","SOUTH WEST COMMISSIONING REGION"]
["8WF78","RUSSEL JULIE (HYPNOTHERAPIST)","WALES","WALES"]
["8GR83","RUSSELL PAUL ANDREW (HYPNOTHERAPIST)","Y60","MIDLANDS COMMISSIONING REGION"]
["8F907","RYAN VAL (THERAPIST)","Y63","NORTH EAST AND YORKSHIRE COMMISSIONING REGION"]
["8JG78","S.MOLES","Y58","SOUTH WEST COMMISSIONING REGION"]
["8J653","SAFE-OFFENDER HEALTHCARE LTD","Y63","NORTH EAST AND YORKSHIRE COMMISSIONING REGION"]
["8DT59","SALEM HASAN A","Y60","MIDLANDS COMMISSIONING REGION"]
["8JN47","SALTS HEALTHCARE LTD","Y60","MIDLANDS COMMISSIONING REGION"]
["8AP21","SALTSHOUSE HAVEN NH","Y63","NORTH EAST AND YORKSHIRE COMMISSIONING REGION"]
["8HC40","SAMPSON DONOVAN (THERAPIST)","Y60","MIDLANDS COMMISSIONING REGION"]
["8K738","SANDISONS LIMITED","Y58","SOUTH WEST COMMISSIONING REGION"]
["8J580","SANDYX SYSTEMS LTD","Y62","NORTH WEST COMMISSIONING REGION"]
["8AH74","SARUM PHYSIOTHERAPY CENTRE","Y58","SOUTH WEST COMMISSIONING REGION"]
["8JV07","SAVING LIVES","Y60","MIDLANDS COMMISSIONING REGION"]
["8K502","SAXONBROOK SERVICES LTD","Y59","SOUTH EAST COMMISSIONING REGION"]
["8HV23","SCANDOX LTD","Y61","EAST OF ENGLAND COMMISSIONING REGION"]
["8FG34","SCHREIBER ANNE (PHYSIOTHERAPY)","Y58","SOUTH WEST COMMISSIONING REGION"]
["8FV69","SCOTT CLARISSA (HYPNOTHERAPIST)","Y59","SOUTH EAST COMMISSIONING REGION"]
["8CE26","SEAFIELD LODGE NH","Y59","SOUTH EAST COMMISSIONING REGION"]
["8JX01","SEBIA (UK) LTD","Y59","SOUTH EAST COMMISSIONING REGION"]
["8JL16","SECOND 2 NONE HEALTHCARE LTD","Y63","NORTH EAST AND YORKSHIRE COMMISSIONING REGION"]
["8K351","SEDEM LIMITED","Y62","NORTH WEST COMMISSIONING REGION"]
["8C270","SEFTON HALL NH","Y58","SOUTH WEST COMMISSIONING REGION"]
["8G358","SELLORS GARY (HYPNOTHERAPIST)","Y61","EAST OF ENGLAND COMMISSIONING REGION"]
["8HN63","SERCO HEALTH - CORNWALL","Y58","SOUTH WEST COMMISSIONING REGION"]
["8JG55","SERENITY HOMECARE LIMITED","Y60","MIDLANDS COMMISSIONING REGION"]
["8HP42","SESUI LTD","Y60","MIDLANDS COMMISSIONING REGION"]
["8HY57","SEVERNSIDE HOUSING","Y60","MIDLANDS COMMISSIONING REGION"]
["8FT07","SHANNON COURT NH (HINDHEAD)","Y59","SOUTH EAST COMMISSIONING REGION"]
["8JV20","SHAUDREY LTD","Y56","LONDON COMMISSIONING REGION"]
["8AH87","SHEEHAN NUALA (PSYCHOTHERAPIST)","Y58","SOUTH WEST COMMISSIONING REGION"]
["8HQ99","SHEFFIELD CLINICAL TRIALS RESEARCH UNIT","Y63","NORTH EAST AND YORKSHIRE COMMISSIONING REGION"]
["8FE68","SHELDRICK EVELYN CAROL (DR)","Y56","LONDON COMMISSIONING REGION"]
["8A138","SHERWOOD GRANGE CARE CENTRE LTD","Y60","MIDLANDS COMMISSIONING REGION"]
["8J330","SHIRE COMMUNITY SERVICES","Y60","MIDLANDS COMMISSIONING REGION"]
["8E163","SHOREHAM PHYSIOTHERAPY CLINIC LIMITED","Y59","SOUTH EAST COMMISSIONING REGION"]
["8HD39","SHOTTON CHRISTINE (THERAPIST)","Y59","SOUTH EAST COMMISSIONING REGION"]
["8E015","SHRUBBERIES PSYCHOTHERAPY & COUNSELLING UNIT","Y56","LONDON COMMISSIONING REGION"]
["8GG19","SIELSKI-WATERS FIONA (HYPNOTHERAPIST)","Y59","SOUTH EAST COMMISSIONING REGION"]
["8D794","SILVER SHARON (SPEECH AND LANGUAGE THERAPIST)","Y62","NORTH WEST COMMISSIONING REGION"]
["8HF05","SIMMONS ANABEL (CLINICAL HYPNOTHERAPIST)","Y58","SOUTH WEST COMMISSIONING REGION"]
["8HW30","SIMPLY BETTER SERVICES","Y61","EAST OF ENGLAND COMMISSIONING REGION"]
["8HE91","SIMPSON RITA (HYPNOTHERAPIST)","Y59","SOUTH EAST COMMISSIONING REGION"]
["8CK07","SIR JULES THORN COURT","Y56","LONDON COMMISSIONING REGION"]
["8GF55","SLACK LINDA (HYPNOTHERAPIST)","Y63","NORTH EAST AND YORKSHIRE COMMISSIONING REGION"]
["8AX07","SMALLEY HALL","Y60","MIDLANDS COMMISSIONING REGION"]
["8K503","SMART OFFICE SOLUTION LTD","Y59","SOUTH EAST COMMISSIONING REGION"]
["8AK44","SMITH ANN (PHYSIOTHERAPIST)","Y60","MIDLANDS COMMISSIONING REGION"]
["8AH47","SMITH JUDITH M (PHYSIOTHERAPIST)","Y59","SOUTH EAST COMMISSIONING REGION"]
["8G524","SMITH-BOWERS WILLIAM (HYPNOTHERAPIST)","Y61","EAST OF ENGLAND COMMISSIONING REGION"]
["8AV87","SNYDALE NH","Y63","NORTH EAST AND YORKSHIRE COMMISSIONING REGION"]
["8HM52","SOFTECH GLOBAL","Y59","SOUTH EAST COMMISSIONING REGION"]
["8K359","SOFTWORKS LTD","Y60","MIDLANDS COMMISSIONING REGION"]
["8GH78","SOLLOWAY KARINE (HYPNOTHERAPIST)","Y56","LONDON COMMISSIONING REGION"]
["8HG04","SOURCE BIOSCIENCE PLC","Y60","MIDLANDS COMMISSIONING REGION"]
["8C556","SOUTH HAYES NH","Y60","MIDLANDS COMMISSIONING REGION"]
["8GR54","SOUTH WEST LONDON IMPROVEMENT ACADEMY","Y56","LONDON COMMISSIONING REGION"]
["8G269","SOUTHERN CROSS HEALTHCARE","Y56","LONDON COMMISSIONING REGION"]
["8AW93","SOUTHERN CROSS HEALTHCARE","Y60","MIDLANDS COMMISSIONING REGION"]
["8AQ73","SOUTHLANDS NURSING AND RESIDENTIAL HOME","Y63","NORTH EAST AND YORKSHIRE COMMISSIONING REGION"]
["8C851","SPADESBOURNE HOUSE","Y60","MIDLANDS COMMISSIONING REGION"]
["8K289","SPECIALISED ORTHOTIC SERVICES LTD","Y60","MIDLANDS COMMISSIONING REGION"]
["8EW79","SPENCE MARGARET (THERAPIST)","Y56","LONDON COMMISSIONING REGION"]
["8JF06","SPIRIT HEALTHCARE LTD","Y60","MIDLANDS COMMISSIONING REGION"]
["8E644","SPORT-MED (PHYSIOTHERAPY)","Y62","NORTH WEST COMMISSIONING REGION"]
["8AL22","SPRINGFIELD LODGE NH","Y63","NORTH EAST AND YORKSHIRE COMMISSIONING REGION"]
["8DD69","SPRINGWOOD GARDENS NH","Y62","NORTH WEST COMMISSIONING REGION"]
["8JG99","SSH CLEANING & FACILITIES MANAGEMENT LTD","Y59","SOUTH EAST COMMISSIONING REGION"]
["8AT71","ST ANNE'S COMMUNITY SERVICES","Y63","NORTH EAST AND YORKSHIRE COMMISSIONING REGION"]
["8WC09","ST ANNE'S CROSSWAY GREEN","WALES","WALES"]
["8AT93","ST ANNS SHELTER HOUSING ACTION","Y63","NORTH EAST AND YORKSHIRE COMMISSIONING REGION"]
["8HQ56","ST BARNABAS LINCOLNSHIRE HOSPICE (GAINSBOROUGH)","Y60","MIDLANDS COMMISSIONING REGION"]
["8DC25","ST CATHERINE'S CARE HOME","Y62","NORTH WEST COMMISSIONING REGION"]
["8A557","ST CLAIRE'S MENTAL NH","Y61","EAST OF ENGLAND COMMISSIONING REGION"]
["8AM91","ST DAVIDS NH","Y63","NORTH EAST AND YORKSHIRE COMMISSIONING REGION"]
["8A301","ST EDMUNDS NH","Y60","MIDLANDS COMMISSIONING REGION"]
["8JW35","ST GEORGES DAY CENTRE (BOLTON) LTD","Y62","NORTH WEST COMMISSIONING REGION"]
["8C928","ST GILES HOSPICE","Y60","MIDLANDS COMMISSIONING REGION"]
["8AR83","ST JOHN OF GOD NH (BRADFORD)","Y63","NORTH EAST AND YORKSHIRE COMMISSIONING REGION"]
["8AY31","ST JOSEPH'S MOTHER & BABY HOME","Y60","MIDLANDS COMMISSIONING REGION"]
["8A437","ST JOSEPH'S NH (SUDBURY)","Y61","EAST OF ENGLAND COMMISSIONING REGION"]
["8CX19","ST LUKES NH (OXFORD)","Y59","SOUTH EAST COMMISSIONING REGION"]
["8C468","ST MARGARET'S SOMERSET HOSPICE","Y58","SOUTH WEST COMMISSIONING REGION"]
["8A039","ST MARY'S NH (DONCASTER)","Y63","NORTH EAST AND YORKSHIRE COMMISSIONING REGION"]
["8C558","ST MICHAELS NH","Y60","MIDLANDS COMMISSIONING REGION"]
["8C402","ST PAULS NH (GLOUCESTER)","Y58","SOUTH WEST COMMISSIONING REGION"]
["8F952","ST PETER'S ANDROLOGY CENTRE","Y56","LONDON COMMISSIONING REGION"]
["8HX98","ST TERESA'S HOSPICE","Y63","NORTH EAST AND YORKSHIRE COMMISSIONING REGION"]
["8D758","STACK H","Y59","SOUTH EAST COMMISSIONING REGION"]
["8GF70","STAMP PETER T (HYPNOTHERAPIST)","Y61","EAST OF ENGLAND COMMISSIONING REGION"]
["8CY54","STANTON COURT NH","Y58","SOUTH WEST COMMISSIONING REGION"]
["8GN60","STANYON HOWARD ANDREW (HYPNOTHERAPIST)","Y60","MIDLANDS COMMISSIONING REGION"]
["8DC23","STATION HOUSE","Y62","NORTH WEST COMMISSIONING REGION"]
["8DN45","STEEL SANDRA (PSYCHOTHERAPIST)","Y61","EAST OF ENGLAND COMMISSIONING REGION"]
["8F153","STEPPING STONES RESETTLEMENT UNIT","Y58","SOUTH WEST COMMISSIONING REGION"]
["8FL19","STEVENSON KRYSTYNA JOLANTA (THERAPIST)","Y56","LONDON COMMISSIONING REGION"]
["8D501","STEWART T (DR) (DERMATOLOGIST)","Y62","NORTH WEST COMMISSIONING REGION"]
["8CW08","STONE HOUSE NH","Y59","SOUTH EAST COMMISSIONING REGION"]
["8AP66","STONECROFT HOUSE NH","Y63","NORTH EAST AND YORKSHIRE COMMISSIONING REGION"]
["8GP81","STORTHFIELD HOUSE (NHP HEALTHCARE PARTNERSHIP)","Y60","MIDLANDS COMMISSIONING REGION"]
["8E375","STRATFORD ORTHOPAEDIC CLINIC","Y60","MIDLANDS COMMISSIONING REGION"]
["8AK51","STRUTHERS G R (DR) (RHEUMATOLOGIST)","Y60","MIDLANDS COMMISSIONING REGION"]
["8D011","STUART S (PHYSIOTHERAPIST)","Y63","NORTH EAST AND YORKSHIRE COMMISSIONING REGION"]
["8J335","SUE RYDER (NETTLEBED HOSPICE)","Y59","SOUTH EAST COMMISSIONING REGION"]
["8GH38","SUKUL DIWAKAR (THERAPIST","Y56","LONDON COMMISSIONING REGION"]
["8J363","SUMMERHILL SUPPLIES LIMITED","Y60","MIDLANDS COMMISSIONING REGION"]
["8JY10","SUNDOWN SOLUTIONS LTD","Y62","NORTH WEST COMMISSIONING REGION"]
["8WC19","SUNNYBANK NH","WALES","WALES"]
["8DJ92","SUNNYBROW","Y62","NORTH WEST COMMISSIONING REGION"]
["8J877","SUPPORTED INDEPENDENT LIVING LTD","Y62","NORTH WEST COMMISSIONING REGION"]
["8JY95","SURREY CARDIOVASCULAR CLINIC","Y59","SOUTH EAST COMMISSIONING REGION"]
["8A676","SUTHERLANDS NH","Y61","EAST OF ENGLAND COMMISSIONING REGION"]
["8A932","SWAN CARE HOME","Y61","EAST OF ENGLAND COMMISSIONING REGION"]
["8DM83","SWARTHDALE NH","Y62","NORTH WEST COMMISSIONING REGION"]
["8HD53","SWIFT JACKIE (THERAPIST & MENTAL HEALTH NURSE)","Y63","NORTH EAST AND YORKSHIRE COMMISSIONING REGION"]
["8CE66","SYCAMORE COURT","Y59","SOUTH EAST COMMISSIONING REGION"]
["8K119","SYNER-MED PP LIMITED","Y56","LONDON COMMISSIONING REGION"]
["8J027","TACTICS HEALTH CARE LTD","Y59","SOUTH EAST COMMISSIONING REGION"]
["8HG02","TALK PSYCHOLOGICAL SERVICES LTD","Y59","SOUTH EAST COMMISSIONING REGION"]
["8FP98","TANG ALAN (HYPNOTHERAPIST)","Y56","LONDON COMMISSIONING REGION"]
["8A133","TAPTON COURT NH","Y63","NORTH EAST AND YORKSHIRE COMMISSIONING REGION"]
["8CR50","TATCHBURY MANOR","Y59","SOUTH EAST COMMISSIONING REGION"]
["8F607","TAYLOR KAREN (HYPNOTHERAPIST)","Y63","NORTH EAST AND YORKSHIRE COMMISSIONING REGION"]
["8HP44","TCR NOTTINGHAM","Y60","MIDLANDS COMMISSIONING REGION"]
["8HP58","TEAM PREVENT UK LTD","Y60","MIDLANDS COMMISSIONING REGION"]
["8GT56","TEECE LINDSEY (HYPNOTHERAPIST)","Y60","MIDLANDS COMMISSIONING REGION"]
["8HM55","TELEHEALTH SOLUTIONS LIMITED","Y56","LONDON COMMISSIONING REGION"]
["8AP39","TEN GABLES NH","Y63","NORTH EAST AND YORKSHIRE COMMISSIONING REGION"]
["8K413","TESCO STORES LIMITED","Y61","EAST OF ENGLAND COMMISSIONING REGION"]
["8J241","THAMES VALLEY HYPNOTHERAPY CLINIC","Y59","SOUTH EAST COMMISSIONING REGION"]
["8EG12","THANKEY BHAVNA","Y61","EAST OF ENGLAND COMMISSIONING REGION"]
["8G734","THE ALLUM PRACTICE","Y56","LONDON COMMISSIONING REGION"]
["8F585","THE BACK CLINIC LTD","Y56","LONDON COMMISSIONING REGION"]
["8J844","THE BEREAVEMENT COUNSELLING SERVICE (SOUTH WEST)","Y58","SOUTH WEST COMMISSIONING REGION"]
["8C669","THE BOYNES NH","Y60","MIDLANDS COMMISSIONING REGION"]
["8JR21","THE BRAIN TUMOUR CHARITY","Y59","SOUTH EAST COMMISSIONING REGION"]
["8AF37","THE BURGHWOOD CLINIC","Y59","SOUTH EAST COMMISSIONING REGION"]
["8E802","THE CARLTON MEDICAL PRACTICE","Y63","NORTH EAST AND YORKSHIRE COMMISSIONING REGION"]
["8AP59","THE CHESTNUTS NH (GRIMSBY)","Y63","NORTH EAST AND YORKSHIRE COMMISSIONING REGION"]
["8AK50","THE CLOISTERS (PHYSIOTHERAPY SERVICES)","Y60","MIDLANDS COMMISSIONING REGION"]
["8JD53","THE CONSERVATION VOLUNTEERS","Y63","NORTH EAST AND YORKSHIRE COMMISSIONING REGION"]
["8DK92","THE COPPICE NH","Y62","NORTH WEST COMMISSIONING REGION"]
["8DG42","THE COURT NH","Y62","NORTH WEST COMMISSIONING REGION"]
["8FK13","THE DOMUS (LEWISHAM)","Y56","LONDON COMMISSIONING REGION"]
["8G373","THE DOWNS CHRISTIAN NH","Y59","SOUTH EAST COMMISSIONING REGION"]
["8C818","THE EDGBASTON BEAUMONT","Y60","MIDLANDS COMMISSIONING REGION"]
["8C337","THE ELMS (COLEFORD)","Y58","SOUTH WEST COMMISSIONING REGION"]
["8JE07","THE FAMILY FUND TRUST FOR FAMILIES WITH SEVERELY DISABLED CHILDREN","Y63","NORTH EAST AND YORKSHIRE COMMISSIONING REGION"]
["8A613","THE FRITHWOOD NH","Y56","LONDON COMMISSIONING REGION"]
["8AT05","THE GABLES NH (KEIGHLEY)","Y63","NORTH EAST AND YORKSHIRE COMMISSIONING REGION"]
["8CQ59","THE GRANGE","Y59","SOUTH EAST COMMISSIONING REGION"]
["8AG79","THE GROSVENOR PHYSIOTHERAPY LTD","Y59","SOUTH EAST COMMISSIONING REGION"]
["8A506","THE GROVE CHESHIRE HOME","Y61","EAST OF ENGLAND COMMISSIONING REGION"]
["8AV01","THE HAVEN NH (BRIGHOUSE)","Y63","NORTH EAST AND YORKSHIRE COMMISSIONING REGION"]
["8CG25","THE HEART OF KENT HOSPICE","Y59","SOUTH EAST COMMISSIONING REGION"]
["8E961","THE HUNGERFORD MEDICAL CENTRE CREWE","Y62","NORTH WEST COMMISSIONING REGION"]
["8J797","THE ITAD WORKS","Y59","SOUTH EAST COMMISSIONING REGION"]
["8DF36","THE KNOWLES NH","Y62","NORTH WEST COMMISSIONING REGION"]
["8C617","THE LADY FORESTER COMMUNITY NH","Y60","MIDLANDS COMMISSIONING REGION"]
["8CT90","THE LAURELS PRIVATE NH","Y58","SOUTH WEST COMMISSIONING REGION"]
["8F422","THE LINCOLN PSYCHOTHERAPY PRACTICE","Y60","MIDLANDS COMMISSIONING REGION"]
["8DE07","THE LOURDES NH","Y62","NORTH WEST COMMISSIONING REGION"]
["8K055","THE MARKET PLACE (LEEDS)","Y63","NORTH EAST AND YORKSHIRE COMMISSIONING REGION"]
["8GA36","THE MIND THERAPY PRACTICE","Y62","NORTH WEST COMMISSIONING REGION"]
["8AR37","THE MOUNT NH (BRADFORD)","Y63","NORTH EAST AND YORKSHIRE COMMISSIONING REGION"]
["8EE53","THE NEWCASTLE CLINIC","Y63","NORTH EAST AND YORKSHIRE COMMISSIONING REGION"]
["8CG87","THE OAKS","Y56","LONDON COMMISSIONING REGION"]
["8A395","THE OLD RECTORY NH (IPSWICH)","Y61","EAST OF ENGLAND COMMISSIONING REGION"]
["8AV92","THE OLD VICARAGE NH (PONTEFRACT)","Y63","NORTH EAST AND YORKSHIRE COMMISSIONING REGION"]
["8HK38","THE OPEN LEARNING PARTNERSHIP","Y56","LONDON COMMISSIONING REGION"]
["8C650","THE PENN CARE COMPLEX","Y60","MIDLANDS COMMISSIONING REGION"]
["8CG72","THE PINES","Y59","SOUTH EAST COMMISSIONING REGION"]
["8JG70","THE QUALITY MOVING GROUP LTD","Y62","NORTH WEST COMMISSIONING REGION"]
["8E917","THE RESOURCE CENTRE","Y60","MIDLANDS COMMISSIONING REGION"]
["8AX98","THE ROWANS (COALVILLE)","Y60","MIDLANDS COMMISSIONING REGION"]
["8E367","THE ROYAL SCHOOL FOR DEAF CHILDREN","Y59","SOUTH EAST COMMISSIONING REGION"]
["8G096","THE SHAKESPEARE HOSPICE","Y60","MIDLANDS COMMISSIONING REGION"]
["8J996","THE ST JOHN AND RED CROSS DEFENCE MEDICAL WELFARE SERVICE","Y59","SOUTH EAST COMMISSIONING REGION"]
["8G543","THE THERAPY CENTRE (BRIDLINGTON)","Y63","NORTH EAST AND YORKSHIRE COMMISSIONING REGION"]
["8FL67","THE VINEYARD COUNSELLING CONSULTANCY","Y61","EAST OF ENGLAND COMMISSIONING REGION"]
["8DP96","THE WHITE HOUSE CLINIC","Y63","NORTH EAST AND YORKSHIRE COMMISSIONING REGION"]
["8CT61","THE WHITE LODGE","Y58","SOUTH WEST COMMISSIONING REGION"]
["8D636","THE WINDMILL PRACTICE","Y60","MIDLANDS COMMISSIONING REGION"]
["8JH64","THERAPY BOX LTD","Y56","LONDON COMMISSIONING REGION"]
["8D511","THOMAS ANN DR (PSYCHOLOGIST)","Y56","LONDON COMMISSIONING REGION"]
["8FH45","THOMAS NIGEL","Y56","LONDON COMMISSIONING REGION"]
["8FF82","THOMSON ISOBEL EILEEN (COUNSELLOR)","Y63","NORTH EAST AND YORKSHIRE COMMISSIONING REGION"]
["8DA97","THORNTON MANOR NH","Y62","NORTH WEST COMMISSIONING REGION"]
["8AR16","THRESHFIELD COURT NH","Y63","NORTH EAST AND YORKSHIRE COMMISSIONING REGION"]
["8JF65","TIC+ (TEENS IN CRISIS)","Y58","SOUTH WEST COMMISSIONING REGION"]
["8HF69","TIMBERLAKE JANICE (HYPNOTHERAPIST)","Y56","LONDON COMMISSIONING REGION"]
["8D544","TIPTON R (GYNAECOLOGIST)","Y61","EAST OF ENGLAND COMMISSIONING REGION"]
["8FN07","TOBY CHURCHILL LTD","Y61","EAST OF ENGLAND COMMISSIONING REGION"]
["8HQ68","TOPCON GB LTD","Y59","SOUTH EAST COMMISSIONING REGION"]
["8JX54","TOTAL GROUP INTERNATIONAL","Y61","EAST OF ENGLAND COMMISSIONING REGION"]
["8DA26","TOWNTHORNS NURSING & RESIDENTIAL CENTRE","Y60","MIDLANDS COMMISSIONING REGION"]
["8J865","TRADE SEXUAL HEALTH","Y60","MIDLANDS COMMISSIONING REGION"]
["8AN76","TRANSFORM PARTNERSHIP (COSMETIC SURGERY) LTD","Y63","NORTH EAST AND YORKSHIRE COMMISSIONING REGION"]
["8A902","TREES NH","Y56","LONDON COMMISSIONING REGION"]
["8K137","TREND MICRO","Y56","LONDON COMMISSIONING REGION"]
["8HT17","TRIANGULAR CARE SERVICES LIMITED","Y60","MIDLANDS COMMISSIONING REGION"]
["8DW50","TRIVEDI H V (DR)","Y60","MIDLANDS COMMISSIONING REGION"]
["8GA03","TROHEAR PATRICIA (HYPNOTHERAPIST)","Y56","LONDON COMMISSIONING REGION"]
["8GY46","TSSI SYSTEMS LTD","Y58","SOUTH WEST COMMISSIONING REGION"]
["8C607","TUNSTALL HALL NH","Y60","MIDLANDS COMMISSIONING REGION"]
["8AK53","TURNER L","Y60","MIDLANDS COMMISSIONING REGION"]
["8AK69","TWEEDMOUTH HOUSE","Y63","NORTH EAST AND YORKSHIRE COMMISSIONING REGION"]
["8CQ96","TWO BEECHES NH","Y59","SOUTH EAST COMMISSIONING REGION"]
["8WF03","TY HAFAN","WALES","WALES"]
["8CY91","U H T TRUST","Y58","SOUTH WEST COMMISSIONING REGION"]
["8J048","UK SMALL AREA HEALTH STATISTICS UNIT","Y56","LONDON COMMISSIONING REGION"]
["8GD71","ULTRALASE LASER EYE CLINIC (LONDON W1)","Y56","LONDON COMMISSIONING REGION"]
["8J333","UNIBLUE LTD","Y63","NORTH EAST AND YORKSHIRE COMMISSIONING REGION"]
["8D717","UNITED RESPONSE","Y56","LONDON COMMISSIONING REGION"]
["8JY02","UNIVERSAL AIDS LIMITED","Y62","NORTH WEST COMMISSIONING REGION"]
["8E703","UNIVERSITY OF LIVERPOOL (MRI SCANNING-MARIARC)","Y62","NORTH WEST COMMISSIONING REGION"]
["8C411","UPLANDS NH (GLOUCESTER)","Y58","SOUTH WEST COMMISSIONING REGION"]
["8WE44","USK-HOUSE DAY HOSPICE","WALES","WALES"]
["8HC20","VALENTE MARK ANTHONY (HYPNOTHERAPIST)","Y60","MIDLANDS COMMISSIONING REGION"]
["8J535","VALLEY HOUSE","Y60","MIDLANDS COMMISSIONING REGION"]
["8HK05","VANTAGE TECHNOLOGIES LIMITED","Y63","NORTH EAST AND YORKSHIRE COMMISSIONING REGION"]
["8WH10","VENTILITY SLEEP SOLUTIONS","WALES","WALES"]
["8HJ71","VERTEC SCIENTIFIC LTD","Y59","SOUTH EAST COMMISSIONING REGION"]
["8E016","VICKERY & UTTERIDGE (OPTOMETRISTS)","Y56","LONDON COMMISSIONING REGION"]
["8E979","VICTORIA CARE HOME","Y63","NORTH EAST AND YORKSHIRE COMMISSIONING REGION"]
["8CA81","VICTORIA NH (96 THE DRIVE, HOVE)","Y59","SOUTH EAST COMMISSIONING REGION"]
["8HM39","VIGENCE LIMITED","Y60","MIDLANDS COMMISSIONING REGION"]
["8JF95","VISION INTERPRETING SERVICE","Y63","NORTH EAST AND YORKSHIRE COMMISSIONING REGION"]
["8JG67","VITAL RADIOLOGY SERVICES LIMITED","Y61","EAST OF ENGLAND COMMISSIONING REGION"]
["8HT75","VOICE TEHNOLOGIES","Y63","NORTH EAST AND YORKSHIRE COMMISSIONING REGION"]
["8JP18","VOLUNTARY NORFOLK","Y61","EAST OF ENGLAND COMMISSIONING REGION"]
["8DX64","WADGE JEAN (COUNSELLOR)","Y58","SOUTH WEST COMMISSIONING REGION"]
["8EC86","WALDOCK TREVOR","Y59","SOUTH EAST COMMISSIONING REGION"]
["8G169","WALL DELLA W (HYPNOTHERAPIST)","Y60","MIDLANDS COMMISSIONING REGION"]
["8JF90","WALMER & DEAL PHYSIOTHERAPY AND SPORTS INJURY CLINIC","Y59","SOUTH EAST COMMISSIONING REGION"]
["8J617","WALSINGHAM","Y56","LONDON COMMISSIONING REGION"]
["8FJ28","WANG XING ZENA (ACUPUNCTURIST/ CHINESE HERBALIST)","Y63","NORTH EAST AND YORKSHIRE COMMISSIONING REGION"]
["8F462","WARDLAW MICHAEL (PODIATRIST)","Y61","EAST OF ENGLAND COMMISSIONING REGION"]
["8C679","WARWICK COURT NH","Y60","MIDLANDS COMMISSIONING REGION"]
["8JV47","WASTEAWAY SHROPSHIRE LIMITED","Y60","MIDLANDS COMMISSIONING REGION"]
["8DC54","WATERS O'NEILL (OCC THERAPY CONS)","Y60","MIDLANDS COMMISSIONING REGION"]
["8AE05","WATTS JENNY","Y59","SOUTH EAST COMMISSIONING REGION"]
["8DD98","WAVERTREE NH","Y62","NORTH WEST COMMISSIONING REGION"]
["8D497","WEAVER LODGE INDEPENDENT HOSPITAL","Y62","NORTH WEST COMMISSIONING REGION"]
["8D867","WEBSTER CAROL (COUNSELLOR)","Y63","NORTH EAST AND YORKSHIRE COMMISSIONING REGION"]
["8C555","WELLAND HOUSE NH","Y60","MIDLANDS COMMISSIONING REGION"]
["8GT80","WELLBEING CLINIC","Y60","MIDLANDS COMMISSIONING REGION"]
["8A881","WELLINGTON PARK NH","Y56","LONDON COMMISSIONING REGION"]
["8EA31","WENTWORTH CROFT","Y61","EAST OF ENGLAND COMMISSIONING REGION"]
["8F904","WEST BARRY (HYPNOTHERAPIST)","Y63","NORTH EAST AND YORKSHIRE COMMISSIONING REGION"]
["8A070","WEST MELTON LODGE PRIVATE NH","Y63","NORTH EAST AND YORKSHIRE COMMISSIONING REGION"]
["8CG24","WESTBANK N&RH","Y59","SOUTH EAST COMMISSIONING REGION"]
["8A112","WESTBOURNE HOUSE NH (SHEFFIELD)","Y63","NORTH EAST AND YORKSHIRE COMMISSIONING REGION"]
["8A073","WESTFIELD HOUSE","Y63","NORTH EAST AND YORKSHIRE COMMISSIONING REGION"]
["8CM27","WESTHAMPNETT HOUSE","Y59","SOUTH EAST COMMISSIONING REGION"]
["8A324","WESTMINSTER HOUSE NH","Y60","MIDLANDS COMMISSIONING REGION"]
["8G561","WESTWOOD LODGE NH (SHEFFIELD)","Y60","MIDLANDS COMMISSIONING REGION"]
["8CX02","WHEATSHEAF COURT NH","Y60","MIDLANDS COMMISSIONING REGION"]
["8DA99","WHITBY HOUSE NH","Y62","NORTH WEST COMMISSIONING REGION"]
["8EF88","WHITE NIGEL GRAHAM (COUNSELLOR)","Y63","NORTH EAST AND YORKSHIRE COMMISSIONING REGION"]
["8A973","WHITEOAK COURT NH","Y56","LONDON COMMISSIONING REGION"]
["8AL87","WHORLTON HALL MENTAL NH","Y63","NORTH EAST AND YORKSHIRE COMMISSIONING REGION"]
["8J030","WIFI SPARK LTD","Y58","SOUTH WEST COMMISSIONING REGION"]
["8DK20","WIGAN & LEIGH HOSPICE","Y62","NORTH WEST COMMISSIONING REGION"]
["8J227","WIGAN FAMILY WELFARE","Y62","NORTH WEST COMMISSIONING REGION"]
["8HX64","WIGAN LEISURE & CULTURE TRUST","Y62","NORTH WEST COMMISSIONING REGION"]
["8J672","WIGGLY-AMPS LIMITED","Y61","EAST OF ENGLAND COMMISSIONING REGION"]
["8FW80","WIGHAM AVRIL M (HYPNOTHERAPIST)","Y59","SOUTH EAST COMMISSIONING REGION"]
["8D706","WIGHTON JANE (DIETITIAN)","Y59","SOUTH EAST COMMISSIONING REGION"]
["8AX95","WIGSTON NH","Y60","MIDLANDS COMMISSIONING REGION"]
["8D388","WILBEN CHEMISTS (SPRAYMINSTER LTD)","Y60","MIDLANDS COMMISSIONING REGION"]
["8DQ82","WILBURY PHYSIOTHERAPY LTD","Y59","SOUTH EAST COMMISSIONING REGION"]
["8J205","WILD BAMBOO LIMITED","Y59","SOUTH EAST COMMISSIONING REGION"]
["8HH07","WILDE & BETTS (WABA MEDICAL)","Y63","NORTH EAST AND YORKSHIRE COMMISSIONING REGION"]
["8DW78","WILDE G","Y60","MIDLANDS COMMISSIONING REGION"]
["8HH98","WILDEN JACQUELIN (THERAPIST)","Y62","NORTH WEST COMMISSIONING REGION"]
["8C177","WILDERBROOK NH","Y58","SOUTH WEST COMMISSIONING REGION"]
["8HV03","WILKIN CHAPMAN LLP","Y63","NORTH EAST AND YORKSHIRE COMMISSIONING REGION"]
["8D935","WILKINS & THOMSON (SOLICITORS)","Y60","MIDLANDS COMMISSIONING REGION"]
["8F295","WILKINSON A","Y63","NORTH EAST AND YORKSHIRE COMMISSIONING REGION"]
["8F249","WILKINSON CHRIS (HOMOEOPATH)","Y58","SOUTH WEST COMMISSIONING REGION"]
["8DW48","WILKINSON J M (ORTHOPAEDIC SURGEON)","Y60","MIDLANDS COMMISSIONING REGION"]
["8AJ15","WILKINSON JOHN D (DR) (DERMATOLOGIST)","Y59","SOUTH EAST COMMISSIONING REGION"]
["8HG68","WILKINSON LIANNE (HYPNOTHERAPIST)","Y62","NORTH WEST COMMISSIONING REGION"]
["8HD61","WILKINSON PETER (THERAPIST)","Y61","EAST OF ENGLAND COMMISSIONING REGION"]
["8AD55","WILKINSON SUE (COUNSELLOR)","Y59","SOUTH EAST COMMISSIONING REGION"]
["8D023","WILLAMSON & PARTNERS (DR)","Y63","NORTH EAST AND YORKSHIRE COMMISSIONING REGION"]
["8EE10","WILLASTON PHYSIOTHERAPY & SPORTS INJURIES CLINIC","Y62","NORTH WEST COMMISSIONING REGION"]
["8JW81","WILLCOB CARE","Y61","EAST OF ENGLAND COMMISSIONING REGION"]
["8CW30","WILLEN HOSPICE","Y61","EAST OF ENGLAND COMMISSIONING REGION"]
["8GF04","WILLERT LYNN (HYPNOTHERAPIST)","Y61","EAST OF ENGLAND COMMISSIONING REGION"]
["8A997","WILLETT HOUSE","Y56","LONDON COMMISSIONING REGION"]
["8AA82","WILLETTS STEPHEN R","Y63","NORTH EAST AND YORKSHIRE COMMISSIONING REGION"]
["8JH42","WILLIAM MERRITT DISABLED LIVING CENTRE","Y63","NORTH EAST AND YORKSHIRE COMMISSIONING REGION"]
["8EJ70","WILLIAMS D G (DR)","Y59","SOUTH EAST COMMISSIONING REGION"]
["8EE05","WILLIAMS I V (PODISTRIST)","Y61","EAST OF ENGLAND COMMISSIONING REGION"]
["8GE66","WILLIAMS LESLIE (THERAPIST)","Y62","NORTH WEST COMMISSIONING REGION"]
["8WG05","WILLIAMS LINDSAY (HYPNOTHERAPIST)","WALES","WALES"]
["8FC28","WILLIAMS MARGARET J (HYPNOTHERAPIST)","WALES","WALES"]
["8WE64","WILLIAMS MEDICAL SUPPLIES","WALES","WALES"]
["8DP85","WILLIAMS R A (DR) (RHEUMTOLOGYST)","Y60","MIDLANDS COMMISSIONING REGION"]
["8AF59","WILLIAMS ROBERT","Y59","SOUTH EAST COMMISSIONING REGION"]
["8GE98","WILLIAMS SARAH (DR)","Y59","SOUTH EAST COMMISSIONING REGION"]
["8D168","WILLIAMS SYLVIA","Y59","SOUTH EAST COMMISSIONING REGION"]
["8FH74","WILLIAMS TPC (DR) & PARTNERS","Y60","MIDLANDS COMMISSIONING REGION"]
["8EN14","WILLIAMS VALERIE (HYPNOTHERAPIST)","Y62","NORTH WEST COMMISSIONING REGION"]
["8F914","WILLIAMS-CONDOR JOAN M E (THERAPIST)","Y62","NORTH WEST COMMISSIONING REGION"]
["8GG06","WILLIAMSON BEN (HYPNOTHERAPIST)","Y56","LONDON COMMISSIONING REGION"]
["8AD04","WILLIAMSON D M (DR)","Y63","NORTH EAST AND YORKSHIRE COMMISSIONING REGION"]
["8F732","WILLIAMSON DAVID J (DR)","Y59","SOUTH EAST COMMISSIONING REGION"]
["8EE57","WILLIAMSON MALCOLM (ALEXANDER TECHNIQUE)","Y62","NORTH WEST COMMISSIONING REGION"]
["8EW85","WILLIAMSON VIV","Y62","NORTH WEST COMMISSIONING REGION"]
["8WD99","WILLIAMSTON","WALES","WALES"]
["8AE63","WILLIS SALLY (PSYCHOTHERAPIST)","Y56","LONDON COMMISSIONING REGION"]
["8A318","WILLOUGHBY GRANGE NH","Y60","MIDLANDS COMMISSIONING REGION"]
["8AV51","WILLOW BANK NH","Y63","NORTH EAST AND YORKSHIRE COMMISSIONING REGION"]
["8AL40","WILLOW BURN HOSPICE","Y63","NORTH EAST AND YORKSHIRE COMMISSIONING REGION"]
["8K623","WILLOW BURN HOSPICE","Y63","NORTH EAST AND YORKSHIRE COMMISSIONING REGION"]
["8CY69","WILLOW COTTAGE NH","Y58","SOUTH WEST COMMISSIONING REGION"]
["8A270","WILLOW COURT","Y60","MIDLANDS COMMISSIONING REGION"]
["8EA77","WILLOW COURT CARE HOME","Y63","NORTH EAST AND YORKSHIRE COMMISSIONING REGION"]
["8J931","WILLOW HOME CARE & SUPPORT SERVICES LIMITED","Y63","NORTH EAST AND YORKSHIRE COMMISSIONING REGION"]
["8AL72","WILLOW LODGE NH","Y63","NORTH EAST AND YORKSHIRE COMMISSIONING REGION"]
["8CJ77","WILLOW LODGE NH (CHEAM)","Y56","LONDON COMMISSIONING REGION"]
["8EA78","WILLOW LODGE NH (NORTH SHIELDS)","Y63","NORTH EAST AND YORKSHIRE COMMISSIONING REGION"]
["8DA13","WILLOW TREE NH","Y60","MIDLANDS COMMISSIONING REGION"]
["8G095","WILLOW WOOD HOSPICE","Y62","NORTH WEST COMMISSIONING REGION"]
["8DJ14","WILLOWBANK NH","Y62","NORTH WEST COMMISSIONING REGION"]
["8AX79","WILLOWBANKS","Y60","MIDLANDS COMMISSIONING REGION"]
["8K273","WILLOWBROOK (HYNDBURN) LTD","Y62","NORTH WEST COMMISSIONING REGION"]
["8FM13","WILLOWBROOK HOSPICE","Y62","NORTH WEST COMMISSIONING REGION"]
["8A845","WILLOWDALE LODGE","Y61","EAST OF ENGLAND COMMISSIONING REGION"]
["8D435","WILLOWDENE NH","Y63","NORTH EAST AND YORKSHIRE COMMISSIONING REGION"]
["8FW21","WILLOWS CHRISTIAN NH (EMI UNIT)","Y62","NORTH WEST COMMISSIONING REGION"]
["8A145","WILLOWS NH","Y60","MIDLANDS COMMISSIONING REGION"]
["8AX58","WILLOWS NH (MARKET HARBOROUGH)","Y60","MIDLANDS COMMISSIONING REGION"]
["8DE97","WILLOWS NH (SOUTHPORT)","Y62","NORTH WEST COMMISSIONING REGION"]
["8F116","WILLOWTHORPE CARE HOME","Y61","EAST OF ENGLAND COMMISSIONING REGION"]
["8HG01","WILLOX ROBERT (CLINICAL HYPNOTHERAPIST)","Y58","SOUTH WEST COMMISSIONING REGION"]
["8FM33","WILLS ANNE FRANCES (THERAPIST)","Y58","SOUTH WEST COMMISSIONING REGION"]
["8HE86","WILLS JO (THERAPIST)","Y56","LONDON COMMISSIONING REGION"]
["8CY70","WILLSBRIDGE HOUSE NH","Y58","SOUTH WEST COMMISSIONING REGION"]
["8DE14","WILMERE HOUSE NH","Y62","NORTH WEST COMMISSIONING REGION"]
["8CG11","WILMINGTON MANOR NH","Y59","SOUTH EAST COMMISSIONING REGION"]
["8HF44","WILSHAW LYNN (HYPNOTHERAPIST)","Y63","NORTH EAST AND YORKSHIRE COMMISSIONING REGION"]
["8A654","WILSMERE HOUSE","Y56","LONDON COMMISSIONING REGION"]
["8WE71","WILSON ANTHONY","WALES","WALES"]
["8AC35","WILSON KEVIN","Y63","NORTH EAST AND YORKSHIRE COMMISSIONING REGION"]
["8G792","WILSON LAURETTA (HYPNOTHERAPIST)","Y56","LONDON COMMISSIONING REGION"]
["8AH11","WILSON MICHELLE","Y59","SOUTH EAST COMMISSIONING REGION"]
["8G970","WILSON NATASHA (THERAPIST)","Y63","NORTH EAST AND YORKSHIRE COMMISSIONING REGION"]
["8G731","WILSON PATSY (COUNSELLOR)","Y63","NORTH EAST AND YORKSHIRE COMMISSIONING REGION"]
["8GT77","WILSON PAUL (HYNOTHERAPIST)","Y59","SOUTH EAST COMMISSIONING REGION"]
["8EV99","WILSON STREET SURGERY","Y60","MIDLANDS COMMISSIONING REGION"]
["8GQ79","WILSON VINCENT (HYPNOTHERAPIST)","Y63","NORTH EAST AND YORKSHIRE COMMISSIONING REGION"]
["8E121","WILSON-HOLT (CONSULTANT OPHTHALMOLOGIST)","Y58","SOUTH WEST COMMISSIONING REGION"]
["8C521","WILTON HALL N & CONVALESCENT HOME","Y60","MIDLANDS COMMISSIONING REGION"]
["8A562","WILTON HOUSE CARE HOME","Y61","EAST OF ENGLAND COMMISSIONING REGION"]
["8AL91","WILTON HOUSE NH","Y63","NORTH EAST AND YORKSHIRE COMMISSIONING REGION"]
["8FF50","WILTON MANOR NURSING CENTRE","Y59","SOUTH EAST COMMISSIONING REGION"]
["8FV43","WILTON MARGARET R (HYPNOTHERAPIST)","Y63","NORTH EAST AND YORKSHIRE COMMISSIONING REGION"]
["8DT56","WILTON T J","Y60","MIDLANDS COMMISSIONING REGION"]
["8AE52","WIMBLEDON GUILD","Y56","LONDON COMMISSIONING REGION"]
["8AE45","WIMBLEDON PHYSIOTHERAPY & SPORTS INJURY CLINIC","Y56","LONDON COMMISSIONING REGION"]
["8D960","WINCANTON CHIROPRACTIC CLINIC","Y58","SOUTH WEST COMMISSIONING REGION"]
["8JM30","WINCANTON COMMUNITY VENTURE","Y58","SOUTH WEST COMMISSIONING REGION"]
["8HW37","WINCANTON RECORDS MANAGEMENT","Y56","LONDON COMMISSIONING REGION"]
["8CG18","WINCHESTER HOUSE CARE HOME","Y59","SOUTH EAST COMMISSIONING REGION"]
["8C417","WINDERMERE HOUSE NH","Y58","SOUTH WEST COMMISSIONING REGION"]
["8C069","WINDMILL COURT NH","Y58","SOUTH WEST COMMISSIONING REGION"]
["8JK14","WINDMILL HILL CITY FARM","Y58","SOUTH WEST COMMISSIONING REGION"]
["8AN12","WINDMILL HILLS NH","Y63","NORTH EAST AND YORKSHIRE COMMISSIONING REGION"]
["8A574","WINDMILL HOUSE","Y61","EAST OF ENGLAND COMMISSIONING REGION"]
["8A510","WINDMILL NH","Y61","EAST OF ENGLAND COMMISSIONING REGION"]
["8AY36","WINDRUSH NH","Y60","MIDLANDS COMMISSIONING REGION"]
["8EA20","WINDSOR COURT CARE HOME","Y63","NORTH EAST AND YORKSHIRE COMMISSIONING REGION"]
["8FW62","WINDSOR COURT CARE HOME","Y63","NORTH EAST AND YORKSHIRE COMMISSIONING REGION"]
["8DC28","WINDSOR HOUSE (CREWE)","Y62","NORTH WEST COMMISSIONING REGION"]
["8DE52","WINDSOR HOUSE (SOUTHPORT)","Y62","NORTH WEST COMMISSIONING REGION"]
["8AQ97","WINDSOR LODGE NH","Y63","NORTH EAST AND YORKSHIRE COMMISSIONING REGION"]
["8D438","WINDSOR NH (HEBBURN)","Y63","NORTH EAST AND YORKSHIRE COMMISSIONING REGION"]
["8G872","WINDSOR PARK NH","Y60","MIDLANDS COMMISSIONING REGION"]
["8C293","WINDWARD NH","Y58","SOUTH WEST COMMISSIONING REGION"]
["8DG39","WINDYKNOWE NH","Y62","NORTH WEST COMMISSIONING REGION"]
["8CR56","WINDYRIDGE","Y59","SOUTH EAST COMMISSIONING REGION"]
["8C419","WINFIELD HOSPITAL","Y58","SOUTH WEST COMMISSIONING REGION"]
["8CT96","WINGFIELD CARE HOME","Y58","SOUTH WEST COMMISSIONING REGION"]
["8D119","WINGS MEDICAL SERVICES","Y58","SOUTH WEST COMMISSIONING REGION"]
["8HW29","WINNS SECURITY SERVICES","Y61","EAST OF ENGLAND COMMISSIONING REGION"]
["8HR50","WINSCRIBE","Y59","SOUTH EAST COMMISSIONING REGION"]
["8HF57","WINSCRIBE EUROPE LIMITED","Y56","LONDON COMMISSIONING REGION"]
["8FW22","WINSFORD GRANGE MENTAL NH","Y62","NORTH WEST COMMISSIONING REGION"]
["8C420","WINSLOW HOUSE CARE HOME","Y58","SOUTH WEST COMMISSIONING REGION"]
["8E962","WINSLOW OSTEOPATHS","Y62","NORTH WEST COMMISSIONING REGION"]
["8EA08","WINSOR NH","Y58","SOUTH WEST COMMISSIONING REGION"]
["8GJ06","WINSTANLEY DEBBIE (HYPNOTHERAPIST)","Y59","SOUTH EAST COMMISSIONING REGION"]
["8DE98","WINSTON HOUSE","Y62","NORTH WEST COMMISSIONING REGION"]
["8JJ06","WINSTON WOLF USER EXPERIENCE LIMITED","Y56","LONDON COMMISSIONING REGION"]
["8F440","WINSTON'S WISH","Y58","SOUTH WEST COMMISSIONING REGION"]
["8K172","WINSTON'S WISH","Y58","SOUTH WEST COMMISSIONING REGION"]
["8GQ38","WINTER GERALDINE A (HYPNOTHERAPIST)","Y59","SOUTH EAST COMMISSIONING REGION"]
["8FJ45","WINTER KEITH (HYPNOTHERAPIST)","Y63","NORTH EAST AND YORKSHIRE COMMISSIONING REGION"]
["8CX42","WINTERBROOK NH","Y59","SOUTH EAST COMMISSIONING REGION"]
["8JC69","WINTERHEAD LTD","Y58","SOUTH WEST COMMISSIONING REGION"]
["8GP24","WINTERS MICHAEL (HYPNOTHERAPIST)","Y60","MIDLANDS COMMISSIONING REGION"]
["8DN29","WINTERSTEIN MANI (COUNSELLOR)","Y56","LONDON COMMISSIONING REGION"]
["8GT48","WINTERTON FIONA ANN (HYPNOTHERAPIST)","Y59","SOUTH EAST COMMISSIONING REGION"]
["8D450","WINTERTON SIMON (DR)","Y58","SOUTH WEST COMMISSIONING REGION"]
["8A157","WINTHORPE HALL NH","Y60","MIDLANDS COMMISSIONING REGION"]
["8F217","WINTON BARBARA (HOMOEOPATH)","Y60","MIDLANDS COMMISSIONING REGION"]
["8CR86","WINTON NH","Y59","SOUTH EAST COMMISSIONING REGION"]
["8A905","WINWOOD LODGE","Y56","LONDON COMMISSIONING REGION"]
["8JA43","WIREFAST LTD","Y56","LONDON COMMISSIONING REGION"]
["8E687","WIRRAL KNEE CENTRE","Y62","NORTH WEST COMMISSIONING REGION"]
["8G442","WIRRAL SPORTS MEDICINE/ PHYSIO CLINIC","Y62","NORTH WEST COMMISSIONING REGION"]
["8FG12","WISE ALAN (PSYCHOLOGIST)","Y61","EAST OF ENGLAND COMMISSIONING REGION"]
["8EH33","WISE LIZ (COUNSELLOR)","Y59","SOUTH EAST COMMISSIONING REGION"]
["8C218","WISE M H","Y59","SOUTH EAST COMMISSIONING REGION"]
["8FV60","WISEMAN ROSEMARY (THERAPIST)","Y56","LONDON COMMISSIONING REGION"]
["8K724","WISETEK","Y59","SOUTH EAST COMMISSIONING REGION"]
["8CC56","WISH PARK SURGERY","Y59","SOUTH EAST COMMISSIONING REGION"]
["8HC10","WITHERSPOON ANTHONY (HYPNOTHERAPIST)","Y60","MIDLANDS COMMISSIONING REGION"]
["8CA20","WITHIN REACH NH","Y56","LONDON COMMISSIONING REGION"]
["8DL84","WITHINGTON NH","Y62","NORTH WEST COMMISSIONING REGION"]
["8DJ78","WITHY GROVE HOUSE RESIDENTIAL HOME","Y62","NORTH WEST COMMISSIONING REGION"]
["8A407","WITNESHAM","Y61","EAST OF ENGLAND COMMISSIONING REGION"]
["8EC59","WITTER VERONICA (HYPNOTHERAPIST)","Y61","EAST OF ENGLAND COMMISSIONING REGION"]
["8JH85","WITTON LODGE COMMUNITY ASSOCIATION","Y60","MIDLANDS COMMISSIONING REGION"]
["8JK77","WJP SOFTWARE LIMITED","Y63","NORTH EAST AND YORKSHIRE COMMISSIONING REGION"]
["8DD46","WOBURN LODGE NH","Y62","NORTH WEST COMMISSIONING REGION"]
["8K520","WOCKHARDT UK LIMITED","WALES","WALES"]
["8WE79","WOGAN LYNNETTE (HYPNOTHERAPIST)","WALES","WALES"]
["8WE80","WOGAN ROSEMARY G (HYPNOTHERAPIST)","WALES","WALES"]
["8D355","WOHL MIRIAM A (PHYSIOTHERAPIST)","Y60","MIDLANDS COMMISSIONING REGION"]
["8JV65","WOKING COMMUNITY TRANSPORT","Y59","SOUTH EAST COMMISSIONING REGION"]
["8J116","WOKING HOSPICE","Y59","SOUTH EAST COMMISSIONING REGION"]
["8J115","WOKING HOSPICE","Y59","SOUTH EAST COMMISSIONING REGION"]
["8D980","WOLFE DEREK A (NATUROPATH)","Y58","SOUTH WEST COMMISSIONING REGION"]
["8G929","WOLFE GILLIAN (COUNSELLOR)","Y63","NORTH EAST AND YORKSHIRE COMMISSIONING REGION"]
["8EM39","WOLFE STEPHANIE","Y61","EAST OF ENGLAND COMMISSIONING REGION"]
["8F779","WOLFSON INSTITUTE OF PREVENTIVE MEDICINE","Y56","LONDON COMMISSIONING REGION"]
["8JX78","WOLSELEY TRUST","Y58","SOUTH WEST COMMISSIONING REGION"]
["8GJ08","WOLSTENHOLME MARGARET JEAN (HYPNOTHERAPIST)","Y63","NORTH EAST AND YORKSHIRE COMMISSIONING REGION"]
["8HJ59","WOLTERS KLUWER HEALTH (MEDICAL RESEARCH) LTD","Y56","LONDON COMMISSIONING REGION"]
["8D164","WOLVERHAMPTON MS THERAPY CENTRE","Y60","MIDLANDS COMMISSIONING REGION"]
["8D946","WOLVERHAMPTON ROAD SURGERY","Y60","MIDLANDS COMMISSIONING REGION"]
["8JP72","WOLVERHAMPTON VOLUNTARY SECTOR COUNCIL","Y60","MIDLANDS COMMISSIONING REGION"]
["8K366","WOLVERSON X RAY LTD","Y60","MIDLANDS COMMISSIONING REGION"]
["8JV54","WOMANKIND","Y58","SOUTH WEST COMMISSIONING REGION"]
["8CG10","WOMBWELL HALL NH","Y59","SOUTH EAST COMMISSIONING REGION"]
["8JV42","WOMEN'S ASSOCIATION FOR NETWORKING AND DEVELOPMENTS","Y56","LONDON COMMISSIONING REGION"]
["8JT82","WOMEN'S HEALTH & FAMILY SERVICES","Y56","LONDON COMMISSIONING REGION"]
["8FA35","WOMENS SECURE SERVICES","Y60","MIDLANDS COMMISSIONING REGION"]
["8HF72","WONG FRED (CLINICAL HYPNOTHERAPIST)","Y63","NORTH EAST AND YORKSHIRE COMMISSIONING REGION"]
["8ED77","WOOD (DR) (COUNSELLOR)","Y58","SOUTH WEST COMMISSIONING REGION"]
["8DT15","WOOD A","Y60","MIDLANDS COMMISSIONING REGION"]
["8C732","WOOD GREEN NH","Y60","MIDLANDS COMMISSIONING REGION"]
["8ER92","WOOD I R (DR) (PSYCHIATRIST)","Y60","MIDLANDS COMMISSIONING REGION"]
["8FX27","WOOD MICHAEL R D (DR) & PARTNERS","Y63","NORTH EAST AND YORKSHIRE COMMISSIONING REGION"]
["8E690","WOOD N","Y62","NORTH WEST COMMISSIONING REGION"]
["8AY66","WOODBOROUGH HALL","Y60","MIDLANDS COMMISSIONING REGION"]
["8D877","WOODBRIDGE PRACTICE","Y63","NORTH EAST AND YORKSHIRE COMMISSIONING REGION"]
["8CV93","WOODBURY HOUSE","Y59","SOUTH EAST COMMISSIONING REGION"]
["8HF83","WOODCOCK ROB (CLINICAL HYPNOTHERAPIST)","Y60","MIDLANDS COMMISSIONING REGION"]
["8C583","WOODCOTE HALL RETIREMENT & NH","Y60","MIDLANDS COMMISSIONING REGION"]
["8C773","WOODCROSS HOUSE NH","Y60","MIDLANDS COMMISSIONING REGION"]
["8C756","WOODCROSS NH","Y60","MIDLANDS COMMISSIONING REGION"]
["8DM61","WOODEND NH","Y62","NORTH WEST COMMISSIONING REGION"]
["8AT36","WOODFIELD GRANGE NH","Y63","NORTH EAST AND YORKSHIRE COMMISSIONING REGION"]
["8CY72","WOODFIELD HOUSE CARE CENTRE","Y58","SOUTH WEST COMMISSIONING REGION"]
["8WA71","WOODFOLD","WALES","WALES"]
["8C912","WOODFORD HOUSE NH","Y60","MIDLANDS COMMISSIONING REGION"]
["8JF84","WOODFORD ROAD GARAGE LTD","Y62","NORTH WEST COMMISSIONING REGION"]
["8AW91","WOODHALL PARK NH","Y60","MIDLANDS COMMISSIONING REGION"]
["8C178","WOODHAYES NH","Y58","SOUTH WEST COMMISSIONING REGION"]
["8EF18","WOODHEAD CHRISTOPHER J (ENT CONSULTANT/ SURGERY)","Y63","NORTH EAST AND YORKSHIRE COMMISSIONING REGION"]
["8DG13","WOODHEATH NH","Y62","NORTH WEST COMMISSIONING REGION"]
["8C294","WOODLAND COURT NH","Y58","SOUTH WEST COMMISSIONING REGION"]
["8A663","WOODLAND HILL NH","Y56","LONDON COMMISSIONING REGION"]
["8C421","WOODLAND HOUSE NH (GLOUCESTER)","Y58","SOUTH WEST COMMISSIONING REGION"]
["8C226","WOODLAND HOUSE NH (TORQUAY)","Y58","SOUTH WEST COMMISSIONING REGION"]
["8A486","WOODLAND NH","Y61","EAST OF ENGLAND COMMISSIONING REGION"]
["8C295","WOODLAND PARK NH","Y58","SOUTH WEST COMMISSIONING REGION"]
["8A118","WOODLAND VIEW NH","Y60","MIDLANDS COMMISSIONING REGION"]
["8C296","WOODLAND VILLA","Y58","SOUTH WEST COMMISSIONING REGION"]
["8CF78","WOODLANDS CARE HOME","Y59","SOUTH EAST COMMISSIONING REGION"]
["8A289","WOODLANDS COURT CARE HOME","Y60","MIDLANDS COMMISSIONING REGION"]
["8AV14","WOODLANDS HALL NH","Y63","NORTH EAST AND YORKSHIRE COMMISSIONING REGION"]
["8E339","WOODLANDS HOSPICE CHARITABLE TRUST","Y62","NORTH WEST COMMISSIONING REGION"]
["8C009","WOODLANDS MANOR","Y58","SOUTH WEST COMMISSIONING REGION"]
["8CR24","WOODLANDS MENTAL NH","Y59","SOUTH EAST COMMISSIONING REGION"]
["8CJ47","WOODLANDS NH","Y56","LONDON COMMISSIONING REGION"]
["8CM97","WOODLANDS NH","Y59","SOUTH EAST COMMISSIONING REGION"]
["8AW17","WOODLANDS NH","Y60","MIDLANDS COMMISSIONING REGION"]
["8A248","WOODLANDS NH","Y60","MIDLANDS COMMISSIONING REGION"]
["8DL22","WOODLANDS NH","Y62","NORTH WEST COMMISSIONING REGION"]
["8AQ54","WOODLANDS NH","Y63","NORTH EAST AND YORKSHIRE COMMISSIONING REGION"]
["8AT85","WOODLANDS NH","Y63","NORTH EAST AND YORKSHIRE COMMISSIONING REGION"]
["8AQ40","WOODLANDS RESPITE CARE CENTRE","Y63","NORTH EAST AND YORKSHIRE COMMISSIONING REGION"]
["8CR57","WOODLANDS RIDGE","Y59","SOUTH EAST COMMISSIONING REGION"]
["8A904","WOODLANDS TOTAL CARE N H","Y56","LONDON COMMISSIONING REGION"]
["8FK60","WOODLANDS VASECTOMY CLINIC","Y59","SOUTH EAST COMMISSIONING REGION"]
["8A645","WOODLANDS VIEW NH","Y61","EAST OF ENGLAND COMMISSIONING REGION"]
["8CY88","WOODLEA","Y58","SOUTH WEST COMMISSIONING REGION"]
["8AF08","WOODLEA HOUSE SURGERY","Y58","SOUTH WEST COMMISSIONING REGION"]
["8A156","WOODLEIGH CHRISTIAN CARE HOME","Y60","MIDLANDS COMMISSIONING REGION"]
["8CY20","WOODLEIGH MANOR CARE HOME","Y58","SOUTH WEST COMMISSIONING REGION"]
["8CJ54","WOODLEIGH NH (CROYDON)","Y56","LONDON COMMISSIONING REGION"]
["8GC24","WOODLEY HALL","Y63","NORTH EAST AND YORKSHIRE COMMISSIONING REGION"]
["8D718","WOODLEY HOUSE","Y60","MIDLANDS COMMISSIONING REGION"]
["8CE37","WOODMANCOTE NH","Y59","SOUTH EAST COMMISSIONING REGION"]
["8EP94","WOODMAN-SMITH GILLIAN (PSYCHOTHERAPIST)","Y58","SOUTH WEST COMMISSIONING REGION"]
["8CR69","WOODPECKERS","Y59","SOUTH EAST COMMISSIONING REGION"]
["8GG92","WOODROW ELIZABETH (HYPNOTHERAPIST)","Y60","MIDLANDS COMMISSIONING REGION"]
["8GH95","WOODS DAVID PATRICK (THERAPIST)","Y61","EAST OF ENGLAND COMMISSIONING REGION"]
["8F425","WOODS JOHN (PSYCHOTHERAPIST)","Y56","LONDON COMMISSIONING REGION"]
["8D268","WOODSIDE CLINIC","Y61","EAST OF ENGLAND COMMISSIONING REGION"]
["8CD85","WOODSIDE HALL NH","Y59","SOUTH EAST COMMISSIONING REGION"]
["8CV25","WOODSIDE NH (RYDE)","Y59","SOUTH EAST COMMISSIONING REGION"]
["8A306","WOODSIDE NH (SKEGNESS)","Y60","MIDLANDS COMMISSIONING REGION"]
["8C422","WOODSTOCK NH","Y58","SOUTH WEST COMMISSIONING REGION"]
["8AY37","WOODTHORPE MANOR NH","Y60","MIDLANDS COMMISSIONING REGION"]
["8FK03","WOODTOWN HOUSE","Y58","SOUTH WEST COMMISSIONING REGION"]
["8C706","WOODVIEW HOUSE NH","Y60","MIDLANDS COMMISSIONING REGION"]
["8A273","WOODVIEW NH","Y60","MIDLANDS COMMISSIONING REGION"]
["8AX29","WOODVILLE RESIDENTIAL CARE HOME","Y60","MIDLANDS COMMISSIONING REGION"]
["8HV89","WOODWARD ASSOCIATES (UK) LTD","Y59","SOUTH EAST COMMISSIONING REGION"]
["8EH48","WOODWARD-COURT R I (DR)","Y59","SOUTH EAST COMMISSIONING REGION"]
["8C489","WOOKEY HOLE NH","Y58","SOUTH WEST COMMISSIONING REGION"]
["8GC39","WOOLFREY TRICIA (HYPNOTHERAPIST)","Y59","SOUTH EAST COMMISSIONING REGION"]
["8FQ29","WOOLLEY BIRGIT (DR)","Y59","SOUTH EAST COMMISSIONING REGION"]
["8GM24","WOOLLEY DAVID (HYPNOTHERAPIST)","Y60","MIDLANDS COMMISSIONING REGION"]
["8E113","WOOLLISCROFT JEAN L (PHYSIOTHERAPIST)","Y60","MIDLANDS COMMISSIONING REGION"]
["8DF38","WOOLSTON MEAD NH","Y62","NORTH WEST COMMISSIONING REGION"]
["8DD49","WOOLTON GRANGE NH","Y62","NORTH WEST COMMISSIONING REGION"]
["8G334","WOOLTON MANOR NH","Y62","NORTH WEST COMMISSIONING REGION"]
["8F672","WOOLVEN GILLIAN H (AROMATHERAPIST)","Y60","MIDLANDS COMMISSIONING REGION"]
["8G775","WOOTTON BARBARA (HYPNOTHERAPIST)","Y56","LONDON COMMISSIONING REGION"]
["8JC05","WORCESTER THERAPY GROUP","Y60","MIDLANDS COMMISSIONING REGION"]
["8JC56","WORCESTERSHIRE ASSOCIATION FOR THE BLIND","Y60","MIDLANDS COMMISSIONING REGION"]
["8D383","WORDEN MEDICAL CENTRE","Y62","NORTH WEST COMMISSIONING REGION"]
["8J835","WORDS WORTH READING LTD","Y61","EAST OF ENGLAND COMMISSIONING REGION"]
["8AN73","WORDSWORTH HOUSE NH (NEWCASTLE UPON TYNE)","Y63","NORTH EAST AND YORKSHIRE COMMISSIONING REGION"]
["8CP74","WORDSWORTH HOUSE NH (SWANAGE)","Y58","SOUTH WEST COMMISSIONING REGION"]
["8JH65","WORKSMART TECHNOLOGY LIMITED","Y56","LONDON COMMISSIONING REGION"]
["8JX15","WORKWISE HEALTHCARE LTD","Y60","MIDLANDS COMMISSIONING REGION"]
["8GX49","WORLD CLASS INTERNATIONAL LIMITED","Y59","SOUTH EAST COMMISSIONING REGION"]
["8K038","WORRALL-DAVIES MENTAL HEALTH CONSULTANCY","Y63","NORTH EAST AND YORKSHIRE COMMISSIONING REGION"]
["8E402","WORROW JIM (COUNSELLOR)","Y63","NORTH EAST AND YORKSHIRE COMMISSIONING REGION"]
["8DM03","WORSLEY LODGE","Y62","NORTH WEST COMMISSIONING REGION"]
["8G441","WORTHINGTON MICHAEL (HYPNOTHERAPIST)","Y61","EAST OF ENGLAND COMMISSIONING REGION"]
["8C424","WOTTON NH","Y58","SOUTH WEST COMMISSIONING REGION"]
["8C425","WOTTON RISE NH LTD","Y58","SOUTH WEST COMMISSIONING REGION"]
["8FF69","WOZNIAK HELEN (HYPNOTHERAPIST)","Y56","LONDON COMMISSIONING REGION"]
["8JH92","WPA PINFOLD","Y63","NORTH EAST AND YORKSHIRE COMMISSIONING REGION"]
["8K733","WPH COUNSELLING AND EDUCATION SERVICE","Y60","MIDLANDS COMMISSIONING REGION"]
["8CL46","WRAY COMMON NH","Y59","SOUTH EAST COMMISSIONING REGION"]
["8C626","WREKIN NH","Y60","MIDLANDS COMMISSIONING REGION"]
["8A165","WREN HALL NH","Y60","MIDLANDS COMMISSIONING REGION"]
["8A529","WREN PARK NH","Y61","EAST OF ENGLAND COMMISSIONING REGION"]
["8DC14","WRENBURY HOUSE NH","Y62","NORTH WEST COMMISSIONING REGION"]
["8HA70","WRIGHT NICHOLAS (HYPNOTHERAPIST)","Y60","MIDLANDS COMMISSIONING REGION"]
["8GA40","WRIGHT-BAILEY JEANNETTE (PSYCHOTHERAPIST)","Y56","LONDON COMMISSIONING REGION"]
["8JA19","WRITTEN MEDICINE","Y56","LONDON COMMISSIONING REGION"]
["8K266","WROSE VILLAGE CARS LIMITED","Y63","NORTH EAST AND YORKSHIRE COMMISSIONING REGION"]
["8C786","WROTTESLEY PARK HOUSE NH","Y60","MIDLANDS COMMISSIONING REGION"]
["8K097","WS MEDICAL LTD","Y63","NORTH EAST AND YORKSHIRE COMMISSIONING REGION"]
["8JH72","WSI POLARIS DIGITAL MARKETING","Y63","NORTH EAST AND YORKSHIRE COMMISSIONING REGION"]
["8JH32","WTG TECHNOLOGIES LTD","Y56","LONDON COMMISSIONING REGION"]
["8G949","WUERZ AXEL (DR)","Y56","LONDON COMMISSIONING REGION"]
["8EK79","WUNNA RAYMOND (DR)","Y63","NORTH EAST AND YORKSHIRE COMMISSIONING REGION"]
["8C426","WYATT HOUSE NH","Y58","SOUTH WEST COMMISSIONING REGION"]
["8F813","WYATT KATHERINE (COUNSELLOR)","Y63","NORTH EAST AND YORKSHIRE COMMISSIONING REGION"]
["8AG52","WYATT LEE","Y58","SOUTH WEST COMMISSIONING REGION"]
["8E693","WYCH CHRIS (PHYSIOTHERAPIST)","Y62","NORTH WEST COMMISSIONING REGION"]
["8JG42","WYCH SIGN LTD","Y63","NORTH EAST AND YORKSHIRE COMMISSIONING REGION"]
["8DY08","WYKES SARAH (PHYSIOTHERAPIST)","Y59","SOUTH EAST COMMISSIONING REGION"]
["8JJ65","WYLDWOODS CIC","Y60","MIDLANDS COMMISSIONING REGION"]
["8E189","WYLIE S (PHYSIOTHERAPIST)","Y63","NORTH EAST AND YORKSHIRE COMMISSIONING REGION"]
["8AX86","WYMESWOLD COURT NH","Y60","MIDLANDS COMMISSIONING REGION"]
["8A631","WYMONDLEY NH","Y61","EAST OF ENGLAND COMMISSIONING REGION"]
["8DM50","WYNCOURT NH","Y62","NORTH WEST COMMISSIONING REGION"]
["8C699","WYNCROFT HOUSE","Y60","MIDLANDS COMMISSIONING REGION"]
["8DA45","WYNDLEY GRANGE NH","Y60","MIDLANDS COMMISSIONING REGION"]
["8FW53","WYNDTHORPE GARDENS MENTAL NH","Y63","NORTH EAST AND YORKSHIRE COMMISSIONING REGION"]
["8EW19","WYNN JOHN","Y62","NORTH WEST COMMISSIONING REGION"]
["8GH32","WYNNE-JONES CHRISTOPHER (HYPNOTHERAPIST)","Y62","NORTH WEST COMMISSIONING REGION"]
["8HR34","WYNNLODGE LIMITED","Y63","NORTH EAST AND YORKSHIRE COMMISSIONING REGION"]
["8HQ19","WYTECH LTD","Y60","MIDLANDS COMMISSIONING REGION"]
["8AP09","WYTON ABBEY NH","Y63","NORTH EAST AND YORKSHIRE COMMISSIONING REGION"]
["8GH39","WYTON BARRY (HYPNOTHERAPIST)","Y60","MIDLANDS COMMISSIONING REGION"]
["8CY75","WYVERN LODGE NH","Y58","SOUTH WEST COMMISSIONING REGION"]
["8J014","X9 SERVICES LTD","Y56","LONDON COMMISSIONING REGION"]
["8K501","XANADUTEC LIMITED","Y56","LONDON COMMISSIONING REGION"]
["8JH53","XANTURA LTD","Y56","LONDON COMMISSIONING REGION"]
["8HK15","XCHANGING","Y56","LONDON COMMISSIONING REGION"]
["8HE67","XCHANGING HR SERVICES","Y62","NORTH WEST COMMISSIONING REGION"]
["8HN45","XEROX UK LTD","Y56","LONDON COMMISSIONING REGION"]
["8HW33","X-FILES (GB) LTD","Y59","SOUTH EAST COMMISSIONING REGION"]
["8HV04","X-GENICS LIMITED","Y56","LONDON COMMISSIONING REGION"]
["8HM67","XICON LIMITED","Y62","NORTH WEST COMMISSIONING REGION"]
["8JP15","XIM LTD","Y56","LONDON COMMISSIONING REGION"]
["8K444","XIROMED UK","Y61","EAST OF ENGLAND COMMISSIONING REGION"]
["8HW18","XMA LIMITED","Y60","MIDLANDS COMMISSIONING REGION"]
["8JX45","XMATTERS INC (ALARMPOINT INC)","Y56","LONDON COMMISSIONING REGION"]
["8JK09","XML SOLUTIONS LTD","Y63","NORTH EAST AND YORKSHIRE COMMISSIONING REGION"]
["8HA77","XOGRAPH HEALTHCARE","Y58","SOUTH WEST COMMISSIONING REGION"]
["8JM42","X-ON","Y61","EAST OF ENGLAND COMMISSIONING REGION"]
["8J513","X-PERT HEALTH TRAINING AND EDUCATION LTD","Y63","NORTH EAST AND YORKSHIRE COMMISSIONING REGION"]
["8HY61","XPO IT SERVICES LTD.","Y60","MIDLANDS COMMISSIONING REGION"]
["8JF83","XSERVUS LTD","Y56","LONDON COMMISSIONING REGION"]
["8JA30","XSTEK LIMITED","Y56","LONDON COMMISSIONING REGION"]
["8JQ82","XTRA HEALTHCARE LIMITED","Y60","MIDLANDS COMMISSIONING REGION"]
["8JN65","XYNOMIX LTD.","Y60","MIDLANDS COMMISSIONING REGION"]
["8WG55","Y BWTHYN NEWYDD","WALES","WALES"]
["8JV90","Y.G NOOBAA LTD","Y59","SOUTH EAST COMMISSIONING REGION"]
["8GT14","YAFAI GERALDINE (HYPNOTHERAPIST)","Y60","MIDLANDS COMMISSIONING REGION"]
["8HH29","YAFFIE MERVYN (HYPNOTHERAPY)","Y61","EAST OF ENGLAND COMMISSIONING REGION"]
["8E023","YAGNIK R D (DR)","Y63","NORTH EAST AND YORKSHIRE COMMISSIONING REGION"]
["8AN43","YANWATH NH","Y63","NORTH EAST AND YORKSHIRE COMMISSIONING REGION"]
["8DA60","YARDLEY GRANGE NH","Y60","MIDLANDS COMMISSIONING REGION"]
["8GC33","YARLS WOOD IMMIGRATION DETENTION CENTRE","Y61","EAST OF ENGLAND COMMISSIONING REGION"]
["8WG02","YATES ADRIAN (HYPNOTHERAPIST)","WALES","WALES"]
["8EA01","YATTON HALL NH","Y58","SOUTH WEST COMMISSIONING REGION"]
["8HT73","YCHI","Y63","NORTH EAST AND YORKSHIRE COMMISSIONING REGION"]
["8JV96","YCT","Y61","EAST OF ENGLAND COMMISSIONING REGION"]
["8JA57","YECCO LIMITED","Y56","LONDON COMMISSIONING REGION"]
["8C298","YELVERTON N & RH","Y58","SOUTH WEST COMMISSIONING REGION"]
["8F171","YEOVIL HAEMODIALYSIS CENTRE","Y58","SOUTH WEST COMMISSIONING REGION"]
["8D094","YERBURY CHRISTOPHER (GENERAL PRACTICE)","Y58","SOUTH WEST COMMISSIONING REGION"]
["8JA09","YES POST LTD","Y62","NORTH WEST COMMISSIONING REGION"]
["8A283","YEW TREE CARE HOME","Y60","MIDLANDS COMMISSIONING REGION"]
["8CM29","YEW TREE HOUSE","Y59","SOUTH EAST COMMISSIONING REGION"]
["8C882","YEW TREES NH","Y60","MIDLANDS COMMISSIONING REGION"]
["8K416","YJBPORT LIMITED","Y56","LONDON COMMISSIONING REGION"]
["8K553","YMCA DOWNSLINK GROUP","Y59","SOUTH EAST COMMISSIONING REGION"]
["8JL43","YMCA ESSEX","Y61","EAST OF ENGLAND COMMISSIONING REGION"]
["8JD36","YMCA FAIRTHORNE GROUP","Y59","SOUTH EAST COMMISSIONING REGION"]
["8JQ13","YNOT ASPIRE LTD","Y62","NORTH WEST COMMISSIONING REGION"]
["8AL63","YODEN HALL NH","Y63","NORTH EAST AND YORKSHIRE COMMISSIONING REGION"]
["8AD97","YOMACE A (DR)","Y59","SOUTH EAST COMMISSIONING REGION"]
["8JK64","YOOMEE DIGITAL LTD","Y63","NORTH EAST AND YORKSHIRE COMMISSIONING REGION"]
["8EL41","YORK DRUGS RESOURCE CENTRE","Y63","NORTH EAST AND YORKSHIRE COMMISSIONING REGION"]
["8DN57","YORK HOUSE","Y61","EAST OF ENGLAND COMMISSIONING REGION"]
["8J090","YORK HOUSE VENTURES LTD","Y63","NORTH EAST AND YORKSHIRE COMMISSIONING REGION"]
["8AQ33","YORK RISE N & RH","Y63","NORTH EAST AND YORKSHIRE COMMISSIONING REGION"]
["8K524","YORK TEACHING HOSPITAL FACILITIES MANAGEMENT LLP","Y63","NORTH EAST AND YORKSHIRE COMMISSIONING REGION"]
["8DL85","YORKLEA NH","Y62","NORTH WEST COMMISSIONING REGION"]
["8JX42","YORKSHIRE CHILDREN'S CENTRE","Y63","NORTH EAST AND YORKSHIRE COMMISSIONING REGION"]
["8JL89","YORKSHIRE HEALTH NETWORK","Y63","NORTH EAST AND YORKSHIRE COMMISSIONING REGION"]
["8K523","YORKSHIRE MENTORING","Y63","NORTH EAST AND YORKSHIRE COMMISSIONING REGION"]
["8K340","YORKSHIRE MESMAC","Y63","NORTH EAST AND YORKSHIRE COMMISSIONING REGION"]
["8JM55","YORKSHIRE SURGICENTRE LTD","Y63","NORTH EAST AND YORKSHIRE COMMISSIONING REGION"]
["8HM63","YORKTEL","Y59","SOUTH EAST COMMISSIONING REGION"]
["8JL35","YORMED AMBULANCE SERVICE","Y63","NORTH EAST AND YORKSHIRE COMMISSIONING REGION"]
["8JN35","YOU MEDICALS LIMITED","Y63","NORTH EAST AND YORKSHIRE COMMISSIONING REGION"]
["8FD48","YOUL BRYAN D (DR)","Y56","LONDON COMMISSIONING REGION"]
["8D666","YOUNAN (DR)","Y60","MIDLANDS COMMISSIONING REGION"]
["8EJ27","YOUNG BRIAN K (DR)","Y59","SOUTH EAST COMMISSIONING REGION"]
["8ER28","YOUNG DELIA (PSYCHOLOGIST)","Y59","SOUTH EAST COMMISSIONING REGION"]
["8EX81","YOUNG GAVIN (DR) (NEUROLOGIST)","Y63","NORTH EAST AND YORKSHIRE COMMISSIONING REGION"]
["8JG08","YOUNG GLOUCESTERSHIRE","Y58","SOUTH WEST COMMISSIONING REGION"]
["8FX28","YOUNG JASON (HYPNOTHERAPIST)","Y61","EAST OF ENGLAND COMMISSIONING REGION"]
["8K439","YOUNG PEOPLE CORNWALL","Y58","SOUTH WEST COMMISSIONING REGION"]
["8K570","YOUNG PEOPLE'S COUNSELLING SERVICE (YPCS) BRENTWOOD","Y61","EAST OF ENGLAND COMMISSIONING REGION"]
["8HR44","YOUNG PERSONS ADVISORY SERVICE","Y62","NORTH WEST COMMISSIONING REGION"]
["8FR05","YOUNG RICHARD (HYPNOTHERAPIST)","Y63","NORTH EAST AND YORKSHIRE COMMISSIONING REGION"]
["8GM31","YOUNG ROSALYN GRACE GAYNOR (THERAPIST)","Y61","EAST OF ENGLAND COMMISSIONING REGION"]
["8AK48","YOUNG S","Y60","MIDLANDS COMMISSIONING REGION"]
["8GA55","YOUNG SONIA PATRICIA (THERAPIST)","Y58","SOUTH WEST COMMISSIONING REGION"]
["8G438","YOUNG VIV (THERAPIST)","Y62","NORTH WEST COMMISSIONING REGION"]
["8JK71","YOUR CARE SERVICES BRAIN INJURY SPECIALIST LTD","Y60","MIDLANDS COMMISSIONING REGION"]
["8K113","YOUR CHOICE HOMECARE LTD","Y62","NORTH WEST COMMISSIONING REGION"]
["8JL42","YOUR LIFE YOUR WAY","Y62","NORTH WEST COMMISSIONING REGION"]
["8JR30","YOUR WORLD RECRUITMENT LIMITED","Y56","LONDON COMMISSIONING REGION"]
["8JC04","YOURDMS LIMITED","Y58","SOUTH WEST COMMISSIONING REGION"]
["8JT13","YOURPRESSURE","Y60","MIDLANDS COMMISSIONING REGION"]
["8EV09","YOUSEFF M R (ENT SPECIALIST)","Y60","MIDLANDS COMMISSIONING REGION"]
["8K136","YOUTH EMOTIONAL SUPPORT SERVICE","Y60","MIDLANDS COMMISSIONING REGION"]
["8EM09","YOUTH INFORMATION SERVICE","Y61","EAST OF ENGLAND COMMISSIONING REGION"]
["8K193","YOUTH TALK","Y61","EAST OF ENGLAND COMMISSIONING REGION"]
["8K682","YOUTH WORKS NORTHAMPTONSHIRE","Y60","MIDLANDS COMMISSIONING REGION"]
["8GC07","YOVELL COURT","Y60","MIDLANDS COMMISSIONING REGION"]
["8JH19","YPSOMED LTD","Y63","NORTH EAST AND YORKSHIRE COMMISSIONING REGION"]
["8WD89","YR HAFAN","WALES","WALES"]
["8WC79","YSGUBORWEN NH","WALES","WALES"]
["8WA74","YSTRAD HALL","WALES","WALES"]
["8JT65","YSUSTAIN LTD","Y63","NORTH EAST AND YORKSHIRE COMMISSIONING REGION"]
["8HE82","ZACK MAYA (CLINICAL HYPNOTHERAPIST)","Y56","LONDON COMMISSIONING REGION"]
["8ER89","ZAIDI HABIB (DR)","Y61","EAST OF ENGLAND COMMISSIONING REGION"]
["8DW74","ZAIDI S M (DR) (PSYCHIATRIST)","Y59","SOUTH EAST COMMISSIONING REGION"]
["8K595","ZAITUN LTD T/A MEANWOOD WHOLESALE","Y63","NORTH EAST AND YORKSHIRE COMMISSIONING REGION"]
["8E695","ZAKHOUR SUSAN (COUNSELLOR)","Y62","NORTH WEST COMMISSIONING REGION"]
["8EQ41","ZAKI A S (DR)","Y60","MIDLANDS COMMISSIONING REGION"]
["8EV33","ZAMAN ALI (DR) (COUNSELLOR)","Y60","MIDLANDS COMMISSIONING REGION"]
["8DT98","ZAMAN S A","Y60","MIDLANDS COMMISSIONING REGION"]
["8DY79","ZARIFA ZUHAIR (DR)","Y56","LONDON COMMISSIONING REGION"]
["8HE99","ZARZA EMMA (HYPNOTHERAPIST)","Y56","LONDON COMMISSIONING REGION"]
["8JM31","ZEBRA HEALTH SYSTEMS LTD","Y59","SOUTH EAST COMMISSIONING REGION"]
["8K389","ZECARE LIMITED","Y61","EAST OF ENGLAND COMMISSIONING REGION"]
["8JK36","ZEN INTERNET LIMITED","Y62","NORTH WEST COMMISSIONING REGION"]
["8HF22","ZEN THERAPIES","Y60","MIDLANDS COMMISSIONING REGION"]
["8HN43","ZENGENTI LIMITED","Y60","MIDLANDS COMMISSIONING REGION"]
["8K517","ZENTIVA PHARMA UK LIMITED","Y59","SOUTH EAST COMMISSIONING REGION"]
["8JC78","ZEPHYR HEALTH GMBH","Y56","LONDON COMMISSIONING REGION"]
["8JT64","ZEPTOMEDICAL LTD","Y56","LONDON COMMISSIONING REGION"]
["8JV39","ZEST","Y63","NORTH EAST AND YORKSHIRE COMMISSIONING REGION"]
["8JD86","ZESTY LIMITED","Y56","LONDON COMMISSIONING REGION"]
["8CP90","ZETLAND COURT","Y58","SOUTH WEST COMMISSIONING REGION"]
["8F924","ZEZULKA ALEX (DR)","Y63","NORTH EAST AND YORKSHIRE COMMISSIONING REGION"]
["8G824","ZIMMERMAN ANNA (HYPNOTHERAPIST)","Y56","LONDON COMMISSIONING REGION"]
["8JH18","ZINC DIGITAL BUSINESS SOLUTIONS LIMITED","Y60","MIDLANDS COMMISSIONING REGION"]
["8JG94","ZOES PLACE BABY HOSPICE (LIVERPOOL)","Y62","NORTH WEST COMMISSIONING REGION"]
["8EL54","ZOHRABIAN ANNA (DR) (HYPNOTHERAPIST)","Y56","LONDON COMMISSIONING REGION"]
["8JK58","ZSAH LTD","Y56","LONDON COMMISSIONING REGION"]
["8JQ26","ZTE UK LTD","Y59","SOUTH EAST COMMISSIONING REGION"]
["8GC61","ZWANENBERG STELLA VAN","Y63","NORTH EAST AND YORKSHIRE COMMISSIONING REGION"]
["TAK","BEXLEY CARE TRUST","Y56","LONDON COMMISSIONING REGION"]
["TAP","BLACKBURN WITH DARWEN TEACHING CARE TRUST PLUS","Y62","NORTH WEST COMMISSIONING REGION"]
["TAE","MANCHESTER MENTAL HEALTH AND SOCIAL CARE TRUST ","Y62","NORTH WEST COMMISSIONING REGION"]
["TAN","NORTH EAST LINCOLNSHIRE CARE TRUST PLUS","Y63","NORTH EAST AND YORKSHIRE COMMISSIONING REGION"]
["TAC","NORTHUMBERLAND CARE TRUST","Y63","NORTH EAST AND YORKSHIRE COMMISSIONING REGION"]
["TAM","SOLIHULL CARE TRUST","Y60","MIDLANDS COMMISSIONING REGION"]
["TAL","TORBAY CARE TRUST","Y58","SOUTH WEST COMMISSIONING REGION"]
["TAG","WITHAM, BRAINTREE AND HALSTEAD CARE TRUST","Y61","EAST OF ENGLAND COMMISSIONING REGION"]
["RVL","BARNET AND CHASE FARM HOSPITALS NHS TRUST","Y56","LONDON COMMISSIONING REGION"]
["RNJ","BARTS AND THE LONDON NHS TRUST","Y56","LONDON COMMISSIONING REGION"]
["RG3","BROMLEY HOSPITALS NHS TRUST","Y56","LONDON COMMISSIONING REGION"]
["RJX","CALDERSTONES PARTNERSHIP NHS FOUNDATION TRUST ","Y62","NORTH WEST COMMISSIONING REGION"]
["RW3","CENTRAL MANCHESTER UNIVERSITY HOSPITALS NHS FOUNDATION TRUST","Y62","NORTH WEST COMMISSIONING REGION"]
["RFJ","CENTRAL NOTTINGHAMSHIRE HEALTHCARE NHS TRUST ","Y60","MIDLANDS COMMISSIONING REGION"]
["RC3","EALING HOSPITAL NHS TRUST","Y56","LONDON COMMISSIONING REGION"]
["RX5","GREAT WESTERN AMBULANCE SERVICE NHS TRUST","Y58","SOUTH WEST COMMISSIONING REGION"]
["RD7","HEATHERWOOD AND WEXHAM PARK HOSPITALS NHS FOUNDATION TRUST","Y59","SOUTH EAST COMMISSIONING REGION"]
["RQQ","HINCHINGBROOKE HEALTH CARE NHS TRUST","Y61","EAST OF ENGLAND COMMISSIONING REGION"]
["RY1","LIVERPOOL COMMUNITY HEALTH NHS TRUST","Y62","NORTH WEST COMMISSIONING REGION"]
["RJD","MID STAFFORDSHIRE NHS FOUNDATION TRUST","Y60","MIDLANDS COMMISSIONING REGION"]
["RNH","NEWHAM UNIVERSITY HOSPITAL NHS TRUST","Y56","LONDON COMMISSIONING REGION"]
["RRD","NORTH ESSEX PARTNERSHIP UNIVERSITY NHS FOUNDATION TRUST","Y61","EAST OF ENGLAND COMMISSIONING REGION"]
["RV8","NORTH WEST LONDON HOSPITALS NHS TRUST","Y56","LONDON COMMISSIONING REGION"]
["RBF","NUFFIELD ORTHOPAEDIC CENTRE NHS TRUST","Y59","SOUTH EAST COMMISSIONING REGION"]
["RHX","OXFORDSHIRE LEARNING DISABILITY NHS TRUST","Y59","SOUTH EAST COMMISSIONING REGION"]
["RBB","ROYAL NATIONAL HOSPITAL FOR RHEUMATIC DISEASES NHS FOUNDATION TRUST","Y58","SOUTH WEST COMMISSIONING REGION"]
["RPR","ROYAL WEST SUSSEX NHS TRUST","Y59","SOUTH EAST COMMISSIONING REGION"]
["RCC","SCARBOROUGH AND NORTH EAST YORKSHIRE HEALTH CARE NHS TRUST","Y63","NORTH EAST AND YORKSHIRE COMMISSIONING REGION"]
["RWN","SOUTH ESSEX PARTNERSHIP UNIVERSITY NHS FOUNDATION TRUST","Y61","EAST OF ENGLAND COMMISSIONING REGION"]
["RYQ","SOUTH LONDON HEALTHCARE NHS TRUST","Y56","LONDON COMMISSIONING REGION"]
["R1G","TORBAY AND SOUTHERN DEVON HEALTH AND CARE NHS TRUST","Y58","SOUTH WEST COMMISSIONING REGION"]
["RM4","TRAFFORD HEALTHCARE NHS TRUST","Y62","NORTH WEST COMMISSIONING REGION"]
["RM2","UNIVERSITY HOSPITAL OF SOUTH MANCHESTER NHS FOUNDATION TRUST","Y62","NORTH WEST COMMISSIONING REGION"]
["RFW","WEST MIDDLESEX UNIVERSITY HOSPITAL NHS TRUST","Y56","LONDON COMMISSIONING REGION"]
["RGC","WHIPPS CROSS UNIVERSITY HOSPITAL NHS TRUST","Y56","LONDON COMMISSIONING REGION"]
["RN1","WINCHESTER AND EASTLEIGH HEALTHCARE NHS TRUST","Y59","SOUTH EAST COMMISSIONING REGION"]
["RWQ","WORCESTERSHIRE MENTAL HEALTH PARTNERSHIP NHS TRUST","Y60","MIDLANDS COMMISSIONING REGION"]
["RPL","WORTHING AND SOUTHLANDS HOSPITALS NHS TRUST","Y59","SOUTH EAST COMMISSIONING REGION"]
["IS1","INDEPENDENT SECTOR - UNSPECIFIED","ENGLAND","ENGLAND"]
["RT7","NORTH WEST WALES NHS TRUST","WALES","WALES"]
["RYT","PUBLIC HEALTH WALES NHS TRUST","WALES","WALES"]
["RQF","VELINDRE NHS TRUST","WALES","WALES"]
["RT4","WELSH AMBULANCE SERVICES NHS TRUST","WALES","WALES"]
[]
["RLN",null,"Y63","NORTH EAST AND YORKSHIRE COMMISSIONING REGION"]
["RE9",null,"Y63","NORTH EAST AND YORKSHIRE COMMISSIONING REGION"]